{"text_format":"1","workbook":"xlsx","n_sheets":10,"sheets":["Indtastning","Resultatark","CH4 Fordøjelse","CH4 Gødning","N2O Gødning","N20 Jord","CO2 Brændsler","Reduktionstiltag","Bedriften Danmark","GWP"],"not_rendered":{"charts":0,"images":0,"macros":1,"external_links":1,"defined_names":1,"comments":0,"pivot_tables":0},"unopened":[],"bounds":{"document_bytes":16777216,"sheet_cells":100000,"rows_first":2000,"rows_last":500,"rows_between":2000,"halvings":0,"cell_chars":16384,"cell_head_chars":4096},"cells_cut":0,"cells_raw":0,"read":"whole","date_system":"1900"}

{"sheet":"Indtastning","index":0,"n_rows":158,"n_cols":19,"rows_kept":158,"cut":false,"hidden":false,"merged":[[75,2,75,4],[58,1,58,4],[6,1,6,12],[37,1,37,17],[26,1,26,17]]}
["Indtastningsark"]
[]
[]
[]
[]
["Kvæg"]
["Dyretype","Staldtype"]
["Antal producerede dyr i året","Bindestald med grebning","Bindestald med riste","Sengestald med fast gulv","Sengestald, fast drænet gulv med skraber og ajleafløb","Sengestald med spalter (kanal, linespil)","Sengestald med spalter (kanal, bagskyl eller ringkanal)","Dybstrøelse (hele arealet)","Dybstrøelse, lang ædeplads med fast gulv","Dybstrøelse, lang ædeplads med spalter (kanal, linespil)","Dybstrøelse, lang ædeplads med spalter (kanal, bagskyl eller ringkanal)","Dybstrøelse + kort ædeplads med fast gulv","Spaltegulvbokse",null,null,null,null,null,"Biogas"]
["Malkekvæg, tung race"]
["Malkekvæg, jersey"]
["Småkalv, 0-6 mdr., tung race"]
["Småkalv, 0-6 mdr., jersey"]
["Kvier og stude, 6-27 mdr., tung race"]
["Kvier og stude, 6-27 mdr., jersey"]
["Tyrekalv, 0-6 mdr., tung race"]
["Tyrekalv, 0-6 mdr., jersey"]
["Ungtyre, 6 mdr. til slagtning (440 kg), tung race"]
["Ungtyre, 6 mdr. til slagtning (440 kg), jersey"]
["Ammekvæg (<400 kg)"]
["Ammekvæg( 400-600 kg)"]
["Ammekvæg (>600 kg)"]
[]
[]
[]
[]
["Svin"]
["Dyretype","Staldtype"]
["Antal producerede dyr i året","Løsgående, dybstrøelse + fast gulv","Løsgående, dybstrøelse + spaltegulv","Løsgående, dybstrøelse","Løsgående, delvis spaltegulv","Individuel opstaldning, delvis spaltegulv","Individuel opstaldning, fuldspaltegulv","Individuel opstaldning, fast gulv","Kassestier, delvis spaltegulv","Kassestier, fuldspaltegulv","Fuldspaltegulv","To klimastald, delvis spaltegulv","Fast gulv","Dybstrøelse","Dybstrøelse, opdelt lejeareal","Drænet gulv + spalter (50/50)","Drænet gulv + spalter (33/67)","Søer på friland","Biogas"]
["Søer"]
["Søer, bidrag fra fareperiode"]
["Smågrise (7-31 kg)"]
["Slagtesvin (31 kg >)"]
[]
[]
[]
[]
["Fjerkræ"]
["Dyretype","Staldtype"]
["Antal producerede dyr i året","Friland, konsumæg","Økologiske, konsumæg","Skrabehøner, konsumæg","Burhøns, konsumæg, bånd, staldgødning","Burhøns, konsumæg, bånd, gylle","Burhøns, konsumæg, gødningskælder","HPR høner (rugeæg), gulvdrift","Slagtekyllinger (25 dyr/m2), produktionstid 30 dage","Slagtekyllinger (25 dyr/m2), produktionstid 32 dage","Slagtekyllinger (25 dyr/m2), produktionstid 35 dage","Slagtekyllinger (25 dyr/m2), produktionstid 40 dage","Slagtekyllinger (25 dyr/m2), produktionstid 45 dage","Skrabekyllinger (10 dyr/m2), produktionstid 56 dage","Økologiske slagtekyllinger","Hønniker, konsum, gulvdrift, 112 dage","Hønniker, konsum, netdrift, 112 dage","Hønniker, rugeæg, HPR, gulvdrift, 119 dage"]
["Høns"]
["Hønniker"]
["Slagtekyllinger"]
[]
[]
[]
[]
["Får og geder"]
["Dyretype","Staldtype"]
["Antal producerede dyr i året","Dybstrøelse"]
["Får"]
["Malkegeder"]
["Mohairgeder"]
["Kødgeder"]
[]
[]
[]
[]
["Andre dyr"]
["Dyretype","Staldtype"]
["Antal producerede dyr i året","Dybstrøelse","Græs","Bure, fast gødning i gødningsrende","Bure gødningsrende, ugentlig tømning"]
["Heste <300 kg"]
["Heste 300 - <500 kg"]
["Heste 500 - <700 kg"]
["Heste >700 kg "]
["Dådyr"]
["Fasaner"]
["Mink"]
[]
[]
[]
[]
[]
["Brændstofforbrug"]
[]
["Brændstofforbrug i stationære anlæg"]
["Brændselstype","Brændstofforbrug"]
["Flydende brændsler (l)"]
["Faste brændsler (ton)"]
["Naturgas (m3)"]
[]
["Brændstofforbrug i mobile anlæg"]
["Brændselstype","Brændstofforbrug"]
["Benzin (l)"]
["Diesel (l)"]
[]
[]
[]
[]
[]
["Gødningsforbrug"]
["Gødningstype","Gødningsforbrug Kg N"]
["Handelsgødning"]
["Husdyrgødning udlagt på marken"]
["Slam"]
["Andet organisk gødning"]
[]
["Afgrøder"]
["Type afgrøde","Areal i ha"]
["Vinterhvede"]
["Vårhvede"]
["Rug"]
["Vinterbyg"]
["Vårbyg"]
["Havre"]
["Triticale og andet korn til modenhed"]
["Majs til opfodring"]
["Kartofler"]
["Lucerne"]
["Bælgsæd til modenhed"]
["Sukkerroer til fabrik + Foderroer"]
["Korn og bælgsæd til ensilering (helsæd)"]
["Græs- og kløvermark i omdriften + Frø til udsæd"]
["Græsarealer uden for omdriften"]
["Raps i alt + Hør + Anden industrifrø"]
["Samlet",{"$f":"SUM(B99:B114)","v":0}]
[]
["Halm"]
["Halm bjærget"]
[]
["Jordbunden"]
["Jordtype","Areal dyrket i ha"]
["JB-nr. 1"]
["JB-nr. 2"]
["JB-nr. 3"]
["JB-nr. 4"]
["JB-nr. 5"]
["JB-nr. 6"]
["JB-nr. 7"]
["JB-nr. 8"]
["JB-nr. 9"]
["JB-nr. 10"]
["JB-nr. 11"]
["JB-nr. 12"]
["Tørvejord dyrket med afgrøde"]
["Tørvejord dyrket med græs"]
[]
[]
["Reduktionstiltag"]
[]
["På gården"]
["Tiltag","Ja/nej"]
["Forsuret, svinegylle",null,null,{"$f":"IF(AND(B142=\"ja\",B144=\"ja\")=TRUE,\"FEJL man kan ikke forsure og biogasse den samme gylle\",\"\")","v":""}]
["Forsuret, kvæggylle",null,null,{"$f":"IF(AND(B143=\"ja\",B145=\"ja\")=TRUE,\"FEJL man kan ikke forsure og biogasse den samme gylle\",\"\")","v":""}]
["Biogas, svinegylle"]
["Biogas, kvæggylle"]
[]
["På marken"]
["Tiltag","Ja/nej"]
["Nitrifikationshæmmere"]
["Tiltag","Areal i ha."]
["Vedvarende græs"]
["Dyrkning af energipil, sandjord"]
["Dyrkning af energipil, lerjord"]
["Dyrkning af energipil, tørvejord"]
["Efterafgrøder på sandjord"]
["Efterafgrøder på lerjord"]
["Mellemafgrøder på sandjord"]
["Mellemafgrøder på lerjord"]

{"sheet":"Resultatark","index":1,"n_rows":74,"n_cols":6,"rows_kept":74,"cut":false,"hidden":false,"merged":[]}
["Bedriftsregnskab for udledningen af drivhusgasser"]
[]
["Drivhusgasudledning i alt ",null,null,null,{"$f":"F19+F31+F43+F54","v":0},"ton CO2e"]
[]
["Tabel 1. Udledningen af metan fra fordøjelsen"]
["Dyretype",null,null,null,null,"I alt"]
[null,null,null,null,null,"ton CO2e"]
["Malkekøer",null,null,null,null,{"$f":"IFERROR('CH4 Fordøjelse'!G4*GWP!$B$2,0)","v":0}]
["Tyrekalve (0-½ år)",null,null,null,null,{"$f":"IFERROR('CH4 Fordøjelse'!G5*GWP!$B$2,0)","v":0}]
["Tyre (> ½ år)",null,null,null,null,{"$f":"IFERROR('CH4 Fordøjelse'!G6*GWP!$B$2,0)","v":0}]
["Kviekalve (0-½ år)",null,null,null,null,{"$f":"IFERROR('CH4 Fordøjelse'!G7*GWP!$B$2,0)","v":0}]
["Kvier (> ½ år)",null,null,null,null,{"$f":"IFERROR('CH4 Fordøjelse'!G8*GWP!$B$2,0)","v":0}]
["Ammekvæg",null,null,null,null,{"$f":"IFERROR('CH4 Fordøjelse'!G9*GWP!$B$2,0)","v":0}]
["Søer",null,null,null,null,{"$f":"IFERROR('CH4 Fordøjelse'!G10*GWP!$B$2,0)","v":0}]
["Smågrise",null,null,null,null,{"$f":"IFERROR('CH4 Fordøjelse'!G11*GWP!$B$2,0)","v":0}]
["Slagtesvin",null,null,null,null,{"$f":"IFERROR('CH4 Fordøjelse'!G12*GWP!$B$2,0)","v":0}]
["Fjerkræ",null,null,null,null,{"$f":"'CH4 Fordøjelse'!G17*GWP!B2","v":0}]
["Andre dyr",null,null,null,null,{"$f":"SUM('CH4 Fordøjelse'!G13:G16)*GWP!B2","v":0}]
["I alt",null,null,null,null,{"$f":"SUM(F8:F18)","v":0}]
[]
[]
[]
["Tabel 2. Udledningen af metan og lattergas fra gødningshåndtering"]
[null,"Metan fra gødningshånd-tering","Lattergas fra gødningshånd-tering","Reduktion af udledningen fra gødningshåndtering",null,"I alt"]
[null,"ton CO2e","ton CO2e","ton CO2e",null,"ton CO2e"]
["Kvæggylle",{"$f":"('CH4 Gødning'!C225+'CH4 Gødning'!B225)*GWP!B2/1000","v":0},{"$f":"IFERROR(('N2O Gødning'!B220+'N2O Gødning'!C220)*GWP!B3/1000,0)","v":0},null,null,{"$f":"B26+C26+D26+E26","v":0}]
["Svinegylle",{"$f":"'CH4 Gødning'!D225*GWP!B2/1000","v":0},{"$f":"IFERROR('N2O Gødning'!D220*GWP!B3/1000,0)","v":0},null,null,{"$f":"B27+C27+D27+E27","v":0}]
["Anden gylle",{"$f":"'CH4 Gødning'!E225*GWP!B2/1000","v":0},{"$f":"IFERROR('N2O Gødning'!E220*GWP!B3/1000,0)","v":0},null,null,0]
["Anden gødning",{"$f":"('CH4 Gødning'!G224+'CH4 Gødning'!G226+'CH4 Gødning'!G227+'CH4 Gødning'!G228)*GWP!B2/1000","v":0},{"$f":"IFERROR((('N2O Gødning'!F219+'N2O Gødning'!F221+'N2O Gødning'!F222+'N2O Gødning'!F223)*GWP!B3/1000),0)","v":0},null,null,{"$f":"B29+C29+D29+E29","v":0}]
["Reduktionstiltag",null,null,{"$f":"-SUM(F61:F64)","v":0},null,{"$f":"SUM(B30:E30)","v":0}]
["I alt",{"$f":"SUM(B26:B30)","v":0},{"$f":"SUM(C26:C30)","v":0},null,null,{"$f":"SUM(F26:F30)","v":0}]
[]
[]
["Tabel 3. Udledning af lattergas fra jorde"]
["Kilde til udledning",null,null,null,null,"I alt"]
[null,null,null,null,null,"ton CO2e"]
["Handelsgødning",null,null,null,null,{"$f":"'N20 Jord'!D4*1000*GWP!$B$3","v":0}]
["Organisk gødning",null,null,null,null,{"$f":"('N20 Jord'!D6+'N20 Jord'!D7+'N20 Jord'!D8+'N20 Jord'!D9)*1000*GWP!$B$3","v":0}]
["Afgrøderester",null,null,null,null,{"$f":"'N20 Jord'!D10*1000*GWP!$B$3","v":0}]
["Organiske jorde",null,null,null,null,{"$f":"('N20 Jord'!D11+'N20 Jord'!D12)*1000*GWP!$B$3","v":0}]
["Indirekte lattergas",null,null,null,null,{"$f":"('N20 Jord'!D14+'N20 Jord'!D15)*1000*GWP!$B$3","v":0}]
["Reduktionstiltag Landbrugsjorden",null,null,null,null,{"$f":"-F66","v":0}]
["I alt",null,null,null,null,{"$f":"SUM(F37:F42)","v":0}]
[]
[]
["Tabel 4. Udledning af CO2 fra afbrænding af fossile brændsler"]
["Brændsel",null,null,null,null,"I alt"]
[null,null,null,null,null,"ton CO2e"]
["Flydende brændsler i stationære anlæg",null,null,null,null,{"$f":"'CO2 Brændsler'!P4","v":0}]
["Faste brændsler",null,null,null,null,{"$f":"'CO2 Brændsler'!P5","v":0}]
["Gas",null,null,null,null,{"$f":"'CO2 Brændsler'!P6","v":0}]
["Benzin",null,null,null,null,{"$f":"'CO2 Brændsler'!P7","v":0}]
["Diesel",null,null,null,null,{"$f":"'CO2 Brændsler'!P8","v":0}]
["I alt",null,null,null,null,{"$f":"SUM(F49:F53)","v":0}]
[]
[]
["Tabel 5. Effekten af reduktionstiltag"]
["Reduktionstiltag",null,null,null,null,"I alt"]
[null,null,null,null,null,"ton CO2e"]
["På gården",null,null,null,null,{"$f":"SUM(F61:F64)","v":0}]
["Forsuret, svinegylle",null,null,null,null,{"$f":"Reduktionstiltag!H3","v":0}]
["Forsuret, kvæggylle",null,null,null,null,{"$f":"Reduktionstiltag!H4","v":0}]
["Biogas, svinegylle",null,null,null,null,{"$f":"Reduktionstiltag!H5","v":0}]
["Biogas, kvæggylle",null,null,null,null,{"$f":"Reduktionstiltag!H6","v":0}]
[]
["På marken",null,null,null,null,{"$f":"SUM(F67:F73)","v":0}]
["Nitrifikationshæmmere",null,null,null,null,{"$f":"Reduktionstiltag!H10","v":0}]
["Dyrkning af energipil",null,null,null,null,{"$f":"Reduktionstiltag!H7+Reduktionstiltag!H8+Reduktionstiltag!H9+Reduktionstiltag!H11","v":0}]
["Efterafgrøder på sandjord",null,null,null,null,{"$f":"Reduktionstiltag!H12","v":0}]
["Efterafgrøder på lerjord",null,null,null,null,{"$f":"Reduktionstiltag!H13","v":0}]
["Mellemafgrøder på sandjord",null,null,null,null,{"$f":"Reduktionstiltag!H14","v":0}]
["Mellemafgrøder på lerjord",null,null,null,null,{"$f":"Reduktionstiltag!H15","v":0}]
["Vedvarende græs",null,null,null,null,{"$f":"Reduktionstiltag!H16","v":0}]
["I alt",null,null,null,null,{"$f":"F60+F66","v":0}]

{"sheet":"CH4 Fordøjelse","index":2,"n_rows":20,"n_cols":7,"rows_kept":20,"cut":false,"hidden":false,"merged":[[1,2,1,4]]}
[]
["Karekteristika","Inputs","Normtal",null,null,"Emissionsfaktor","Total udledning"]
[null,"Antal dyr","Bruttoenergiindtag","Metankonverteringsrate","Brændværdi af 1 kg CH4 omregnet til MJ","Kg CH4/dyr/år","ton CH4"]
["Malkekøer",{"$f":"SUM(Indtastning!B9:S10)","v":0},393.09902868247775,6,55.65,{"$f":"C4*(D4/100)*(365/E4)","v":154.69665279687803},{"$f":"B4*F4/1000","v":0}]
["Tyrekalve (0-½ år)",{"$f":"SUM(Indtastning!B15:P16)","v":0},61.754437356421839,3,55.65,{"$f":"C5*(D5/100)*(365/E5)","v":12.151142660428016},{"$f":"B5*F5/1000","v":0}]
["Tyre (> ½ år)",{"$f":"SUM(Indtastning!B17:P18)","v":0},51.140427945205481,6,55.65,{"$f":"C6*(D6/100)*(365/E6)","v":20.12534361185984},0]
["Kviekalve (0-½ år)",{"$f":"SUM(Indtastning!B11:P12)","v":0},115.08849572937336,3,55.65,22.645445251332227,0]
["Kvier (> ½ år)",{"$f":"SUM(Indtastning!B13:P14)","v":0},130.23895162154199,6,55.65,{"$f":"C8*(D8/100)*(365/E8)","v":51.25306451952865},0]
["Ammekvæg",{"$f":"SUM(Indtastning!B19:P21)","v":0},163.55306266796774,6,55.65,64.363199863944175,0]
["Søer",{"$f":"SUM(Indtastning!B29:S29)","v":0},72.5720547479293,0.6,55.65,2.8559353081395358,0]
["Smågrise",{"$f":"SUM(Indtastning!B31:S31)","v":0},2.0803942827858219,0.6,55.65,8.1869963689145564E-2,0]
["Slagtesvin",{"$f":"SUM(Indtastning!B32:S32)","v":0},9.5769485052572598,0.6,55.65,0.37688260964085174,0]
["Får",{"$f":"SUM(Indtastning!B50)","v":0},17.440000000000001,6.5,55.65,{"$f":"C13*(D13/100)*365/E13","v":7.435112309074575},{"$f":"F13*B13/1000","v":0}]
["Dådyr",{"$f":"SUM(Indtastning!B65:E65)","v":0},34.46,5,55.65,{"$f":"C14*(D14/100)*365/E14","v":11.300898472596586},{"$f":"F14*B14/1000","v":0}]
["Geder",{"$f":"SUM(Indtastning!B51:B53)","v":0},39.89,5,55.65,13.081626235399822,0]
["Heste",{"$f":"SUM(Indtastning!B61:E64)","v":0},133.01,2.5,55.65,21.809815813117698,0]
["Fjerkræ",{"$f":"SUM(Indtastning!B40:P42,Indtastning!B66:E66)","v":0},null,null,null,3.0595840046699998E-3,{"$f":"F17*B17/1000","v":0}]
[]
[]
["Kilde",null,"NIR Annex 3D-11 og egne beregninger for smågrise og slagtesvin","NIR Tabel 5.6, 5.7 og 5.8 og CRF Tabel 3.As1 for \"Andre dyr\"","NIR: 383","Beregning og CRF tabel 3.As1 for fjerkræ"]

{"sheet":"CH4 Gødning","index":3,"n_rows":229,"n_cols":24,"rows_kept":229,"cut":false,"hidden":false,"merged":[[0,2,0,4],[0,6,0,21]]}
[null,null,"Karakteristika",null,null,"Inputs","Normtal",null,null,null,null,null,null,null,null,null,null,null,null,null,null,null,"Emissionsfaktor","Totale udledninger"]
["Beskrivelse","Dyrekategori","Dyretype Dansk betegnelse","Staldtype (Engelsk)","Staldtype (Dansk)","Number of animals","Gødningstype","Gødningstype (M/S)","Ton Gødning pr dyr (m)","Tørstof pct. ","Strøelsestype","Gødningstype (M/S)3","Ton Gødning pr dyr (s)","Tørstof pct.","Dage på græs (g)","Dage på græs2","VS_housing","VSHousing ","VS_grazing","VSGrazing","MCF","B0","CH4 pr dyr","Total amount of CH4"]
["Dairy cattle","Malkekvæg","1 årsko, tung race","Tethered with urine and solid manure","Bindestald med grebning",{"$f":"IFERROR(HLOOKUP('CH4 Gødning'!$E3,Indtastning!$B$8:$P$9,2,FALSE),0)","v":0},"Staldgødning","M",11.54,0.2,"Strøelse","S",{"$f":"(1.2*365)/1000","v":0.438},0.85,18,18,{"$f":"(I3*1000)/365*J3*(365-O3)*0.8+(M3*1000)/365*N3*(365-O3)*(1-0.045/100)","v":2109.1253845342467},2044.45412465753,{"$f":"(I3*1000)/365*J3*0.8*P3","v":91.055342465753441},88.518575342465738,2,0.24,{"$f":"(R3*U3/100*0.67*V3)+(T3*U3/100*0.67*V3)","v":6.8596402031999855},{"$f":"F3*W3","v":0}]
["Dairy cattle","Malkekvæg","1 årsko, tung race","Tethered with urine and solid manure","Bindestald med grebning",{"$f":"IFERROR(HLOOKUP('CH4 Gødning'!$E4,Indtastning!$B$8:$P$9,2,FALSE),0)","v":0},"Ajle (liquid manure/urin)","M",14.95,3.4000000000000002E-2,null,null,null,null,18,18,{"$f":"(I4*1000)/365*J4*(365-O4)*0.8+(M4*1000)/365*N4*(365-O4)*(1-0.045/100)","v":386.58652054794521},341.86630136986304,{"$f":"(I4*1000)/365*J4*0.8*P4","v":20.053479452054795},17.733698630136985,6.97,0.24,4.0303104960000002,0]
["Dairy cattle","Malkekvæg","1 årsko, tung race","Tethered with slurry","Bindestald med riste",{"$f":"IFERROR(HLOOKUP('CH4 Gødning'!$E5,Indtastning!$B$8:$P$9,2,FALSE),0)","v":0},"Gylle","M",30.61,8.6999999999999994E-2,"Strøelse","S",{"$f":"1.2*365/1000","v":0.438},0.85,18,18,2379.173143438356,2387.0596786301398,105.06358356164384,106.290621369863,6.97,0.24,27.944871758328034,0]
["Dairy cattle","Malkekvæg","1 årsko, tung race","Loose-holding with beds, solid floor","Sengestald med fast gulv",{"$f":"IFERROR(HLOOKUP('CH4 Gødning'!$E6,Indtastning!$B$8:$P$9,2,FALSE),0)","v":0},"Gylle","M",30.5,0.08,"Strøelse","S",{"$f":"0.4*365/1000","v":0.14599999999999999},0.85,18,18,1973.6638953013701,2161.7178786301401,96.263013698630147,106.290621369863,6.97,0.24,25.41929494596004,0]
["Dairy cattle","Malkekvæg","1 årsko, tung race","Loose-holding with beds, slatted floor","Sengestald med spalter (kanal, linespil)",{"$f":"IFERROR(HLOOKUP('CH4 Gødning'!$E7,Indtastning!$B$8:$P$9,2,FALSE),0)","v":0},"Gylle","M",30.5,0.08,"Strøelse","S",{"$f":"0.4*365/1000","v":0.14599999999999999},0.85,18,18,1973.6638953013701,2161.7178786301401,96.263013698630147,106.290621369863,6.97,0.24,25.41929494596004,0]
["Dairy cattle","Malkekvæg","1 årsko, tung race","Loose-holding with beds, slatted floor, scrape","Sengestald med spalter (kanal, bagskyl eller ringkanal)",{"$f":"IFERROR(HLOOKUP('CH4 Gødning'!$E8,Indtastning!$B$8:$P$9,2,FALSE),0)","v":0},"Gylle","M",30.5,0.08,"Strøelse","S",0.14599999999999999,0.85,18,18,1973.6638953013701,2161.7178786301401,96.263013698630147,106.290621369863,6.97,0.24,25.41929494596004,0]
["Dairy cattle","Malkekvæg","1 årsko, tung race","Loose-holding with beds, drained floor","Sengestald, fast drænet gulv med skraber og ajleafløb",{"$f":"IFERROR(HLOOKUP('CH4 Gødning'!$E9,Indtastning!$B$8:$P$9,2,FALSE),0)","v":0},"Gylle","M",30.5,0.08,"Strøelse","S",0.14599999999999999,0.85,18,18,1973.6638953013701,2161.7178786301401,96.263013698630147,106.290621369863,6.97,0.24,25.41929494596004,0]
["Dairy cattle","Malkekvæg","1 årsko, tung race","Deep litter (all)","Dybstrøelse (hele arealet)",{"$f":"IFERROR(HLOOKUP('CH4 Gødning'!$E10,Indtastning!$B$8:$P$9,2,FALSE),0)","v":0},null,null,null,null,"Dybstrøelse","S",15.92,0.3,18,18,4538.4280208219179,5429.1739786301405,0,106.290621369863,17,0.24,151.31746030560006,0]
["Dairy cattle","Malkekvæg","1 årsko, tung race","Deep litter, long eating space, solid floor","Dybstrøelse, lang ædeplads med fast gulv",{"$f":"IFERROR(HLOOKUP('CH4 Gødning'!$E11,Indtastning!$B$8:$P$9,2,FALSE),0)","v":0},"Gylle","M",13.39,6.9000000000000006E-2,null,null,null,null,18,18,702.67785205479458,819.29875287671234,36.450147945205487,42.499647123287673,6.97,0.24,9.6588296355840004,0]
["Dairy cattle","Malkekvæg","1 årsko, tung race","Deep litter, long eating space, solid floor","Dybstrøelse, lang ædeplads med fast gulv",{"$f":"IFERROR(HLOOKUP('CH4 Gødning'!$E12,Indtastning!$B$8:$P$9,2,FALSE),0)","v":0},null,null,null,null,"Dybstrøelse","S",12.53,0.28699999999999998,18,18,3417.2291436260266,4046.5207257534203,0,63.790974246575345,17,0.24,112.35948063119989,0]
["Dairy cattle","Malkekvæg","1 årsko, tung race","Deep litter, slatted floor","Dybstrøelse, lang ædeplads med spalter (kanal, linespil)",{"$f":"IFERROR(HLOOKUP('CH4 Gødning'!$E13,Indtastning!$B$8:$P$9,2,FALSE),0)","v":0},"Gylle","M",13.39,6.9000000000000006E-2,null,null,null,null,18,18,702.67785205479458,819.29875287671234,36.450147945205487,42.499647123287673,6.97,0.24,9.6588296355840004,0]
["Dairy cattle","Malkekvæg","1 årsko, tung race","Deep litter, slatted floor","Dybstrøelse, lang ædeplads med spalter (kanal, linespil)",{"$f":"IFERROR(HLOOKUP('CH4 Gødning'!$E14,Indtastning!$B$8:$P$9,2,FALSE),0)","v":0},null,null,null,null,"Dybstrøelse","S",12.53,0.28699999999999998,18,18,3417.2291436260266,4046.5207257534203,0,63.790974246575345,17,0.24,112.35948063119989,0]
["Dairy cattle","Malkekvæg","1 årsko, tung race","Deep litter, slatted floor, scrape","Dybstrøelse, lang ædeplads med spalter (kanal, bagskyl eller ringkanal)",{"$f":"IFERROR(HLOOKUP('CH4 Gødning'!$E15,Indtastning!$B$8:$P$9,2,FALSE),0)","v":0},"Gylle","M",13.39,6.9000000000000006E-2,null,null,null,null,18,18,702.67785205479458,819.29875287671234,36.450147945205487,42.499647123287673,6.97,0.24,9.6588296355840004,0]
["Dairy cattle","Malkekvæg","1 årsko, tung race","Deep litter, slatted floor, scrape","Dybstrøelse, lang ædeplads med spalter (kanal, bagskyl eller ringkanal)",{"$f":"IFERROR(HLOOKUP('CH4 Gødning'!$E16,Indtastning!$B$8:$P$9,2,FALSE),0)","v":0},null,null,null,null,"Dybstrøelse","S",12.53,0.28699999999999998,18,18,3417.2291436260266,4046.5207257534203,0,63.790974246575345,17,0.24,112.35948063119989,0]
["Dairy cattle","Malkekvæg","1 årsko, tung race","Biogas","Biogas",{"$f":"IFERROR(HLOOKUP('CH4 Gødning'!$E17,Indtastning!$B$8:$S$9,2,FALSE),0)","v":0},null,null,null,null,null,null,null,null,18,18,0,2161.7178786301401,0,106.290621369863,5.0599999999999996,0.24,18.453605800080023,0]
["Dairy cattle, jersey","Malkekvæg","1 årsko, jersey","Tethered with urine and solid manure","Bindestald med grebning",{"$f":"IFERROR(HLOOKUP('CH4 Gødning'!$E18,Indtastning!$A$8:$P$21,3,FALSE),0)","v":0},"Staldgødning","M",9.6199999999999992,0.2,null,null,null,null,18,18,1463.2942465753426,1694.4711130137,75.905753424657547,73.286136986301372,2,0.24,5.6851073160000052,0]
["Dairy cattle, jersey","Malkekvæg","1 årsko, jersey","Tethered with urine and solid manure","Bindestald med grebning",{"$f":"IFERROR(HLOOKUP('CH4 Gødning'!$E19,Indtastning!$A$8:$P$21,3,FALSE),0)","v":0},"Ajle (liquid manure/urin)","M",12.46,3.4000000000000002E-2,null,null,null,null,18,18,322.19853150684935,282.92383561643834,16.713468493150689,14.676164383561645,6.97,0.24,3.3354293759999996,0]
["Dairy cattle, jersey","Malkekvæg","1 årsko, jersey","Tethered with slurry","Bindestald med riste",{"$f":"IFERROR(HLOOKUP('CH4 Gødning'!$E20,Indtastning!$A$8:$P$21,3,FALSE),0)","v":0},"Gylle","M",25.51,8.6999999999999994E-2,null,null,null,null,18,18,1687.937293150685,1977.0816028767099,87.558706849315072,87.94604712328767,6.97,0.24,23.144334294563972,0]
["Dairy cattle, jersey","Malkekvæg","1 årsko, jersey","Loose-holding with beds, solid floor","Sengestald med fast gulv",{"$f":"IFERROR(HLOOKUP('CH4 Gødning'!$E21,Indtastning!$A$8:$P$21,3,FALSE),0)","v":0},"Gylle","M",25.29,0.08,null,null,null,null,18,18,1538.7406027397265,1779.90752787671,79.819397260273988,87.94604712328767,6.97,0.24,20.934454583741971,0]
["Dairy cattle, jersey","Malkekvæg","1 årsko, jersey","Loose-holding with beds, slatted floor","Sengestald med spalter (kanal, linespil)",{"$f":"IFERROR(HLOOKUP('CH4 Gødning'!$E22,Indtastning!$A$8:$P$21,3,FALSE),0)","v":0},"Gylle","M",25.29,0.08,null,null,null,null,18,18,1538.7406027397265,1779.90752787671,79.819397260273988,87.94604712328767,6.97,0.24,20.934454583741971,0]
["Dairy cattle, jersey","Malkekvæg","1 årsko, jersey","Loose-holding with beds, slatted floor, scrape","Sengestald med spalter (kanal, bagskyl eller ringkanal)",{"$f":"IFERROR(HLOOKUP('CH4 Gødning'!$E23,Indtastning!$A$8:$P$21,3,FALSE),0)","v":0},"Gylle","M",25.29,0.08,null,null,null,null,18,18,1538.7406027397265,1779.90752787671,79.819397260273988,87.94604712328767,6.97,0.24,20.934454583741971,0]
["Dairy cattle, jersey","Malkekvæg","1 årsko, jersey","Loose-holding with beds, drained floor","Sengestald, fast drænet gulv med skraber og ajleafløb",{"$f":"IFERROR(HLOOKUP('CH4 Gødning'!$E24,Indtastning!$A$8:$P$21,3,FALSE),0)","v":0},"Gylle","M",25.29,0.08,null,null,null,null,18,18,1538.7406027397265,1779.90752787671,79.819397260273988,87.94604712328767,6.97,0.24,20.934454583741971,0]
["Dairy cattle, jersey","Malkekvæg","1 årsko, jersey","Deep litter (all)","Dybstrøelse (hele arealet)",{"$f":"IFERROR(HLOOKUP('CH4 Gødning'!$E25,Indtastning!$A$8:$P$21,3,FALSE),0)","v":0},null,null,null,null,"Dybstrøelse","S",13.26,0.3,18,18,3780.122836438356,4512.1768528767097,0,87.94604712328767,17,0.24,125.74895959439995,0]
["Dairy cattle, jersey","Malkekvæg","1 årsko, jersey","Deep litter, long eating space, solid floor","Dybstrøelse, lang ædeplads med fast gulv",{"$f":"IFERROR(HLOOKUP('CH4 Gødning'!$E26,Indtastning!$A$8:$P$21,3,FALSE),0)","v":0},"Gylle","M",11.16,6.9000000000000006E-2,null,null,null,null,18,18,585.65233972602744,678.48177972602741,30.379660273972608,35.195020273972609,6.97,0.24,7.9987182919679993,0]
["Dairy cattle, jersey","Malkekvæg","1 årsko, jersey","Deep litter, long eating space, solid floor","Dybstrøelse, lang ædeplads med fast gulv",{"$f":"IFERROR(HLOOKUP('CH4 Gødning'!$E27,Indtastning!$A$8:$P$21,3,FALSE),0)","v":0},null,null,null,null,"Dybstrøelse","S",10.14,0.28699999999999998,18,18,2765.4192750493153,3271.14066958904,0,52.792530410958904,17,0.24,90.863037955199971,0]
["Dairy cattle, jersey","Malkekvæg","1 årsko, jersey","Deep litter, slatted floor","Dybstrøelse, lang ædeplads med spalter (kanal, linespil)",{"$f":"IFERROR(HLOOKUP('CH4 Gødning'!$E28,Indtastning!$A$8:$P$21,3,FALSE),0)","v":0},"Gylle","M",11.16,6.9000000000000006E-2,null,null,null,null,18,18,585.65233972602744,678.48177972602741,30.379660273972608,35.195020273972609,6.97,0.24,7.9987182919679993,0]
["Dairy cattle, jersey","Malkekvæg","1 årsko, jersey","Deep litter, slatted floor","Dybstrøelse, lang ædeplads med spalter (kanal, linespil)",{"$f":"IFERROR(HLOOKUP('CH4 Gødning'!$E29,Indtastning!$A$8:$P$21,3,FALSE),0)","v":0},null,null,null,null,"Dybstrøelse","S",10.14,0.28699999999999998,18,18,2765.4192750493153,3271.14066958904,0,52.792530410958904,17,0.24,90.863037955199971,0]
["Dairy cattle, jersey","Malkekvæg","1 årsko, jersey","Deep litter, slatted floor, scrape","Dybstrøelse, lang ædeplads med spalter (kanal, bagskyl eller ringkanal)",{"$f":"IFERROR(HLOOKUP('CH4 Gødning'!$E30,Indtastning!$A$8:$P$21,3,FALSE),0)","v":0},"Gylle","M",11.16,6.9000000000000006E-2,null,null,null,null,18,18,585.65233972602744,678.48177972602741,30.379660273972608,35.195020273972609,6.97,0.24,7.9987182919679993,0]
["Dairy cattle, jersey","Malkekvæg","1 årsko, jersey","Deep litter, slatted floor, scrape","Dybstrøelse, lang ædeplads med spalter (kanal, bagskyl eller ringkanal)",{"$f":"IFERROR(HLOOKUP('CH4 Gødning'!$E31,Indtastning!$A$8:$P$21,3,FALSE),0)","v":0},null,null,null,null,"Dybstrøelse","S",10.14,0.28699999999999998,18,18,2765.4192750493153,3271.14066958904,0,52.792530410958904,17,0.24,90.863037955199971,0]
["Heifer calves, 0-6 mth.","Andet kvæg","Årsopdræt, 0-6 mdr., småkalv, tung race.","Deep litter (boxes)","Dybstrøelse (hele arealet)",{"$f":"IFERROR(HLOOKUP('CH4 Gødning'!$E32,Indtastning!$A$8:$P$21,4,FALSE),0)","v":0},null,null,null,null,"Dybstrøelse","S",1.89,0.3,null,null,566.74485000000004,676.65712499999995,0,null,3,0.18,2.4481454782499998,0]
["Heifer calves, 0-6 mth.","Andet kvæg","Årsopdræt, 0-6 mdr., småkalv, tung race.","Deep litter, solid floor","Dybstrøelse + kort ædeplads med fast gulv",{"$f":"IFERROR(HLOOKUP('CH4 Gødning'!$E33,Indtastning!$A$8:$P$21,4,FALSE),0)","v":0},null,null,null,null,"Dybstrøelse","S",1.89,0.3,null,null,566.74485000000004,676.65712499999995,0,null,3,0.18,2.4481454782499998,0]
["Heifer, 6 mth.-calving","Andet kvæg","Årsopdræt  6 mdr. til kælvning (27 mdr.), kvier og stude, tung race","Slatted floor-boxes","Spaltegulvbokse",{"$f":"IFERROR(HLOOKUP('CH4 Gødning'!$E34,Indtastning!$A$8:$P$21,6,FALSE),0)","v":0},"Gylle","M",7.28,0.1,null,null,null,null,18,18,553.6789041095891,435.10356164383603,28.721095890410965,246.49643835616442,6.97,0.18,5.7294069120000035,0]
["Heifer, 6 mth.-calving","Andet kvæg","Årsopdræt  6 mdr. til kælvning (27 mdr.), kvier og stude, tung race","Tethered with urine and solid manure","Bindestald med grebning",{"$f":"IFERROR(HLOOKUP('CH4 Gødning'!$E35,Indtastning!$A$8:$P$21,6,FALSE),0)","v":0},"Staldgødning","M",4.51,0.182,"Strøelse","S",{"$f":"0.75*365/1000","v":0.27374999999999999},0.85,18,18,845.38591875856162,540.71618321917799,32.383035616438356,218.72219178082193,2,0.18,{"$f":"(R35*U35/100*0.67*V35)+(T35*U35/100*0.67*V35)","v":1.8317653604999997},{"$f":"F35*W35","v":0}]
["Heifer, 6 mth.-calving","Andet kvæg","Årsopdræt  6 mdr. til kælvning (27 mdr.), kvier og stude, tung race","Tethered with urine and solid manure","Bindestald med grebning",{"$f":"IFERROR(HLOOKUP('CH4 Gødning'!$E36,Indtastning!$A$8:$P$21,6,FALSE),0)","v":0},"Ajle (liquid manure/urin)","M",3.17,3.4000000000000002E-2,null,null,null,null,18,18,81.971857534246595,48.259726027397264,4.2521424657534252,27.340273972602741,6.97,0.18,0.63547999200000005,0]
["Heifer, 6 mth.-calving","Andet kvæg","Årsopdræt  6 mdr. til kælvning (27 mdr.), kvier og stude, tung race","Tethered with slurry","Bindestald med riste",{"$f":"IFERROR(HLOOKUP('CH4 Gødning'!$E37,Indtastning!$A$8:$P$21,6,FALSE),0)","v":0},"Gylle","M",7.22,0.12300000000000001,"Strøelse","S",{"$f":"0.75*365/1000","v":0.27374999999999999},0.85,18,18,896.52516259417803,589.74193664383597,35.035791780821917,246.49643835616442,6.97,0.18,7.029269257342504,0]
["Heifer, 6 mth.-calving","Andet kvæg","Årsopdræt  6 mdr. til kælvning (27 mdr.), kvier og stude, tung race","Loose-holding with beds, solid floor","Sengestald med fast gulv",{"$f":"IFERROR(HLOOKUP('CH4 Gødning'!$E38,Indtastning!$A$8:$P$21,6,FALSE),0)","v":0},"Gylle","M",6.44,0.12300000000000001,"Strøelse","S",{"$f":"0.3*365/1000","v":0.1095},0.85,18,18,690.89042010616436,496.95891164383596,31.250761643835617,246.49643835616442,6.97,0.18,6.2493518501370033,0]
["Heifer, 6 mth.-calving","Andet kvæg","Årsopdræt  6 mdr. til kælvning (27 mdr.), kvier og stude, tung race","Loose-holding with beds, slatted floor","Sengestald med spalter (kanal, linespil)",{"$f":"IFERROR(HLOOKUP('CH4 Gødning'!$E39,Indtastning!$A$8:$P$21,6,FALSE),0)","v":0},"Gylle","M",6.44,0.12300000000000001,"Strøelse","S",{"$f":"0.3*365/1000","v":0.1095},0.85,18,18,690.89042010616436,496.95891164383596,31.250761643835617,246.49643835616442,6.97,0.18,6.2493518501370033,0]
["Heifer, 6 mth.-calving","Andet kvæg","Årsopdræt  6 mdr. til kælvning (27 mdr.), kvier og stude, tung race","Loose-holding with beds, slatted floor, scrape","Sengestald med spalter (kanal, bagskyl eller ringkanal)",{"$f":"IFERROR(HLOOKUP('CH4 Gødning'!$E40,Indtastning!$A$8:$P$21,6,FALSE),0)","v":0},"Gylle","M",6.44,0.12300000000000001,"Strøelse","S",0.1095,0.85,18,18,690.89042010616436,496.95891164383596,31.250761643835617,246.49643835616442,6.97,0.18,6.2493518501370033,0]
["Heifer, 6 mth.-calving","Andet kvæg","Årsopdræt  6 mdr. til kælvning (27 mdr.), kvier og stude, tung race","Loose-holding with beds, solid floor with tilt","Sengestald, fast drænet gulv med skraber og ajleafløb",{"$f":"IFERROR(HLOOKUP('CH4 Gødning'!$E41,Indtastning!$A$8:$P$21,6,FALSE),0)","v":0},"Gylle","M",6.44,0.12300000000000001,"Strøelse","S",0.1095,0.85,18,18,690.89042010616436,496.95891164383596,31.250761643835617,246.49643835616442,6.97,0.18,6.2493518501370033,0]
["Heifer, 6 mth.-calving","Andet kvæg","Årsopdræt  6 mdr. til kælvning (27 mdr.), kvier og stude, tung race","Deep litter (all)","Dybstrøelse (hele arealet)",{"$f":"IFERROR(HLOOKUP('CH4 Gødning'!$E42,Indtastning!$A$8:$P$21,6,FALSE),0)","v":0},null,null,null,null,"Dybstrøelse","S",5.52,0.3,18,18,1573.6257961643835,1672.2105616438362,0,246.49643835616442,17,0.18,39.337330914000013,0]
["Heifer, 6 mth.-calving","Andet kvæg","Årsopdræt  6 mdr. til kælvning (27 mdr.), kvier og stude, tung race","Deep litter, long eating space, solid floor","Dybstrøelse, lang ædeplads med fast gulv",{"$f":"IFERROR(HLOOKUP('CH4 Gødning'!$E43,Indtastning!$A$8:$P$21,6,FALSE),0)","v":0},"Gylle","M",2.65,0.11,null,null,null,null,18,18,221.69972602739728,173.88821917808218,11.50027397260274,98.511780821917796,6.97,0.18,2.2897453679999997,0]
["Heifer, 6 mth.-calving","Andet kvæg","Årsopdræt  6 mdr. til kælvning (27 mdr.), kvier og stude, tung race","Deep litter, long eating space, solid floor","Dybstrøelse, lang ædeplads med fast gulv",{"$f":"IFERROR(HLOOKUP('CH4 Gødning'!$E44,Indtastning!$A$8:$P$21,6,FALSE),0)","v":0},null,null,null,null,"Dybstrøelse","S",4.2,0.3,18,18,1197.3239753424657,1292.137842465753,0,147.98465753424657,17,0.18,29.525391494999994,0]
["Heifer, 6 mth.-calving","Andet kvæg","Årsopdræt  6 mdr. til kælvning (27 mdr.), kvier og stude, tung race","Deep litter, solid floor","Dybstrøelse + kort ædeplads med fast gulv",{"$f":"IFERROR(HLOOKUP('CH4 Gødning'!$E45,Indtastning!$A$8:$P$21,6,FALSE),0)","v":0},null,null,null,null,"Dybstrøelse","S",4.88,0.3,18,18,1391.1764284931508,1466.0260616438361,0,246.49643835616442,17,0.18,35.110136295000011,0]
["Heifer, 6 mth.-calving","Andet kvæg","Årsopdræt  6 mdr. til kælvning (27 mdr.), kvier og stude, tung race","Deep litter, slatted floor","Dybstrøelse, lang ædeplads med spalter (kanal, linespil)",{"$f":"IFERROR(HLOOKUP('CH4 Gødning'!$E46,Indtastning!$A$8:$P$21,6,FALSE),0)","v":0},"Gylle","M",2.65,0.11,null,null,null,null,18,18,221.69972602739728,173.88821917808218,11.50027397260274,98.511780821917796,6.97,0.18,2.2897453679999997,0]
["Heifer, 6 mth.-calving","Andet kvæg","Årsopdræt  6 mdr. til kælvning (27 mdr.), kvier og stude, tung race","Deep litter, slatted floor","Dybstrøelse, lang ædeplads med spalter (kanal, linespil)",{"$f":"IFERROR(HLOOKUP('CH4 Gødning'!$E47,Indtastning!$A$8:$P$21,6,FALSE),0)","v":0},null,null,null,null,"Dybstrøelse","S",4.2,0.3,18,18,1197.3239753424657,1292.137842465753,0,147.98465753424657,17,0.18,29.525391494999994,0]
["Heifer, 6 mth.-calving","Andet kvæg","Årsopdræt  6 mdr. til kælvning (27 mdr.), kvier og stude, tung race","Deep litter, slatted floor, scrape","Dybstrøelse, lang ædeplads med spalter (kanal, bagskyl eller ringkanal)",{"$f":"IFERROR(HLOOKUP('CH4 Gødning'!$E48,Indtastning!$A$8:$P$21,6,FALSE),0)","v":0},"Gylle","M",2.65,0.11,null,null,null,null,18,18,221.69972602739728,173.88821917808218,11.50027397260274,246.49643835616442,6.97,0.18,3.5336777619945208,0]
["Heifer, 6 mth.-calving","Andet kvæg","Årsopdræt  6 mdr. til kælvning (27 mdr.), kvier og stude, tung race","Deep litter, slatted floor, scrape","Dybstrøelse, lang ædeplads med spalter (kanal, bagskyl eller ringkanal)",{"$f":"IFERROR(HLOOKUP('CH4 Gødning'!$E49,Indtastning!$A$8:$P$21,6,FALSE),0)","v":0},null,null,null,null,"Dybstrøelse","S",4.2,0.3,18,18,1197.3239753424657,1292.137842465753,0,74.871232876712327,17,0.18,28.026420062671228,0]
["Heifer calves, 0-6 mth., jersey","Andet kvæg","Årsopdræt, 0-6 mdr., småkalv, jersey.","Deep litter (boxes)","Dybstrøelse (hele arealet)",{"$f":"IFERROR(HLOOKUP('CH4 Gødning'!$E50,Indtastning!$A$8:$P$21,5,FALSE),0)","v":0},null,null,null,null,"Dybstrøelse","S",1.48,0.3,null,null,443.80020000000007,529.24249999999995,0,null,3,0.18,1.9147993649999999,0]
["Heifer calves, 0-6 mth., jersey","Andet kvæg","Årsopdræt, 0-6 mdr., småkalv, jersey.","Deep litter, solid floor","Dybstrøelse + kort ædeplads med fast gulv",{"$f":"IFERROR(HLOOKUP('CH4 Gødning'!$E51,Indtastning!$A$8:$P$21,5,FALSE),0)","v":0},null,null,null,null,"Dybstrøelse","S",1.48,0.3,null,null,443.80020000000007,529.24249999999995,0,null,6.97,0.18,4.4487171913499992,0]
["Heifer, 6 mth.-calving, jersey","Andet kvæg","Årsopdræt  6 mdr. til kælvning (27 mdr.), kvier og stude, jersey","Slatted floor-boxes","Spaltegulvbokse",{"$f":"IFERROR(HLOOKUP('CH4 Gødning'!$E52,Indtastning!$A$8:$P$21,7,FALSE),0)","v":0},"Gylle","M",5.46,0.1,null,null,null,null,null,132,436.8,326.32767123287698,157.96602739726026,184.87232876712329,6.97,0.18,4.2970551840000022,0]
["Heifer, 6 mth.-calving, jersey","Andet kvæg","Årsopdræt  6 mdr. til kælvning (27 mdr.), kvier og stude, jersey","Tethered with urine and solid manure","Bindestald med grebning",{"$f":"IFERROR(HLOOKUP('CH4 Gødning'!$E53,Indtastning!$A$8:$P$21,7,FALSE),0)","v":0},"Staldgødning","M",3.36,0.18600000000000003,null,null,null,null,null,132,499.96800000000013,413.77974109589002,180.81034520547948,164.33095890410959,2,0.18,1.394403008399999,0]
["Heifer, 6 mth.-calving, jersey","Andet kvæg","Årsopdræt  6 mdr. til kælvning (27 mdr.), kvier og stude, jersey","Tethered with urine and solid manure","Bindestald med grebning",{"$f":"IFERROR(HLOOKUP('CH4 Gødning'!$E54,Indtastning!$A$8:$P$21,7,FALSE),0)","v":0},"Ajle (liquid manure/urin)","M",2.56,3.1E-2,null,null,null,null,null,132,63.488,36.258630136986298,22.960043835616439,20.541369863013699,6.97,0.18,0.47745057600000002,0]
["Heifer, 6 mth.-calving, jersey","Andet kvæg","Årsopdræt  6 mdr. til kælvning (27 mdr.), kvier og stude, jersey","Tethered with slurry","Bindestald med riste",{"$f":"IFERROR(HLOOKUP('CH4 Gødning'!$E55,Indtastning!$A$8:$P$21,7,FALSE),0)","v":0},"Gylle","M",5.31,0.127,null,null,null,null,null,132,539.49599999999998,450.03837123287701,195.10540273972606,184.87232876712329,6.97,0.18,5.3369450602740027,0]
["Heifer, 6 mth.-calving, jersey","Andet kvæg","Årsopdræt  6 mdr. til kælvning (27 mdr.), kvier og stude, jersey","Loose-holding with beds, solid floor","Sengestald med fast gulv",{"$f":"IFERROR(HLOOKUP('CH4 Gødning'!$E56,Indtastning!$A$8:$P$21,7,FALSE),0)","v":0},"Gylle","M",4.6399999999999997,0.127,null,null,null,null,null,132,471.42399999999998,367.56457123287703,170.48758356164385,184.87232876712329,6.97,0.18,4.6436851427580024,0]
["Heifer, 6 mth.-calving, jersey","Andet kvæg","Årsopdræt  6 mdr. til kælvning (27 mdr.), kvier og stude, jersey","Loose-holding with beds, slatted floor","Sengestald med spalter (kanal, linespil)",{"$f":"IFERROR(HLOOKUP('CH4 Gødning'!$E57,Indtastning!$A$8:$P$21,7,FALSE),0)","v":0},"Gylle","M",4.6399999999999997,0.127,null,null,null,null,null,132,471.42399999999998,367.56457123287703,170.48758356164385,184.87232876712329,6.97,0.18,4.6436851427580024,0]
["Heifer, 6 mth.-calving, jersey","Andet kvæg","Årsopdræt  6 mdr. til kælvning (27 mdr.), kvier og stude, jersey","Loose-holding with beds, slatted floor, scrape","Sengestald med spalter (kanal, bagskyl eller ringkanal)",{"$f":"IFERROR(HLOOKUP('CH4 Gødning'!$E58,Indtastning!$A$8:$P$21,7,FALSE),0)","v":0},"Gylle","M",4.6399999999999997,0.127,null,null,null,null,null,132,471.42399999999998,367.56457123287703,170.48758356164385,184.87232876712329,6.97,0.18,4.6436851427580024,0]
["Heifer, 6 mth.-calving, jersey","Andet kvæg","Årsopdræt  6 mdr. til kælvning (27 mdr.), kvier og stude, jersey","Loose-holding with beds, solid floor with tilt","Sengestald, fast drænet gulv med skraber og ajleafløb",{"$f":"IFERROR(HLOOKUP('CH4 Gødning'!$E59,Indtastning!$A$8:$P$21,7,FALSE),0)","v":0},"Gylle","M",4.6399999999999997,0.127,null,null,null,null,null,132,471.42399999999998,367.56457123287703,170.48758356164385,184.87232876712329,6.97,0.18,4.6436851427580024,0]
["Heifer, 6 mth.-calving, jersey","Andet kvæg","Årsopdræt  6 mdr. til kælvning (27 mdr.), kvier og stude, jersey","Deep litter (all)","Dybstrøelse (hele arealet)",{"$f":"IFERROR(HLOOKUP('CH4 Gødning'!$E60,Indtastning!$A$8:$P$21,7,FALSE),0)","v":0},null,null,null,null,"Dybstrøelse","S",4.45,0.3,null,132,1334.3992500000002,1357.2501712328772,0,184.87232876712329,17,0.18,31.616595495000009,0]
["Heifer, 6 mth.-calving, jersey","Andet kvæg","Årsopdræt  6 mdr. til kælvning (27 mdr.), kvier og stude, jersey","Deep litter, long eating space, solid floor","Dybstrøelse, lang ædeplads med fast gulv",{"$f":"IFERROR(HLOOKUP('CH4 Gødning'!$E61,Indtastning!$A$8:$P$21,7,FALSE),0)","v":0},"Gylle","M",2.1,0.10400000000000001,null,null,null,null,null,132,174.72000000000003,130.22465753424655,63.186410958904112,73.775342465753411,6.97,0.18,1.7147872799999997,0]
["Heifer, 6 mth.-calving, jersey","Andet kvæg","Årsopdræt  6 mdr. til kælvning (27 mdr.), kvier og stude, jersey","Deep litter, long eating space, solid floor","Dybstrøelse, lang ædeplads med fast gulv",{"$f":"IFERROR(HLOOKUP('CH4 Gødning'!$E62,Indtastning!$A$8:$P$21,7,FALSE),0)","v":0},null,null,null,null,"Dybstrøelse","S",3.31,0.3,null,132,992.55315000000007,1020.07498630137,0,110.66301369863011,17,0.18,23.182390476000002,0]
["Heifer, 6 mth.-calving, jersey","Andet kvæg","Årsopdræt  6 mdr. til kælvning (27 mdr.), kvier og stude, jersey","Deep litter, solid floor","Dybstrøelse + kort ædeplads med fast gulv",{"$f":"IFERROR(HLOOKUP('CH4 Gødning'!$E63,Indtastning!$A$8:$P$21,7,FALSE),0)","v":0},null,null,null,null,"Dybstrøelse","S",3.82,0.3,null,132,1145.4843000000001,1151.0656712328771,0,184.87232876712329,17,0.18,27.38940087600001,0]
["Heifer, 6 mth.-calving, jersey","Andet kvæg","Årsopdræt  6 mdr. til kælvning (27 mdr.), kvier og stude, jersey","Deep litter, slatted floor","Dybstrøelse, lang ædeplads med spalter (kanal, linespil)",{"$f":"IFERROR(HLOOKUP('CH4 Gødning'!$E64,Indtastning!$A$8:$P$21,7,FALSE),0)","v":0},"Gylle","M",2.1,0.10400000000000001,null,null,null,null,null,132,174.72000000000003,130.22465753424655,63.186410958904112,73.775342465753411,6.97,0.18,1.7147872799999997,0]
["Heifer, 6 mth.-calving, jersey","Andet kvæg","Årsopdræt  6 mdr. til kælvning (27 mdr.), kvier og stude, jersey","Deep litter, slatted floor","Dybstrøelse, lang ædeplads med spalter (kanal, linespil)",{"$f":"IFERROR(HLOOKUP('CH4 Gødning'!$E65,Indtastning!$A$8:$P$21,7,FALSE),0)","v":0},null,null,null,null,"Dybstrøelse","S",3.31,0.3,null,132,992.55315000000007,1020.07498630137,0,110.66301369863011,17,0.18,23.182390476000002,0]
["Heifer, 6 mth.-calving, jersey","Andet kvæg","Årsopdræt  6 mdr. til kælvning (27 mdr.), kvier og stude, jersey","Deep litter, slatted floor, scrape","Dybstrøelse, lang ædeplads med spalter (kanal, bagskyl eller ringkanal)",{"$f":"IFERROR(HLOOKUP('CH4 Gødning'!$E66,Indtastning!$A$8:$P$21,7,FALSE),0)","v":0},"Gylle","M",2.1,0.10400000000000001,null,null,null,null,null,132,174.72000000000003,130.22465753424655,63.186410958904112,73.775342465753411,6.97,0.18,1.7147872799999997,0]
["Heifer, 6 mth.-calving, jersey","Andet kvæg","Årsopdræt  6 mdr. til kælvning (27 mdr.), kvier og stude, jersey","Deep litter, slatted floor, scrape","Dybstrøelse, lang ædeplads med spalter (kanal, bagskyl eller ringkanal)",{"$f":"IFERROR(HLOOKUP('CH4 Gødning'!$E67,Indtastning!$A$8:$P$21,7,FALSE),0)","v":0},null,null,null,null,"Dybstrøelse","S",3.31,0.3,null,132,992.55315000000007,1020.07498630137,0,110.66301369863011,17,0.18,{"$f":"(R67*U67/100*0.67*V67)+(T67*U67/100*0.67*V67)","v":23.182390476000002},{"$f":"F67*W67","v":0}]
["Bull calves, 0-6 mth.","Andet kvæg","1 produceret tyrekalv, 0-6 mdr., tung race","Deep litter (boxes)","Dybstrøelse (hele arealet)",{"$f":"IFERROR(HLOOKUP('CH4 Gødning'!$E68,Indtastning!$A$8:$P$21,8,FALSE),0)","v":0},null,null,null,null,"Dybstrøelse","S",0.98,0.3,null,null,{"$f":"(I68*1000)/365*J68*(365-O68)*0.8+(M68*1000)/365*N68*(365-O68)*(1-0.045/100)","v":293.86770000000001},565.26512500000001,{"$f":"(I68*1000)/365*J68*0.8*P68","v":0},null,3,0.18,2.0451292222499999,0]
["Bull calves, 0-6 mth.","Andet kvæg","1 produceret tyrekalv, 0-6 mdr., tung race","Deep litter, solid floor","Dybstrøelse + kort ædeplads med fast gulv",{"$f":"IFERROR(HLOOKUP('CH4 Gødning'!$E69,Indtastning!$A$8:$P$21,8,FALSE),0)","v":0},null,null,null,null,"Dybstrøelse","S",0.98,0.3,null,null,293.86770000000001,565.26512500000001,0,null,6.97,0.18,4.7515168930274996,0]
["Bulls, 6 mth - 440 kg","Andet kvæg","Ungtyre, 6 mdr. til slagtning (440 kg), tung race, (1 produceret ungtyr)","Slatted floor-boxes","Spaltegulvbokse",{"$f":"IFERROR(HLOOKUP('CH4 Gødning'!$E70,Indtastning!$A$8:$P$21,10,FALSE),0)","v":0},"Gylle","M",3,0.10099999999999999,null,null,null,null,null,null,242.4,293.27999999999997,0,null,6.97,0.18,2.4652588895999998,0]
["Bulls, 6 mth - 440 kg","Andet kvæg","Ungtyre, 6 mdr. til slagtning (440 kg), tung race, (1 produceret ungtyr)","Tethered with urine and solid manure","Bindestald med grebning",{"$f":"IFERROR(HLOOKUP('CH4 Gødning'!$E71,Indtastning!$A$8:$P$21,10,FALSE),0)","v":0},"Staldgødning","M",1.92,0.20600000000000002,"Strøelse","S",{"$f":"0.75*365/1000","v":0.27374999999999999},0.85,null,null,548.99879062499997,477.89656250000002,0,null,2,0.18,1.15268650875,0]
["Bulls, 6 mth - 440 kg","Andet kvæg","Ungtyre, 6 mdr. til slagtning (440 kg), tung race, (1 produceret ungtyr)","Tethered with urine and solid manure","Bindestald med grebning",{"$f":"IFERROR(HLOOKUP('CH4 Gødning'!$E72,Indtastning!$A$8:$P$21,10,FALSE),0)","v":0},"Ajle (liquid manure/urin)","M",1.36,3.1E-2,null,null,null,null,null,null,33.728000000000002,37.599999999999994,0,null,6.97,0.18,0.31605883199999996,0]
["Bulls, 6 mth - 440 kg","Andet kvæg","Ungtyre, 6 mdr. til slagtning (440 kg), tung race, (1 produceret ungtyr)","Tethered with slurry","Bindestald med riste",{"$f":"IFERROR(HLOOKUP('CH4 Gødning'!$E73,Indtastning!$A$8:$P$21,10,FALSE),0)","v":0},"Gylle","M",3.31,0.128,"Strøelse","S",{"$f":"0.75*365/1000","v":0.27374999999999999},0.85,null,null,571.52679062499999,515.49656249999998,0,null,6.97,0.18,4.3331713149937494,0]
["Bulls, 6 mth - 440 kg","Andet kvæg","Ungtyre, 6 mdr. til slagtning (440 kg), tung race, (1 produceret ungtyr)","Loose-holding with beds, solid floor","Sengestald med fast gulv",{"$f":"IFERROR(HLOOKUP('CH4 Gødning'!$E74,Indtastning!$A$8:$P$21,10,FALSE),0)","v":0},"Gylle","M",2.85,0.12300000000000001,"Strøelse","S",{"$f":"0.3*365/1000","v":0.1095},0.85,null,null,373.47311624999998,382.16662499999995,0,null,6.97,0.18,3.2124238597574997,0]
["Bulls, 6 mth - 440 kg","Andet kvæg","Ungtyre, 6 mdr. til slagtning (440 kg), tung race, (1 produceret ungtyr)","Loose-holding with beds, slatted floor","Sengestald med spalter (kanal, linespil)",{"$f":"IFERROR(HLOOKUP('CH4 Gødning'!$E75,Indtastning!$A$8:$P$21,10,FALSE),0)","v":0},"Gylle","M",2.85,0.12300000000000001,"Strøelse","S",{"$f":"0.3*365/1000","v":0.1095},0.85,null,null,373.47311624999998,382.16662499999995,0,null,6.97,0.18,3.2124238597574997,0]
["Bulls, 6 mth - 440 kg","Andet kvæg","Ungtyre, 6 mdr. til slagtning (440 kg), tung race, (1 produceret ungtyr)","Loose-holding with beds, slatted floor, scrape","Sengestald med spalter (kanal, bagskyl eller ringkanal)",{"$f":"IFERROR(HLOOKUP('CH4 Gødning'!$E76,Indtastning!$A$8:$P$21,10,FALSE),0)","v":0},"Gylle","M",2.85,0.12300000000000001,"Strøelse","S",0.1095,0.85,null,null,373.47311624999998,382.16662499999995,0,null,6.97,0.18,3.2124238597574997,0]
["Bulls, 6 mth - 440 kg","Andet kvæg","Ungtyre, 6 mdr. til slagtning (440 kg), tung race, (1 produceret ungtyr)","Loose-holding with beds, solid floor with tilt","Sengestald, fast drænet gulv med skraber og ajleafløb",{"$f":"IFERROR(HLOOKUP('CH4 Gødning'!$E77,Indtastning!$A$8:$P$21,10,FALSE),0)","v":0},"Gylle","M",2.85,0.12300000000000001,"Strøelse","S",0.1095,0.85,null,null,373.47311624999998,382.16662499999995,0,null,6.97,0.18,3.2124238597574997,0]
["Bulls, 6 mth - 440 kg","Andet kvæg","Ungtyre, 6 mdr. til slagtning (440 kg), tung race, (1 produceret ungtyr)","Deep litter (all)","Dybstrøelse (hele arealet)",{"$f":"IFERROR(HLOOKUP('CH4 Gødning'!$E78,Indtastning!$A$8:$P$21,10,FALSE),0)","v":0},null,null,null,null,"Dybstrøelse","S",2.5299999999999998,0.3,null,null,758.6584499999999,1419.17725,0,null,17,0.18,29.0959719795,0]
["Bulls, 6 mth - 440 kg","Andet kvæg","Ungtyre, 6 mdr. til slagtning (440 kg), tung race, (1 produceret ungtyr)","Deep litter, long eating space, solid floor","Dybstrøelse, lang ædeplads med fast gulv",{"$f":"IFERROR(HLOOKUP('CH4 Gødning'!$E79,Indtastning!$A$8:$P$21,10,FALSE),0)","v":0},"Gylle","M",1.36,8.900000000000001E-2,null,null,null,null,null,null,96.832000000000008,117.51999999999998,0,null,6.97,0.18,0.98785196639999973,0]
["Bulls, 6 mth - 440 kg","Andet kvæg","Ungtyre, 6 mdr. til slagtning (440 kg), tung race, (1 produceret ungtyr)","Deep litter, long eating space, solid floor","Dybstrøelse, lang ædeplads med fast gulv",{"$f":"IFERROR(HLOOKUP('CH4 Gødning'!$E80,Indtastning!$A$8:$P$21,10,FALSE),0)","v":0},null,null,null,null,"Dybstrøelse","S",1.91,0.3,null,null,572.74215000000004,1094.2551250000001,0,null,17,0.18,22.434418572750005,0]
["Bulls, 6 mth - 440 kg","Andet kvæg","Ungtyre, 6 mdr. til slagtning (440 kg), tung race, (1 produceret ungtyr)","Deep litter, solid floor","Dybstrøelse + kort ædeplads med fast gulv",{"$f":"IFERROR(HLOOKUP('CH4 Gødning'!$E81,Indtastning!$A$8:$P$21,10,FALSE),0)","v":0},null,null,null,null,"Dybstrøelse","S",2.2400000000000002,0.3,null,null,671.69759999999997,1241.404,0,null,17,0.18,25.451264807999998,0]
["Bulls, 6 mth - 440 kg","Andet kvæg","Ungtyre, 6 mdr. til slagtning (440 kg), tung race, (1 produceret ungtyr)","Deep litter, slatted floor","Dybstrøelse, lang ædeplads med spalter (kanal, linespil)",{"$f":"IFERROR(HLOOKUP('CH4 Gødning'!$E82,Indtastning!$A$8:$P$21,10,FALSE),0)","v":0},"Gylle","M",1.36,8.900000000000001E-2,null,null,null,null,null,null,96.832000000000008,117.51999999999998,0,null,6.97,0.18,0.98785196639999973,0]
["Bulls, 6 mth - 440 kg","Andet kvæg","Ungtyre, 6 mdr. til slagtning (440 kg), tung race, (1 produceret ungtyr)","Deep litter, slatted floor","Dybstrøelse, lang ædeplads med spalter (kanal, linespil)",{"$f":"IFERROR(HLOOKUP('CH4 Gødning'!$E83,Indtastning!$A$8:$P$21,10,FALSE),0)","v":0},null,null,null,null,"Dybstrøelse","S",1.91,0.3,null,null,572.74215000000004,1094.2551250000001,0,null,17,0.18,22.434418572750005,0]
["Bulls, 6 mth - 440 kg","Andet kvæg","Ungtyre, 6 mdr. til slagtning (440 kg), tung race, (1 produceret ungtyr)","Deep litter, slatted floor, scrape","Dybstrøelse, lang ædeplads med spalter (kanal, bagskyl eller ringkanal)",{"$f":"IFERROR(HLOOKUP('CH4 Gødning'!$E84,Indtastning!$A$8:$P$21,10,FALSE),0)","v":0},"Gylle","M",1.36,8.900000000000001E-2,null,null,null,null,null,null,96.832000000000008,117.51999999999998,0,null,6.97,0.18,0.98785196639999973,0]
["Bulls, 6 mth - 440 kg","Andet kvæg","Ungtyre, 6 mdr. til slagtning (440 kg), tung race, (1 produceret ungtyr)","Deep litter, slatted floor, scrape","Dybstrøelse, lang ædeplads med spalter (kanal, bagskyl eller ringkanal)",{"$f":"IFERROR(HLOOKUP('CH4 Gødning'!$E85,Indtastning!$A$8:$P$21,10,FALSE),0)","v":0},null,null,null,null,"Dybstrøelse","S",1.91,0.3,null,null,572.74215000000004,1094.2551250000001,0,null,17,0.18,22.434418572750005,0]
["Bull calves, 0-6 mth., jersey","Andet kvæg","1 produceret tyrekalv, 0-6 mdr., jersey","Deep litter (boxes)","Dybstrøelse (hele arealet)",{"$f":"IFERROR(HLOOKUP('CH4 Gødning'!$E86,Indtastning!$A$8:$P$21,9,FALSE),0)","v":0},null,null,null,null,"Dybstrøelse","S",0.75,0.3,null,null,224.89875000000001,441.45050000000003,0,null,3,0.18,1.5971679090000002,0]
["Bull calves, 0-6 mth., jersey","Andet kvæg","1 produceret tyrekalv, 0-6 mdr., jersey","Deep litter, solid floor","Dybstrøelse + kort ædeplads med fast gulv",{"$f":"IFERROR(HLOOKUP('CH4 Gødning'!$E87,Indtastning!$A$8:$P$21,9,FALSE),0)","v":0},null,null,null,null,"Dybstrøelse","S",0.75,0.3,null,null,224.89875000000001,441.45050000000003,0,null,6.97,0.18,3.7107534419100001,0]
["Bulls, 6 mth - 440 kg, jersey","Andet kvæg","Ungtyre, 6 mdr. til slagtning (440 kg), jersey, (1 produceret ungtyr)","Slatted floor-boxes","Spaltegulvbokse",{"$f":"IFERROR(HLOOKUP('CH4 Gødning'!$E88,Indtastning!$A$8:$P$21,11,FALSE),0)","v":0},"Gylle","M",2.4500000000000002,9.8000000000000004E-2,null,null,null,null,null,null,192.08,230.88,0,null,6.97,0.18,1.9407357216000001,0]
["Bulls, 6 mth - 440 kg, jersey","Andet kvæg","Ungtyre, 6 mdr. til slagtning (440 kg), jersey, (1 produceret ungtyr)","Tethered with urine and solid manure","Bindestald med grebning",{"$f":"IFERROR(HLOOKUP('CH4 Gødning'!$E89,Indtastning!$A$8:$P$21,11,FALSE),0)","v":0},"Staldgødning","M",1.48,0.21199999999999999,null,null,null,null,null,null,251.00800000000001,379.05324999999999,0,null,2,0.18,0.914276439,0]
["Bulls, 6 mth - 440 kg, jersey","Andet kvæg","Ungtyre, 6 mdr. til slagtning (440 kg), jersey, (1 produceret ungtyr)","Tethered with urine and solid manure","Bindestald med grebning",{"$f":"IFERROR(HLOOKUP('CH4 Gødning'!$E90,Indtastning!$A$8:$P$21,11,FALSE),0)","v":0},"Ajle (liquid manure/urin)","M",1.07,3.1E-2,null,null,null,null,null,null,26.536000000000001,29.6,0,null,6.97,0.18,0.248812272,0]
["Bulls, 6 mth - 440 kg, jersey","Andet kvæg","Ungtyre, 6 mdr. til slagtning (440 kg), jersey, (1 produceret ungtyr)","Tethered with slurry","Bindestald med riste",{"$f":"IFERROR(HLOOKUP('CH4 Gødning'!$E91,Indtastning!$A$8:$P$21,11,FALSE),0)","v":0},"Gylle","M",3.12,0.10800000000000001,null,null,null,null,null,null,269.56800000000004,408.65325000000001,0,null,6.97,0.18,3.435065661915,0]
["Bulls, 6 mth - 440 kg, jersey","Andet kvæg","Ungtyre, 6 mdr. til slagtning (440 kg), jersey, (1 produceret ungtyr)","Loose-holding with beds, solid floor","Sengestald med fast gulv",{"$f":"IFERROR(HLOOKUP('CH4 Gødning'!$E92,Indtastning!$A$8:$P$21,11,FALSE),0)","v":0},"Gylle","M",2.14,0.127,null,null,null,null,null,null,217.42400000000004,290.13775000000004,0,null,6.97,0.18,2.438845701705,0]
["Bulls, 6 mth - 440 kg, jersey","Andet kvæg","Ungtyre, 6 mdr. til slagtning (440 kg), jersey, (1 produceret ungtyr)","Loose-holding with beds, slatted floor","Sengestald med spaltegulv (kanal, linespil)",{"$f":"IFERROR(HLOOKUP('CH4 Gødning'!$E93,Indtastning!$A$8:$P$21,11,FALSE),0)","v":0},"Gylle","M",2.14,0.127,null,null,null,null,null,null,217.42400000000004,290.13775000000004,0,null,6.97,0.18,2.438845701705,0]
["Bulls, 6 mth - 440 kg, jersey","Andet kvæg","Ungtyre, 6 mdr. til slagtning (440 kg), jersey, (1 produceret ungtyr)","Loose-holding with beds, slatted floor, scrape","Sengestald med spaltegulv (kanal, bagskyl eller ringkanal)",{"$f":"IFERROR(HLOOKUP('CH4 Gødning'!$E94,Indtastning!$A$8:$P$21,11,FALSE),0)","v":0},"Gylle","M",2.14,0.127,null,null,null,null,null,null,217.42400000000004,290.13775000000004,0,null,6.97,0.18,2.438845701705,0]
["Bulls, 6 mth - 440 kg, jersey","Andet kvæg","Ungtyre, 6 mdr. til slagtning (440 kg), jersey, (1 produceret ungtyr)","Loose-holding with beds, solid floor with tilt","Sengestald, fast drænet gulv med skraber og ajleafløb",{"$f":"IFERROR(HLOOKUP('CH4 Gødning'!$E95,Indtastning!$A$8:$P$21,11,FALSE),0)","v":0},"Gylle","M",2.14,0.127,null,null,null,null,null,null,217.42400000000004,290.13775000000004,0,null,6.97,0.18,2.438845701705,0]
["Bulls, 6 mth - 440 kg, jersey","Andet kvæg","Ungtyre, 6 mdr. til slagtning (440 kg), jersey, (1 produceret ungtyr)","Deep litter (all)","Dybstrøelse, hele arealet",{"$f":"IFERROR(HLOOKUP('CH4 Gødning'!$E96,Indtastning!$A$8:$P$21,11,FALSE),0)","v":0},null,null,null,null,"Dybstrøelse","S",1.95,0.3,null,null,584.73675000000003,1090.117375,0,null,17,0.18,22.349586422250002,0]
["Bulls, 6 mth - 440 kg, jersey","Andet kvæg","Ungtyre, 6 mdr. til slagtning (440 kg), jersey, (1 produceret ungtyr)","Deep litter, long eating space, solid floor","Dybstrøelse, lang ædeplads med fast gulv",{"$f":"IFERROR(HLOOKUP('CH4 Gødning'!$E97,Indtastning!$A$8:$P$21,11,FALSE),0)","v":0},"Gylle","M",1.1399999999999999,8.4000000000000005E-2,null,null,null,null,null,null,76.608000000000018,92.560000000000016,0,null,6.97,0.18,0.77804269920000002,0]
["Bulls, 6 mth - 440 kg, jersey","Andet kvæg","Ungtyre, 6 mdr. til slagtning (440 kg), jersey, (1 produceret ungtyr)","Deep litter, long eating space, solid floor","Dybstrøelse, lang ædeplads med fast gulv",{"$f":"IFERROR(HLOOKUP('CH4 Gødning'!$E98,Indtastning!$A$8:$P$21,11,FALSE),0)","v":0},null,null,null,null,"Dybstrøelse","S",1.44,0.3,null,null,431.80559999999997,819.78412500000002,0,null,17,0.18,{"$f":"(R98*U98/100*0.67*V98)+(T98*U98/100*0.67*V98)","v":16.807214130750001},0]
["Bulls, 6 mth - 440 kg, jersey","Andet kvæg","Ungtyre, 6 mdr. til slagtning (440 kg), jersey, (1 produceret ungtyr)","Deep litter, solid floor","Dybstrøelse + kort ædeplads med fast gulv",{"$f":"IFERROR(HLOOKUP('CH4 Gødning'!$E99,Indtastning!$A$8:$P$21,11,FALSE),0)","v":0},null,null,null,null,"Dybstrøelse","S",1.71,0.3,null,null,512.76915000000008,941.97299999999996,0,null,6.97,0.18,7.9180554828599989,{"$f":"F99*W99","v":0}]
["Bulls, 6 mth - 440 kg, jersey","Andet kvæg","Ungtyre, 6 mdr. til slagtning (440 kg), jersey, (1 produceret ungtyr)","Deep litter, slatted floor","Dybstrøelse, lang ædeplads med spalter (kanal, linespil)",{"$f":"IFERROR(HLOOKUP('CH4 Gødning'!$E100,Indtastning!$A$8:$P$21,11,FALSE),0)","v":0},"Gylle","M",1.1399999999999999,8.4000000000000005E-2,null,null,null,null,null,null,76.608000000000018,92.560000000000016,0,null,6.97,0.18,0.77804269920000002,0]
["Bulls, 6 mth - 440 kg, jersey","Andet kvæg","Ungtyre, 6 mdr. til slagtning (440 kg), jersey, (1 produceret ungtyr)","Deep litter, slatted floor","Dybstrøelse, lang ædeplads med spalter (kanal, linespil)",{"$f":"IFERROR(HLOOKUP('CH4 Gødning'!$E101,Indtastning!$A$8:$P$21,11,FALSE),0)","v":0},null,null,null,null,"Dybstrøelse","S",1.44,0.3,null,null,431.80559999999997,819.78412500000002,0,null,17,0.16,14.939745894000003,0]
["Bulls, 6 mth - 440 kg, jersey","Andet kvæg","Ungtyre, 6 mdr. til slagtning (440 kg), jersey, (1 produceret ungtyr)","Deep litter, slatted floor, scrape","Dybstrøelse, lang ædeplads med spalter (kanal, bagskyl eller ringkanal)",{"$f":"IFERROR(HLOOKUP('CH4 Gødning'!$E102,Indtastning!$A$8:$P$21,11,FALSE),0)","v":0},"Gylle","M",1.1399999999999999,8.4000000000000005E-2,null,null,null,null,null,null,76.608000000000018,92.560000000000016,0,null,6.97,0.18,0.77804269920000002,0]
["Bulls, 6 mth - 440 kg, jersey","Andet kvæg","Ungtyre, 6 mdr. til slagtning (440 kg), jersey, (1 produceret ungtyr)","Deep litter, slatted floor, scrape","Dybstrøelse, lang ædeplads med spalter (kanal, bagskyl eller ringkanal)",{"$f":"IFERROR(HLOOKUP('CH4 Gødning'!$E103,Indtastning!$A$8:$P$21,11,FALSE),0)","v":0},null,null,null,null,"Dybstrøelse","S",1.44,0.3,null,null,431.80559999999997,819.78412500000002,0,null,17,0.18,16.807214130750001,0]
["Suckling cattle <400 kg","Andet kvæg","Ammekøer, 1 årsko under 400 kg","Tethered with urine and solid manure","Bindestald med grebning",{"$f":"IFERROR(HLOOKUP('CH4 Gødning'!$E104,Indtastning!$A$8:$P$21,12,FALSE),0)","v":0},"Staldgødning","M",2.61,0.22800000000000001,null,null,null,null,224,224,183.90417534246578,249.08791520547899,292.15982465753427,286.61493479452054,2,0.18,1.2921152741999986,0]
["Suckling cattle <400 kg","Andet kvæg","Ammekøer, 1 årsko under 400 kg","Tethered with urine and solid manure","Bindestald med grebning",{"$f":"IFERROR(HLOOKUP('CH4 Gødning'!$E105,Indtastning!$A$8:$P$21,12,FALSE),0)","v":0},"Ajle (liquid manure/urin)","M",2.86,3.7999999999999999E-2,null,null,null,null,224,224,33.586586301369863,28.740821917808223,53.35741369863014,45.659178082191779,6.97,0.18,0.62539300799999997,0]
["Suckling cattle <400 kg","Andet kvæg","Ammekøer, 1 årsko under 400 kg","Tethered with slurry","Bindestald med riste",{"$f":"IFERROR(HLOOKUP('CH4 Gødning'!$E106,Indtastning!$A$8:$P$21,12,FALSE),0)","v":0},"Gylle","M",5.5,0.121,null,null,null,null,224,224,205.66684931506848,277.78856178082202,326.73315068493156,332.2102882191781,6.97,0.18,5.1275405333070001,0]
["Suckling cattle <400 kg","Andet kvæg","Ammekøer, 1 årsko under 400 kg","Deep litter (all)","Dybstrøelse (hele arealet)",{"$f":"IFERROR(HLOOKUP('CH4 Gødning'!$E107,Indtastning!$A$8:$P$21,12,FALSE),0)","v":0},null,null,null,null,"Dybstrøelse","S",6.99,0.17,224,224,458.83534894520551,895.855011780822,0,332.2102882191781,17,0.18,25.177794780600003,0]
["Suckling cattle <400 kg","Andet kvæg","Ammekøer, 1 årsko under 400 kg","Deep litter, solid floor","Dybstrøelse + kort ædeplads med fast gulv",{"$f":"IFERROR(HLOOKUP('CH4 Gødning'!$E108,Indtastning!$A$8:$P$21,12,FALSE),0)","v":0},null,null,null,null,"Dybstrøelse","S",6.42,0.17,224,224,421.41959087671239,810.0124492808219,0,332.2102882191781,17,0.18,23.417850564225006,0]
["Suckling cattle <400 kg","Andet kvæg","Ammekøer, 1 årsko under 400 kg","Deep litter, slatted floor","Dybstrøelse, lang ædeplads med spalter (kanal, linespil)",{"$f":"IFERROR(HLOOKUP('CH4 Gødning'!$E109,Indtastning!$A$8:$P$21,12,FALSE),0)","v":0},"Gylle","M",3.35,6.9000000000000006E-2,null,null,null,null,224,224,71.434849315068504,83.563476164383559,113.48515068493153,132.75332383561641,6.97,0.18,1.8183200837759999,0]
["Suckling cattle <400 kg","Andet kvæg","Ammekøer, 1 årsko under 400 kg","Deep litter, slatted floor","Dybstrøelse, lang ædeplads med spalter (kanal, linespil)",{"$f":"IFERROR(HLOOKUP('CH4 Gødning'!$E110,Indtastning!$A$8:$P$21,12,FALSE),0)","v":0},null,null,null,null,"Dybstrøelse","S",4.88,0.17,224,224,320.3314024109589,640.60641061643798,0,199.45696438356165,17,0.18,17.222979314249994,0]
["Suckling cattle <400 kg","Andet kvæg","Ammekøer, 1 årsko under 400 kg","Deep litter, slatted floor, scrape","Dybstrøelse, lang ædeplads med spalter (kanal, bagskyl eller ringkanal)",{"$f":"IFERROR(HLOOKUP('CH4 Gødning'!$E111,Indtastning!$A$8:$P$21,12,FALSE),0)","v":0},"Gylle","M",3.35,6.9000000000000006E-2,null,null,null,null,224,224,71.434849315068504,83.563476164383559,113.48515068493153,132.75332383561641,6.97,0.18,1.8183200837759999,0]
["Suckling cattle <400 kg","Andet kvæg","Ammekøer, 1 årsko under 400 kg","Deep litter, slatted floor, scrape","Dybstrøelse, lang ædeplads med spalter (kanal, bagskyl eller ringkanal)",{"$f":"IFERROR(HLOOKUP('CH4 Gødning'!$E112,Indtastning!$A$8:$P$21,12,FALSE),0)","v":0},null,null,null,null,"Dybstrøelse","S",4.88,0.17,224,224,320.3314024109589,640.60641061643798,0,199.45696438356165,17,0.18,17.222979314249994,0]
["Suckling cattle 400-600 kg","Andet kvæg","Ammekøer, 1 årsko 400-600 kg","Tethered with urine and solid manure","Bindestald med grebning",{"$f":"IFERROR(HLOOKUP('CH4 Gødning'!$E113,Indtastning!$A$8:$P$21,13,FALSE),0)","v":0},"Staldgødning","M",3.72,0.22800000000000001,null,null,null,null,224,224,262.11629589041098,352.66124219178101,416.4117041095891,414.79055780821921,2,0.18,1.8510937416000004,0]
["Suckling cattle 400-600 kg","Andet kvæg","Ammekøer, 1 årsko 400-600 kg","Tethered with urine and solid manure","Bindestald med grebning",{"$f":"IFERROR(HLOOKUP('CH4 Gødning'!$E114,Indtastning!$A$8:$P$21,13,FALSE),0)","v":0},"Ajle (liquid manure/urin)","M",4.17,3.7999999999999999E-2,null,null,null,null,224,224,48.970652054794527,41.566027397260271,77.797347945205487,66.033972602739723,6.97,0.18,0.90446623199999987,0]
["Suckling cattle 400-600 kg","Andet kvæg","Ammekøer, 1 årsko 400-600 kg","Tethered with slurry","Bindestald med riste",{"$f":"IFERROR(HLOOKUP('CH4 Gødning'!$E115,Indtastning!$A$8:$P$21,13,FALSE),0)","v":0},"Gylle","M",7.88,0.121,null,null,null,null,224,224,294.66450410958907,394.12281369863001,468.11949589041103,480.65858630136989,6.97,0.18,7.3532549877479987,0]
["Suckling cattle 400-600 kg","Andet kvæg","Ammekøer, 1 årsko 400-600 kg","Deep litter (all)","Dybstrøelse (hele arealet)",{"$f":"IFERROR(HLOOKUP('CH4 Gødning'!$E116,Indtastning!$A$8:$P$21,13,FALSE),0)","v":0},null,null,null,null,"Dybstrøelse","S",9.59,0.17,224,224,629.50371908219176,1218.2114136986299,0,480.65858630136989,17,0.18,34.83023274,0]
["Suckling cattle 400-600 kg","Andet kvæg","Ammekøer, 1 årsko 400-600 kg","Deep litter, long eating space, solid floor","Dybstrøelse, lang ædeplads med fast gulv",{"$f":"IFERROR(HLOOKUP('CH4 Gødning'!$E117,Indtastning!$A$8:$P$21,13,FALSE),0)","v":0},"Gylle","M",4.8499999999999996,6.9000000000000006E-2,null,null,null,null,224,224,103.42060273972605,121.02296547945204,164.29939726027402,192.26343452054795,6.97,0.18,2.6334290868479995,0]
["Suckling cattle 400-600 kg","Andet kvæg","Ammekøer, 1 årsko 400-600 kg","Deep litter, long eating space, solid floor","Dybstrøelse, lang ædeplads med fast gulv",{"$f":"IFERROR(HLOOKUP('CH4 Gødning'!$E118,Indtastning!$A$8:$P$21,13,FALSE),0)","v":0},null,null,null,null,"Dybstrøelse","S",6.67,0.17,224,224,437.83001108219179,868.2749482191781,0,288.39515178082195,17,0.18,23.714050390200001,0]
["Suckling cattle 400-600 kg","Andet kvæg","Ammekøer, 1 årsko 400-600 kg","Deep litter, solid floor","Dybstrøelse + kort ædeplads med fast gulv",{"$f":"IFERROR(HLOOKUP('CH4 Gødning'!$E119,Indtastning!$A$8:$P$21,13,FALSE),0)","v":0},null,null,null,null,"Dybstrøelse","S",8.83,0.17,224,224,579.61604165753431,1103.7546636986299,0,480.65858630136989,17,0.18,32.483640451499994,0]
["Suckling cattle 400-600 kg","Andet kvæg","Ammekøer, 1 årsko 400-600 kg","Deep litter, slatted floor","Dybstrøelse, lang ædeplads med spalter (kanal, linespil)",{"$f":"IFERROR(HLOOKUP('CH4 Gødning'!$E120,Indtastning!$A$8:$P$21,13,FALSE),0)","v":0},"Gylle","M",4.8499999999999996,6.9000000000000006E-2,null,null,null,null,224,224,103.42060273972605,121.02296547945204,164.29939726027402,192.26343452054795,6.97,0.18,2.6334290868479995,0]
["Suckling cattle 400-600 kg","Andet kvæg","Ammekøer, 1 årsko 400-600 kg","Deep litter, slatted floor","Dybstrøelse, lang ædeplads med spalter (kanal, linespil)",{"$f":"IFERROR(HLOOKUP('CH4 Gødning'!$E121,Indtastning!$A$8:$P$21,13,FALSE),0)","v":0},null,null,null,null,"Dybstrøelse","S",6.67,0.17,224,224,437.83001108219179,868.2749482191781,0,288.39515178082195,17,0.18,23.714050390200001,0]
["Suckling cattle 400-600 kg","Andet kvæg","Ammekøer, 1 årsko 400-600 kg","Deep litter, slatted floor, scrape","Dybstrøelse, lang ædeplads med spalter (kanal, bagskyl eller ringkanal)",{"$f":"IFERROR(HLOOKUP('CH4 Gødning'!$E122,Indtastning!$A$8:$P$21,13,FALSE),0)","v":0},"Gylle","M",4.8499999999999996,6.9000000000000006E-2,null,null,null,null,224,224,103.42060273972605,121.02296547945204,164.29939726027402,192.26343452054795,6.97,0.18,2.6334290868479995,0]
["Suckling cattle 400-600 kg","Andet kvæg","Ammekøer, 1 årsko 400-600 kg","Deep litter, slatted floor, scrape","Dybstrøelse, lang ædeplads med spalter (kanal, bagskyl eller ringkanal)",{"$f":"IFERROR(HLOOKUP('CH4 Gødning'!$E123,Indtastning!$A$8:$P$21,13,FALSE),0)","v":0},null,null,null,null,"Dybstrøelse","S",6.67,0.17,224,224,437.83001108219179,868.2749482191781,0,288.39515178082195,17,0.18,23.714050390200001,0]
["Suckling cattle >600 kg","Andet kvæg","Ammekøer, 1 årsko over 600 kg","Tethered with urine and solid manure","Bindestald med grebning",{"$f":"IFERROR(HLOOKUP('CH4 Gødning'!$E124,Indtastning!$A$8:$P$21,14,FALSE),0)","v":0},"Staldgødning","M",4.1500000000000004,0.22800000000000001,"Strøelse","S",{"$f":"0.8*365/1000","v":0.29199999999999998},0.85,224,224,388.2515389315069,387.399315616438,464.54531506849321,469.97728438356154,2,0.18,2.0679923591999989,0]
["Suckling cattle >600 kg","Andet kvæg","Ammekøer, 1 årsko over 600 kg","Tethered with urine and solid manure","Bindestald med grebning",{"$f":"IFERROR(HLOOKUP('CH4 Gødning'!$E125,Indtastning!$A$8:$P$21,14,FALSE),0)","v":0},"Ajle (liquid manure/urin)","M",4.8,3.7999999999999999E-2,null,null,null,null,224,224,56.369095890410961,47.128767123287666,89.550904109589041,74.871232876712327,6.97,0.18,1.0255100399999999,0]
["Suckling cattle >600 kg","Andet kvæg","Ammekøer, 1 årsko over 600 kg","Tethered with slurry","Bindestald med riste",{"$f":"IFERROR(HLOOKUP('CH4 Gødning'!$E126,Indtastning!$A$8:$P$21,14,FALSE),0)","v":0},"Gylle","M",8.81,0.121,"Strøelse","S",{"$f":"0.8*365/1000","v":0.29199999999999998},0.85,224,224,425.27775263013706,434.46380219178099,523.36710136986312,544.74639780821929,6.97,0.18,8.2310646833640018,0]
["Suckling cattle >600 kg","Andet kvæg","Ammekøer, 1 årsko over 600 kg","Deep litter (all)","Dybstrøelse (hele arealet)",{"$f":"IFERROR(HLOOKUP('CH4 Gødning'!$E127,Indtastning!$A$8:$P$21,14,FALSE),0)","v":0},null,null,null,null,"Dybstrøelse","S",10.06,0.17,224,224,660.35530906849317,1258.5524021917811,0,544.74639780821929,17,0.18,36.971231997600007,0]
["Suckling cattle >600 kg","Andet kvæg","Ammekøer, 1 årsko over 600 kg","Deep litter, long eating space, solid floor","Dybstrøelse, lang ædeplads med fast gulv",{"$f":"IFERROR(HLOOKUP('CH4 Gødning'!$E128,Indtastning!$A$8:$P$21,14,FALSE),0)","v":0},"Gylle","M",5.5,6.9000000000000006E-2,null,null,null,null,224,224,117.28109589041097,137.0770323287671,186.31890410958906,217.76776767123289,6.97,0.18,{"$f":"(R128*U128/100*0.67*V128)+(T128*U128/100*0.67*V128)","v":2.9827615167359998},0]
["Suckling cattle >600 kg","Andet kvæg","Ammekøer, 1 årsko over 600 kg","Deep litter, long eating space, solid floor","Dybstrøelse, lang ædeplads med fast gulv",{"$f":"IFERROR(HLOOKUP('CH4 Gødning'!$E129,Indtastning!$A$8:$P$21,14,FALSE),0)","v":0},null,null,null,null,"Dybstrøelse","S",6.95,0.17,224,224,{"$f":"(I129*1000)/365*J129*(365-O129)*0.8+(M129*1000)/365*N129*(365-O129)*(1-0.045/100)","v":456.20968171232886},892.56186986301395,{"$f":"(I129*1000)/365*J129*0.8*P129","v":0},326.97863013698628,17,0.18,25.003019331000008,0]
["Suckling cattle >600 kg","Andet kvæg","Ammekøer, 1 årsko over 600 kg","Deep litter, solid floor","Dybstrøelse + kort ædeplads med fast gulv",{"$f":"IFERROR(HLOOKUP('CH4 Gødning'!$E130,Indtastning!$A$8:$P$21,14,FALSE),0)","v":0},null,null,null,null,"Dybstrøelse","S",9.3000000000000007,0.17,224,224,610.46763164383572,1144.095652191781,0,544.74639780821929,17,0.18,34.624639709100009,0]
["Suckling cattle >600 kg","Andet kvæg","Ammekøer, 1 årsko over 600 kg","Deep litter, slatted floor","Dybstrøelse, lang ædeplads med spalter (kanal, linespil)",{"$f":"IFERROR(HLOOKUP('CH4 Gødning'!$E131,Indtastning!$A$8:$P$21,14,FALSE),0)","v":0},"Gylle","M",5.5,6.9000000000000006E-2,null,null,null,null,224,224,117.28109589041097,137.0770323287671,186.31890410958906,217.76776767123289,6.97,0.18,2.9827615167359998,{"$f":"F131*W131","v":0}]
["Suckling cattle >600 kg","Andet kvæg","Ammekøer, 1 årsko over 600 kg","Deep litter, slatted floor","Dybstrøelse, lang ædeplads med spalter (kanal, linespil)",{"$f":"IFERROR(HLOOKUP('CH4 Gødning'!$E132,Indtastning!$A$8:$P$21,14,FALSE),0)","v":0},null,null,null,null,"Dybstrøelse","S",6.95,0.17,224,224,456.20968171232886,892.56186986301395,0,326.97863013698628,17,0.18,25.003019331000008,0]
["Suckling cattle >600 kg","Andet kvæg","Ammekøer, 1 årsko over 600 kg","Deep litter, slatted floor, scrape","Dybstrøelse, lang ædeplads med spalter (kanal, bagskyl eller ringkanal)",{"$f":"IFERROR(HLOOKUP('CH4 Gødning'!$E133,Indtastning!$A$8:$P$21,14,FALSE),0)","v":0},"Gylle","M",5.5,6.9000000000000006E-2,null,null,null,null,224,224,117.28109589041097,137.0770323287671,186.31890410958906,217.76776767123289,6.97,0.18,2.9827615167359998,0]
["Suckling cattle >600 kg","Andet kvæg","Ammekøer, 1 årsko over 600 kg","Deep litter, slatted floor, scrape","Dybstrøelse, lang ædeplads med spalter (kanal, bagskyl eller ringkanal)",{"$f":"IFERROR(HLOOKUP('CH4 Gødning'!$E134,Indtastning!$A$8:$P$21,14,FALSE),0)","v":0},null,null,null,null,"Dybstrøelse","S",6.95,0.17,224,224,456.20968171232886,892.56186986301395,0,326.97863013698628,17,0.18,25.003019331000008,0]
["Sows, gastation period","Svin","1 årsso med 30 grise til 7,0 kg","Deep litter + solid floor","Løsgående, dybstrøelse + fast gulv",{"$f":"IFERROR(HLOOKUP('CH4 Gødning'!$E135,Indtastning!$A$28:$S$32,2,FALSE),0)","v":0},"Gylle","M",2.19,5.5E-2,null,null,null,null,null,null,96.360000000000014,112.7552,0,null,16.66,0.45,5.6636824204800007,0]
["Sows, gastation period","Svin","1 årsso med 30 grise til 7,0 kg","Deep litter + solid floor","Løsgående, dybstrøelse + fast gulv",{"$f":"IFERROR(HLOOKUP('CH4 Gødning'!$E136,Indtastning!$A$28:$S$32,2,FALSE),0)","v":0},null,null,null,null,"Dybstrøelse","S",0.67,0.33,null,null,221.000505,339.87729999999999,0,null,14.7,0.45,15.063531874649998,0]
["Sows, gastation period","Svin","1 årsso med 30 grise til 7,0 kg","Deep litter + slatted floor","Løsgående, dybstrøelse + spaltegulv",{"$f":"IFERROR(HLOOKUP('CH4 Gødning'!$E137,Indtastning!$A$28:$S$32,2,FALSE),0)","v":0},"Gylle","M",2.19,0.05,null,null,null,null,null,null,87.600000000000023,112.7552,0,null,16.66,0.45,5.6636824204800007,0]
["Sows, gastation period","Svin","1 årsso med 30 grise til 7,0 kg","Deep litter + slatted floor","Løsgående, dybstrøelse + spaltegulv",{"$f":"IFERROR(HLOOKUP('CH4 Gødning'!$E138,Indtastning!$A$28:$S$32,2,FALSE),0)","v":0},null,null,null,null,"Dybstrøelse","S",0.67,0.33,null,null,221.000505,339.87729999999999,0,null,14.7,0.45,15.063531874649998,0]
["Sows, gastation period","Svin","1 årsso med 30 grise til 7,0 kg","Deep litter, sows","Løsgående, dybstrøelse",{"$f":"IFERROR(HLOOKUP('CH4 Gødning'!$E139,Indtastning!$A$28:$S$32,2,FALSE),0)","v":0},null,null,null,null,"Dybstrøelse","S",1.78,0.33,null,null,587.13567,899.09499999999866,0,null,14.7,0.45,39.848339947499944,0]
["Sows, gastation period","Svin","1 årsso med 30 grise til 7,0 kg","Individual housing, partly slatted floor","Individuel opstaldning, delvis spaltegulv",{"$f":"IFERROR(HLOOKUP('CH4 Gødning'!$E140,Indtastning!$A$28:$S$32,2,FALSE),0)","v":0},"Gylle","M",3.99,4.4999999999999998E-2,null,null,null,null,null,null,143.64000000000001,168.52,0,null,16.66,0.45,8.4647427480000008,0]
["Sows, gastation period","Svin","1 årsso med 30 grise til 7,0 kg","Individual housing, fully slatted floor","Individuel opstaldning, fuldspaltegulv",{"$f":"IFERROR(HLOOKUP('CH4 Gødning'!$E141,Indtastning!$A$28:$S$32,2,FALSE),0)","v":0},"Gylle","M",3.99,4.4999999999999998E-2,null,null,null,null,null,null,143.64000000000001,168.52,0,null,16.66,0.45,8.4647427480000008,0]
["Sows, gastation period","Svin","1 årsso med 30 grise til 7,0 kg","Individual housing, solid floor","Individuel opstaldning, fast gulv",{"$f":"IFERROR(HLOOKUP('CH4 Gødning'!$E142,Indtastning!$A$28:$S$32,2,FALSE),0)","v":0},"Staldgødning","M",0.52,0.23,null,null,null,null,null,null,95.68,134.4,0,null,2,0.45,0.81043200000000004,0]
["Sows, gastation period","Svin","1 årsso med 30 grise til 7,0 kg","Individual housing, solid floor","Individuel opstaldning, fast gulv",{"$f":"IFERROR(HLOOKUP('CH4 Gødning'!$E143,Indtastning!$A$28:$S$32,2,FALSE),0)","v":0},"Ajle (liquid manure/urin)","M",1.74,2.5000000000000001E-2,null,null,null,null,null,null,34.800000000000004,96.081250000000139,0,null,16.66,0.45,4.8261515793750078,0]
["Sows, gastation period","Svin","1 årsso med 30 grise til 7,0 kg","Free range","Søer på friland",{"$f":"IFERROR(HLOOKUP('CH4 Gødning'!$E144,Indtastning!$A$28:$R$32,2,FALSE),0)","v":0},null,null,null,null,null,null,null,null,null,null,0,null,0,79.051199999999994,1,0.45,0.23833936800000002,0]
["Sows, gastation period","Svin","1 årsso med 30 grise til 7,0 kg","Loose housing, partly slatted floor","Løsgående, delvis spaltegulv",{"$f":"IFERROR(HLOOKUP('CH4 Gødning'!$E145,Indtastning!$A$28:$S$32,2,FALSE),0)","v":0},"Gylle","M",4.71,4.4999999999999998E-2,null,null,null,null,null,null,169.56,209.10750000000002,0,null,16.66,0.45,10.503448814250001,0]
["Sows, farrow period","Svin","Bidrag fra farestald","Individual housing, partly slatted floor","Kassestier, delvis spaltegulv",{"$f":"IFERROR(HLOOKUP('CH4 Gødning'!$E146,Indtastning!$A$28:$S$32,3,FALSE),0)","v":0},"Gylle","M",1.7,4.4999999999999998E-2,null,null,null,null,null,null,61.2,71.697599999999994,0,null,16.66,0.45,3.6013632782399996,0]
["Sows, farrow period","Svin","Bidrag fra farestald","Individual housing, fully slatted floor","Kassestier, fuldspaltegulv",{"$f":"IFERROR(HLOOKUP('CH4 Gødning'!$E147,Indtastning!$A$28:$S$32,3,FALSE),0)","v":0},"Gylle","M",1.7,4.4999999999999998E-2,null,null,null,null,null,null,61.2,71.697599999999994,0,null,16.66,0.45,3.6013632782399996,0]
["Weaners","Svin","1 smågris (7-31 kg)","Fully slatted floor","Fuldspaltegulv",{"$f":"IFERROR(HLOOKUP('CH4 Gødning'!$E148,Indtastning!$A$28:$S$32,4,FALSE),0)","v":0},"Gylle","M",0.126,4.5999999999999999E-2,null,null,null,null,null,null,4.6368,5.2632000000000003,0,null,16.66,0.45,0.26437000968000007,0]
["Weaners","Svin","1 smågris (7-31 kg)","Partly slatted floor","To klimastald, delvis spaltegulv",{"$f":"IFERROR(HLOOKUP('CH4 Gødning'!$E149,Indtastning!$A$28:$S$32,4,FALSE),0)","v":0},"Gylle","M",0.13200000000000001,0.05,"Strøelse","S",1E-3,0.85,null,null,6.1296175000000011,5.2632000000000003,0,null,16.66,0.45,0.26437000968000007,0]
["Weaners","Svin","1 smågris (7-31 kg)","Solid floor","Fast gulv",{"$f":"IFERROR(HLOOKUP('CH4 Gødning'!$E150,Indtastning!$A$28:$S$32,4,FALSE),0)","v":0},"Staldgødning","M",1.7999999999999999E-2,0.23,"Strøelse","S",2.5000000000000001E-2,0.85,null,null,24.552437500000003,6.029374999999999,0,null,2,0.45,3.6357131250000001E-2,0]
["Weaners","Svin","1 smågris (7-31 kg)","solid floor","Fast gulv",{"$f":"IFERROR(HLOOKUP('CH4 Gødning'!$E151,Indtastning!$A$28:$S$32,4,FALSE),0)","v":0},"Ajle (liquid manure/urin)","M",7.0999999999999994E-2,1.9E-2,null,null,null,null,null,null,1.0791999999999999,1.1199999999999999,0,null,16.66,0.45,5.6257487999999994E-2,0]
["Weaners","Svin","1 smågris (7-31 kg)","Deep litter (to-climate housings)","Dybstrøelse",{"$f":"IFERROR(HLOOKUP('CH4 Gødning'!$E152,Indtastning!$A$28:$S$32,4,FALSE),0)","v":0},null,null,null,null,"Dybstrøelse","S",2.5999999999999999E-2,0.33,null,null,8.5761390000000013,15.815950000000006,0,null,7.2,0.45,0.34333264260000018,0]
["Weaners","Svin","1 smågris (7-31 kg)","Partly slatted and drained floor","Drænet gulv + spalter (50/50)",{"$f":"IFERROR(HLOOKUP('CH4 Gødning'!$E153,Indtastning!$A$28:$S$32,4,FALSE),0)","v":0},"Gylle","M",0.13200000000000001,4.4000000000000004E-2,null,null,null,null,null,null,4.6463999999999999,5.2632000000000003,0,null,16.66,0.45,0.26437000968000007,0]
["Fattening pigs","Svin","Slagtesvin (31 kg >)","Fully slatted floor","Fuldspaltegulv",{"$f":"IFERROR(HLOOKUP('CH4 Gødning'!$E154,Indtastning!$A$28:$S$32,5,FALSE),0)","v":0},"Gylle","M",0.55000000000000004,6.0999999999999999E-2,null,null,null,null,null,null,26.84,31.36,0,null,16.66,0.45,1.5752096640000002,0]
["Fattening pigs","Svin","Slagtesvin (31 kg >)","Solid floor","Fast gulv",{"$f":"IFERROR(HLOOKUP('CH4 Gødning'!$E155,Indtastning!$A$28:$S$32,5,FALSE),0)","v":0},"Ajle (liquid manure/urin)","M",0.35,0.02,null,null,null,null,null,null,5.6000000000000005,5.9200000000000008,0,null,16.66,0.45,0.29736100800000004,0]
["Fattening pigs","Svin","Slagtesvin (31 kg >)","Solid floor","Fast gulv",{"$f":"IFERROR(HLOOKUP('CH4 Gødning'!$E156,Indtastning!$A$28:$S$32,5,FALSE),0)","v":0},"Staldgødning","M",0.1,0.23,"Strøelse","S",{"$f":"13/1000*(365/3.7)","v":1.2824324324324323},0.85,null,null,1107.9770371621621,36.55275000000001,0,null,2,0.45,0.22041308250000008,0]
["Fattening pigs","Svin","Slagtesvin (31 kg >)","Deep litter, fattening pigs","Dybstrøelse",{"$f":"IFERROR(HLOOKUP('CH4 Gødning'!$E157,Indtastning!$A$28:$S$32,5,FALSE),0)","v":0},null,null,null,null,"Dybstrøelse","S",0.17,0.33,null,null,56.074755000000003,87.654862499999993,0,null,11.4,0.45,3.0127852789875003,0]
["Fattening pigs","Svin","Slagtesvin (31 kg >)","Partly slatted floor and partly deep litter","Dybstrøelse, opdelt lejeareal",{"$f":"IFERROR(HLOOKUP('CH4 Gødning'!$E158,Indtastning!$A$28:$S$32,5,FALSE),0)","v":0},"Gylle","M",0.34,4.9000000000000002E-2,null,null,null,null,null,null,13.328000000000001,15.68,0,null,16.66,0.45,0.78760483200000009,0]
["Fattening pigs","Svin","Slagtesvin (31 kg >)","Partly slatted floor and partly deep litter","Dybstrøelse, opdelt lejeareal",{"$f":"IFERROR(HLOOKUP('CH4 Gødning'!$E159,Indtastning!$A$28:$S$32,5,FALSE),0)","v":0},null,null,null,null,"Dybstrøelse","S",0.09,0.33,null,null,29.686634999999999,44.091249999999988,0,null,17,0.45,2.2598970187499994,0]
["Fattening pigs","Svin","Slagtesvin (31 kg >)","Partly slatted and drained floor","Drænet gulv + spalter (33/67)",{"$f":"IFERROR(HLOOKUP('CH4 Gødning'!$E160,Indtastning!$A$28:$S$32,5,FALSE),0)","v":0},"Gylle","M",0.55000000000000004,6.0999999999999999E-2,null,null,null,null,null,null,26.84,31.36,0,null,16.66,0.45,{"$f":"(R160*U160/100*0.67*V160)+(T160*U160/100*0.67*V160)","v":1.5752096640000002},0]
["Fattening pigs","Svin","Slagtesvin (31 kg >)","Biogas","Biogas",{"$f":"IFERROR(HLOOKUP('CH4 Gødning'!$E161,Indtastning!$A$28:$S$32,5,FALSE),0)","v":0},null,null,null,null,null,null,null,null,null,null,0,34.3228875,0,null,10.119999999999999,0.45,1.0472530788225001,0]
["Hens","Andet","Høns","Free-range hens","Friland, konsumæg",{"$f":"IFERROR(HLOOKUP('CH4 Gødning'!$E162,Indtastning!$B$39:$O$42,2,FALSE),0)","v":0},"Staldgødning","M",{"$f":"1.27/100","v":1.2699999999999999E-2},0.4,null,null,null,null,null,null,4.0640000000000001,6.5856000000000021,0,null,1,0.39,1.7208172800000008E-2,0]
["Hens","Andet","Høns","Free-range hens","Friland, konsumæg",{"$f":"IFERROR(HLOOKUP('CH4 Gødning'!$E163,Indtastning!$B$39:$O$42,2,FALSE),0)","v":0},null,null,null,null,"Dybstrøelse","S",{"$f":"0.01*0.38","v":3.8E-3},0.63300000000000001,null,null,2.4043175699999999,3.4145625000000002,0,null,1,0.39,8.9222518125000004E-3,{"$f":"F163*W163","v":0}]
["Hens","Andet","Høns","Free-range hens","Friland, konsumæg",{"$f":"IFERROR(HLOOKUP('CH4 Gødning'!$E164,Indtastning!$B$39:$O$42,2,FALSE),0)","v":0},"Udeareal","M",{"$f":"0.48/100","v":4.7999999999999996E-3},0.28000000000000003,null,null,null,null,null,null,1.0752000000000002,1.0976000000000001,0,null,1,0.39,2.8680288000000006E-3,0]
["Hens","Andet","Høns","Organic hens","Økologiske, konsumæg",{"$f":"IFERROR(HLOOKUP('CH4 Gødning'!$E165,Indtastning!$B$39:$O$42,2,FALSE),0)","v":0},"Staldgødning","M",{"$f":"1.3/100","v":1.3000000000000001E-2},0.4,"Dybstrøelse","S",{"$f":"0.01*0.42","v":4.1999999999999997E-3},0.63300000000000001,null,null,6.8174036300000012,10.396275000000001,0,null,1.5,0.39,4.0748199862500008E-2,0]
["Hens","Andet","Høns","Organic hens","Økologiske, konsumæg",{"$f":"IFERROR(HLOOKUP('CH4 Gødning'!$E166,Indtastning!$B$39:$O$42,2,FALSE),0)","v":0},"Udeareal","M",{"$f":"0.01*0.49","v":4.8999999999999998E-3},0.28000000000000003,null,null,null,null,null,null,1.0975999999999999,1.1200000000000001,0,null,1,0.39,2.9265600000000004E-3,0]
["Hens","Andet","Høns","Barn hens","Skrabehøner, konsumæg",{"$f":"IFERROR(HLOOKUP('CH4 Gødning'!$E167,Indtastning!$B$39:$O$42,2,FALSE),0)","v":0},"Staldgødning","M",{"$f":"0.01*0.4","v":4.0000000000000001E-3},0.63300000000000001,null,null,null,null,null,null,2.0256000000000003,7.3696000000000019,0,null,1.5,0.39,2.8885147200000013E-2,0]
["Hens","Andet","Høns","Barn hens","Skrabehøner, konsumæg",{"$f":"IFERROR(HLOOKUP('CH4 Gødning'!$E168,Indtastning!$B$39:$O$42,2,FALSE),0)","v":0},null,null,null,null,"Dybstrøelse",null,null,null,null,null,0,3.7099750000000005,0,null,1,0.39,9.694164675000002E-3,0]
["Hens","Andet","Høns","Battery hens, manure shed","Burhøns, konsumæg, bånd, staldgødning",{"$f":"IFERROR(HLOOKUP('CH4 Gødning'!$E169,Indtastning!$B$39:$O$42,2,FALSE),0)","v":0},"Staldgødning","M",{"$f":"0.01*2.82","v":2.8199999999999999E-2},0.4,null,null,null,null,null,null,9.0239999999999991,9.9231999999999996,0,null,1.5,0.39,3.8893982399999999E-2,0]
["Hens","Andet","Høns","Battery hens, manure tank","Burhøns, konsumæg, bånd, gylle",{"$f":"IFERROR(HLOOKUP('CH4 Gødning'!$E170,Indtastning!$B$39:$O$42,2,FALSE),0)","v":0},"Gylle","M",{"$f":"0.01*9.92","v":9.9199999999999997E-2},0.12,null,null,null,null,null,null,9.523200000000001,9.9231999999999996,0,null,1.5,0.39,3.8893982399999999E-2,0]
["Hens","Andet","Høns","Battery hens, manure cellar","Burhøns, konsumæg, gødningskælder",{"$f":"IFERROR(HLOOKUP('CH4 Gødning'!$E171,Indtastning!$B$39:$O$42,2,FALSE),0)","v":0},"Staldgødning","M",{"$f":"0.01*1.97","v":1.9699999999999999E-2},0.4,null,null,null,null,null,null,6.3040000000000003,9.9231999999999996,0,null,1.5,0.39,3.8893982399999999E-2,0]
["Hens","Andet","Høns","Hens for production of brood egg","HPR høner (rugeæg), gulvdrift",{"$f":"IFERROR(HLOOKUP('CH4 Gødning'!$E172,Indtastning!$B$39:$O$42,2,FALSE),0)","v":0},null,null,null,null,"Dybstrøelse",null,null,null,null,null,0,14.4032,0,null,1.5,0.39,5.6453342400000009E-2,0]
["Hens","Andet","Høns","Hens for production of brood egg","HPR høner (rugeæg), gulvdrift",{"$f":"IFERROR(HLOOKUP('CH4 Gødning'!$E173,Indtastning!$B$39:$O$42,2,FALSE),0)","v":0},"Staldgødning","M",null,null,null,null,null,null,null,null,0,0.16234999999999999,0,null,1.5,0.39,6.3633082500000001E-4,0]
["Pullet","Andet","Hønniker","Pullet, consumption, net","Hønniker, konsum, gulvdrift, 112 dage",{"$f":"IFERROR(HLOOKUP('CH4 Gødning'!$E174,Indtastning!$B$39:$R$42,3,FALSE),0)","v":0},null,null,null,null,"Dybstrøelse",null,null,null,null,null,0,1.3423499999999999,0,null,1.5,0.39,5.2613408250000004E-3,0]
["Pullet","Andet","Hønniker","Pullet, consumption, floor","Hønniker, konsum, netdrift, 112 dage",{"$f":"IFERROR(HLOOKUP('CH4 Gødning'!$E175,Indtastning!$B$39:$R$42,3,FALSE),0)","v":0},"Staldgødning",null,null,null,null,null,null,null,null,null,0,1.18,0,null,1.5,0.39,4.6250100000000006E-3,0]
["Pullet","Andet","Hønniker","Pullet, brood egg, floor","Hønniker, rugeæg, HPR, gulvdrift, 119 dage",{"$f":"IFERROR(HLOOKUP('CH4 Gødning'!$E176,Indtastning!$B$39:$R$42,3,FALSE),0)","v":0},null,null,null,null,"Dybstrøelse",null,null,null,null,null,0,1.4023499999999998,0,null,1.5,0.39,5.4965108249999993E-3,0]
["Pullet","Andet","Hønniker",null,"Hønniker, rugeæg, HPR, gulvdrift, 119 dage",{"$f":"IFERROR(HLOOKUP('CH4 Gødning'!$E177,Indtastning!$B$39:$R$42,3,FALSE),0)","v":0},null,null,null,null,null,null,null,null,null,null,0,null,0,null,1.5,0.39,0,0]
["Broilers","Andet","Slagtekyllinger, 1000 stk.","Broilers, (conv. 30 days)","Slagtekyllinger (25 dyr/m2), produktionstid 30 dage",{"$f":"IFERROR(HLOOKUP('CH4 Gødning'!$E178,Indtastning!$B$39:$Q$42,4,FALSE),0)","v":0},null,null,null,null,"Dybstrøelse","S",{"$f":"1.02/1000","v":1.0200000000000001E-3},0.48,null,null,0.48937968000000004,0.5243525,0,null,1.5,0.36,1.8971073450000002E-3,0]
["Broilers","Andet","Slagtekyllinger, 1000 stk.","Broilers, (conv. 32 days)","Slagtekyllinger (25 dyr/m2), produktionstid 32 dage",{"$f":"IFERROR(HLOOKUP('CH4 Gødning'!$E179,Indtastning!$B$39:$Q$42,4,FALSE),0)","v":0},null,null,null,null,"Dybstrøelse","S",{"$f":"1.14/1000","v":1.14E-3},0.48,null,null,0.54695375999999996,0.59035249999999995,0,null,1.5,0.36,2.135895345E-3,0]
["Broilers","Andet","Slagtekyllinger, 1000 stk.","Broilers, (conv. 35 days)","Slagtekyllinger (25 dyr/m2), produktionstid 35 dage",{"$f":"IFERROR(HLOOKUP('CH4 Gødning'!$E180,Indtastning!$B$39:$Q$42,4,FALSE),0)","v":0},null,null,null,null,"Dybstrøelse","S",{"$f":"1.37/1000","v":1.3700000000000001E-3},0.48,null,null,0.65730407999999996,0.70435250000000005,0,null,1.5,0.36,2.5483473450000002E-3,0]
["Broilers","Andet","Slagtekyllinger, 1000 stk.","Broilers, (conv. 40 days)","Slagtekyllinger (25 dyr/m2), produktionstid 40 dage",{"$f":"IFERROR(HLOOKUP('CH4 Gødning'!$E181,Indtastning!$B$39:$Q$42,4,FALSE),0)","v":0},null,null,null,null,"Dybstrøelse","S",{"$f":"1.77/1000","v":1.7700000000000001E-3},0.48,null,null,0.8492176800000002,0.91235250000000001,0,null,1.5,0.36,3.3008913450000002E-3,0]
["Broilers","Andet","Slagtekyllinger, 1000 stk.","Broilers, (conv. 45 days)","Slagtekyllinger (25 dyr/m2), produktionstid 45 dage",{"$f":"IFERROR(HLOOKUP('CH4 Gødning'!$E182,Indtastning!$B$39:$Q$42,4,FALSE),0)","v":0},null,null,null,null,"Dybstrøelse","S",{"$f":"2.22/1000","v":2.2200000000000002E-3},0.48,null,null,1.0651204800000003,null,0,null,1.5,0.36,0,0]
["Broilers","Andet","Slagtekyllinger, 1000 stk.","Broilers, barn (56 days)","Skrabekyllinger (10 dyr/m2), produktionstid 56 dage",{"$f":"IFERROR(HLOOKUP('CH4 Gødning'!$E183,Indtastning!$B$39:$Q$42,4,FALSE),0)","v":0},null,null,null,null,"Dybstrøelse","S",{"$f":"2.41/1000","v":2.4100000000000002E-3},0.48,null,null,1.15627944,1.2477625000000001,0,null,1.5,0.36,4.5144047250000006E-3,0]
["Broilers","Andet","Slagtekyllinger, 1000 stk.","Organic broilers (81 days)","Økologiske slagtekyllinger",{"$f":"IFERROR(HLOOKUP('CH4 Gødning'!$E184,Indtastning!$B$39:$Q$42,4,FALSE),0)","v":0},null,null,null,null,"Dybstrøelse","S",{"$f":"2.09/1000","v":2.0899999999999998E-3},0.5,null,null,1.0445297499999999,2.221625,0,null,1.5,0.36,8.0378392500000014E-3,0]
["Broilers","Andet","Slagtekyllinger, 1000 stk.","Organic broilers (81 days)","Økologiske slagtekyllinger",{"$f":"IFERROR(HLOOKUP('CH4 Gødning'!$E185,Indtastning!$B$39:$Q$42,4,FALSE),0)","v":0},"Udeareal","M",{"$f":"0.28/1000","v":2.8000000000000003E-4},0.5,null,null,null,null,null,null,0.11200000000000002,0.11200000000000002,0,null,1,0.36,2.7014400000000005E-4,0]
["Mink","Andet","Mink","Slurry system","Bure, fast gødning i gødningsrende",{"$f":"IFERROR(HLOOKUP('CH4 Gødning'!$E186,Indtastning!$A$60:$G$67,8,FALSE),0)","v":0},"Gylle","M",0.37,0.12,null,null,null,null,null,null,35.520000000000003,44.837499999999999,0,null,10.14,0.25,0.76154251875000001,0]
["Mink","Andet","Mink","Slurry system","Bure gødningsrende, ugentlig tømning",{"$f":"IFERROR(HLOOKUP('CH4 Gødning'!$E187,Indtastning!$A$60:$G$67,8,FALSE),0)","v":0},null,null,null,null,"Dybstrøelse","S",0.06,0.35,null,null,20.990549999999999,10.507900000000001,0,null,10.14,0.25,0.17847142755000003,0]
["Mink","Andet","Mink","Solid manure and urine","Bure gødningsrende, ugentlig tømning",{"$f":"IFERROR(HLOOKUP('CH4 Gødning'!$E188,Indtastning!$A$60:$G$67,8,FALSE),0)","v":0},"Gylle","M",0.41,6.9000000000000006E-2,null,null,null,null,null,null,22.632000000000005,26.294400000000003,0,null,10.14,0.25,0.44659723680000007,0]
["Horse <300 kg","Andet","Heste <300 kg","Deep litter","Dybstrøelse",{"$f":"IFERROR(HLOOKUP('CH4 Gødning'!$E189,Indtastning!$A$60:$G$67,2,FALSE),0)","v":0},null,null,null,null,"Dybstrøelse","S",2.97,0.26,null,182.5,771.85251000000005,680.43312500000002,0,236.00000000000003,2,0.3,3.6840611625000008,0]
["Horse 300 - <500 kg","Andet","Heste 300 kg, <500 kg","Deep litter","Dybstrøelse",{"$f":"IFERROR(HLOOKUP('CH4 Gødning'!$E190,Indtastning!$A$60:$G$67,2,FALSE),0)","v":0},null,null,null,null,"Dybstrøelse","S",4.5199999999999996,0.26,null,182.5,1174.6711600000001,1032.721875,0,292.00000000000006,2,0.3,5.3253819375000004,0]
["Horse 500 - <700 kg","Andet","Heste 500 kg, <700 kg","Deep litter","Dybstrøelse",{"$f":"IFERROR(HLOOKUP('CH4 Gødning'!$E191,Indtastning!$A$60:$G$67,2,FALSE),0)","v":0},null,null,null,null,"Dybstrøelse","S",5.13,0.26,null,182.5,1333.1997900000001,1178.721875,0,437.99999999999994,2,0.3,6.4992219374999998,0]
["Horse >700 kg","Andet","Heste 700+ kg ","Deep litter","Dybstrøelse",{"$f":"IFERROR(HLOOKUP('CH4 Gødning'!$E192,Indtastning!$A$60:$G$67,2,FALSE),0)","v":0},null,null,null,null,"Dybstrøelse","S",5.75,0.26,null,182.5,1494.32725,1324.721875,0,584.00000000000011,2,0.3,{"$f":"(R192*U192/100*0.67*V192)+(T192*U192/100*0.67*V192)","v":7.6730619375000009},0]
["Sheep","Andet","Får","Deep litter","Dybstrøelse",{"$f":"IFERROR(HLOOKUP('CH4 Gødning'!$E193,Indtastning!$A$49:$G$52,2,FALSE),0)","v":0},null,null,null,null,"Dybstrøelse","S",1.1299999999999999,0.34599999999999997,null,265,{"$f":"(I193*1000)/365*J193*(365-O193)*0.8+(M193*1000)/365*N193*(365-O193)*(1-0.045/100)","v":390.804059},148.3194452054795,{"$f":"(I193*1000)/365*J193*0.8*P193","v":0},147.81685479452059,5.3835616438356162,0.19,2.0295031971328772,0]
["Mohair goat","Andet","Mohairgeder","Deep litter","Dybstrøelse",{"$f":"IFERROR(HLOOKUP('CH4 Gødning'!$E194,Indtastning!$A$49:$B$53,4,FALSE),0)","v":0},null,null,null,null,"Dybstrøelse","S",1.21,0.34599999999999997,null,265,418.47160300000002,212.07191780821887,0,237.84657534246574,17,0.18,9.2242289465753373,0]
["Meat goat","Andet","Kødgeder","Deep litter","Dybstrøelse",{"$f":"IFERROR(HLOOKUP('CH4 Gødning'!$E195,Indtastning!$A$49:$B$53,5,FALSE),0)","v":0},null,null,null,null,"Dybstrøelse","S",1.1000000000000001,0.34599999999999997,null,265,380.42872999999997,190.01164383561616,0,179.3868493150685,17,0.18,7.573407906575337,{"$f":"F195*W195","v":0}]
["Milk goat","Andet","Malkegeder","Deep litter","Dybstrøelse",{"$f":"IFERROR(HLOOKUP('CH4 Gødning'!$E196,Indtastning!$A$49:$B$53,3,FALSE),0)","v":0},null,null,null,null,"Dybstrøelse","S",1.1299999999999999,0.34599999999999997,null,265,390.804059,195.71684931506829,0,194.50564383561644,17,0.18,8.0003415545753374,0]
[]
[]
[null,null,"Kilde",null,null,null,"Poulsen (2015) Normtal","Poulsen (2015) Normtal","Poulsen (2015) Normtal","Poulsen (2015) Normtal","Poulsen (2015) Normtal og baggrundstal til normtal","Poulsen (2015) Normtal og baggrundstal til normtal","Poulsen (2015) Normtal og baggrundstal til normtal","Poulsen (2015) Normtal og baggrundstal til normtal",null,"NIR Annex 3D-9",null,"DCE",null,"DCE","NIR Annex 3D-13","IPCC Tabel 10A-4 til 10A-9"]
[]
[]
[]
[]
[]
[]
[]
[]
[]
[]
[]
[]
[]
[]
[]
[]
[]
[]
[]
[]
[]
[]
[]
["Kg Metan","Andet kvæg","Malkekvæg","Svin","Andet",null,"Hovedtotal"]
["Ajle (liquid manure/urin)",{"$f":"SUMIFS('CH4 Gødning'!$X$3:$X$196,'CH4 Gødning'!$G$3:$G$196,$A224,'CH4 Gødning'!$B$3:$B$196,B223)","v":0},{"$f":"SUMIFS('CH4 Gødning'!$X$3:$X$196,'CH4 Gødning'!$G$3:$G$196,A224,'CH4 Gødning'!$B$3:$B$196,$C$223)","v":0},{"$f":"SUMIFS('CH4 Gødning'!$X$3:$X$196,'CH4 Gødning'!$G$3:$G$196,A224,'CH4 Gødning'!$B$3:$B$196,$D$223)","v":0},{"$f":"SUMIFS('CH4 Gødning'!$X$3:$X$196,'CH4 Gødning'!$G$3:$G$196,A224,'CH4 Gødning'!$B$3:$B$196,$E$223)","v":0},null,{"$f":"SUMIF('CH4 Gødning'!$G$3:$G$196,A224,'CH4 Gødning'!$X$3:$X$196)","v":0}]
["Gylle",{"$f":"SUMIFS('CH4 Gødning'!$X$3:$X$196,'CH4 Gødning'!$G$3:$G$196,A225,'CH4 Gødning'!$B$3:$B$196,$B$223)","v":0},{"$f":"SUMIFS('CH4 Gødning'!$X$3:$X$196,'CH4 Gødning'!$G$3:$G$196,A225,'CH4 Gødning'!$B$3:$B$196,$C$223)","v":0},{"$f":"SUMIFS('CH4 Gødning'!$X$3:$X$196,'CH4 Gødning'!$G$3:$G$196,A225,'CH4 Gødning'!$B$3:$B$196,$D$223)","v":0},{"$f":"SUMIFS('CH4 Gødning'!$X$3:$X$196,'CH4 Gødning'!$G$3:$G$196,A225,'CH4 Gødning'!$B$3:$B$196,$E$223)","v":0},null,{"$f":"SUMIF('CH4 Gødning'!$G$3:$G$196,A225,'CH4 Gødning'!$X$3:$X$196)","v":0}]
["Staldgødning",{"$f":"SUMIFS('CH4 Gødning'!$X$3:$X$196,'CH4 Gødning'!$G$3:$G$196,A226,'CH4 Gødning'!$B$3:$B$196,$B$223)","v":0},{"$f":"SUMIFS('CH4 Gødning'!$X$3:$X$196,'CH4 Gødning'!$G$3:$G$196,A226,'CH4 Gødning'!$B$3:$B$196,$C$223)","v":0},{"$f":"SUMIFS('CH4 Gødning'!$X$3:$X$196,'CH4 Gødning'!$G$3:$G$196,A226,'CH4 Gødning'!$B$3:$B$196,$D$223)","v":0},{"$f":"SUMIFS('CH4 Gødning'!$X$3:$X$196,'CH4 Gødning'!$G$3:$G$196,A226,'CH4 Gødning'!$B$3:$B$196,$E$223)","v":0},null,{"$f":"SUMIF('CH4 Gødning'!$G$3:$G$196,A226,'CH4 Gødning'!$X$3:$X$196)","v":0}]
["Udeareal",{"$f":"SUMIFS('CH4 Gødning'!$X$3:$X$196,'CH4 Gødning'!$G$3:$G$196,A227,'CH4 Gødning'!$B$3:$B$196,$B$223)","v":0},{"$f":"SUMIFS('CH4 Gødning'!$X$3:$X$196,'CH4 Gødning'!$G$3:$G$196,A227,'CH4 Gødning'!$B$3:$B$196,$C$223)","v":0},{"$f":"SUMIFS('CH4 Gødning'!$X$3:$X$196,'CH4 Gødning'!$G$3:$G$196,A227,'CH4 Gødning'!$B$3:$B$196,$D$223)","v":0},{"$f":"SUMIFS('CH4 Gødning'!$X$3:$X$196,'CH4 Gødning'!$G$3:$G$196,A227,'CH4 Gødning'!$B$3:$B$196,$E$223)","v":0},null,{"$f":"SUMIF('CH4 Gødning'!$G$3:$G$196,A227,'CH4 Gødning'!$X$3:$X$196)","v":0}]
["(tom)",{"$f":"SUMIFS('CH4 Gødning'!$X$3:$X$196,'CH4 Gødning'!$G$3:$G$196,\"\",'CH4 Gødning'!$B$3:$B$196,$B$223)","v":0},{"$f":"SUMIFS('CH4 Gødning'!$X$3:$X$196,'CH4 Gødning'!$G$3:$G$196,\"\",'CH4 Gødning'!$B$3:$B$196,$C$223)","v":0},{"$f":"SUMIFS('CH4 Gødning'!$X$3:$X$196,'CH4 Gødning'!$G$3:$G$196,\"\",'CH4 Gødning'!$B$3:$B$196,$D$223)","v":0},{"$f":"SUMIFS('CH4 Gødning'!$X$3:$X$196,'CH4 Gødning'!$G$3:$G$196,\"\",'CH4 Gødning'!$B$3:$B$196,$E$223)","v":0},null,{"$f":"SUMIF('CH4 Gødning'!$G$3:$G$196,\"\",'CH4 Gødning'!$X$3:$X$196)","v":0}]
["Total",{"$f":"SUM(B224:B228)","v":0},{"$f":"SUM(C224:C228)","v":0},{"$f":"SUM(D224:D228)","v":0},{"$f":"SUM(E224:E228)","v":0},null,{"$f":"SUM(G224:G228)","v":0}]

{"sheet":"N2O Gødning","index":4,"n_rows":224,"n_cols":18,"rows_kept":224,"cut":false,"hidden":false,"merged":[[0,12,0,16],[0,0,0,5],[0,8,0,11]]}
["Karakteristika",null,null,null,null,null,"Inputs","Normtal (Poulsen 2015)","Direkte udledninger",null,null,null,"Indirekte udledninger",null,null,null,null,"Totale udledninger"]
["Livestock categories","Dyrekategori","Dyr","Housing type","Staldsystem","Gødningstype","Antal dyr","Kg N pr dyr (Nex)","Total N excretion (kg pr year)","Emissionsfaktor (kgN2O-N pr kg Nex) ","Total N2O-N","Total N2O direkte, kg","FracGasMS","Total N fra fordampning","Emissionsfaktor (EF4)","Total N2O-N2 kg","Total N2O indirekte, kg ","Totale udledninger"]
["dairy cattle","Malkekvæg","1 årsko, tung race","Tethered with urine and solid manure","Bindestald med grebning","Staldgødning",{"$f":"IFERROR(HLOOKUP(Tabel86[[#This Row],[Staldsystem]],Indtastning!$B$8:$P$9,2,FALSE),0)","v":0},69.66,{"$f":"G3*H3","v":0},5.0000000000000001E-3,{"$f":"I3*J3","v":0},{"$f":"K3*44/28","v":0},7.78796578787566E-2,{"$f":"Tabel86[[#This Row],[Total N excretion (kg pr year)]]*Tabel86[[#This Row],[FracGasMS]]","v":0},0.01,{"$f":"Tabel86[[#This Row],[Total N fra fordampning]]*Tabel86[[#This Row],[Emissionsfaktor (EF4)]]","v":0},{"$f":"Tabel86[[#This Row],[Total N2O-N2 kg]]*44/28","v":0},{"$f":"Tabel86[[#This Row],[Total N2O direkte, kg]]+Tabel86[[#This Row],[Total N2O indirekte, kg ]]","v":0}]
["dairy cattle","Malkekvæg","1 årsko, tung race","Tethered with urine and solid manure","Bindestald med grebning","Ajle (liquid manure/urin)",{"$f":"IFERROR(HLOOKUP(Tabel86[[#This Row],[Staldsystem]],Indtastning!$B$8:$P$9,2,FALSE),0)","v":0},58.26,0,5.0000000000000001E-3,{"$f":"I4*J4","v":0},0,7.78796578787566E-2,{"$f":"Tabel86[[#This Row],[Total N excretion (kg pr year)]]*Tabel86[[#This Row],[FracGasMS]]","v":0},0.01,{"$f":"Tabel86[[#This Row],[Total N fra fordampning]]*Tabel86[[#This Row],[Emissionsfaktor (EF4)]]","v":0},{"$f":"Tabel86[[#This Row],[Total N2O-N2 kg]]*44/28","v":0},{"$f":"Tabel86[[#This Row],[Total N2O direkte, kg]]+Tabel86[[#This Row],[Total N2O indirekte, kg ]]","v":0}]
["dairy cattle","Malkekvæg","1 årsko, tung race","Tethered with slurry","Bindestald med riste","Gylle",{"$f":"IFERROR(HLOOKUP(Tabel86[[#This Row],[Staldsystem]],Indtastning!$B$8:$P$9,2,FALSE),0)","v":0},142.16999999999999,0,5.0000000000000001E-3,0,0,7.78796578787566E-2,{"$f":"Tabel86[[#This Row],[Total N excretion (kg pr year)]]*Tabel86[[#This Row],[FracGasMS]]","v":0},0.01,{"$f":"Tabel86[[#This Row],[Total N fra fordampning]]*Tabel86[[#This Row],[Emissionsfaktor (EF4)]]","v":0},{"$f":"Tabel86[[#This Row],[Total N2O-N2 kg]]*44/28","v":0},{"$f":"Tabel86[[#This Row],[Total N2O direkte, kg]]+Tabel86[[#This Row],[Total N2O indirekte, kg ]]","v":0}]
["dairy cattle","Malkekvæg","1 årsko, tung race","Loose-holding with beds, solid floor","Sengestald med fast gulv","Gylle",{"$f":"IFERROR(HLOOKUP(Tabel86[[#This Row],[Staldsystem]],Indtastning!$B$8:$P$9,2,FALSE),0)","v":0},131.96,0,5.0000000000000001E-3,0,0,7.78796578787566E-2,{"$f":"Tabel86[[#This Row],[Total N excretion (kg pr year)]]*Tabel86[[#This Row],[FracGasMS]]","v":0},0.01,{"$f":"Tabel86[[#This Row],[Total N fra fordampning]]*Tabel86[[#This Row],[Emissionsfaktor (EF4)]]","v":0},{"$f":"Tabel86[[#This Row],[Total N2O-N2 kg]]*44/28","v":0},{"$f":"Tabel86[[#This Row],[Total N2O direkte, kg]]+Tabel86[[#This Row],[Total N2O indirekte, kg ]]","v":0}]
["dairy cattle","Malkekvæg","1 årsko, tung race","Loose-holding with beds, slatted floor","Sengestald med spalter (kanal, linespil)","Gylle",{"$f":"IFERROR(HLOOKUP(Tabel86[[#This Row],[Staldsystem]],Indtastning!$B$8:$P$9,2,FALSE),0)","v":0},137.09,0,5.0000000000000001E-3,0,0,7.78796578787566E-2,{"$f":"Tabel86[[#This Row],[Total N excretion (kg pr year)]]*Tabel86[[#This Row],[FracGasMS]]","v":0},0.01,{"$f":"Tabel86[[#This Row],[Total N fra fordampning]]*Tabel86[[#This Row],[Emissionsfaktor (EF4)]]","v":0},{"$f":"Tabel86[[#This Row],[Total N2O-N2 kg]]*44/28","v":0},{"$f":"Tabel86[[#This Row],[Total N2O direkte, kg]]+Tabel86[[#This Row],[Total N2O indirekte, kg ]]","v":0}]
["dairy cattle","Malkekvæg","1 årsko, tung race","Loose-holding with beds, slatted floor, scrape","Sengestald med spalter (kanal, bagskyl eller ringkanal)","Gylle",{"$f":"IFERROR(HLOOKUP(Tabel86[[#This Row],[Staldsystem]],Indtastning!$B$8:$P$9,2,FALSE),0)","v":0},134.53,0,5.0000000000000001E-3,0,0,7.78796578787566E-2,{"$f":"Tabel86[[#This Row],[Total N excretion (kg pr year)]]*Tabel86[[#This Row],[FracGasMS]]","v":0},0.01,{"$f":"Tabel86[[#This Row],[Total N fra fordampning]]*Tabel86[[#This Row],[Emissionsfaktor (EF4)]]","v":0},{"$f":"Tabel86[[#This Row],[Total N2O-N2 kg]]*44/28","v":0},{"$f":"Tabel86[[#This Row],[Total N2O direkte, kg]]+Tabel86[[#This Row],[Total N2O indirekte, kg ]]","v":0}]
["dairy cattle","Malkekvæg","1 årsko, tung race","Loose-holding with beds, solid floor with tilt","Sengestald, fast drænet gulv med skraber og ajleafløb","Gylle",{"$f":"IFERROR(HLOOKUP(Tabel86[[#This Row],[Staldsystem]],Indtastning!$B$8:$P$9,2,FALSE),0)","v":0},139.65,0,5.0000000000000001E-3,0,0,7.78796578787566E-2,{"$f":"Tabel86[[#This Row],[Total N excretion (kg pr year)]]*Tabel86[[#This Row],[FracGasMS]]","v":0},0.01,{"$f":"Tabel86[[#This Row],[Total N fra fordampning]]*Tabel86[[#This Row],[Emissionsfaktor (EF4)]]","v":0},{"$f":"Tabel86[[#This Row],[Total N2O-N2 kg]]*44/28","v":0},{"$f":"Tabel86[[#This Row],[Total N2O direkte, kg]]+Tabel86[[#This Row],[Total N2O indirekte, kg ]]","v":0}]
["dairy cattle","Malkekvæg","1 årsko, tung race","Deep litter (all)","Dybstrøelse (hele arealet)","Dybstrøelse",{"$f":"IFERROR(HLOOKUP(Tabel86[[#This Row],[Staldsystem]],Indtastning!$B$8:$P$9,2,FALSE),0)","v":0},151.87,0,0.01,0,0,7.78796578787566E-2,{"$f":"Tabel86[[#This Row],[Total N excretion (kg pr year)]]*Tabel86[[#This Row],[FracGasMS]]","v":0},0.01,{"$f":"Tabel86[[#This Row],[Total N fra fordampning]]*Tabel86[[#This Row],[Emissionsfaktor (EF4)]]","v":0},{"$f":"Tabel86[[#This Row],[Total N2O-N2 kg]]*44/28","v":0},{"$f":"Tabel86[[#This Row],[Total N2O direkte, kg]]+Tabel86[[#This Row],[Total N2O indirekte, kg ]]","v":0}]
["dairy cattle","Malkekvæg","1 årsko, tung race","Deep litter, long eating space, solid floor","Dybstrøelse, lang ædeplads med fast gulv","Dybstrøelse",{"$f":"IFERROR(HLOOKUP(Tabel86[[#This Row],[Staldsystem]],Indtastning!$B$8:$P$9,2,FALSE),0)","v":0},95.34,0,0.01,0,0,7.78796578787566E-2,{"$f":"Tabel86[[#This Row],[Total N excretion (kg pr year)]]*Tabel86[[#This Row],[FracGasMS]]","v":0},0.01,{"$f":"Tabel86[[#This Row],[Total N fra fordampning]]*Tabel86[[#This Row],[Emissionsfaktor (EF4)]]","v":0},{"$f":"Tabel86[[#This Row],[Total N2O-N2 kg]]*44/28","v":0},{"$f":"Tabel86[[#This Row],[Total N2O direkte, kg]]+Tabel86[[#This Row],[Total N2O indirekte, kg ]]","v":0}]
["dairy cattle","Malkekvæg","1 årsko, tung race","Deep litter, long eating space, solid floor","Dybstrøelse, lang ædeplads med fast gulv","Gylle",{"$f":"IFERROR(HLOOKUP(Tabel86[[#This Row],[Staldsystem]],Indtastning!$B$8:$P$9,2,FALSE),0)","v":0},52.54,0,5.0000000000000001E-3,0,0,7.78796578787566E-2,{"$f":"Tabel86[[#This Row],[Total N excretion (kg pr year)]]*Tabel86[[#This Row],[FracGasMS]]","v":0},0.01,{"$f":"Tabel86[[#This Row],[Total N fra fordampning]]*Tabel86[[#This Row],[Emissionsfaktor (EF4)]]","v":0},{"$f":"Tabel86[[#This Row],[Total N2O-N2 kg]]*44/28","v":0},{"$f":"Tabel86[[#This Row],[Total N2O direkte, kg]]+Tabel86[[#This Row],[Total N2O indirekte, kg ]]","v":0}]
["dairy cattle","Malkekvæg","1 årsko, tung race","Deep litter, slatted floor","Dybstrøelse, lang ædeplads med spalter (kanal, linespil)","Dybstrøelse",{"$f":"IFERROR(HLOOKUP(Tabel86[[#This Row],[Staldsystem]],Indtastning!$B$8:$P$9,2,FALSE),0)","v":0},95.34,0,0.01,0,0,7.78796578787566E-2,{"$f":"Tabel86[[#This Row],[Total N excretion (kg pr year)]]*Tabel86[[#This Row],[FracGasMS]]","v":0},0.01,{"$f":"Tabel86[[#This Row],[Total N fra fordampning]]*Tabel86[[#This Row],[Emissionsfaktor (EF4)]]","v":0},{"$f":"Tabel86[[#This Row],[Total N2O-N2 kg]]*44/28","v":0},{"$f":"Tabel86[[#This Row],[Total N2O direkte, kg]]+Tabel86[[#This Row],[Total N2O indirekte, kg ]]","v":0}]
["dairy cattle","Malkekvæg","1 årsko, tung race","Deep litter, slatted floor","Dybstrøelse, lang ædeplads med spalter (kanal, linespil)","Gylle",{"$f":"IFERROR(HLOOKUP(Tabel86[[#This Row],[Staldsystem]],Indtastning!$B$8:$P$9,2,FALSE),0)","v":0},54.59,0,5.0000000000000001E-3,0,0,7.78796578787566E-2,{"$f":"Tabel86[[#This Row],[Total N excretion (kg pr year)]]*Tabel86[[#This Row],[FracGasMS]]","v":0},0.01,{"$f":"Tabel86[[#This Row],[Total N fra fordampning]]*Tabel86[[#This Row],[Emissionsfaktor (EF4)]]","v":0},{"$f":"Tabel86[[#This Row],[Total N2O-N2 kg]]*44/28","v":0},{"$f":"Tabel86[[#This Row],[Total N2O direkte, kg]]+Tabel86[[#This Row],[Total N2O indirekte, kg ]]","v":0}]
["dairy cattle","Malkekvæg","1 årsko, tung race","Deep litter, slatted floor, scrape","Dybstrøelse, lang ædeplads med spalter (kanal, bagskyl eller ringkanal)","Dybstrøelse",{"$f":"IFERROR(HLOOKUP(Tabel86[[#This Row],[Staldsystem]],Indtastning!$B$8:$P$9,2,FALSE),0)","v":0},95.34,0,0.01,0,0,7.78796578787566E-2,{"$f":"Tabel86[[#This Row],[Total N excretion (kg pr year)]]*Tabel86[[#This Row],[FracGasMS]]","v":0},0.01,{"$f":"Tabel86[[#This Row],[Total N fra fordampning]]*Tabel86[[#This Row],[Emissionsfaktor (EF4)]]","v":0},{"$f":"Tabel86[[#This Row],[Total N2O-N2 kg]]*44/28","v":0},{"$f":"Tabel86[[#This Row],[Total N2O direkte, kg]]+Tabel86[[#This Row],[Total N2O indirekte, kg ]]","v":0}]
["dairy cattle","Malkekvæg","1 årsko, tung race","Deep litter, slatted floor, scrape","Dybstrøelse, lang ædeplads med spalter (kanal, bagskyl eller ringkanal)","Gylle",{"$f":"IFERROR(HLOOKUP(Tabel86[[#This Row],[Staldsystem]],Indtastning!$B$8:$P$9,2,FALSE),0)","v":0},53.56,0,5.0000000000000001E-3,0,0,7.78796578787566E-2,{"$f":"Tabel86[[#This Row],[Total N excretion (kg pr year)]]*Tabel86[[#This Row],[FracGasMS]]","v":0},0.01,{"$f":"Tabel86[[#This Row],[Total N fra fordampning]]*Tabel86[[#This Row],[Emissionsfaktor (EF4)]]","v":0},{"$f":"Tabel86[[#This Row],[Total N2O-N2 kg]]*44/28","v":0},{"$f":"Tabel86[[#This Row],[Total N2O direkte, kg]]+Tabel86[[#This Row],[Total N2O indirekte, kg ]]","v":0}]
["dairy cattle","Malkekvæg","1 årsko, tung race","Biogas","Biogas",null,{"$f":"IFERROR(HLOOKUP(Tabel86[[#This Row],[Staldsystem]],Indtastning!$B$8:$S$9,2,FALSE),0)","v":0},137.09,0,0,0,{"$f":"K17*44/28","v":0},7.78796578787566E-2,{"$f":"Tabel86[[#This Row],[Total N excretion (kg pr year)]]*Tabel86[[#This Row],[FracGasMS]]","v":0},0.01,{"$f":"Tabel86[[#This Row],[Total N fra fordampning]]*Tabel86[[#This Row],[Emissionsfaktor (EF4)]]","v":0},{"$f":"Tabel86[[#This Row],[Total N2O-N2 kg]]*44/28","v":0},{"$f":"Tabel86[[#This Row],[Total N2O direkte, kg]]+Tabel86[[#This Row],[Total N2O indirekte, kg ]]","v":0}]
["Dairy cattle, jersey","Malkekvæg","1 årsko, jersey","Tethered with urine and solid manure","Bindestald med grebning","Staldgødning",{"$f":"IFERROR(HLOOKUP(Tabel86[[#This Row],[Staldsystem]],Indtastning!$B$8:$P$10,3,FALSE),0)","v":0},58.73,0,5.0000000000000001E-3,0,0,7.78796578787566E-2,{"$f":"Tabel86[[#This Row],[Total N excretion (kg pr year)]]*Tabel86[[#This Row],[FracGasMS]]","v":0},0.01,{"$f":"Tabel86[[#This Row],[Total N fra fordampning]]*Tabel86[[#This Row],[Emissionsfaktor (EF4)]]","v":0},{"$f":"Tabel86[[#This Row],[Total N2O-N2 kg]]*44/28","v":0},{"$f":"Tabel86[[#This Row],[Total N2O direkte, kg]]+Tabel86[[#This Row],[Total N2O indirekte, kg ]]","v":0}]
["Dairy cattle, jersey","Malkekvæg","1 årsko, jersey","Tethered with urine and solid manure","Bindestald med grebning","Ajle (liquid manure/urin)",{"$f":"IFERROR(HLOOKUP(Tabel86[[#This Row],[Staldsystem]],Indtastning!$B$8:$P$10,3,FALSE),0)","v":0},49.06,0,5.0000000000000001E-3,0,0,7.78796578787566E-2,{"$f":"Tabel86[[#This Row],[Total N excretion (kg pr year)]]*Tabel86[[#This Row],[FracGasMS]]","v":0},0.01,{"$f":"Tabel86[[#This Row],[Total N fra fordampning]]*Tabel86[[#This Row],[Emissionsfaktor (EF4)]]","v":0},{"$f":"Tabel86[[#This Row],[Total N2O-N2 kg]]*44/28","v":0},{"$f":"Tabel86[[#This Row],[Total N2O direkte, kg]]+Tabel86[[#This Row],[Total N2O indirekte, kg ]]","v":0}]
["Dairy cattle, jersey","Malkekvæg","1 årsko, jersey","Tethered with slurry","Bindestald med riste","Gylle",{"$f":"IFERROR(HLOOKUP(Tabel86[[#This Row],[Staldsystem]],Indtastning!$B$8:$P$10,3,FALSE),0)","v":0},119.79,0,5.0000000000000001E-3,0,0,7.78796578787566E-2,{"$f":"Tabel86[[#This Row],[Total N excretion (kg pr year)]]*Tabel86[[#This Row],[FracGasMS]]","v":0},0.01,{"$f":"Tabel86[[#This Row],[Total N fra fordampning]]*Tabel86[[#This Row],[Emissionsfaktor (EF4)]]","v":0},{"$f":"Tabel86[[#This Row],[Total N2O-N2 kg]]*44/28","v":0},{"$f":"Tabel86[[#This Row],[Total N2O direkte, kg]]+Tabel86[[#This Row],[Total N2O indirekte, kg ]]","v":0}]
["Dairy cattle, jersey","Malkekvæg","1 årsko, jersey","Loose-holding with beds, solid floor","Sengestald med fast gulv","Gylle",{"$f":"IFERROR(HLOOKUP(Tabel86[[#This Row],[Staldsystem]],Indtastning!$B$8:$P$10,3,FALSE),0)","v":0},111.15,0,5.0000000000000001E-3,0,0,7.78796578787566E-2,{"$f":"Tabel86[[#This Row],[Total N excretion (kg pr year)]]*Tabel86[[#This Row],[FracGasMS]]","v":0},0.01,{"$f":"Tabel86[[#This Row],[Total N fra fordampning]]*Tabel86[[#This Row],[Emissionsfaktor (EF4)]]","v":0},{"$f":"Tabel86[[#This Row],[Total N2O-N2 kg]]*44/28","v":0},{"$f":"Tabel86[[#This Row],[Total N2O direkte, kg]]+Tabel86[[#This Row],[Total N2O indirekte, kg ]]","v":0}]
["Dairy cattle, jersey","Malkekvæg","1 årsko, jersey","Loose-holding with beds, slatted floor","Sengestald med spalter (kanal, linespil)","Gylle",{"$f":"IFERROR(HLOOKUP(Tabel86[[#This Row],[Staldsystem]],Indtastning!$B$8:$P$10,3,FALSE),0)","v":0},115.47,0,5.0000000000000001E-3,0,0,7.78796578787566E-2,{"$f":"Tabel86[[#This Row],[Total N excretion (kg pr year)]]*Tabel86[[#This Row],[FracGasMS]]","v":0},0.01,{"$f":"Tabel86[[#This Row],[Total N fra fordampning]]*Tabel86[[#This Row],[Emissionsfaktor (EF4)]]","v":0},{"$f":"Tabel86[[#This Row],[Total N2O-N2 kg]]*44/28","v":0},{"$f":"Tabel86[[#This Row],[Total N2O direkte, kg]]+Tabel86[[#This Row],[Total N2O indirekte, kg ]]","v":0}]
["Dairy cattle, jersey","Malkekvæg","1 årsko, jersey","Loose-holding with beds, slatted floor, scrape","Sengestald med spalter (kanal, bagskyl eller ringkanal)","Gylle",{"$f":"IFERROR(HLOOKUP(Tabel86[[#This Row],[Staldsystem]],Indtastning!$B$8:$P$10,3,FALSE),0)","v":0},113.31,0,5.0000000000000001E-3,0,0,7.78796578787566E-2,{"$f":"Tabel86[[#This Row],[Total N excretion (kg pr year)]]*Tabel86[[#This Row],[FracGasMS]]","v":0},0.01,{"$f":"Tabel86[[#This Row],[Total N fra fordampning]]*Tabel86[[#This Row],[Emissionsfaktor (EF4)]]","v":0},{"$f":"Tabel86[[#This Row],[Total N2O-N2 kg]]*44/28","v":0},{"$f":"Tabel86[[#This Row],[Total N2O direkte, kg]]+Tabel86[[#This Row],[Total N2O indirekte, kg ]]","v":0}]
["Dairy cattle, jersey","Malkekvæg","1 årsko, jersey","Loose-holding with beds, solid floor with tilt","Sengestald, fast drænet gulv med skraber og ajleafløb","Gylle",{"$f":"IFERROR(HLOOKUP(Tabel86[[#This Row],[Staldsystem]],Indtastning!$B$8:$P$10,3,FALSE),0)","v":0},117.63,0,5.0000000000000001E-3,0,0,7.78796578787566E-2,{"$f":"Tabel86[[#This Row],[Total N excretion (kg pr year)]]*Tabel86[[#This Row],[FracGasMS]]","v":0},0.01,{"$f":"Tabel86[[#This Row],[Total N fra fordampning]]*Tabel86[[#This Row],[Emissionsfaktor (EF4)]]","v":0},{"$f":"Tabel86[[#This Row],[Total N2O-N2 kg]]*44/28","v":0},{"$f":"Tabel86[[#This Row],[Total N2O direkte, kg]]+Tabel86[[#This Row],[Total N2O indirekte, kg ]]","v":0}]
["Dairy cattle, jersey","Malkekvæg","1 årsko, jersey","Deep litter (all)","Dybstrøelse (hele arealet)","Dybstrøelse",{"$f":"IFERROR(HLOOKUP(Tabel86[[#This Row],[Staldsystem]],Indtastning!$B$8:$P$10,3,FALSE),0)","v":0},127.81,0,0.01,0,0,7.78796578787566E-2,{"$f":"Tabel86[[#This Row],[Total N excretion (kg pr year)]]*Tabel86[[#This Row],[FracGasMS]]","v":0},0.01,{"$f":"Tabel86[[#This Row],[Total N fra fordampning]]*Tabel86[[#This Row],[Emissionsfaktor (EF4)]]","v":0},{"$f":"Tabel86[[#This Row],[Total N2O-N2 kg]]*44/28","v":0},{"$f":"Tabel86[[#This Row],[Total N2O direkte, kg]]+Tabel86[[#This Row],[Total N2O indirekte, kg ]]","v":0}]
["Dairy cattle, jersey","Malkekvæg","1 årsko, jersey","Deep litter, long eating space, solid floor","Dybstrøelse, lang ædeplads med fast gulv","Gylle",{"$f":"IFERROR(HLOOKUP(Tabel86[[#This Row],[Staldsystem]],Indtastning!$B$8:$P$10,3,FALSE),0)","v":0},44.27,0,0.01,0,0,7.78796578787566E-2,{"$f":"Tabel86[[#This Row],[Total N excretion (kg pr year)]]*Tabel86[[#This Row],[FracGasMS]]","v":0},0.01,{"$f":"Tabel86[[#This Row],[Total N fra fordampning]]*Tabel86[[#This Row],[Emissionsfaktor (EF4)]]","v":0},{"$f":"Tabel86[[#This Row],[Total N2O-N2 kg]]*44/28","v":0},{"$f":"Tabel86[[#This Row],[Total N2O direkte, kg]]+Tabel86[[#This Row],[Total N2O indirekte, kg ]]","v":0}]
["Dairy cattle, jersey","Malkekvæg","1 årsko, jersey","Deep litter, long eating space, solid floor","Dybstrøelse, lang ædeplads med fast gulv","Dybstrøelse",{"$f":"IFERROR(HLOOKUP(Tabel86[[#This Row],[Staldsystem]],Indtastning!$B$8:$P$10,3,FALSE),0)","v":0},79.7,0,5.0000000000000001E-3,0,0,7.78796578787566E-2,{"$f":"Tabel86[[#This Row],[Total N excretion (kg pr year)]]*Tabel86[[#This Row],[FracGasMS]]","v":0},0.01,{"$f":"Tabel86[[#This Row],[Total N fra fordampning]]*Tabel86[[#This Row],[Emissionsfaktor (EF4)]]","v":0},{"$f":"Tabel86[[#This Row],[Total N2O-N2 kg]]*44/28","v":0},{"$f":"Tabel86[[#This Row],[Total N2O direkte, kg]]+Tabel86[[#This Row],[Total N2O indirekte, kg ]]","v":0}]
["Dairy cattle, jersey","Malkekvæg","1 årsko, jersey","Deep litter, slatted floor","Dybstrøelse, lang ædeplads med spalter (kanal, linespil)","Gylle",{"$f":"IFERROR(HLOOKUP(Tabel86[[#This Row],[Staldsystem]],Indtastning!$B$8:$P$10,3,FALSE),0)","v":0},46,0,0.01,0,0,7.78796578787566E-2,{"$f":"Tabel86[[#This Row],[Total N excretion (kg pr year)]]*Tabel86[[#This Row],[FracGasMS]]","v":0},0.01,{"$f":"Tabel86[[#This Row],[Total N fra fordampning]]*Tabel86[[#This Row],[Emissionsfaktor (EF4)]]","v":0},{"$f":"Tabel86[[#This Row],[Total N2O-N2 kg]]*44/28","v":0},{"$f":"Tabel86[[#This Row],[Total N2O direkte, kg]]+Tabel86[[#This Row],[Total N2O indirekte, kg ]]","v":0}]
["Dairy cattle, jersey","Malkekvæg","1 årsko, jersey","Deep litter, slatted floor","Dybstrøelse, lang ædeplads med spalter (kanal, linespil)","Dybstrøelse",{"$f":"IFERROR(HLOOKUP(Tabel86[[#This Row],[Staldsystem]],Indtastning!$B$8:$P$10,3,FALSE),0)","v":0},79.7,0,5.0000000000000001E-3,0,0,7.78796578787566E-2,{"$f":"Tabel86[[#This Row],[Total N excretion (kg pr year)]]*Tabel86[[#This Row],[FracGasMS]]","v":0},0.01,{"$f":"Tabel86[[#This Row],[Total N fra fordampning]]*Tabel86[[#This Row],[Emissionsfaktor (EF4)]]","v":0},{"$f":"Tabel86[[#This Row],[Total N2O-N2 kg]]*44/28","v":0},{"$f":"Tabel86[[#This Row],[Total N2O direkte, kg]]+Tabel86[[#This Row],[Total N2O indirekte, kg ]]","v":0}]
["Dairy cattle, jersey","Malkekvæg","1 årsko, jersey","Deep litter, slatted floor, scrape","Dybstrøelse, lang ædeplads med spalter (kanal, bagskyl eller ringkanal)","Gylle",{"$f":"IFERROR(HLOOKUP(Tabel86[[#This Row],[Staldsystem]],Indtastning!$B$8:$P$10,3,FALSE),0)","v":0},45.14,0,0.01,0,0,7.78796578787566E-2,{"$f":"Tabel86[[#This Row],[Total N excretion (kg pr year)]]*Tabel86[[#This Row],[FracGasMS]]","v":0},0.01,{"$f":"Tabel86[[#This Row],[Total N fra fordampning]]*Tabel86[[#This Row],[Emissionsfaktor (EF4)]]","v":0},{"$f":"Tabel86[[#This Row],[Total N2O-N2 kg]]*44/28","v":0},{"$f":"Tabel86[[#This Row],[Total N2O direkte, kg]]+Tabel86[[#This Row],[Total N2O indirekte, kg ]]","v":0}]
["Dairy cattle, jersey","Malkekvæg","1 årsko, jersey","Deep litter, slatted floor, scrape","Dybstrøelse, lang ædeplads med spalter (kanal, bagskyl eller ringkanal)","Dybstrøelse",{"$f":"IFERROR(HLOOKUP(Tabel86[[#This Row],[Staldsystem]],Indtastning!$B$8:$P$10,3,FALSE),0)","v":0},79.7,0,5.0000000000000001E-3,0,0,7.78796578787566E-2,{"$f":"Tabel86[[#This Row],[Total N excretion (kg pr year)]]*Tabel86[[#This Row],[FracGasMS]]","v":0},0.01,{"$f":"Tabel86[[#This Row],[Total N fra fordampning]]*Tabel86[[#This Row],[Emissionsfaktor (EF4)]]","v":0},{"$f":"Tabel86[[#This Row],[Total N2O-N2 kg]]*44/28","v":0},{"$f":"Tabel86[[#This Row],[Total N2O direkte, kg]]+Tabel86[[#This Row],[Total N2O indirekte, kg ]]","v":0}]
["Dairy cattle, jersey","Malkekvæg","1 årsko, jersey","Biogas","Biogas",null,{"$f":"IFERROR(HLOOKUP(Tabel86[[#This Row],[Staldsystem]],Indtastning!$B$8:$P$10,3,FALSE),0)","v":0},115.47,0,0,0,0,7.78796578787566E-2,{"$f":"Tabel86[[#This Row],[Total N excretion (kg pr year)]]*Tabel86[[#This Row],[FracGasMS]]","v":0},0.01,{"$f":"Tabel86[[#This Row],[Total N fra fordampning]]*Tabel86[[#This Row],[Emissionsfaktor (EF4)]]","v":0},{"$f":"Tabel86[[#This Row],[Total N2O-N2 kg]]*44/28","v":0},{"$f":"Tabel86[[#This Row],[Total N2O direkte, kg]]+Tabel86[[#This Row],[Total N2O indirekte, kg ]]","v":0}]
["Heifer calves, 0-6 mth.","Andet kvæg","Årsopdræt, 0-6 mdr., småkalv, tung race.","Deep litter (boxes)","Dybstrøelse (hele arealet)","Dybstrøelse",{"$f":"IFERROR(HLOOKUP(Tabel86[[#This Row],[Staldsystem]],Indtastning!$B$8:$P$21,4,FALSE),0)","v":0},26.68,0,0.01,{"$f":"Tabel86[[#This Row],[Total N excretion (kg pr year)]]*Tabel86[[#This Row],[Emissionsfaktor (kgN2O-N pr kg Nex) ]]","v":0},{"$f":"Tabel86[[#This Row],[Total N2O-N]]*44/28","v":0},7.5790225283022858E-2,{"$f":"Tabel86[[#This Row],[Total N excretion (kg pr year)]]*Tabel86[[#This Row],[FracGasMS]]","v":0},0.01,{"$f":"Tabel86[[#This Row],[Total N fra fordampning]]*Tabel86[[#This Row],[Emissionsfaktor (EF4)]]","v":0},{"$f":"Tabel86[[#This Row],[Total N2O-N2 kg]]*44/28","v":0},{"$f":"Tabel86[[#This Row],[Total N2O direkte, kg]]+Tabel86[[#This Row],[Total N2O indirekte, kg ]]","v":0}]
["Heifer calves, 0-6 mth.","Andet kvæg","Årsopdræt, 0-6 mdr., småkalv, tung race.","Deep litter, solid floor","Dybstrøelse + kort ædeplads med fast gulv","Dybstrøelse",{"$f":"IFERROR(HLOOKUP(Tabel86[[#This Row],[Staldsystem]],Indtastning!$B$8:$P$21,4,FALSE),0)","v":0},26.68,0,0.01,{"$f":"Tabel86[[#This Row],[Total N excretion (kg pr year)]]*Tabel86[[#This Row],[Emissionsfaktor (kgN2O-N pr kg Nex) ]]","v":0},{"$f":"Tabel86[[#This Row],[Total N2O-N]]*44/28","v":0},7.5790225283022858E-2,{"$f":"Tabel86[[#This Row],[Total N excretion (kg pr year)]]*Tabel86[[#This Row],[FracGasMS]]","v":0},0.01,{"$f":"Tabel86[[#This Row],[Total N fra fordampning]]*Tabel86[[#This Row],[Emissionsfaktor (EF4)]]","v":0},{"$f":"Tabel86[[#This Row],[Total N2O-N2 kg]]*44/28","v":0},{"$f":"Tabel86[[#This Row],[Total N2O direkte, kg]]+Tabel86[[#This Row],[Total N2O indirekte, kg ]]","v":0}]
["Heifer, 6 mth.-calving","Andet kvæg","Årsopdræt  6 mdr. til kælvning (27 mdr.), kvier og stude, tung race","Slatted floor-boxes","Spaltegulvbokse","Gylle",{"$f":"IFERROR(HLOOKUP(Tabel86[[#This Row],[Staldsystem]],Indtastning!$B$8:$P$21,6,FALSE),0)","v":0},44.02,{"$f":"G35*H35","v":0},5.0000000000000001E-3,{"$f":"Tabel86[[#This Row],[Total N excretion (kg pr year)]]*Tabel86[[#This Row],[Emissionsfaktor (kgN2O-N pr kg Nex) ]]","v":0},{"$f":"Tabel86[[#This Row],[Total N2O-N]]*44/28","v":0},7.5790225283022858E-2,{"$f":"Tabel86[[#This Row],[Total N excretion (kg pr year)]]*Tabel86[[#This Row],[FracGasMS]]","v":0},0.01,{"$f":"Tabel86[[#This Row],[Total N fra fordampning]]*Tabel86[[#This Row],[Emissionsfaktor (EF4)]]","v":0},{"$f":"Tabel86[[#This Row],[Total N2O-N2 kg]]*44/28","v":0},{"$f":"Tabel86[[#This Row],[Total N2O direkte, kg]]+Tabel86[[#This Row],[Total N2O indirekte, kg ]]","v":0}]
["Heifer, 6 mth.-calving","Andet kvæg","Årsopdræt  6 mdr. til kælvning (27 mdr.), kvier og stude, tung race","Tethered with urine and solid manure","Bindestald med grebning","Staldgødning",{"$f":"IFERROR(HLOOKUP(Tabel86[[#This Row],[Staldsystem]],Indtastning!$B$8:$P$21,6,FALSE),0)","v":0},21.1,0,5.0000000000000001E-3,{"$f":"Tabel86[[#This Row],[Total N excretion (kg pr year)]]*Tabel86[[#This Row],[Emissionsfaktor (kgN2O-N pr kg Nex) ]]","v":0},{"$f":"Tabel86[[#This Row],[Total N2O-N]]*44/28","v":0},7.5790225283022858E-2,{"$f":"Tabel86[[#This Row],[Total N excretion (kg pr year)]]*Tabel86[[#This Row],[FracGasMS]]","v":0},0.01,{"$f":"Tabel86[[#This Row],[Total N fra fordampning]]*Tabel86[[#This Row],[Emissionsfaktor (EF4)]]","v":0},{"$f":"Tabel86[[#This Row],[Total N2O-N2 kg]]*44/28","v":0},{"$f":"Tabel86[[#This Row],[Total N2O direkte, kg]]+Tabel86[[#This Row],[Total N2O indirekte, kg ]]","v":0}]
["Heifer, 6 mth.-calving","Andet kvæg","Årsopdræt  6 mdr. til kælvning (27 mdr.), kvier og stude, tung race","Tethered with urine and solid manure","Bindestald med grebning","Ajle (liquid manure/urin)",{"$f":"IFERROR(HLOOKUP(Tabel86[[#This Row],[Staldsystem]],Indtastning!$B$8:$P$21,6,FALSE),0)","v":0},23.26,0,5.0000000000000001E-3,{"$f":"Tabel86[[#This Row],[Total N excretion (kg pr year)]]*Tabel86[[#This Row],[Emissionsfaktor (kgN2O-N pr kg Nex) ]]","v":0},{"$f":"Tabel86[[#This Row],[Total N2O-N]]*44/28","v":0},7.5790225283022858E-2,{"$f":"Tabel86[[#This Row],[Total N excretion (kg pr year)]]*Tabel86[[#This Row],[FracGasMS]]","v":0},0.01,{"$f":"Tabel86[[#This Row],[Total N fra fordampning]]*Tabel86[[#This Row],[Emissionsfaktor (EF4)]]","v":0},{"$f":"Tabel86[[#This Row],[Total N2O-N2 kg]]*44/28","v":0},{"$f":"Tabel86[[#This Row],[Total N2O direkte, kg]]+Tabel86[[#This Row],[Total N2O indirekte, kg ]]","v":0}]
["Heifer, 6 mth.-calving","Andet kvæg","Årsopdræt  6 mdr. til kælvning (27 mdr.), kvier og stude, tung race","Tethered with slurry","Bindestald med riste","Gylle",{"$f":"IFERROR(HLOOKUP(Tabel86[[#This Row],[Staldsystem]],Indtastning!$B$8:$P$21,6,FALSE),0)","v":0},48.14,0,5.0000000000000001E-3,{"$f":"Tabel86[[#This Row],[Total N excretion (kg pr year)]]*Tabel86[[#This Row],[Emissionsfaktor (kgN2O-N pr kg Nex) ]]","v":0},{"$f":"Tabel86[[#This Row],[Total N2O-N]]*44/28","v":0},7.5790225283022858E-2,{"$f":"Tabel86[[#This Row],[Total N excretion (kg pr year)]]*Tabel86[[#This Row],[FracGasMS]]","v":0},0.01,{"$f":"Tabel86[[#This Row],[Total N fra fordampning]]*Tabel86[[#This Row],[Emissionsfaktor (EF4)]]","v":0},{"$f":"Tabel86[[#This Row],[Total N2O-N2 kg]]*44/28","v":0},{"$f":"Tabel86[[#This Row],[Total N2O direkte, kg]]+Tabel86[[#This Row],[Total N2O indirekte, kg ]]","v":0}]
["Heifer, 6 mth.-calving","Andet kvæg","Årsopdræt  6 mdr. til kælvning (27 mdr.), kvier og stude, tung race","Loose-holding with beds, solid floor","Sengestald med fast gulv","Gylle",{"$f":"IFERROR(HLOOKUP(Tabel86[[#This Row],[Staldsystem]],Indtastning!$B$8:$P$21,6,FALSE),0)","v":0},43.05,0,5.0000000000000001E-3,{"$f":"Tabel86[[#This Row],[Total N excretion (kg pr year)]]*Tabel86[[#This Row],[Emissionsfaktor (kgN2O-N pr kg Nex) ]]","v":0},{"$f":"Tabel86[[#This Row],[Total N2O-N]]*44/28","v":0},7.5790225283022858E-2,{"$f":"Tabel86[[#This Row],[Total N excretion (kg pr year)]]*Tabel86[[#This Row],[FracGasMS]]","v":0},0.01,{"$f":"Tabel86[[#This Row],[Total N fra fordampning]]*Tabel86[[#This Row],[Emissionsfaktor (EF4)]]","v":0},{"$f":"Tabel86[[#This Row],[Total N2O-N2 kg]]*44/28","v":0},{"$f":"Tabel86[[#This Row],[Total N2O direkte, kg]]+Tabel86[[#This Row],[Total N2O indirekte, kg ]]","v":0}]
["Heifer, 6 mth.-calving","Andet kvæg","Årsopdræt  6 mdr. til kælvning (27 mdr.), kvier og stude, tung race","Loose-holding with beds, slatted floor","Sengestald med spalter (kanal, linespil)","Gylle",{"$f":"IFERROR(HLOOKUP(Tabel86[[#This Row],[Staldsystem]],Indtastning!$B$8:$P$21,6,FALSE),0)","v":0},45.67,0,5.0000000000000001E-3,{"$f":"Tabel86[[#This Row],[Total N excretion (kg pr year)]]*Tabel86[[#This Row],[Emissionsfaktor (kgN2O-N pr kg Nex) ]]","v":0},{"$f":"Tabel86[[#This Row],[Total N2O-N]]*44/28","v":0},7.5790225283022858E-2,{"$f":"Tabel86[[#This Row],[Total N excretion (kg pr year)]]*Tabel86[[#This Row],[FracGasMS]]","v":0},0.01,{"$f":"Tabel86[[#This Row],[Total N fra fordampning]]*Tabel86[[#This Row],[Emissionsfaktor (EF4)]]","v":0},{"$f":"Tabel86[[#This Row],[Total N2O-N2 kg]]*44/28","v":0},{"$f":"Tabel86[[#This Row],[Total N2O direkte, kg]]+Tabel86[[#This Row],[Total N2O indirekte, kg ]]","v":0}]
["Heifer, 6 mth.-calving","Andet kvæg","Årsopdræt  6 mdr. til kælvning (27 mdr.), kvier og stude, tung race","Loose-holding with beds, slatted floor, scrape","Sengestald med spalter (kanal, bagskyl eller ringkanal)","Gylle",{"$f":"IFERROR(HLOOKUP(Tabel86[[#This Row],[Staldsystem]],Indtastning!$B$8:$P$21,6,FALSE),0)","v":0},44.36,0,5.0000000000000001E-3,{"$f":"Tabel86[[#This Row],[Total N excretion (kg pr year)]]*Tabel86[[#This Row],[Emissionsfaktor (kgN2O-N pr kg Nex) ]]","v":0},{"$f":"Tabel86[[#This Row],[Total N2O-N]]*44/28","v":0},7.5790225283022858E-2,{"$f":"Tabel86[[#This Row],[Total N excretion (kg pr year)]]*Tabel86[[#This Row],[FracGasMS]]","v":0},0.01,{"$f":"Tabel86[[#This Row],[Total N fra fordampning]]*Tabel86[[#This Row],[Emissionsfaktor (EF4)]]","v":0},{"$f":"Tabel86[[#This Row],[Total N2O-N2 kg]]*44/28","v":0},{"$f":"Tabel86[[#This Row],[Total N2O direkte, kg]]+Tabel86[[#This Row],[Total N2O indirekte, kg ]]","v":0}]
["Heifer, 6 mth.-calving","Andet kvæg","Årsopdræt  6 mdr. til kælvning (27 mdr.), kvier og stude, tung race","Loose-holding with beds, solid floor with tilt","Sengestald, fast drænet gulv med skraber og ajleafløb","Gylle",{"$f":"IFERROR(HLOOKUP(Tabel86[[#This Row],[Staldsystem]],Indtastning!$B$8:$P$21,6,FALSE),0)","v":0},46.98,0,5.0000000000000001E-3,{"$f":"Tabel86[[#This Row],[Total N excretion (kg pr year)]]*Tabel86[[#This Row],[Emissionsfaktor (kgN2O-N pr kg Nex) ]]","v":0},{"$f":"Tabel86[[#This Row],[Total N2O-N]]*44/28","v":0},7.5790225283022858E-2,{"$f":"Tabel86[[#This Row],[Total N excretion (kg pr year)]]*Tabel86[[#This Row],[FracGasMS]]","v":0},0.01,{"$f":"Tabel86[[#This Row],[Total N fra fordampning]]*Tabel86[[#This Row],[Emissionsfaktor (EF4)]]","v":0},{"$f":"Tabel86[[#This Row],[Total N2O-N2 kg]]*44/28","v":0},{"$f":"Tabel86[[#This Row],[Total N2O direkte, kg]]+Tabel86[[#This Row],[Total N2O indirekte, kg ]]","v":0}]
["Heifer, 6 mth.-calving","Andet kvæg","Årsopdræt  6 mdr. til kælvning (27 mdr.), kvier og stude, tung race","Deep litter (all)","Dybstrøelse (hele arealet)","Dybstrøelse",{"$f":"IFERROR(HLOOKUP(Tabel86[[#This Row],[Staldsystem]],Indtastning!$B$8:$P$21,6,FALSE),0)","v":0},52.62,0,0.01,{"$f":"Tabel86[[#This Row],[Total N excretion (kg pr year)]]*Tabel86[[#This Row],[Emissionsfaktor (kgN2O-N pr kg Nex) ]]","v":0},{"$f":"Tabel86[[#This Row],[Total N2O-N]]*44/28","v":0},7.5790225283022858E-2,{"$f":"Tabel86[[#This Row],[Total N excretion (kg pr year)]]*Tabel86[[#This Row],[FracGasMS]]","v":0},0.01,{"$f":"Tabel86[[#This Row],[Total N fra fordampning]]*Tabel86[[#This Row],[Emissionsfaktor (EF4)]]","v":0},{"$f":"Tabel86[[#This Row],[Total N2O-N2 kg]]*44/28","v":0},{"$f":"Tabel86[[#This Row],[Total N2O direkte, kg]]+Tabel86[[#This Row],[Total N2O indirekte, kg ]]","v":0}]
["Heifer, 6 mth.-calving","Andet kvæg","Årsopdræt  6 mdr. til kælvning (27 mdr.), kvier og stude, tung race","Deep litter, long eating space, solid floor","Dybstrøelse, lang ædeplads med fast gulv","Dybstrøelse",{"$f":"IFERROR(HLOOKUP(Tabel86[[#This Row],[Staldsystem]],Indtastning!$B$8:$P$21,6,FALSE),0)","v":0},33.11,0,0.01,{"$f":"Tabel86[[#This Row],[Total N excretion (kg pr year)]]*Tabel86[[#This Row],[Emissionsfaktor (kgN2O-N pr kg Nex) ]]","v":0},{"$f":"Tabel86[[#This Row],[Total N2O-N]]*44/28","v":0},7.5790225283022858E-2,{"$f":"Tabel86[[#This Row],[Total N excretion (kg pr year)]]*Tabel86[[#This Row],[FracGasMS]]","v":0},0.01,{"$f":"Tabel86[[#This Row],[Total N fra fordampning]]*Tabel86[[#This Row],[Emissionsfaktor (EF4)]]","v":0},{"$f":"Tabel86[[#This Row],[Total N2O-N2 kg]]*44/28","v":0},{"$f":"Tabel86[[#This Row],[Total N2O direkte, kg]]+Tabel86[[#This Row],[Total N2O indirekte, kg ]]","v":0}]
["Heifer, 6 mth.-calving","Andet kvæg","Årsopdræt  6 mdr. til kælvning (27 mdr.), kvier og stude, tung race","Deep litter, long eating space, solid floor","Dybstrøelse, lang ædeplads med fast gulv","Gylle",{"$f":"IFERROR(HLOOKUP(Tabel86[[#This Row],[Staldsystem]],Indtastning!$B$8:$P$21,6,FALSE),0)","v":0},17.09,0,5.0000000000000001E-3,{"$f":"Tabel86[[#This Row],[Total N excretion (kg pr year)]]*Tabel86[[#This Row],[Emissionsfaktor (kgN2O-N pr kg Nex) ]]","v":0},{"$f":"Tabel86[[#This Row],[Total N2O-N]]*44/28","v":0},7.5790225283022858E-2,{"$f":"Tabel86[[#This Row],[Total N excretion (kg pr year)]]*Tabel86[[#This Row],[FracGasMS]]","v":0},0.01,{"$f":"Tabel86[[#This Row],[Total N fra fordampning]]*Tabel86[[#This Row],[Emissionsfaktor (EF4)]]","v":0},{"$f":"Tabel86[[#This Row],[Total N2O-N2 kg]]*44/28","v":0},{"$f":"Tabel86[[#This Row],[Total N2O direkte, kg]]+Tabel86[[#This Row],[Total N2O indirekte, kg ]]","v":0}]
["Heifer, 6 mth.-calving","Andet kvæg","Årsopdræt  6 mdr. til kælvning (27 mdr.), kvier og stude, tung race","Deep litter, solid floor","Dybstrøelse + kort ædeplads med fast gulv","Dybstrøelse",{"$f":"IFERROR(HLOOKUP(Tabel86[[#This Row],[Staldsystem]],Indtastning!$B$8:$P$21,6,FALSE),0)","v":0},51.53,0,0.01,{"$f":"Tabel86[[#This Row],[Total N excretion (kg pr year)]]*Tabel86[[#This Row],[Emissionsfaktor (kgN2O-N pr kg Nex) ]]","v":0},{"$f":"Tabel86[[#This Row],[Total N2O-N]]*44/28","v":0},7.5790225283022858E-2,{"$f":"Tabel86[[#This Row],[Total N excretion (kg pr year)]]*Tabel86[[#This Row],[FracGasMS]]","v":0},0.01,{"$f":"Tabel86[[#This Row],[Total N fra fordampning]]*Tabel86[[#This Row],[Emissionsfaktor (EF4)]]","v":0},{"$f":"Tabel86[[#This Row],[Total N2O-N2 kg]]*44/28","v":0},{"$f":"Tabel86[[#This Row],[Total N2O direkte, kg]]+Tabel86[[#This Row],[Total N2O indirekte, kg ]]","v":0}]
["Heifer, 6 mth.-calving","Andet kvæg","Årsopdræt  6 mdr. til kælvning (27 mdr.), kvier og stude, tung race","Deep litter, slatted floor","Dybstrøelse, lang ædeplads med spalter (kanal, linespil)","Dybstrøelse",{"$f":"IFERROR(HLOOKUP(Tabel86[[#This Row],[Staldsystem]],Indtastning!$B$8:$P$21,6,FALSE),0)","v":0},33.11,0,0.01,{"$f":"Tabel86[[#This Row],[Total N excretion (kg pr year)]]*Tabel86[[#This Row],[Emissionsfaktor (kgN2O-N pr kg Nex) ]]","v":0},{"$f":"Tabel86[[#This Row],[Total N2O-N]]*44/28","v":0},7.5790225283022858E-2,{"$f":"Tabel86[[#This Row],[Total N excretion (kg pr year)]]*Tabel86[[#This Row],[FracGasMS]]","v":0},0.01,{"$f":"Tabel86[[#This Row],[Total N fra fordampning]]*Tabel86[[#This Row],[Emissionsfaktor (EF4)]]","v":0},{"$f":"Tabel86[[#This Row],[Total N2O-N2 kg]]*44/28","v":0},{"$f":"Tabel86[[#This Row],[Total N2O direkte, kg]]+Tabel86[[#This Row],[Total N2O indirekte, kg ]]","v":0}]
["Heifer, 6 mth.-calving","Andet kvæg","Årsopdræt  6 mdr. til kælvning (27 mdr.), kvier og stude, tung race","Deep litter, slatted floor","Dybstrøelse, lang ædeplads med spalter (kanal, linespil)","Gylle",{"$f":"IFERROR(HLOOKUP(Tabel86[[#This Row],[Staldsystem]],Indtastning!$B$8:$P$21,6,FALSE),0)","v":0},18.13,0,5.0000000000000001E-3,{"$f":"Tabel86[[#This Row],[Total N excretion (kg pr year)]]*Tabel86[[#This Row],[Emissionsfaktor (kgN2O-N pr kg Nex) ]]","v":0},{"$f":"Tabel86[[#This Row],[Total N2O-N]]*44/28","v":0},7.5790225283022858E-2,{"$f":"Tabel86[[#This Row],[Total N excretion (kg pr year)]]*Tabel86[[#This Row],[FracGasMS]]","v":0},0.01,{"$f":"Tabel86[[#This Row],[Total N fra fordampning]]*Tabel86[[#This Row],[Emissionsfaktor (EF4)]]","v":0},{"$f":"Tabel86[[#This Row],[Total N2O-N2 kg]]*44/28","v":0},{"$f":"Tabel86[[#This Row],[Total N2O direkte, kg]]+Tabel86[[#This Row],[Total N2O indirekte, kg ]]","v":0}]
["Heifer, 6 mth.-calving","Andet kvæg","Årsopdræt  6 mdr. til kælvning (27 mdr.), kvier og stude, tung race","Deep litter, slatted floor, scrape","Dybstrøelse, lang ædeplads med spalter (kanal, bagskyl eller ringkanal)","Dybstrøelse",{"$f":"IFERROR(HLOOKUP(Tabel86[[#This Row],[Staldsystem]],Indtastning!$B$8:$P$21,6,FALSE),0)","v":0},33.11,0,0.01,{"$f":"Tabel86[[#This Row],[Total N excretion (kg pr year)]]*Tabel86[[#This Row],[Emissionsfaktor (kgN2O-N pr kg Nex) ]]","v":0},{"$f":"Tabel86[[#This Row],[Total N2O-N]]*44/28","v":0},7.5790225283022858E-2,{"$f":"Tabel86[[#This Row],[Total N excretion (kg pr year)]]*Tabel86[[#This Row],[FracGasMS]]","v":0},0.01,{"$f":"Tabel86[[#This Row],[Total N fra fordampning]]*Tabel86[[#This Row],[Emissionsfaktor (EF4)]]","v":0},{"$f":"Tabel86[[#This Row],[Total N2O-N2 kg]]*44/28","v":0},{"$f":"Tabel86[[#This Row],[Total N2O direkte, kg]]+Tabel86[[#This Row],[Total N2O indirekte, kg ]]","v":0}]
["Heifer, 6 mth.-calving","Andet kvæg","Årsopdræt  6 mdr. til kælvning (27 mdr.), kvier og stude, tung race","Deep litter, slatted floor, scrape","Dybstrøelse, lang ædeplads med spalter (kanal, bagskyl eller ringkanal)","Gylle",{"$f":"IFERROR(HLOOKUP(Tabel86[[#This Row],[Staldsystem]],Indtastning!$B$8:$P$21,6,FALSE),0)","v":0},17.61,0,5.0000000000000001E-3,{"$f":"Tabel86[[#This Row],[Total N excretion (kg pr year)]]*Tabel86[[#This Row],[Emissionsfaktor (kgN2O-N pr kg Nex) ]]","v":0},{"$f":"Tabel86[[#This Row],[Total N2O-N]]*44/28","v":0},7.5790225283022858E-2,{"$f":"Tabel86[[#This Row],[Total N excretion (kg pr year)]]*Tabel86[[#This Row],[FracGasMS]]","v":0},0.01,{"$f":"Tabel86[[#This Row],[Total N fra fordampning]]*Tabel86[[#This Row],[Emissionsfaktor (EF4)]]","v":0},{"$f":"Tabel86[[#This Row],[Total N2O-N2 kg]]*44/28","v":0},{"$f":"Tabel86[[#This Row],[Total N2O direkte, kg]]+Tabel86[[#This Row],[Total N2O indirekte, kg ]]","v":0}]
["Heifer calves, 0-6 mth., jersey","Andet kvæg","Årsopdræt, 0-6 mdr., småkalv, jersey.","Deep litter (boxes)","Dybstrøelse (hele arealet)",null,{"$f":"IFERROR(HLOOKUP(Tabel86[[#This Row],[Staldsystem]],Indtastning!$B$8:$P$21,5,FALSE),0)","v":0},20.13,0,0.01,{"$f":"Tabel86[[#This Row],[Total N excretion (kg pr year)]]*Tabel86[[#This Row],[Emissionsfaktor (kgN2O-N pr kg Nex) ]]","v":0},{"$f":"Tabel86[[#This Row],[Total N2O-N]]*44/28","v":0},7.5790225283022858E-2,{"$f":"Tabel86[[#This Row],[Total N excretion (kg pr year)]]*Tabel86[[#This Row],[FracGasMS]]","v":0},0.01,{"$f":"Tabel86[[#This Row],[Total N fra fordampning]]*Tabel86[[#This Row],[Emissionsfaktor (EF4)]]","v":0},{"$f":"Tabel86[[#This Row],[Total N2O-N2 kg]]*44/28","v":0},{"$f":"Tabel86[[#This Row],[Total N2O direkte, kg]]+Tabel86[[#This Row],[Total N2O indirekte, kg ]]","v":0}]
["Heifer calves, 0-6 mth., jersey","Andet kvæg","Årsopdræt, 0-6 mdr., småkalv, jersey.","Deep litter, solid floor","Dybstrøelse + kort ædeplads med fast gulv",null,{"$f":"IFERROR(HLOOKUP(Tabel86[[#This Row],[Staldsystem]],Indtastning!$B$8:$P$21,5,FALSE),0)","v":0},20.13,0,0.01,{"$f":"Tabel86[[#This Row],[Total N excretion (kg pr year)]]*Tabel86[[#This Row],[Emissionsfaktor (kgN2O-N pr kg Nex) ]]","v":0},{"$f":"Tabel86[[#This Row],[Total N2O-N]]*44/28","v":0},7.5790225283022858E-2,{"$f":"Tabel86[[#This Row],[Total N excretion (kg pr year)]]*Tabel86[[#This Row],[FracGasMS]]","v":0},0.01,{"$f":"Tabel86[[#This Row],[Total N fra fordampning]]*Tabel86[[#This Row],[Emissionsfaktor (EF4)]]","v":0},{"$f":"Tabel86[[#This Row],[Total N2O-N2 kg]]*44/28","v":0},{"$f":"Tabel86[[#This Row],[Total N2O direkte, kg]]+Tabel86[[#This Row],[Total N2O indirekte, kg ]]","v":0}]
["Heifer, 6 mth.-calving, jersey","Andet kvæg","Årsopdræt  6 mdr. til kælvning (27 mdr.), kvier og stude, jersey","Deep litter, long eating space, solid floor","Spaltegulvbokse","Gylle",{"$f":"IFERROR(HLOOKUP(Tabel86[[#This Row],[Staldsystem]],Indtastning!$B$8:$P$21,7,FALSE),0)","v":0},33.06,0,5.0000000000000001E-3,{"$f":"Tabel86[[#This Row],[Total N excretion (kg pr year)]]*Tabel86[[#This Row],[Emissionsfaktor (kgN2O-N pr kg Nex) ]]","v":0},{"$f":"Tabel86[[#This Row],[Total N2O-N]]*44/28","v":0},7.5790225283022858E-2,{"$f":"Tabel86[[#This Row],[Total N excretion (kg pr year)]]*Tabel86[[#This Row],[FracGasMS]]","v":0},0.01,{"$f":"Tabel86[[#This Row],[Total N fra fordampning]]*Tabel86[[#This Row],[Emissionsfaktor (EF4)]]","v":0},{"$f":"Tabel86[[#This Row],[Total N2O-N2 kg]]*44/28","v":0},{"$f":"Tabel86[[#This Row],[Total N2O direkte, kg]]+Tabel86[[#This Row],[Total N2O indirekte, kg ]]","v":0}]
["Heifer, 6 mth.-calving, jersey","Andet kvæg","Årsopdræt  6 mdr. til kælvning (27 mdr.), kvier og stude, jersey","Deep litter, long eating space, solid floor","Bindestald med grebning","Staldgødning",{"$f":"IFERROR(HLOOKUP(Tabel86[[#This Row],[Staldsystem]],Indtastning!$B$8:$P$21,7,FALSE),0)","v":0},16.260000000000002,0,5.0000000000000001E-3,{"$f":"Tabel86[[#This Row],[Total N excretion (kg pr year)]]*Tabel86[[#This Row],[Emissionsfaktor (kgN2O-N pr kg Nex) ]]","v":0},{"$f":"Tabel86[[#This Row],[Total N2O-N]]*44/28","v":0},7.5790225283022858E-2,{"$f":"Tabel86[[#This Row],[Total N excretion (kg pr year)]]*Tabel86[[#This Row],[FracGasMS]]","v":0},0.01,{"$f":"Tabel86[[#This Row],[Total N fra fordampning]]*Tabel86[[#This Row],[Emissionsfaktor (EF4)]]","v":0},{"$f":"Tabel86[[#This Row],[Total N2O-N2 kg]]*44/28","v":0},{"$f":"Tabel86[[#This Row],[Total N2O direkte, kg]]+Tabel86[[#This Row],[Total N2O indirekte, kg ]]","v":0}]
["Heifer, 6 mth.-calving, jersey","Andet kvæg","Årsopdræt  6 mdr. til kælvning (27 mdr.), kvier og stude, jersey","Deep litter, long eating space, solid floor","Bindestald med grebning","Ajle (liquid manure/urin)",{"$f":"IFERROR(HLOOKUP(Tabel86[[#This Row],[Staldsystem]],Indtastning!$B$8:$P$21,7,FALSE),0)","v":0},17.079999999999998,0,5.0000000000000001E-3,{"$f":"Tabel86[[#This Row],[Total N excretion (kg pr year)]]*Tabel86[[#This Row],[Emissionsfaktor (kgN2O-N pr kg Nex) ]]","v":0},{"$f":"Tabel86[[#This Row],[Total N2O-N]]*44/28","v":0},7.5790225283022858E-2,{"$f":"Tabel86[[#This Row],[Total N excretion (kg pr year)]]*Tabel86[[#This Row],[FracGasMS]]","v":0},0.01,{"$f":"Tabel86[[#This Row],[Total N fra fordampning]]*Tabel86[[#This Row],[Emissionsfaktor (EF4)]]","v":0},{"$f":"Tabel86[[#This Row],[Total N2O-N2 kg]]*44/28","v":0},{"$f":"Tabel86[[#This Row],[Total N2O direkte, kg]]+Tabel86[[#This Row],[Total N2O indirekte, kg ]]","v":0}]
["Heifer, 6 mth.-calving, jersey","Andet kvæg","Årsopdræt  6 mdr. til kælvning (27 mdr.), kvier og stude, jersey","Deep litter, long eating space, solid floor","Bindestald med riste","Gylle",{"$f":"IFERROR(HLOOKUP(Tabel86[[#This Row],[Staldsystem]],Indtastning!$B$8:$P$21,7,FALSE),0)","v":0},36.200000000000003,0,5.0000000000000001E-3,{"$f":"Tabel86[[#This Row],[Total N excretion (kg pr year)]]*Tabel86[[#This Row],[Emissionsfaktor (kgN2O-N pr kg Nex) ]]","v":0},{"$f":"Tabel86[[#This Row],[Total N2O-N]]*44/28","v":0},7.5790225283022858E-2,{"$f":"Tabel86[[#This Row],[Total N excretion (kg pr year)]]*Tabel86[[#This Row],[FracGasMS]]","v":0},0.01,{"$f":"Tabel86[[#This Row],[Total N fra fordampning]]*Tabel86[[#This Row],[Emissionsfaktor (EF4)]]","v":0},{"$f":"Tabel86[[#This Row],[Total N2O-N2 kg]]*44/28","v":0},{"$f":"Tabel86[[#This Row],[Total N2O direkte, kg]]+Tabel86[[#This Row],[Total N2O indirekte, kg ]]","v":0}]
["Heifer, 6 mth.-calving, jersey","Andet kvæg","Årsopdræt  6 mdr. til kælvning (27 mdr.), kvier og stude, jersey","Deep litter, long eating space, solid floor","Sengestald med fast gulv","Gylle",{"$f":"IFERROR(HLOOKUP(Tabel86[[#This Row],[Staldsystem]],Indtastning!$B$8:$P$21,7,FALSE),0)","v":0},32.31,0,5.0000000000000001E-3,{"$f":"Tabel86[[#This Row],[Total N excretion (kg pr year)]]*Tabel86[[#This Row],[Emissionsfaktor (kgN2O-N pr kg Nex) ]]","v":0},{"$f":"Tabel86[[#This Row],[Total N2O-N]]*44/28","v":0},7.5790225283022858E-2,{"$f":"Tabel86[[#This Row],[Total N excretion (kg pr year)]]*Tabel86[[#This Row],[FracGasMS]]","v":0},0.01,{"$f":"Tabel86[[#This Row],[Total N fra fordampning]]*Tabel86[[#This Row],[Emissionsfaktor (EF4)]]","v":0},{"$f":"Tabel86[[#This Row],[Total N2O-N2 kg]]*44/28","v":0},{"$f":"Tabel86[[#This Row],[Total N2O direkte, kg]]+Tabel86[[#This Row],[Total N2O indirekte, kg ]]","v":0}]
["Heifer, 6 mth.-calving, jersey","Andet kvæg","Årsopdræt  6 mdr. til kælvning (27 mdr.), kvier og stude, jersey","Deep litter, long eating space, solid floor","Sengestald med spalter (kanal, linespil)","Gylle",{"$f":"IFERROR(HLOOKUP(Tabel86[[#This Row],[Staldsystem]],Indtastning!$B$8:$P$21,7,FALSE),0)","v":0},34.270000000000003,0,5.0000000000000001E-3,{"$f":"Tabel86[[#This Row],[Total N excretion (kg pr year)]]*Tabel86[[#This Row],[Emissionsfaktor (kgN2O-N pr kg Nex) ]]","v":0},{"$f":"Tabel86[[#This Row],[Total N2O-N]]*44/28","v":0},7.5790225283022858E-2,{"$f":"Tabel86[[#This Row],[Total N excretion (kg pr year)]]*Tabel86[[#This Row],[FracGasMS]]","v":0},0.01,{"$f":"Tabel86[[#This Row],[Total N fra fordampning]]*Tabel86[[#This Row],[Emissionsfaktor (EF4)]]","v":0},{"$f":"Tabel86[[#This Row],[Total N2O-N2 kg]]*44/28","v":0},{"$f":"Tabel86[[#This Row],[Total N2O direkte, kg]]+Tabel86[[#This Row],[Total N2O indirekte, kg ]]","v":0}]
["Heifer, 6 mth.-calving, jersey","Andet kvæg","Årsopdræt  6 mdr. til kælvning (27 mdr.), kvier og stude, jersey","Deep litter, long eating space, solid floor","Sengestald med spalter (kanal, bagskyl eller ringkanal)","Gylle",{"$f":"IFERROR(HLOOKUP(Tabel86[[#This Row],[Staldsystem]],Indtastning!$B$8:$P$21,7,FALSE),0)","v":0},33.29,0,5.0000000000000001E-3,{"$f":"Tabel86[[#This Row],[Total N excretion (kg pr year)]]*Tabel86[[#This Row],[Emissionsfaktor (kgN2O-N pr kg Nex) ]]","v":0},{"$f":"Tabel86[[#This Row],[Total N2O-N]]*44/28","v":0},7.5790225283022858E-2,{"$f":"Tabel86[[#This Row],[Total N excretion (kg pr year)]]*Tabel86[[#This Row],[FracGasMS]]","v":0},0.01,{"$f":"Tabel86[[#This Row],[Total N fra fordampning]]*Tabel86[[#This Row],[Emissionsfaktor (EF4)]]","v":0},{"$f":"Tabel86[[#This Row],[Total N2O-N2 kg]]*44/28","v":0},{"$f":"Tabel86[[#This Row],[Total N2O direkte, kg]]+Tabel86[[#This Row],[Total N2O indirekte, kg ]]","v":0}]
["Heifer, 6 mth.-calving, jersey","Andet kvæg","Årsopdræt  6 mdr. til kælvning (27 mdr.), kvier og stude, jersey","Deep litter, long eating space, solid floor","Sengestald, fast drænet gulv med skraber og ajleafløb","Gylle",{"$f":"IFERROR(HLOOKUP(Tabel86[[#This Row],[Staldsystem]],Indtastning!$B$8:$P$21,7,FALSE),0)","v":0},35.26,0,5.0000000000000001E-3,{"$f":"Tabel86[[#This Row],[Total N excretion (kg pr year)]]*Tabel86[[#This Row],[Emissionsfaktor (kgN2O-N pr kg Nex) ]]","v":0},{"$f":"Tabel86[[#This Row],[Total N2O-N]]*44/28","v":0},7.5790225283022858E-2,{"$f":"Tabel86[[#This Row],[Total N excretion (kg pr year)]]*Tabel86[[#This Row],[FracGasMS]]","v":0},0.01,{"$f":"Tabel86[[#This Row],[Total N fra fordampning]]*Tabel86[[#This Row],[Emissionsfaktor (EF4)]]","v":0},{"$f":"Tabel86[[#This Row],[Total N2O-N2 kg]]*44/28","v":0},{"$f":"Tabel86[[#This Row],[Total N2O direkte, kg]]+Tabel86[[#This Row],[Total N2O indirekte, kg ]]","v":0}]
["Heifer, 6 mth.-calving, jersey","Andet kvæg","Årsopdræt  6 mdr. til kælvning (27 mdr.), kvier og stude, jersey","Deep litter, long eating space, solid floor","Dybstrøelse (hele arealet)","Dybstrøelse",{"$f":"IFERROR(HLOOKUP(Tabel86[[#This Row],[Staldsystem]],Indtastning!$B$8:$P$21,7,FALSE),0)","v":0},40.07,0,0.01,{"$f":"Tabel86[[#This Row],[Total N excretion (kg pr year)]]*Tabel86[[#This Row],[Emissionsfaktor (kgN2O-N pr kg Nex) ]]","v":0},{"$f":"Tabel86[[#This Row],[Total N2O-N]]*44/28","v":0},7.5790225283022858E-2,{"$f":"Tabel86[[#This Row],[Total N excretion (kg pr year)]]*Tabel86[[#This Row],[FracGasMS]]","v":0},0.01,{"$f":"Tabel86[[#This Row],[Total N fra fordampning]]*Tabel86[[#This Row],[Emissionsfaktor (EF4)]]","v":0},{"$f":"Tabel86[[#This Row],[Total N2O-N2 kg]]*44/28","v":0},{"$f":"Tabel86[[#This Row],[Total N2O direkte, kg]]+Tabel86[[#This Row],[Total N2O indirekte, kg ]]","v":0}]
["Heifer, 6 mth.-calving, jersey",null,"Årsopdræt  6 mdr. til kælvning (27 mdr.), kvier og stude, jersey",null,"Dybstrøelse, lang ædeplads med fast gulv","Dybstrøelse",{"$f":"IFERROR(HLOOKUP(Tabel86[[#This Row],[Staldsystem]],Indtastning!$B$8:$P$21,7,FALSE),0)","v":0},25.14,0,0.01,{"$f":"Tabel86[[#This Row],[Total N excretion (kg pr year)]]*Tabel86[[#This Row],[Emissionsfaktor (kgN2O-N pr kg Nex) ]]","v":0},{"$f":"Tabel86[[#This Row],[Total N2O-N]]*44/28","v":0},7.5790225283022858E-2,{"$f":"Tabel86[[#This Row],[Total N excretion (kg pr year)]]*Tabel86[[#This Row],[FracGasMS]]","v":0},0.01,{"$f":"Tabel86[[#This Row],[Total N fra fordampning]]*Tabel86[[#This Row],[Emissionsfaktor (EF4)]]","v":0},{"$f":"Tabel86[[#This Row],[Total N2O-N2 kg]]*44/28","v":0},{"$f":"Tabel86[[#This Row],[Total N2O direkte, kg]]+Tabel86[[#This Row],[Total N2O indirekte, kg ]]","v":0}]
["Heifer, 6 mth.-calving, jersey","Andet kvæg","Årsopdræt  6 mdr. til kælvning (27 mdr.), kvier og stude, jersey","Deep litter, long eating space, solid floor","Dybstrøelse, lang ædeplads med fast gulv","Gylle",{"$f":"IFERROR(HLOOKUP(Tabel86[[#This Row],[Staldsystem]],Indtastning!$B$8:$P$21,7,FALSE),0)","v":0},12.83,0,5.0000000000000001E-3,{"$f":"Tabel86[[#This Row],[Total N excretion (kg pr year)]]*Tabel86[[#This Row],[Emissionsfaktor (kgN2O-N pr kg Nex) ]]","v":0},{"$f":"Tabel86[[#This Row],[Total N2O-N]]*44/28","v":0},7.5790225283022858E-2,{"$f":"Tabel86[[#This Row],[Total N excretion (kg pr year)]]*Tabel86[[#This Row],[FracGasMS]]","v":0},0.01,{"$f":"Tabel86[[#This Row],[Total N fra fordampning]]*Tabel86[[#This Row],[Emissionsfaktor (EF4)]]","v":0},{"$f":"Tabel86[[#This Row],[Total N2O-N2 kg]]*44/28","v":0},{"$f":"Tabel86[[#This Row],[Total N2O direkte, kg]]+Tabel86[[#This Row],[Total N2O indirekte, kg ]]","v":0}]
["Heifer, 6 mth.-calving, jersey","Andet kvæg","Årsopdræt  6 mdr. til kælvning (27 mdr.), kvier og stude, jersey","Deep litter, long eating space, solid floor","Dybstrøelse + kort ædeplads med fast gulv","Dybstrøelse",{"$f":"IFERROR(HLOOKUP(Tabel86[[#This Row],[Staldsystem]],Indtastning!$B$8:$P$21,7,FALSE),0)","v":0},38.97,0,0.01,{"$f":"Tabel86[[#This Row],[Total N excretion (kg pr year)]]*Tabel86[[#This Row],[Emissionsfaktor (kgN2O-N pr kg Nex) ]]","v":0},{"$f":"Tabel86[[#This Row],[Total N2O-N]]*44/28","v":0},7.5790225283022858E-2,{"$f":"Tabel86[[#This Row],[Total N excretion (kg pr year)]]*Tabel86[[#This Row],[FracGasMS]]","v":0},0.01,{"$f":"Tabel86[[#This Row],[Total N fra fordampning]]*Tabel86[[#This Row],[Emissionsfaktor (EF4)]]","v":0},{"$f":"Tabel86[[#This Row],[Total N2O-N2 kg]]*44/28","v":0},{"$f":"Tabel86[[#This Row],[Total N2O direkte, kg]]+Tabel86[[#This Row],[Total N2O indirekte, kg ]]","v":0}]
["Heifer, 6 mth.-calving, jersey","Andet kvæg","Årsopdræt  6 mdr. til kælvning (27 mdr.), kvier og stude, jersey","Deep litter, long eating space, solid floor","Dybstrøelse, lang ædeplads med spalter (kanal, linespil)","Dybstrøelse",{"$f":"IFERROR(HLOOKUP(Tabel86[[#This Row],[Staldsystem]],Indtastning!$B$8:$P$21,7,FALSE),0)","v":0},25.14,0,0.01,{"$f":"Tabel86[[#This Row],[Total N excretion (kg pr year)]]*Tabel86[[#This Row],[Emissionsfaktor (kgN2O-N pr kg Nex) ]]","v":0},{"$f":"Tabel86[[#This Row],[Total N2O-N]]*44/28","v":0},7.5790225283022858E-2,{"$f":"Tabel86[[#This Row],[Total N excretion (kg pr year)]]*Tabel86[[#This Row],[FracGasMS]]","v":0},0.01,{"$f":"Tabel86[[#This Row],[Total N fra fordampning]]*Tabel86[[#This Row],[Emissionsfaktor (EF4)]]","v":0},{"$f":"Tabel86[[#This Row],[Total N2O-N2 kg]]*44/28","v":0},{"$f":"Tabel86[[#This Row],[Total N2O direkte, kg]]+Tabel86[[#This Row],[Total N2O indirekte, kg ]]","v":0}]
["Heifer, 6 mth.-calving, jersey","Andet kvæg","Årsopdræt  6 mdr. til kælvning (27 mdr.), kvier og stude, jersey","Deep litter, long eating space, solid floor","Dybstrøelse, lang ædeplads med spalter (kanal, linespil)","Gylle",{"$f":"IFERROR(HLOOKUP(Tabel86[[#This Row],[Staldsystem]],Indtastning!$B$8:$P$21,7,FALSE),0)","v":0},13.62,0,5.0000000000000001E-3,{"$f":"Tabel86[[#This Row],[Total N excretion (kg pr year)]]*Tabel86[[#This Row],[Emissionsfaktor (kgN2O-N pr kg Nex) ]]","v":0},{"$f":"Tabel86[[#This Row],[Total N2O-N]]*44/28","v":0},7.5790225283022858E-2,{"$f":"Tabel86[[#This Row],[Total N excretion (kg pr year)]]*Tabel86[[#This Row],[FracGasMS]]","v":0},0.01,{"$f":"Tabel86[[#This Row],[Total N fra fordampning]]*Tabel86[[#This Row],[Emissionsfaktor (EF4)]]","v":0},{"$f":"Tabel86[[#This Row],[Total N2O-N2 kg]]*44/28","v":0},{"$f":"Tabel86[[#This Row],[Total N2O direkte, kg]]+Tabel86[[#This Row],[Total N2O indirekte, kg ]]","v":0}]
["Heifer, 6 mth.-calving, jersey","Andet kvæg","Årsopdræt  6 mdr. til kælvning (27 mdr.), kvier og stude, jersey","Deep litter, long eating space, solid floor","Dybstrøelse, lang ædeplads med spalter (kanal, bagskyl eller ringkanal)","Dybstrøelse",{"$f":"IFERROR(HLOOKUP(Tabel86[[#This Row],[Staldsystem]],Indtastning!$B$8:$P$21,7,FALSE),0)","v":0},25.14,{"$f":"G67*H67","v":0},0.01,{"$f":"Tabel86[[#This Row],[Total N excretion (kg pr year)]]*Tabel86[[#This Row],[Emissionsfaktor (kgN2O-N pr kg Nex) ]]","v":0},{"$f":"Tabel86[[#This Row],[Total N2O-N]]*44/28","v":0},7.5790225283022858E-2,{"$f":"Tabel86[[#This Row],[Total N excretion (kg pr year)]]*Tabel86[[#This Row],[FracGasMS]]","v":0},0.01,{"$f":"Tabel86[[#This Row],[Total N fra fordampning]]*Tabel86[[#This Row],[Emissionsfaktor (EF4)]]","v":0},{"$f":"Tabel86[[#This Row],[Total N2O-N2 kg]]*44/28","v":0},{"$f":"Tabel86[[#This Row],[Total N2O direkte, kg]]+Tabel86[[#This Row],[Total N2O indirekte, kg ]]","v":0}]
["Heifer, 6 mth.-calving, jersey","Andet kvæg","Årsopdræt  6 mdr. til kælvning (27 mdr.), kvier og stude, jersey","Deep litter, long eating space, solid floor","Dybstrøelse, lang ædeplads med spalter (kanal, bagskyl eller ringkanal)","Gylle",{"$f":"IFERROR(HLOOKUP(Tabel86[[#This Row],[Staldsystem]],Indtastning!$B$8:$P$21,7,FALSE),0)","v":0},13.23,0,5.0000000000000001E-3,{"$f":"Tabel86[[#This Row],[Total N excretion (kg pr year)]]*Tabel86[[#This Row],[Emissionsfaktor (kgN2O-N pr kg Nex) ]]","v":0},{"$f":"Tabel86[[#This Row],[Total N2O-N]]*44/28","v":0},7.5790225283022858E-2,{"$f":"Tabel86[[#This Row],[Total N excretion (kg pr year)]]*Tabel86[[#This Row],[FracGasMS]]","v":0},0.01,{"$f":"Tabel86[[#This Row],[Total N fra fordampning]]*Tabel86[[#This Row],[Emissionsfaktor (EF4)]]","v":0},{"$f":"Tabel86[[#This Row],[Total N2O-N2 kg]]*44/28","v":0},{"$f":"Tabel86[[#This Row],[Total N2O direkte, kg]]+Tabel86[[#This Row],[Total N2O indirekte, kg ]]","v":0}]
["Bull calves, 0-6 mth.","Andet kvæg","1 produceret tyrekalv, 0-6 mdr., tung race","Deep litter (boxes)","Dybstrøelse (hele arealet)","Dybstrøelse",{"$f":"IFERROR(HLOOKUP(Tabel86[[#This Row],[Staldsystem]],Indtastning!$B$8:$P$21,8,FALSE),0)","v":0},11.74,0,0.01,{"$f":"Tabel86[[#This Row],[Total N excretion (kg pr year)]]*Tabel86[[#This Row],[Emissionsfaktor (kgN2O-N pr kg Nex) ]]","v":0},{"$f":"Tabel86[[#This Row],[Total N2O-N]]*44/28","v":0},7.5790225283022858E-2,{"$f":"Tabel86[[#This Row],[Total N excretion (kg pr year)]]*Tabel86[[#This Row],[FracGasMS]]","v":0},0.01,{"$f":"Tabel86[[#This Row],[Total N fra fordampning]]*Tabel86[[#This Row],[Emissionsfaktor (EF4)]]","v":0},{"$f":"Tabel86[[#This Row],[Total N2O-N2 kg]]*44/28","v":0},{"$f":"Tabel86[[#This Row],[Total N2O direkte, kg]]+Tabel86[[#This Row],[Total N2O indirekte, kg ]]","v":0}]
["Bull calves, 0-6 mth.","Andet kvæg","1 produceret tyrekalv, 0-6 mdr., tung race","Deep litter, solid floor","Dybstrøelse + kort ædeplads med fast gulv","Dybstrøelse",{"$f":"IFERROR(HLOOKUP(Tabel86[[#This Row],[Staldsystem]],Indtastning!$B$8:$P$21,8,FALSE),0)","v":0},11.74,0,0.01,{"$f":"Tabel86[[#This Row],[Total N excretion (kg pr year)]]*Tabel86[[#This Row],[Emissionsfaktor (kgN2O-N pr kg Nex) ]]","v":0},{"$f":"Tabel86[[#This Row],[Total N2O-N]]*44/28","v":0},7.5790225283022858E-2,{"$f":"Tabel86[[#This Row],[Total N excretion (kg pr year)]]*Tabel86[[#This Row],[FracGasMS]]","v":0},0.01,{"$f":"Tabel86[[#This Row],[Total N fra fordampning]]*Tabel86[[#This Row],[Emissionsfaktor (EF4)]]","v":0},{"$f":"Tabel86[[#This Row],[Total N2O-N2 kg]]*44/28","v":0},{"$f":"Tabel86[[#This Row],[Total N2O direkte, kg]]+Tabel86[[#This Row],[Total N2O indirekte, kg ]]","v":0}]
["Bulls, 6 mth - 440 kg","Andet kvæg","Ungtyre, 6 mdr. til slagtning (440 kg), tung race, (1 produceret ungtyr)","Slatted floor-boxes","Spaltegulvbokse","Gylle",{"$f":"IFERROR(HLOOKUP(Tabel86[[#This Row],[Staldsystem]],Indtastning!$B$8:$P$21,10,FALSE),0)","v":0},21.27,0,5.0000000000000001E-3,{"$f":"Tabel86[[#This Row],[Total N excretion (kg pr year)]]*Tabel86[[#This Row],[Emissionsfaktor (kgN2O-N pr kg Nex) ]]","v":0},{"$f":"Tabel86[[#This Row],[Total N2O-N]]*44/28","v":0},7.5790225283022858E-2,{"$f":"Tabel86[[#This Row],[Total N excretion (kg pr year)]]*Tabel86[[#This Row],[FracGasMS]]","v":0},0.01,{"$f":"Tabel86[[#This Row],[Total N fra fordampning]]*Tabel86[[#This Row],[Emissionsfaktor (EF4)]]","v":0},{"$f":"Tabel86[[#This Row],[Total N2O-N2 kg]]*44/28","v":0},{"$f":"Tabel86[[#This Row],[Total N2O direkte, kg]]+Tabel86[[#This Row],[Total N2O indirekte, kg ]]","v":0}]
["Bulls, 6 mth - 440 kg","Andet kvæg","Ungtyre, 6 mdr. til slagtning (440 kg), tung race, (1 produceret ungtyr)","Tethered with urine and solid manure","Bindestald med grebning","Staldgødning",{"$f":"IFERROR(HLOOKUP(Tabel86[[#This Row],[Staldsystem]],Indtastning!$B$8:$P$21,10,FALSE),0)","v":0},12.38,0,5.0000000000000001E-3,{"$f":"Tabel86[[#This Row],[Total N excretion (kg pr year)]]*Tabel86[[#This Row],[Emissionsfaktor (kgN2O-N pr kg Nex) ]]","v":0},{"$f":"Tabel86[[#This Row],[Total N2O-N]]*44/28","v":0},7.5790225283022858E-2,{"$f":"Tabel86[[#This Row],[Total N excretion (kg pr year)]]*Tabel86[[#This Row],[FracGasMS]]","v":0},0.01,{"$f":"Tabel86[[#This Row],[Total N fra fordampning]]*Tabel86[[#This Row],[Emissionsfaktor (EF4)]]","v":0},{"$f":"Tabel86[[#This Row],[Total N2O-N2 kg]]*44/28","v":0},{"$f":"Tabel86[[#This Row],[Total N2O direkte, kg]]+Tabel86[[#This Row],[Total N2O indirekte, kg ]]","v":0}]
["Bulls, 6 mth - 440 kg","Andet kvæg","Ungtyre, 6 mdr. til slagtning (440 kg), tung race, (1 produceret ungtyr)","Tethered with urine and solid manure","Bindestald med grebning","Ajle (liquid manure/urin)",{"$f":"IFERROR(HLOOKUP(Tabel86[[#This Row],[Staldsystem]],Indtastning!$B$8:$P$21,10,FALSE),0)","v":0},9.14,0,5.0000000000000001E-3,{"$f":"Tabel86[[#This Row],[Total N excretion (kg pr year)]]*Tabel86[[#This Row],[Emissionsfaktor (kgN2O-N pr kg Nex) ]]","v":0},{"$f":"Tabel86[[#This Row],[Total N2O-N]]*44/28","v":0},7.5790225283022858E-2,{"$f":"Tabel86[[#This Row],[Total N excretion (kg pr year)]]*Tabel86[[#This Row],[FracGasMS]]","v":0},0.01,{"$f":"Tabel86[[#This Row],[Total N fra fordampning]]*Tabel86[[#This Row],[Emissionsfaktor (EF4)]]","v":0},{"$f":"Tabel86[[#This Row],[Total N2O-N2 kg]]*44/28","v":0},{"$f":"Tabel86[[#This Row],[Total N2O direkte, kg]]+Tabel86[[#This Row],[Total N2O indirekte, kg ]]","v":0}]
["Bulls, 6 mth - 440 kg","Andet kvæg","Ungtyre, 6 mdr. til slagtning (440 kg), tung race, (1 produceret ungtyr)","Tethered with slurry","Bindestald med riste","Gylle",{"$f":"IFERROR(HLOOKUP(Tabel86[[#This Row],[Staldsystem]],Indtastning!$B$8:$P$21,10,FALSE),0)","v":0},23.46,0,5.0000000000000001E-3,{"$f":"Tabel86[[#This Row],[Total N excretion (kg pr year)]]*Tabel86[[#This Row],[Emissionsfaktor (kgN2O-N pr kg Nex) ]]","v":0},{"$f":"Tabel86[[#This Row],[Total N2O-N]]*44/28","v":0},7.5790225283022858E-2,{"$f":"Tabel86[[#This Row],[Total N excretion (kg pr year)]]*Tabel86[[#This Row],[FracGasMS]]","v":0},0.01,{"$f":"Tabel86[[#This Row],[Total N fra fordampning]]*Tabel86[[#This Row],[Emissionsfaktor (EF4)]]","v":0},{"$f":"Tabel86[[#This Row],[Total N2O-N2 kg]]*44/28","v":0},{"$f":"Tabel86[[#This Row],[Total N2O direkte, kg]]+Tabel86[[#This Row],[Total N2O indirekte, kg ]]","v":0}]
["Bulls, 6 mth - 440 kg","Andet kvæg","Ungtyre, 6 mdr. til slagtning (440 kg), tung race, (1 produceret ungtyr)","Loose-holding with beds, solid floor","Sengestald med fast gulv","Gylle",{"$f":"IFERROR(HLOOKUP(Tabel86[[#This Row],[Staldsystem]],Indtastning!$B$8:$P$21,10,FALSE),0)","v":0},20.9,0,5.0000000000000001E-3,{"$f":"Tabel86[[#This Row],[Total N excretion (kg pr year)]]*Tabel86[[#This Row],[Emissionsfaktor (kgN2O-N pr kg Nex) ]]","v":0},{"$f":"Tabel86[[#This Row],[Total N2O-N]]*44/28","v":0},7.5790225283022858E-2,{"$f":"Tabel86[[#This Row],[Total N excretion (kg pr year)]]*Tabel86[[#This Row],[FracGasMS]]","v":0},0.01,{"$f":"Tabel86[[#This Row],[Total N fra fordampning]]*Tabel86[[#This Row],[Emissionsfaktor (EF4)]]","v":0},{"$f":"Tabel86[[#This Row],[Total N2O-N2 kg]]*44/28","v":0},{"$f":"Tabel86[[#This Row],[Total N2O direkte, kg]]+Tabel86[[#This Row],[Total N2O indirekte, kg ]]","v":0}]
["Bulls, 6 mth - 440 kg","Andet kvæg","Ungtyre, 6 mdr. til slagtning (440 kg), tung race, (1 produceret ungtyr)","Loose-holding with beds, slatted floor","Sengestald med spalter (kanal, linespil)","Gylle",{"$f":"IFERROR(HLOOKUP(Tabel86[[#This Row],[Staldsystem]],Indtastning!$B$8:$P$21,10,FALSE),0)","v":0},22.14,0,5.0000000000000001E-3,{"$f":"Tabel86[[#This Row],[Total N excretion (kg pr year)]]*Tabel86[[#This Row],[Emissionsfaktor (kgN2O-N pr kg Nex) ]]","v":0},{"$f":"Tabel86[[#This Row],[Total N2O-N]]*44/28","v":0},7.5790225283022858E-2,{"$f":"Tabel86[[#This Row],[Total N excretion (kg pr year)]]*Tabel86[[#This Row],[FracGasMS]]","v":0},0.01,{"$f":"Tabel86[[#This Row],[Total N fra fordampning]]*Tabel86[[#This Row],[Emissionsfaktor (EF4)]]","v":0},{"$f":"Tabel86[[#This Row],[Total N2O-N2 kg]]*44/28","v":0},{"$f":"Tabel86[[#This Row],[Total N2O direkte, kg]]+Tabel86[[#This Row],[Total N2O indirekte, kg ]]","v":0}]
["Bulls, 6 mth - 440 kg","Andet kvæg","Ungtyre, 6 mdr. til slagtning (440 kg), tung race, (1 produceret ungtyr)","Loose-holding with beds, slatted floor, scrape","Sengestald med spalter (kanal, bagskyl eller ringkanal)","Gylle",{"$f":"IFERROR(HLOOKUP(Tabel86[[#This Row],[Staldsystem]],Indtastning!$B$8:$P$21,10,FALSE),0)","v":0},21.52,0,5.0000000000000001E-3,{"$f":"Tabel86[[#This Row],[Total N excretion (kg pr year)]]*Tabel86[[#This Row],[Emissionsfaktor (kgN2O-N pr kg Nex) ]]","v":0},{"$f":"Tabel86[[#This Row],[Total N2O-N]]*44/28","v":0},7.5790225283022858E-2,{"$f":"Tabel86[[#This Row],[Total N excretion (kg pr year)]]*Tabel86[[#This Row],[FracGasMS]]","v":0},0.01,{"$f":"Tabel86[[#This Row],[Total N fra fordampning]]*Tabel86[[#This Row],[Emissionsfaktor (EF4)]]","v":0},{"$f":"Tabel86[[#This Row],[Total N2O-N2 kg]]*44/28","v":0},{"$f":"Tabel86[[#This Row],[Total N2O direkte, kg]]+Tabel86[[#This Row],[Total N2O indirekte, kg ]]","v":0}]
["Bulls, 6 mth - 440 kg","Andet kvæg","Ungtyre, 6 mdr. til slagtning (440 kg), tung race, (1 produceret ungtyr)","Loose-holding with beds, solid floor with tilt","Sengestald, fast drænet gulv med skraber og ajleafløb","Gylle",{"$f":"IFERROR(HLOOKUP(Tabel86[[#This Row],[Staldsystem]],Indtastning!$B$8:$P$21,10,FALSE),0)","v":0},22.77,0,5.0000000000000001E-3,{"$f":"Tabel86[[#This Row],[Total N excretion (kg pr year)]]*Tabel86[[#This Row],[Emissionsfaktor (kgN2O-N pr kg Nex) ]]","v":0},{"$f":"Tabel86[[#This Row],[Total N2O-N]]*44/28","v":0},7.5790225283022858E-2,{"$f":"Tabel86[[#This Row],[Total N excretion (kg pr year)]]*Tabel86[[#This Row],[FracGasMS]]","v":0},0.01,{"$f":"Tabel86[[#This Row],[Total N fra fordampning]]*Tabel86[[#This Row],[Emissionsfaktor (EF4)]]","v":0},{"$f":"Tabel86[[#This Row],[Total N2O-N2 kg]]*44/28","v":0},{"$f":"Tabel86[[#This Row],[Total N2O direkte, kg]]+Tabel86[[#This Row],[Total N2O indirekte, kg ]]","v":0}]
["Bulls, 6 mth - 440 kg","Andet kvæg","Ungtyre, 6 mdr. til slagtning (440 kg), tung race, (1 produceret ungtyr)","Deep litter (all)","Dybstrøelse (hele arealet)","Dybstrøelse",{"$f":"IFERROR(HLOOKUP(Tabel86[[#This Row],[Staldsystem]],Indtastning!$B$8:$P$21,10,FALSE),0)","v":0},25.34,0,0.01,{"$f":"Tabel86[[#This Row],[Total N excretion (kg pr year)]]*Tabel86[[#This Row],[Emissionsfaktor (kgN2O-N pr kg Nex) ]]","v":0},{"$f":"Tabel86[[#This Row],[Total N2O-N]]*44/28","v":0},7.5790225283022858E-2,{"$f":"Tabel86[[#This Row],[Total N excretion (kg pr year)]]*Tabel86[[#This Row],[FracGasMS]]","v":0},0.01,{"$f":"Tabel86[[#This Row],[Total N fra fordampning]]*Tabel86[[#This Row],[Emissionsfaktor (EF4)]]","v":0},{"$f":"Tabel86[[#This Row],[Total N2O-N2 kg]]*44/28","v":0},{"$f":"Tabel86[[#This Row],[Total N2O direkte, kg]]+Tabel86[[#This Row],[Total N2O indirekte, kg ]]","v":0}]
["Bulls, 6 mth - 440 kg","Andet kvæg","Ungtyre, 6 mdr. til slagtning (440 kg), tung race, (1 produceret ungtyr)","Deep litter, long eating space, solid floor","Dybstrøelse, lang ædeplads med fast gulv","Dybstrøelse",{"$f":"IFERROR(HLOOKUP(Tabel86[[#This Row],[Staldsystem]],Indtastning!$B$8:$P$21,10,FALSE),0)","v":0},15.88,0,0.01,{"$f":"Tabel86[[#This Row],[Total N excretion (kg pr year)]]*Tabel86[[#This Row],[Emissionsfaktor (kgN2O-N pr kg Nex) ]]","v":0},{"$f":"Tabel86[[#This Row],[Total N2O-N]]*44/28","v":0},7.5790225283022858E-2,{"$f":"Tabel86[[#This Row],[Total N excretion (kg pr year)]]*Tabel86[[#This Row],[FracGasMS]]","v":0},0.01,{"$f":"Tabel86[[#This Row],[Total N fra fordampning]]*Tabel86[[#This Row],[Emissionsfaktor (EF4)]]","v":0},{"$f":"Tabel86[[#This Row],[Total N2O-N2 kg]]*44/28","v":0},{"$f":"Tabel86[[#This Row],[Total N2O direkte, kg]]+Tabel86[[#This Row],[Total N2O indirekte, kg ]]","v":0}]
["Bulls, 6 mth - 440 kg","Andet kvæg","Ungtyre, 6 mdr. til slagtning (440 kg), tung race, (1 produceret ungtyr)","Deep litter, long eating space, solid floor","Dybstrøelse, lang ædeplads med fast gulv","Gylle",{"$f":"IFERROR(HLOOKUP(Tabel86[[#This Row],[Staldsystem]],Indtastning!$B$8:$P$21,10,FALSE),0)","v":0},8.26,0,5.0000000000000001E-3,{"$f":"Tabel86[[#This Row],[Total N excretion (kg pr year)]]*Tabel86[[#This Row],[Emissionsfaktor (kgN2O-N pr kg Nex) ]]","v":0},{"$f":"Tabel86[[#This Row],[Total N2O-N]]*44/28","v":0},7.5790225283022858E-2,{"$f":"Tabel86[[#This Row],[Total N excretion (kg pr year)]]*Tabel86[[#This Row],[FracGasMS]]","v":0},0.01,{"$f":"Tabel86[[#This Row],[Total N fra fordampning]]*Tabel86[[#This Row],[Emissionsfaktor (EF4)]]","v":0},{"$f":"Tabel86[[#This Row],[Total N2O-N2 kg]]*44/28","v":0},{"$f":"Tabel86[[#This Row],[Total N2O direkte, kg]]+Tabel86[[#This Row],[Total N2O indirekte, kg ]]","v":0}]
["Bulls, 6 mth - 440 kg","Andet kvæg","Ungtyre, 6 mdr. til slagtning (440 kg), tung race, (1 produceret ungtyr)","Deep litter, solid floor","Dybstrøelse + kort ædeplads med fast gulv","Dybstrøelse",{"$f":"IFERROR(HLOOKUP(Tabel86[[#This Row],[Staldsystem]],Indtastning!$B$8:$P$21,10,FALSE),0)","v":0},24.84,0,0.01,{"$f":"Tabel86[[#This Row],[Total N excretion (kg pr year)]]*Tabel86[[#This Row],[Emissionsfaktor (kgN2O-N pr kg Nex) ]]","v":0},{"$f":"Tabel86[[#This Row],[Total N2O-N]]*44/28","v":0},7.5790225283022858E-2,{"$f":"Tabel86[[#This Row],[Total N excretion (kg pr year)]]*Tabel86[[#This Row],[FracGasMS]]","v":0},0.01,{"$f":"Tabel86[[#This Row],[Total N fra fordampning]]*Tabel86[[#This Row],[Emissionsfaktor (EF4)]]","v":0},{"$f":"Tabel86[[#This Row],[Total N2O-N2 kg]]*44/28","v":0},{"$f":"Tabel86[[#This Row],[Total N2O direkte, kg]]+Tabel86[[#This Row],[Total N2O indirekte, kg ]]","v":0}]
["Bulls, 6 mth - 440 kg","Andet kvæg","Ungtyre, 6 mdr. til slagtning (440 kg), tung race, (1 produceret ungtyr)","Deep litter, slatted floor","Dybstrøelse, lang ædeplads med spalter (kanal, linespil)","Dybstrøelse",{"$f":"IFERROR(HLOOKUP(Tabel86[[#This Row],[Staldsystem]],Indtastning!$B$8:$P$21,10,FALSE),0)","v":0},15.88,0,0.01,{"$f":"Tabel86[[#This Row],[Total N excretion (kg pr year)]]*Tabel86[[#This Row],[Emissionsfaktor (kgN2O-N pr kg Nex) ]]","v":0},{"$f":"Tabel86[[#This Row],[Total N2O-N]]*44/28","v":0},7.5790225283022858E-2,{"$f":"Tabel86[[#This Row],[Total N excretion (kg pr year)]]*Tabel86[[#This Row],[FracGasMS]]","v":0},0.01,{"$f":"Tabel86[[#This Row],[Total N fra fordampning]]*Tabel86[[#This Row],[Emissionsfaktor (EF4)]]","v":0},{"$f":"Tabel86[[#This Row],[Total N2O-N2 kg]]*44/28","v":0},{"$f":"Tabel86[[#This Row],[Total N2O direkte, kg]]+Tabel86[[#This Row],[Total N2O indirekte, kg ]]","v":0}]
["Bulls, 6 mth - 440 kg","Andet kvæg","Ungtyre, 6 mdr. til slagtning (440 kg), tung race, (1 produceret ungtyr)","Deep litter, slatted floor","Dybstrøelse, lang ædeplads med spalter (kanal, linespil)","Gylle",{"$f":"IFERROR(HLOOKUP(Tabel86[[#This Row],[Staldsystem]],Indtastning!$B$8:$P$21,10,FALSE),0)","v":0},8.76,0,5.0000000000000001E-3,{"$f":"Tabel86[[#This Row],[Total N excretion (kg pr year)]]*Tabel86[[#This Row],[Emissionsfaktor (kgN2O-N pr kg Nex) ]]","v":0},{"$f":"Tabel86[[#This Row],[Total N2O-N]]*44/28","v":0},7.5790225283022858E-2,{"$f":"Tabel86[[#This Row],[Total N excretion (kg pr year)]]*Tabel86[[#This Row],[FracGasMS]]","v":0},0.01,{"$f":"Tabel86[[#This Row],[Total N fra fordampning]]*Tabel86[[#This Row],[Emissionsfaktor (EF4)]]","v":0},{"$f":"Tabel86[[#This Row],[Total N2O-N2 kg]]*44/28","v":0},{"$f":"Tabel86[[#This Row],[Total N2O direkte, kg]]+Tabel86[[#This Row],[Total N2O indirekte, kg ]]","v":0}]
["Bulls, 6 mth - 440 kg","Andet kvæg","Ungtyre, 6 mdr. til slagtning (440 kg), tung race, (1 produceret ungtyr)","Deep litter, slatted floor, scrape","Dybstrøelse, lang ædeplads med spalter (kanal, bagskyl eller ringkanal)","Dybstrøelse",{"$f":"IFERROR(HLOOKUP(Tabel86[[#This Row],[Staldsystem]],Indtastning!$B$8:$P$21,10,FALSE),0)","v":0},15.88,0,0.01,{"$f":"Tabel86[[#This Row],[Total N excretion (kg pr year)]]*Tabel86[[#This Row],[Emissionsfaktor (kgN2O-N pr kg Nex) ]]","v":0},{"$f":"Tabel86[[#This Row],[Total N2O-N]]*44/28","v":0},7.5790225283022858E-2,{"$f":"Tabel86[[#This Row],[Total N excretion (kg pr year)]]*Tabel86[[#This Row],[FracGasMS]]","v":0},0.01,{"$f":"Tabel86[[#This Row],[Total N fra fordampning]]*Tabel86[[#This Row],[Emissionsfaktor (EF4)]]","v":0},{"$f":"Tabel86[[#This Row],[Total N2O-N2 kg]]*44/28","v":0},{"$f":"Tabel86[[#This Row],[Total N2O direkte, kg]]+Tabel86[[#This Row],[Total N2O indirekte, kg ]]","v":0}]
["Bulls, 6 mth - 440 kg","Andet kvæg","Ungtyre, 6 mdr. til slagtning (440 kg), tung race, (1 produceret ungtyr)","Deep litter, slatted floor, scrape","Dybstrøelse, lang ædeplads med spalter (kanal, bagskyl eller ringkanal)","Gylle",{"$f":"IFERROR(HLOOKUP(Tabel86[[#This Row],[Staldsystem]],Indtastning!$B$8:$P$21,10,FALSE),0)","v":0},8.51,0,5.0000000000000001E-3,{"$f":"Tabel86[[#This Row],[Total N excretion (kg pr year)]]*Tabel86[[#This Row],[Emissionsfaktor (kgN2O-N pr kg Nex) ]]","v":0},{"$f":"Tabel86[[#This Row],[Total N2O-N]]*44/28","v":0},7.5790225283022858E-2,{"$f":"Tabel86[[#This Row],[Total N excretion (kg pr year)]]*Tabel86[[#This Row],[FracGasMS]]","v":0},0.01,{"$f":"Tabel86[[#This Row],[Total N fra fordampning]]*Tabel86[[#This Row],[Emissionsfaktor (EF4)]]","v":0},{"$f":"Tabel86[[#This Row],[Total N2O-N2 kg]]*44/28","v":0},{"$f":"Tabel86[[#This Row],[Total N2O direkte, kg]]+Tabel86[[#This Row],[Total N2O indirekte, kg ]]","v":0}]
["Bull calves, 0-6 mth., jersey","Andet kvæg","1 produceret tyrekalv, 0-6 mdr., jersey","Deep litter (boxes)","Dybstrøelse (hele arealet)","Dybstrøelse",{"$f":"IFERROR(HLOOKUP(Tabel86[[#This Row],[Staldsystem]],Indtastning!$B$8:$P$21,9,FALSE),0)","v":0},8.69,0,0.01,{"$f":"Tabel86[[#This Row],[Total N excretion (kg pr year)]]*Tabel86[[#This Row],[Emissionsfaktor (kgN2O-N pr kg Nex) ]]","v":0},{"$f":"Tabel86[[#This Row],[Total N2O-N]]*44/28","v":0},7.5790225283022858E-2,{"$f":"Tabel86[[#This Row],[Total N excretion (kg pr year)]]*Tabel86[[#This Row],[FracGasMS]]","v":0},0.01,{"$f":"Tabel86[[#This Row],[Total N fra fordampning]]*Tabel86[[#This Row],[Emissionsfaktor (EF4)]]","v":0},{"$f":"Tabel86[[#This Row],[Total N2O-N2 kg]]*44/28","v":0},{"$f":"Tabel86[[#This Row],[Total N2O direkte, kg]]+Tabel86[[#This Row],[Total N2O indirekte, kg ]]","v":0}]
["Bull calves, 0-6 mth., jersey","Andet kvæg","1 produceret tyrekalv, 0-6 mdr., jersey","Deep litter, solid floor","Dybstrøelse + kort ædeplads med fast gulv","Dybstrøelse",{"$f":"IFERROR(HLOOKUP(Tabel86[[#This Row],[Staldsystem]],Indtastning!$B$8:$P$21,9,FALSE),0)","v":0},8.69,0,0.01,{"$f":"Tabel86[[#This Row],[Total N excretion (kg pr year)]]*Tabel86[[#This Row],[Emissionsfaktor (kgN2O-N pr kg Nex) ]]","v":0},{"$f":"Tabel86[[#This Row],[Total N2O-N]]*44/28","v":0},7.5790225283022858E-2,{"$f":"Tabel86[[#This Row],[Total N excretion (kg pr year)]]*Tabel86[[#This Row],[FracGasMS]]","v":0},0.01,{"$f":"Tabel86[[#This Row],[Total N fra fordampning]]*Tabel86[[#This Row],[Emissionsfaktor (EF4)]]","v":0},{"$f":"Tabel86[[#This Row],[Total N2O-N2 kg]]*44/28","v":0},{"$f":"Tabel86[[#This Row],[Total N2O direkte, kg]]+Tabel86[[#This Row],[Total N2O indirekte, kg ]]","v":0}]
["Bulls, 6 mth - 440 kg, jersey","Andet kvæg","Ungtyre, 6 mdr. til slagtning (440 kg), tung race, (1 produceret ungtyr)","Slatted floor-boxes","Spaltegulvbokse","Gylle",{"$f":"IFERROR(HLOOKUP(Tabel86[[#This Row],[Staldsystem]],Indtastning!$B$8:$P$21,11,FALSE),0)","v":0},16.54,0,5.0000000000000001E-3,{"$f":"Tabel86[[#This Row],[Total N excretion (kg pr year)]]*Tabel86[[#This Row],[Emissionsfaktor (kgN2O-N pr kg Nex) ]]","v":0},{"$f":"Tabel86[[#This Row],[Total N2O-N]]*44/28","v":0},7.5790225283022858E-2,{"$f":"Tabel86[[#This Row],[Total N excretion (kg pr year)]]*Tabel86[[#This Row],[FracGasMS]]","v":0},0.01,{"$f":"Tabel86[[#This Row],[Total N fra fordampning]]*Tabel86[[#This Row],[Emissionsfaktor (EF4)]]","v":0},{"$f":"Tabel86[[#This Row],[Total N2O-N2 kg]]*44/28","v":0},{"$f":"Tabel86[[#This Row],[Total N2O direkte, kg]]+Tabel86[[#This Row],[Total N2O indirekte, kg ]]","v":0}]
["Bulls, 6 mth - 440 kg, jersey","Andet kvæg","Ungtyre, 6 mdr. til slagtning (440 kg), tung race, (1 produceret ungtyr)","Tethered with urine and solid manure","Bindestald med grebning","Staldgødning",{"$f":"IFERROR(HLOOKUP(Tabel86[[#This Row],[Staldsystem]],Indtastning!$B$8:$P$21,11,FALSE),0)","v":0},9.74,0,5.0000000000000001E-3,{"$f":"Tabel86[[#This Row],[Total N excretion (kg pr year)]]*Tabel86[[#This Row],[Emissionsfaktor (kgN2O-N pr kg Nex) ]]","v":0},{"$f":"Tabel86[[#This Row],[Total N2O-N]]*44/28","v":0},7.5790225283022858E-2,{"$f":"Tabel86[[#This Row],[Total N excretion (kg pr year)]]*Tabel86[[#This Row],[FracGasMS]]","v":0},0.01,{"$f":"Tabel86[[#This Row],[Total N fra fordampning]]*Tabel86[[#This Row],[Emissionsfaktor (EF4)]]","v":0},{"$f":"Tabel86[[#This Row],[Total N2O-N2 kg]]*44/28","v":0},{"$f":"Tabel86[[#This Row],[Total N2O direkte, kg]]+Tabel86[[#This Row],[Total N2O indirekte, kg ]]","v":0}]
["Bulls, 6 mth - 440 kg, jersey","Andet kvæg","Ungtyre, 6 mdr. til slagtning (440 kg), tung race, (1 produceret ungtyr)","Tethered with urine and solid manure","Bindestald med grebning","Ajle (liquid manure/urin)",{"$f":"IFERROR(HLOOKUP(Tabel86[[#This Row],[Staldsystem]],Indtastning!$B$8:$P$21,11,FALSE),0)","v":0},7,0,5.0000000000000001E-3,{"$f":"Tabel86[[#This Row],[Total N excretion (kg pr year)]]*Tabel86[[#This Row],[Emissionsfaktor (kgN2O-N pr kg Nex) ]]","v":0},{"$f":"Tabel86[[#This Row],[Total N2O-N]]*44/28","v":0},7.5790225283022858E-2,{"$f":"Tabel86[[#This Row],[Total N excretion (kg pr year)]]*Tabel86[[#This Row],[FracGasMS]]","v":0},0.01,{"$f":"Tabel86[[#This Row],[Total N fra fordampning]]*Tabel86[[#This Row],[Emissionsfaktor (EF4)]]","v":0},{"$f":"Tabel86[[#This Row],[Total N2O-N2 kg]]*44/28","v":0},{"$f":"Tabel86[[#This Row],[Total N2O direkte, kg]]+Tabel86[[#This Row],[Total N2O indirekte, kg ]]","v":0}]
["Bulls, 6 mth - 440 kg, jersey","Andet kvæg","Ungtyre, 6 mdr. til slagtning (440 kg), tung race, (1 produceret ungtyr)","Tethered with slurry","Bindestald med riste","Gylle",{"$f":"IFERROR(HLOOKUP(Tabel86[[#This Row],[Staldsystem]],Indtastning!$B$8:$P$21,11,FALSE),0)","v":0},18.260000000000002,0,5.0000000000000001E-3,{"$f":"Tabel86[[#This Row],[Total N excretion (kg pr year)]]*Tabel86[[#This Row],[Emissionsfaktor (kgN2O-N pr kg Nex) ]]","v":0},{"$f":"Tabel86[[#This Row],[Total N2O-N]]*44/28","v":0},7.5790225283022858E-2,{"$f":"Tabel86[[#This Row],[Total N excretion (kg pr year)]]*Tabel86[[#This Row],[FracGasMS]]","v":0},0.01,{"$f":"Tabel86[[#This Row],[Total N fra fordampning]]*Tabel86[[#This Row],[Emissionsfaktor (EF4)]]","v":0},{"$f":"Tabel86[[#This Row],[Total N2O-N2 kg]]*44/28","v":0},{"$f":"Tabel86[[#This Row],[Total N2O direkte, kg]]+Tabel86[[#This Row],[Total N2O indirekte, kg ]]","v":0}]
["Bulls, 6 mth - 440 kg, jersey","Andet kvæg","Ungtyre, 6 mdr. til slagtning (440 kg), tung race, (1 produceret ungtyr)","Loose-holding with beds, solid floor","Sengestald med fast gulv","Gylle",{"$f":"IFERROR(HLOOKUP(Tabel86[[#This Row],[Staldsystem]],Indtastning!$B$8:$P$21,11,FALSE),0)","v":0},16.23,0,5.0000000000000001E-3,{"$f":"Tabel86[[#This Row],[Total N excretion (kg pr year)]]*Tabel86[[#This Row],[Emissionsfaktor (kgN2O-N pr kg Nex) ]]","v":0},{"$f":"Tabel86[[#This Row],[Total N2O-N]]*44/28","v":0},7.5790225283022858E-2,{"$f":"Tabel86[[#This Row],[Total N excretion (kg pr year)]]*Tabel86[[#This Row],[FracGasMS]]","v":0},0.01,{"$f":"Tabel86[[#This Row],[Total N fra fordampning]]*Tabel86[[#This Row],[Emissionsfaktor (EF4)]]","v":0},{"$f":"Tabel86[[#This Row],[Total N2O-N2 kg]]*44/28","v":0},{"$f":"Tabel86[[#This Row],[Total N2O direkte, kg]]+Tabel86[[#This Row],[Total N2O indirekte, kg ]]","v":0}]
["Bulls, 6 mth - 440 kg, jersey","Andet kvæg","Ungtyre, 6 mdr. til slagtning (440 kg), tung race, (1 produceret ungtyr)","Loose-holding with beds, slatted floor","Sengestald med spalter (kanal, linespil)","Gylle",{"$f":"IFERROR(HLOOKUP(Tabel86[[#This Row],[Staldsystem]],Indtastning!$B$8:$P$21,11,FALSE),0)","v":0},17.190000000000001,0,5.0000000000000001E-3,{"$f":"Tabel86[[#This Row],[Total N excretion (kg pr year)]]*Tabel86[[#This Row],[Emissionsfaktor (kgN2O-N pr kg Nex) ]]","v":0},{"$f":"Tabel86[[#This Row],[Total N2O-N]]*44/28","v":0},7.5790225283022858E-2,{"$f":"Tabel86[[#This Row],[Total N excretion (kg pr year)]]*Tabel86[[#This Row],[FracGasMS]]","v":0},0.01,{"$f":"Tabel86[[#This Row],[Total N fra fordampning]]*Tabel86[[#This Row],[Emissionsfaktor (EF4)]]","v":0},{"$f":"Tabel86[[#This Row],[Total N2O-N2 kg]]*44/28","v":0},{"$f":"Tabel86[[#This Row],[Total N2O direkte, kg]]+Tabel86[[#This Row],[Total N2O indirekte, kg ]]","v":0}]
["Bulls, 6 mth - 440 kg, jersey","Andet kvæg","Ungtyre, 6 mdr. til slagtning (440 kg), tung race, (1 produceret ungtyr)","Loose-holding with beds, slatted floor, scrape","Sengestald med spalter (kanal, bagskyl eller ringkanal)","Gylle",{"$f":"IFERROR(HLOOKUP(Tabel86[[#This Row],[Staldsystem]],Indtastning!$B$8:$P$21,11,FALSE),0)","v":0},16.71,0,5.0000000000000001E-3,{"$f":"Tabel86[[#This Row],[Total N excretion (kg pr year)]]*Tabel86[[#This Row],[Emissionsfaktor (kgN2O-N pr kg Nex) ]]","v":0},{"$f":"Tabel86[[#This Row],[Total N2O-N]]*44/28","v":0},7.5790225283022858E-2,{"$f":"Tabel86[[#This Row],[Total N excretion (kg pr year)]]*Tabel86[[#This Row],[FracGasMS]]","v":0},0.01,{"$f":"Tabel86[[#This Row],[Total N fra fordampning]]*Tabel86[[#This Row],[Emissionsfaktor (EF4)]]","v":0},{"$f":"Tabel86[[#This Row],[Total N2O-N2 kg]]*44/28","v":0},{"$f":"Tabel86[[#This Row],[Total N2O direkte, kg]]+Tabel86[[#This Row],[Total N2O indirekte, kg ]]","v":0}]
["Bulls, 6 mth - 440 kg, jersey","Andet kvæg","Ungtyre, 6 mdr. til slagtning (440 kg), tung race, (1 produceret ungtyr)","Loose-holding with beds, solid floor with tilt","Sengestald, fast drænet gulv med skraber og ajleafløb","Gylle",{"$f":"IFERROR(HLOOKUP(Tabel86[[#This Row],[Staldsystem]],Indtastning!$B$8:$P$21,11,FALSE),0)","v":0},17.68,0,5.0000000000000001E-3,{"$f":"Tabel86[[#This Row],[Total N excretion (kg pr year)]]*Tabel86[[#This Row],[Emissionsfaktor (kgN2O-N pr kg Nex) ]]","v":0},{"$f":"Tabel86[[#This Row],[Total N2O-N]]*44/28","v":0},7.5790225283022858E-2,{"$f":"Tabel86[[#This Row],[Total N excretion (kg pr year)]]*Tabel86[[#This Row],[FracGasMS]]","v":0},0.01,{"$f":"Tabel86[[#This Row],[Total N fra fordampning]]*Tabel86[[#This Row],[Emissionsfaktor (EF4)]]","v":0},{"$f":"Tabel86[[#This Row],[Total N2O-N2 kg]]*44/28","v":0},{"$f":"Tabel86[[#This Row],[Total N2O direkte, kg]]+Tabel86[[#This Row],[Total N2O indirekte, kg ]]","v":0}]
["Bulls, 6 mth - 440 kg, jersey","Andet kvæg","Ungtyre, 6 mdr. til slagtning (440 kg), tung race, (1 produceret ungtyr)","Deep litter (all)","Dybstrøelse (hele arealet)","Dybstrøelse",{"$f":"IFERROR(HLOOKUP(Tabel86[[#This Row],[Staldsystem]],Indtastning!$B$8:$P$21,11,FALSE),0)","v":0},19.649999999999999,0,0.01,{"$f":"Tabel86[[#This Row],[Total N excretion (kg pr year)]]*Tabel86[[#This Row],[Emissionsfaktor (kgN2O-N pr kg Nex) ]]","v":0},{"$f":"Tabel86[[#This Row],[Total N2O-N]]*44/28","v":0},7.5790225283022858E-2,{"$f":"Tabel86[[#This Row],[Total N excretion (kg pr year)]]*Tabel86[[#This Row],[FracGasMS]]","v":0},0.01,{"$f":"Tabel86[[#This Row],[Total N fra fordampning]]*Tabel86[[#This Row],[Emissionsfaktor (EF4)]]","v":0},{"$f":"Tabel86[[#This Row],[Total N2O-N2 kg]]*44/28","v":0},{"$f":"Tabel86[[#This Row],[Total N2O direkte, kg]]+Tabel86[[#This Row],[Total N2O indirekte, kg ]]","v":0}]
["Bulls, 6 mth - 440 kg, jersey","Andet kvæg","Ungtyre, 6 mdr. til slagtning (440 kg), tung race, (1 produceret ungtyr)","Deep litter, long eating space, solid floor","Dybstrøelse, lang ædeplads med fast gulv","Dybstrøelse",{"$f":"IFERROR(HLOOKUP(Tabel86[[#This Row],[Staldsystem]],Indtastning!$B$8:$P$21,11,FALSE),0)","v":0},12.25,0,0.01,{"$f":"Tabel86[[#This Row],[Total N excretion (kg pr year)]]*Tabel86[[#This Row],[Emissionsfaktor (kgN2O-N pr kg Nex) ]]","v":0},{"$f":"Tabel86[[#This Row],[Total N2O-N]]*44/28","v":0},7.5790225283022858E-2,{"$f":"Tabel86[[#This Row],[Total N excretion (kg pr year)]]*Tabel86[[#This Row],[FracGasMS]]","v":0},0.01,{"$f":"Tabel86[[#This Row],[Total N fra fordampning]]*Tabel86[[#This Row],[Emissionsfaktor (EF4)]]","v":0},{"$f":"Tabel86[[#This Row],[Total N2O-N2 kg]]*44/28","v":0},{"$f":"Tabel86[[#This Row],[Total N2O direkte, kg]]+Tabel86[[#This Row],[Total N2O indirekte, kg ]]","v":0}]
["Bulls, 6 mth - 440 kg, jersey","Andet kvæg","Ungtyre, 6 mdr. til slagtning (440 kg), tung race, (1 produceret ungtyr)","Deep litter, long eating space, solid floor","Dybstrøelse, lang ædeplads med fast gulv","Gylle",{"$f":"IFERROR(HLOOKUP(Tabel86[[#This Row],[Staldsystem]],Indtastning!$B$8:$P$21,11,FALSE),0)","v":0},6.43,{"$f":"G99*H99","v":0},5.0000000000000001E-3,{"$f":"Tabel86[[#This Row],[Total N excretion (kg pr year)]]*Tabel86[[#This Row],[Emissionsfaktor (kgN2O-N pr kg Nex) ]]","v":0},{"$f":"Tabel86[[#This Row],[Total N2O-N]]*44/28","v":0},7.5790225283022858E-2,{"$f":"Tabel86[[#This Row],[Total N excretion (kg pr year)]]*Tabel86[[#This Row],[FracGasMS]]","v":0},0.01,{"$f":"Tabel86[[#This Row],[Total N fra fordampning]]*Tabel86[[#This Row],[Emissionsfaktor (EF4)]]","v":0},{"$f":"Tabel86[[#This Row],[Total N2O-N2 kg]]*44/28","v":0},{"$f":"Tabel86[[#This Row],[Total N2O direkte, kg]]+Tabel86[[#This Row],[Total N2O indirekte, kg ]]","v":0}]
["Bulls, 6 mth - 440 kg, jersey","Andet kvæg","Ungtyre, 6 mdr. til slagtning (440 kg), tung race, (1 produceret ungtyr)","Deep litter, solid floor","Dybstrøelse + kort ædeplads med fast gulv","Dybstrøelse",{"$f":"IFERROR(HLOOKUP(Tabel86[[#This Row],[Staldsystem]],Indtastning!$B$8:$P$21,11,FALSE),0)","v":0},19.239999999999998,0,0.01,{"$f":"Tabel86[[#This Row],[Total N excretion (kg pr year)]]*Tabel86[[#This Row],[Emissionsfaktor (kgN2O-N pr kg Nex) ]]","v":0},{"$f":"Tabel86[[#This Row],[Total N2O-N]]*44/28","v":0},7.5790225283022858E-2,{"$f":"Tabel86[[#This Row],[Total N excretion (kg pr year)]]*Tabel86[[#This Row],[FracGasMS]]","v":0},0.01,{"$f":"Tabel86[[#This Row],[Total N fra fordampning]]*Tabel86[[#This Row],[Emissionsfaktor (EF4)]]","v":0},{"$f":"Tabel86[[#This Row],[Total N2O-N2 kg]]*44/28","v":0},{"$f":"Tabel86[[#This Row],[Total N2O direkte, kg]]+Tabel86[[#This Row],[Total N2O indirekte, kg ]]","v":0}]
["Bulls, 6 mth - 440 kg, jersey","Andet kvæg","Ungtyre, 6 mdr. til slagtning (440 kg), tung race, (1 produceret ungtyr)","Deep litter, slatted floor","Dybstrøelse, lang ædeplads med spalter (kanal, linespil)","Dybstrøelse",{"$f":"IFERROR(HLOOKUP(Tabel86[[#This Row],[Staldsystem]],Indtastning!$B$8:$P$21,11,FALSE),0)","v":0},12.25,0,0.01,{"$f":"Tabel86[[#This Row],[Total N excretion (kg pr year)]]*Tabel86[[#This Row],[Emissionsfaktor (kgN2O-N pr kg Nex) ]]","v":0},{"$f":"Tabel86[[#This Row],[Total N2O-N]]*44/28","v":0},7.5790225283022858E-2,{"$f":"Tabel86[[#This Row],[Total N excretion (kg pr year)]]*Tabel86[[#This Row],[FracGasMS]]","v":0},0.01,{"$f":"Tabel86[[#This Row],[Total N fra fordampning]]*Tabel86[[#This Row],[Emissionsfaktor (EF4)]]","v":0},{"$f":"Tabel86[[#This Row],[Total N2O-N2 kg]]*44/28","v":0},{"$f":"Tabel86[[#This Row],[Total N2O direkte, kg]]+Tabel86[[#This Row],[Total N2O indirekte, kg ]]","v":0}]
["Bulls, 6 mth - 440 kg, jersey","Andet kvæg","Ungtyre, 6 mdr. til slagtning (440 kg), tung race, (1 produceret ungtyr)","Deep litter, slatted floor","Dybstrøelse, lang ædeplads med spalter (kanal, linespil)","Gylle",{"$f":"IFERROR(HLOOKUP(Tabel86[[#This Row],[Staldsystem]],Indtastning!$B$8:$P$21,11,FALSE),0)","v":0},6.81,0,5.0000000000000001E-3,{"$f":"Tabel86[[#This Row],[Total N excretion (kg pr year)]]*Tabel86[[#This Row],[Emissionsfaktor (kgN2O-N pr kg Nex) ]]","v":0},{"$f":"Tabel86[[#This Row],[Total N2O-N]]*44/28","v":0},7.5790225283022858E-2,{"$f":"Tabel86[[#This Row],[Total N excretion (kg pr year)]]*Tabel86[[#This Row],[FracGasMS]]","v":0},0.01,{"$f":"Tabel86[[#This Row],[Total N fra fordampning]]*Tabel86[[#This Row],[Emissionsfaktor (EF4)]]","v":0},{"$f":"Tabel86[[#This Row],[Total N2O-N2 kg]]*44/28","v":0},{"$f":"Tabel86[[#This Row],[Total N2O direkte, kg]]+Tabel86[[#This Row],[Total N2O indirekte, kg ]]","v":0}]
["Bulls, 6 mth - 440 kg, jersey","Andet kvæg","Ungtyre, 6 mdr. til slagtning (440 kg), tung race, (1 produceret ungtyr)","Deep litter, slatted floor, scrape","Dybstrøelse, lang ædeplads med spalter (kanal, bagskyl eller ringkanal)","Dybstrøelse",{"$f":"IFERROR(HLOOKUP(Tabel86[[#This Row],[Staldsystem]],Indtastning!$B$8:$P$21,11,FALSE),0)","v":0},12.25,0,0.01,{"$f":"Tabel86[[#This Row],[Total N excretion (kg pr year)]]*Tabel86[[#This Row],[Emissionsfaktor (kgN2O-N pr kg Nex) ]]","v":0},{"$f":"Tabel86[[#This Row],[Total N2O-N]]*44/28","v":0},7.5790225283022858E-2,{"$f":"Tabel86[[#This Row],[Total N excretion (kg pr year)]]*Tabel86[[#This Row],[FracGasMS]]","v":0},0.01,{"$f":"Tabel86[[#This Row],[Total N fra fordampning]]*Tabel86[[#This Row],[Emissionsfaktor (EF4)]]","v":0},{"$f":"Tabel86[[#This Row],[Total N2O-N2 kg]]*44/28","v":0},{"$f":"Tabel86[[#This Row],[Total N2O direkte, kg]]+Tabel86[[#This Row],[Total N2O indirekte, kg ]]","v":0}]
["Bulls, 6 mth - 440 kg, jersey","Andet kvæg","Ungtyre, 6 mdr. til slagtning (440 kg), tung race, (1 produceret ungtyr)","Deep litter, slatted floor, scrape","Dybstrøelse, lang ædeplads med spalter (kanal, bagskyl eller ringkanal)","Gylle",{"$f":"IFERROR(HLOOKUP(Tabel86[[#This Row],[Staldsystem]],Indtastning!$B$8:$P$21,11,FALSE),0)","v":0},6.62,0,5.0000000000000001E-3,{"$f":"Tabel86[[#This Row],[Total N excretion (kg pr year)]]*Tabel86[[#This Row],[Emissionsfaktor (kgN2O-N pr kg Nex) ]]","v":0},{"$f":"Tabel86[[#This Row],[Total N2O-N]]*44/28","v":0},7.5790225283022858E-2,{"$f":"Tabel86[[#This Row],[Total N excretion (kg pr year)]]*Tabel86[[#This Row],[FracGasMS]]","v":0},0.01,{"$f":"Tabel86[[#This Row],[Total N fra fordampning]]*Tabel86[[#This Row],[Emissionsfaktor (EF4)]]","v":0},{"$f":"Tabel86[[#This Row],[Total N2O-N2 kg]]*44/28","v":0},{"$f":"Tabel86[[#This Row],[Total N2O direkte, kg]]+Tabel86[[#This Row],[Total N2O indirekte, kg ]]","v":0}]
["Suckling cattle <400 kg","Andet kvæg","Ammekøer, 1 årsko under 400 kg","Tethered with urine and solid manure","Bindestald med grebning","Staldgødning",{"$f":"IFERROR(HLOOKUP(Tabel86[[#This Row],[Staldsystem]],Indtastning!$B$8:$P$21,12,FALSE),0)","v":0},14.55,0,5.0000000000000001E-3,{"$f":"Tabel86[[#This Row],[Total N excretion (kg pr year)]]*Tabel86[[#This Row],[Emissionsfaktor (kgN2O-N pr kg Nex) ]]","v":0},{"$f":"Tabel86[[#This Row],[Total N2O-N]]*44/28","v":0},7.5790225283022858E-2,{"$f":"Tabel86[[#This Row],[Total N excretion (kg pr year)]]*Tabel86[[#This Row],[FracGasMS]]","v":0},0.01,{"$f":"Tabel86[[#This Row],[Total N fra fordampning]]*Tabel86[[#This Row],[Emissionsfaktor (EF4)]]","v":0},{"$f":"Tabel86[[#This Row],[Total N2O-N2 kg]]*44/28","v":0},{"$f":"Tabel86[[#This Row],[Total N2O direkte, kg]]+Tabel86[[#This Row],[Total N2O indirekte, kg ]]","v":0}]
["Suckling cattle <400 kg","Andet kvæg","Ammekøer, 1 årsko under 400 kg","Tethered with urine and solid manure","Bindestald med grebning","Ajle (liquid manure/urin)",{"$f":"IFERROR(HLOOKUP(Tabel86[[#This Row],[Staldsystem]],Indtastning!$B$8:$P$21,12,FALSE),0)","v":0},23.74,0,5.0000000000000001E-3,{"$f":"Tabel86[[#This Row],[Total N excretion (kg pr year)]]*Tabel86[[#This Row],[Emissionsfaktor (kgN2O-N pr kg Nex) ]]","v":0},{"$f":"Tabel86[[#This Row],[Total N2O-N]]*44/28","v":0},7.5790225283022858E-2,{"$f":"Tabel86[[#This Row],[Total N excretion (kg pr year)]]*Tabel86[[#This Row],[FracGasMS]]","v":0},0.01,{"$f":"Tabel86[[#This Row],[Total N fra fordampning]]*Tabel86[[#This Row],[Emissionsfaktor (EF4)]]","v":0},{"$f":"Tabel86[[#This Row],[Total N2O-N2 kg]]*44/28","v":0},{"$f":"Tabel86[[#This Row],[Total N2O direkte, kg]]+Tabel86[[#This Row],[Total N2O indirekte, kg ]]","v":0}]
["Suckling cattle <400 kg","Andet kvæg","Ammekøer, 1 årsko under 400 kg","Tethered with slurry","Bindestald med riste","Gylle",{"$f":"IFERROR(HLOOKUP(Tabel86[[#This Row],[Staldsystem]],Indtastning!$B$8:$P$21,12,FALSE),0)","v":0},41.33,0,5.0000000000000001E-3,{"$f":"Tabel86[[#This Row],[Total N excretion (kg pr year)]]*Tabel86[[#This Row],[Emissionsfaktor (kgN2O-N pr kg Nex) ]]","v":0},{"$f":"Tabel86[[#This Row],[Total N2O-N]]*44/28","v":0},7.5790225283022858E-2,{"$f":"Tabel86[[#This Row],[Total N excretion (kg pr year)]]*Tabel86[[#This Row],[FracGasMS]]","v":0},0.01,{"$f":"Tabel86[[#This Row],[Total N fra fordampning]]*Tabel86[[#This Row],[Emissionsfaktor (EF4)]]","v":0},{"$f":"Tabel86[[#This Row],[Total N2O-N2 kg]]*44/28","v":0},{"$f":"Tabel86[[#This Row],[Total N2O direkte, kg]]+Tabel86[[#This Row],[Total N2O indirekte, kg ]]","v":0}]
["Suckling cattle <400 kg","Andet kvæg","Ammekøer, 1 årsko under 400 kg","Deep litter (all)","Dybstrøelse (hele arealet)","Dybstrøelse",{"$f":"IFERROR(HLOOKUP(Tabel86[[#This Row],[Staldsystem]],Indtastning!$B$8:$P$21,12,FALSE),0)","v":0},44.36,0,0.01,{"$f":"Tabel86[[#This Row],[Total N excretion (kg pr year)]]*Tabel86[[#This Row],[Emissionsfaktor (kgN2O-N pr kg Nex) ]]","v":0},{"$f":"Tabel86[[#This Row],[Total N2O-N]]*44/28","v":0},7.5790225283022858E-2,{"$f":"Tabel86[[#This Row],[Total N excretion (kg pr year)]]*Tabel86[[#This Row],[FracGasMS]]","v":0},0.01,{"$f":"Tabel86[[#This Row],[Total N fra fordampning]]*Tabel86[[#This Row],[Emissionsfaktor (EF4)]]","v":0},{"$f":"Tabel86[[#This Row],[Total N2O-N2 kg]]*44/28","v":0},{"$f":"Tabel86[[#This Row],[Total N2O direkte, kg]]+Tabel86[[#This Row],[Total N2O indirekte, kg ]]","v":0}]
["Suckling cattle <400 kg","Andet kvæg","Ammekøer, 1 årsko under 400 kg","Deep litter, long eating space, solid floor","Dybstrøelse, lang ædeplads med fast gulv","Dybstrøelse",{"$f":"IFERROR(HLOOKUP(Tabel86[[#This Row],[Staldsystem]],Indtastning!$B$8:$P$21,12,FALSE),0)","v":0},27.29,0,0.01,{"$f":"Tabel86[[#This Row],[Total N excretion (kg pr year)]]*Tabel86[[#This Row],[Emissionsfaktor (kgN2O-N pr kg Nex) ]]","v":0},{"$f":"Tabel86[[#This Row],[Total N2O-N]]*44/28","v":0},7.5790225283022858E-2,{"$f":"Tabel86[[#This Row],[Total N excretion (kg pr year)]]*Tabel86[[#This Row],[FracGasMS]]","v":0},0.01,{"$f":"Tabel86[[#This Row],[Total N fra fordampning]]*Tabel86[[#This Row],[Emissionsfaktor (EF4)]]","v":0},{"$f":"Tabel86[[#This Row],[Total N2O-N2 kg]]*44/28","v":0},{"$f":"Tabel86[[#This Row],[Total N2O direkte, kg]]+Tabel86[[#This Row],[Total N2O indirekte, kg ]]","v":0}]
["Suckling cattle <400 kg","Andet kvæg","Ammekøer, 1 årsko under 400 kg","Deep litter, long eating space, solid floor","Dybstrøelse, lang ædeplads med fast gulv","Gylle",{"$f":"IFERROR(HLOOKUP(Tabel86[[#This Row],[Staldsystem]],Indtastning!$B$8:$P$21,12,FALSE),0)","v":0},14.72,0,5.0000000000000001E-3,{"$f":"Tabel86[[#This Row],[Total N excretion (kg pr year)]]*Tabel86[[#This Row],[Emissionsfaktor (kgN2O-N pr kg Nex) ]]","v":0},{"$f":"Tabel86[[#This Row],[Total N2O-N]]*44/28","v":0},7.5790225283022858E-2,{"$f":"Tabel86[[#This Row],[Total N excretion (kg pr year)]]*Tabel86[[#This Row],[FracGasMS]]","v":0},0.01,{"$f":"Tabel86[[#This Row],[Total N fra fordampning]]*Tabel86[[#This Row],[Emissionsfaktor (EF4)]]","v":0},{"$f":"Tabel86[[#This Row],[Total N2O-N2 kg]]*44/28","v":0},{"$f":"Tabel86[[#This Row],[Total N2O direkte, kg]]+Tabel86[[#This Row],[Total N2O indirekte, kg ]]","v":0}]
["Suckling cattle <400 kg","Andet kvæg","Ammekøer, 1 årsko under 400 kg","Deep litter, solid floor","Dybstrøelse + kort ædeplads med fast gulv","Dybstrøelse",{"$f":"IFERROR(HLOOKUP(Tabel86[[#This Row],[Staldsystem]],Indtastning!$B$8:$P$21,12,FALSE),0)","v":0},43.8,0,0.01,{"$f":"Tabel86[[#This Row],[Total N excretion (kg pr year)]]*Tabel86[[#This Row],[Emissionsfaktor (kgN2O-N pr kg Nex) ]]","v":0},{"$f":"Tabel86[[#This Row],[Total N2O-N]]*44/28","v":0},7.5790225283022858E-2,{"$f":"Tabel86[[#This Row],[Total N excretion (kg pr year)]]*Tabel86[[#This Row],[FracGasMS]]","v":0},0.01,{"$f":"Tabel86[[#This Row],[Total N fra fordampning]]*Tabel86[[#This Row],[Emissionsfaktor (EF4)]]","v":0},{"$f":"Tabel86[[#This Row],[Total N2O-N2 kg]]*44/28","v":0},{"$f":"Tabel86[[#This Row],[Total N2O direkte, kg]]+Tabel86[[#This Row],[Total N2O indirekte, kg ]]","v":0}]
["Suckling cattle <400 kg","Andet kvæg","Ammekøer, 1 årsko under 400 kg","Deep litter, slatted floor","Dybstrøelse, lang ædeplads med spalter (kanal, linespil)","Dybstrøelse",{"$f":"IFERROR(HLOOKUP(Tabel86[[#This Row],[Staldsystem]],Indtastning!$B$8:$P$21,12,FALSE),0)","v":0},27.29,0,0.01,{"$f":"Tabel86[[#This Row],[Total N excretion (kg pr year)]]*Tabel86[[#This Row],[Emissionsfaktor (kgN2O-N pr kg Nex) ]]","v":0},{"$f":"Tabel86[[#This Row],[Total N2O-N]]*44/28","v":0},7.5790225283022858E-2,{"$f":"Tabel86[[#This Row],[Total N excretion (kg pr year)]]*Tabel86[[#This Row],[FracGasMS]]","v":0},0.01,{"$f":"Tabel86[[#This Row],[Total N fra fordampning]]*Tabel86[[#This Row],[Emissionsfaktor (EF4)]]","v":0},{"$f":"Tabel86[[#This Row],[Total N2O-N2 kg]]*44/28","v":0},{"$f":"Tabel86[[#This Row],[Total N2O direkte, kg]]+Tabel86[[#This Row],[Total N2O indirekte, kg ]]","v":0}]
["Suckling cattle <400 kg","Andet kvæg","Ammekøer, 1 årsko under 400 kg","Deep litter, slatted floor","Dybstrøelse, lang ædeplads med spalter (kanal, linespil)","Gylle",{"$f":"IFERROR(HLOOKUP(Tabel86[[#This Row],[Staldsystem]],Indtastning!$B$8:$P$21,12,FALSE),0)","v":0},15.65,0,5.0000000000000001E-3,{"$f":"Tabel86[[#This Row],[Total N excretion (kg pr year)]]*Tabel86[[#This Row],[Emissionsfaktor (kgN2O-N pr kg Nex) ]]","v":0},{"$f":"Tabel86[[#This Row],[Total N2O-N]]*44/28","v":0},7.5790225283022858E-2,{"$f":"Tabel86[[#This Row],[Total N excretion (kg pr year)]]*Tabel86[[#This Row],[FracGasMS]]","v":0},0.01,{"$f":"Tabel86[[#This Row],[Total N fra fordampning]]*Tabel86[[#This Row],[Emissionsfaktor (EF4)]]","v":0},{"$f":"Tabel86[[#This Row],[Total N2O-N2 kg]]*44/28","v":0},{"$f":"Tabel86[[#This Row],[Total N2O direkte, kg]]+Tabel86[[#This Row],[Total N2O indirekte, kg ]]","v":0}]
["Suckling cattle <400 kg","Andet kvæg","Ammekøer, 1 årsko under 400 kg","Deep litter, slatted floor, scrape","Dybstrøelse, lang ædeplads med spalter (kanal, bagskyl eller ringkanal)","Dybstrøelse",{"$f":"IFERROR(HLOOKUP(Tabel86[[#This Row],[Staldsystem]],Indtastning!$B$8:$P$21,12,FALSE),0)","v":0},27.29,0,0.01,{"$f":"Tabel86[[#This Row],[Total N excretion (kg pr year)]]*Tabel86[[#This Row],[Emissionsfaktor (kgN2O-N pr kg Nex) ]]","v":0},{"$f":"Tabel86[[#This Row],[Total N2O-N]]*44/28","v":0},7.5790225283022858E-2,{"$f":"Tabel86[[#This Row],[Total N excretion (kg pr year)]]*Tabel86[[#This Row],[FracGasMS]]","v":0},0.01,{"$f":"Tabel86[[#This Row],[Total N fra fordampning]]*Tabel86[[#This Row],[Emissionsfaktor (EF4)]]","v":0},{"$f":"Tabel86[[#This Row],[Total N2O-N2 kg]]*44/28","v":0},{"$f":"Tabel86[[#This Row],[Total N2O direkte, kg]]+Tabel86[[#This Row],[Total N2O indirekte, kg ]]","v":0}]
["Suckling cattle <400 kg","Andet kvæg","Ammekøer, 1 årsko under 400 kg","Deep litter, slatted floor, scrape","Dybstrøelse, lang ædeplads med spalter (kanal, bagskyl eller ringkanal)","Gylle",{"$f":"IFERROR(HLOOKUP(Tabel86[[#This Row],[Staldsystem]],Indtastning!$B$8:$P$21,12,FALSE),0)","v":0},15.18,0,5.0000000000000001E-3,{"$f":"Tabel86[[#This Row],[Total N excretion (kg pr year)]]*Tabel86[[#This Row],[Emissionsfaktor (kgN2O-N pr kg Nex) ]]","v":0},{"$f":"Tabel86[[#This Row],[Total N2O-N]]*44/28","v":0},7.5790225283022858E-2,{"$f":"Tabel86[[#This Row],[Total N excretion (kg pr year)]]*Tabel86[[#This Row],[FracGasMS]]","v":0},0.01,{"$f":"Tabel86[[#This Row],[Total N fra fordampning]]*Tabel86[[#This Row],[Emissionsfaktor (EF4)]]","v":0},{"$f":"Tabel86[[#This Row],[Total N2O-N2 kg]]*44/28","v":0},{"$f":"Tabel86[[#This Row],[Total N2O direkte, kg]]+Tabel86[[#This Row],[Total N2O indirekte, kg ]]","v":0}]
["Suckling cattle 400-600 kg","Andet kvæg","Ammekøer, 1 årsko 400-600 kg","Tethered with urine and solid manure","Bindestald med grebning","Staldgødning",{"$f":"IFERROR(HLOOKUP(Tabel86[[#This Row],[Staldsystem]],Indtastning!$B$8:$P$21,13,FALSE),0)","v":0},20.63,0,5.0000000000000001E-3,{"$f":"Tabel86[[#This Row],[Total N excretion (kg pr year)]]*Tabel86[[#This Row],[Emissionsfaktor (kgN2O-N pr kg Nex) ]]","v":0},{"$f":"Tabel86[[#This Row],[Total N2O-N]]*44/28","v":0},7.5790225283022858E-2,{"$f":"Tabel86[[#This Row],[Total N excretion (kg pr year)]]*Tabel86[[#This Row],[FracGasMS]]","v":0},0.01,{"$f":"Tabel86[[#This Row],[Total N fra fordampning]]*Tabel86[[#This Row],[Emissionsfaktor (EF4)]]","v":0},{"$f":"Tabel86[[#This Row],[Total N2O-N2 kg]]*44/28","v":0},{"$f":"Tabel86[[#This Row],[Total N2O direkte, kg]]+Tabel86[[#This Row],[Total N2O indirekte, kg ]]","v":0}]
["Suckling cattle 400-600 kg","Andet kvæg","Ammekøer, 1 årsko 400-600 kg","Tethered with urine and solid manure","Bindestald med grebning","Ajle (liquid manure/urin)",{"$f":"IFERROR(HLOOKUP(Tabel86[[#This Row],[Staldsystem]],Indtastning!$B$8:$P$21,13,FALSE),0)","v":0},35.17,0,5.0000000000000001E-3,{"$f":"Tabel86[[#This Row],[Total N excretion (kg pr year)]]*Tabel86[[#This Row],[Emissionsfaktor (kgN2O-N pr kg Nex) ]]","v":0},{"$f":"Tabel86[[#This Row],[Total N2O-N]]*44/28","v":0},7.5790225283022858E-2,{"$f":"Tabel86[[#This Row],[Total N excretion (kg pr year)]]*Tabel86[[#This Row],[FracGasMS]]","v":0},0.01,{"$f":"Tabel86[[#This Row],[Total N fra fordampning]]*Tabel86[[#This Row],[Emissionsfaktor (EF4)]]","v":0},{"$f":"Tabel86[[#This Row],[Total N2O-N2 kg]]*44/28","v":0},{"$f":"Tabel86[[#This Row],[Total N2O direkte, kg]]+Tabel86[[#This Row],[Total N2O indirekte, kg ]]","v":0}]
["Suckling cattle 400-600 kg","Andet kvæg","Ammekøer, 1 årsko 400-600 kg","Tethered with slurry","Bindestald med riste","Gylle",{"$f":"IFERROR(HLOOKUP(Tabel86[[#This Row],[Staldsystem]],Indtastning!$B$8:$P$21,13,FALSE),0)","v":0},60.19,0,5.0000000000000001E-3,{"$f":"Tabel86[[#This Row],[Total N excretion (kg pr year)]]*Tabel86[[#This Row],[Emissionsfaktor (kgN2O-N pr kg Nex) ]]","v":0},{"$f":"Tabel86[[#This Row],[Total N2O-N]]*44/28","v":0},7.5790225283022858E-2,{"$f":"Tabel86[[#This Row],[Total N excretion (kg pr year)]]*Tabel86[[#This Row],[FracGasMS]]","v":0},0.01,{"$f":"Tabel86[[#This Row],[Total N fra fordampning]]*Tabel86[[#This Row],[Emissionsfaktor (EF4)]]","v":0},{"$f":"Tabel86[[#This Row],[Total N2O-N2 kg]]*44/28","v":0},{"$f":"Tabel86[[#This Row],[Total N2O direkte, kg]]+Tabel86[[#This Row],[Total N2O indirekte, kg ]]","v":0}]
["Suckling cattle 400-600 kg","Andet kvæg","Ammekøer, 1 årsko 400-600 kg","Deep litter (all)","Dybstrøelse (hele arealet)","Dybstrøelse",{"$f":"IFERROR(HLOOKUP(Tabel86[[#This Row],[Staldsystem]],Indtastning!$B$8:$P$21,13,FALSE),0)","v":0},64.11,0,0.01,{"$f":"Tabel86[[#This Row],[Total N excretion (kg pr year)]]*Tabel86[[#This Row],[Emissionsfaktor (kgN2O-N pr kg Nex) ]]","v":0},{"$f":"Tabel86[[#This Row],[Total N2O-N]]*44/28","v":0},7.5790225283022858E-2,{"$f":"Tabel86[[#This Row],[Total N excretion (kg pr year)]]*Tabel86[[#This Row],[FracGasMS]]","v":0},0.01,{"$f":"Tabel86[[#This Row],[Total N fra fordampning]]*Tabel86[[#This Row],[Emissionsfaktor (EF4)]]","v":0},{"$f":"Tabel86[[#This Row],[Total N2O-N2 kg]]*44/28","v":0},{"$f":"Tabel86[[#This Row],[Total N2O direkte, kg]]+Tabel86[[#This Row],[Total N2O indirekte, kg ]]","v":0}]
["Suckling cattle 400-600 kg","Andet kvæg","Ammekøer, 1 årsko 400-600 kg","Deep litter, long eating space, solid floor","Dybstrøelse, lang ædeplads med fast gulv","Dybstrøelse",{"$f":"IFERROR(HLOOKUP(Tabel86[[#This Row],[Staldsystem]],Indtastning!$B$8:$P$21,13,FALSE),0)","v":0},39.36,0,0.01,{"$f":"Tabel86[[#This Row],[Total N excretion (kg pr year)]]*Tabel86[[#This Row],[Emissionsfaktor (kgN2O-N pr kg Nex) ]]","v":0},{"$f":"Tabel86[[#This Row],[Total N2O-N]]*44/28","v":0},7.5790225283022858E-2,{"$f":"Tabel86[[#This Row],[Total N excretion (kg pr year)]]*Tabel86[[#This Row],[FracGasMS]]","v":0},0.01,{"$f":"Tabel86[[#This Row],[Total N fra fordampning]]*Tabel86[[#This Row],[Emissionsfaktor (EF4)]]","v":0},{"$f":"Tabel86[[#This Row],[Total N2O-N2 kg]]*44/28","v":0},{"$f":"Tabel86[[#This Row],[Total N2O direkte, kg]]+Tabel86[[#This Row],[Total N2O indirekte, kg ]]","v":0}]
["Suckling cattle 400-600 kg","Andet kvæg","Ammekøer, 1 årsko 400-600 kg","Deep litter, long eating space, solid floor","Dybstrøelse, lang ædeplads med fast gulv","Gylle",{"$f":"IFERROR(HLOOKUP(Tabel86[[#This Row],[Staldsystem]],Indtastning!$B$8:$P$21,13,FALSE),0)","v":0},21.45,0,5.0000000000000001E-3,{"$f":"Tabel86[[#This Row],[Total N excretion (kg pr year)]]*Tabel86[[#This Row],[Emissionsfaktor (kgN2O-N pr kg Nex) ]]","v":0},{"$f":"Tabel86[[#This Row],[Total N2O-N]]*44/28","v":0},7.5790225283022858E-2,{"$f":"Tabel86[[#This Row],[Total N excretion (kg pr year)]]*Tabel86[[#This Row],[FracGasMS]]","v":0},0.01,{"$f":"Tabel86[[#This Row],[Total N fra fordampning]]*Tabel86[[#This Row],[Emissionsfaktor (EF4)]]","v":0},{"$f":"Tabel86[[#This Row],[Total N2O-N2 kg]]*44/28","v":0},{"$f":"Tabel86[[#This Row],[Total N2O direkte, kg]]+Tabel86[[#This Row],[Total N2O indirekte, kg ]]","v":0}]
["Suckling cattle 400-600 kg","Andet kvæg","Ammekøer, 1 årsko 400-600 kg","Deep litter, solid floor","Dybstrøelse + kort ædeplads med fast gulv","Dybstrøelse",{"$f":"IFERROR(HLOOKUP(Tabel86[[#This Row],[Staldsystem]],Indtastning!$B$8:$P$21,13,FALSE),0)","v":0},63.36,0,0.01,{"$f":"Tabel86[[#This Row],[Total N excretion (kg pr year)]]*Tabel86[[#This Row],[Emissionsfaktor (kgN2O-N pr kg Nex) ]]","v":0},{"$f":"Tabel86[[#This Row],[Total N2O-N]]*44/28","v":0},7.5790225283022858E-2,{"$f":"Tabel86[[#This Row],[Total N excretion (kg pr year)]]*Tabel86[[#This Row],[FracGasMS]]","v":0},0.01,{"$f":"Tabel86[[#This Row],[Total N fra fordampning]]*Tabel86[[#This Row],[Emissionsfaktor (EF4)]]","v":0},{"$f":"Tabel86[[#This Row],[Total N2O-N2 kg]]*44/28","v":0},{"$f":"Tabel86[[#This Row],[Total N2O direkte, kg]]+Tabel86[[#This Row],[Total N2O indirekte, kg ]]","v":0}]
["Suckling cattle 400-600 kg","Andet kvæg","Ammekøer, 1 årsko 400-600 kg","Deep litter, slatted floor","Dybstrøelse, lang ædeplads med spalter (kanal, linespil)","Dybstrøelse",{"$f":"IFERROR(HLOOKUP(Tabel86[[#This Row],[Staldsystem]],Indtastning!$B$8:$P$21,13,FALSE),0)","v":0},39.36,0,0.01,{"$f":"Tabel86[[#This Row],[Total N excretion (kg pr year)]]*Tabel86[[#This Row],[Emissionsfaktor (kgN2O-N pr kg Nex) ]]","v":0},{"$f":"Tabel86[[#This Row],[Total N2O-N]]*44/28","v":0},7.5790225283022858E-2,{"$f":"Tabel86[[#This Row],[Total N excretion (kg pr year)]]*Tabel86[[#This Row],[FracGasMS]]","v":0},0.01,{"$f":"Tabel86[[#This Row],[Total N fra fordampning]]*Tabel86[[#This Row],[Emissionsfaktor (EF4)]]","v":0},{"$f":"Tabel86[[#This Row],[Total N2O-N2 kg]]*44/28","v":0},{"$f":"Tabel86[[#This Row],[Total N2O direkte, kg]]+Tabel86[[#This Row],[Total N2O indirekte, kg ]]","v":0}]
["Suckling cattle 400-600 kg","Andet kvæg","Ammekøer, 1 årsko 400-600 kg","Deep litter, slatted floor","Dybstrøelse, lang ædeplads med spalter (kanal, linespil)","Gylle",{"$f":"IFERROR(HLOOKUP(Tabel86[[#This Row],[Staldsystem]],Indtastning!$B$8:$P$21,13,FALSE),0)","v":0},22.81,0,5.0000000000000001E-3,{"$f":"Tabel86[[#This Row],[Total N excretion (kg pr year)]]*Tabel86[[#This Row],[Emissionsfaktor (kgN2O-N pr kg Nex) ]]","v":0},{"$f":"Tabel86[[#This Row],[Total N2O-N]]*44/28","v":0},7.5790225283022858E-2,{"$f":"Tabel86[[#This Row],[Total N excretion (kg pr year)]]*Tabel86[[#This Row],[FracGasMS]]","v":0},0.01,{"$f":"Tabel86[[#This Row],[Total N fra fordampning]]*Tabel86[[#This Row],[Emissionsfaktor (EF4)]]","v":0},{"$f":"Tabel86[[#This Row],[Total N2O-N2 kg]]*44/28","v":0},{"$f":"Tabel86[[#This Row],[Total N2O direkte, kg]]+Tabel86[[#This Row],[Total N2O indirekte, kg ]]","v":0}]
["Suckling cattle 400-600 kg","Andet kvæg","Ammekøer, 1 årsko 400-600 kg","Deep litter, slatted floor, scrape","Dybstrøelse, lang ædeplads med spalter (kanal, bagskyl eller ringkanal)","Dybstrøelse",{"$f":"IFERROR(HLOOKUP(Tabel86[[#This Row],[Staldsystem]],Indtastning!$B$8:$P$21,13,FALSE),0)","v":0},39.36,0,0.01,{"$f":"Tabel86[[#This Row],[Total N excretion (kg pr year)]]*Tabel86[[#This Row],[Emissionsfaktor (kgN2O-N pr kg Nex) ]]","v":0},{"$f":"Tabel86[[#This Row],[Total N2O-N]]*44/28","v":0},7.5790225283022858E-2,{"$f":"Tabel86[[#This Row],[Total N excretion (kg pr year)]]*Tabel86[[#This Row],[FracGasMS]]","v":0},0.01,{"$f":"Tabel86[[#This Row],[Total N fra fordampning]]*Tabel86[[#This Row],[Emissionsfaktor (EF4)]]","v":0},{"$f":"Tabel86[[#This Row],[Total N2O-N2 kg]]*44/28","v":0},{"$f":"Tabel86[[#This Row],[Total N2O direkte, kg]]+Tabel86[[#This Row],[Total N2O indirekte, kg ]]","v":0}]
["Suckling cattle 400-600 kg","Andet kvæg","Ammekøer, 1 årsko 400-600 kg","Deep litter, slatted floor, scrape","Dybstrøelse, lang ædeplads med spalter (kanal, bagskyl eller ringkanal)","Gylle",{"$f":"IFERROR(HLOOKUP(Tabel86[[#This Row],[Staldsystem]],Indtastning!$B$8:$P$21,13,FALSE),0)","v":0},22.13,0,5.0000000000000001E-3,{"$f":"Tabel86[[#This Row],[Total N excretion (kg pr year)]]*Tabel86[[#This Row],[Emissionsfaktor (kgN2O-N pr kg Nex) ]]","v":0},{"$f":"Tabel86[[#This Row],[Total N2O-N]]*44/28","v":0},7.5790225283022858E-2,{"$f":"Tabel86[[#This Row],[Total N excretion (kg pr year)]]*Tabel86[[#This Row],[FracGasMS]]","v":0},0.01,{"$f":"Tabel86[[#This Row],[Total N fra fordampning]]*Tabel86[[#This Row],[Emissionsfaktor (EF4)]]","v":0},{"$f":"Tabel86[[#This Row],[Total N2O-N2 kg]]*44/28","v":0},{"$f":"Tabel86[[#This Row],[Total N2O direkte, kg]]+Tabel86[[#This Row],[Total N2O indirekte, kg ]]","v":0}]
["Suckling cattle >600 kg","Andet kvæg","Ammekøer, 1 årsko over 600 kg","Tethered with urine and solid manure","Bindestald med grebning","Staldgødning",{"$f":"IFERROR(HLOOKUP(Tabel86[[#This Row],[Staldsystem]],Indtastning!$B$8:$P$21,14,FALSE),0)","v":0},22.66,0,5.0000000000000001E-3,{"$f":"Tabel86[[#This Row],[Total N excretion (kg pr year)]]*Tabel86[[#This Row],[Emissionsfaktor (kgN2O-N pr kg Nex) ]]","v":0},{"$f":"Tabel86[[#This Row],[Total N2O-N]]*44/28","v":0},7.5790225283022858E-2,{"$f":"Tabel86[[#This Row],[Total N excretion (kg pr year)]]*Tabel86[[#This Row],[FracGasMS]]","v":0},0.01,{"$f":"Tabel86[[#This Row],[Total N fra fordampning]]*Tabel86[[#This Row],[Emissionsfaktor (EF4)]]","v":0},{"$f":"Tabel86[[#This Row],[Total N2O-N2 kg]]*44/28","v":0},{"$f":"Tabel86[[#This Row],[Total N2O direkte, kg]]+Tabel86[[#This Row],[Total N2O indirekte, kg ]]","v":0}]
["Suckling cattle >600 kg","Andet kvæg","Ammekøer, 1 årsko over 600 kg","Tethered with urine and solid manure","Bindestald med grebning","Ajle (liquid manure/urin)",{"$f":"IFERROR(HLOOKUP(Tabel86[[#This Row],[Staldsystem]],Indtastning!$B$8:$P$21,14,FALSE),0)","v":0},40.799999999999997,0,5.0000000000000001E-3,{"$f":"Tabel86[[#This Row],[Total N excretion (kg pr year)]]*Tabel86[[#This Row],[Emissionsfaktor (kgN2O-N pr kg Nex) ]]","v":0},{"$f":"Tabel86[[#This Row],[Total N2O-N]]*44/28","v":0},7.5790225283022858E-2,{"$f":"Tabel86[[#This Row],[Total N excretion (kg pr year)]]*Tabel86[[#This Row],[FracGasMS]]","v":0},0.01,{"$f":"Tabel86[[#This Row],[Total N fra fordampning]]*Tabel86[[#This Row],[Emissionsfaktor (EF4)]]","v":0},{"$f":"Tabel86[[#This Row],[Total N2O-N2 kg]]*44/28","v":0},{"$f":"Tabel86[[#This Row],[Total N2O direkte, kg]]+Tabel86[[#This Row],[Total N2O indirekte, kg ]]","v":0}]
["Suckling cattle >600 kg","Andet kvæg","Ammekøer, 1 årsko over 600 kg","Tethered with slurry","Bindestald med riste","Gylle",{"$f":"IFERROR(HLOOKUP(Tabel86[[#This Row],[Staldsystem]],Indtastning!$B$8:$P$21,14,FALSE),0)","v":0},68.41,0,5.0000000000000001E-3,{"$f":"Tabel86[[#This Row],[Total N excretion (kg pr year)]]*Tabel86[[#This Row],[Emissionsfaktor (kgN2O-N pr kg Nex) ]]","v":0},{"$f":"Tabel86[[#This Row],[Total N2O-N]]*44/28","v":0},7.5790225283022858E-2,{"$f":"Tabel86[[#This Row],[Total N excretion (kg pr year)]]*Tabel86[[#This Row],[FracGasMS]]","v":0},0.01,{"$f":"Tabel86[[#This Row],[Total N fra fordampning]]*Tabel86[[#This Row],[Emissionsfaktor (EF4)]]","v":0},{"$f":"Tabel86[[#This Row],[Total N2O-N2 kg]]*44/28","v":0},{"$f":"Tabel86[[#This Row],[Total N2O direkte, kg]]+Tabel86[[#This Row],[Total N2O indirekte, kg ]]","v":0}]
["Suckling cattle >600 kg","Andet kvæg","Ammekøer, 1 årsko over 600 kg","Deep litter (all)","Dybstrøelse (hele arealet)","Dybstrøelse",{"$f":"IFERROR(HLOOKUP(Tabel86[[#This Row],[Staldsystem]],Indtastning!$B$8:$P$21,14,FALSE),0)","v":0},72.150000000000006,0,0.01,{"$f":"Tabel86[[#This Row],[Total N excretion (kg pr year)]]*Tabel86[[#This Row],[Emissionsfaktor (kgN2O-N pr kg Nex) ]]","v":0},{"$f":"Tabel86[[#This Row],[Total N2O-N]]*44/28","v":0},7.5790225283022858E-2,{"$f":"Tabel86[[#This Row],[Total N excretion (kg pr year)]]*Tabel86[[#This Row],[FracGasMS]]","v":0},0.01,{"$f":"Tabel86[[#This Row],[Total N fra fordampning]]*Tabel86[[#This Row],[Emissionsfaktor (EF4)]]","v":0},{"$f":"Tabel86[[#This Row],[Total N2O-N2 kg]]*44/28","v":0},{"$f":"Tabel86[[#This Row],[Total N2O direkte, kg]]+Tabel86[[#This Row],[Total N2O indirekte, kg ]]","v":0}]
["Suckling cattle >600 kg","Andet kvæg","Ammekøer, 1 årsko over 600 kg","Deep litter, long eating space, solid floor","Dybstrøelse, lang ædeplads med fast gulv","Dybstrøelse",{"$f":"IFERROR(HLOOKUP(Tabel86[[#This Row],[Staldsystem]],Indtastning!$B$8:$P$21,14,FALSE),0)","v":0},44.18,{"$f":"G131*H131","v":0},0.01,{"$f":"Tabel86[[#This Row],[Total N excretion (kg pr year)]]*Tabel86[[#This Row],[Emissionsfaktor (kgN2O-N pr kg Nex) ]]","v":0},{"$f":"Tabel86[[#This Row],[Total N2O-N]]*44/28","v":0},7.5790225283022858E-2,{"$f":"Tabel86[[#This Row],[Total N excretion (kg pr year)]]*Tabel86[[#This Row],[FracGasMS]]","v":0},0.01,{"$f":"Tabel86[[#This Row],[Total N fra fordampning]]*Tabel86[[#This Row],[Emissionsfaktor (EF4)]]","v":0},{"$f":"Tabel86[[#This Row],[Total N2O-N2 kg]]*44/28","v":0},{"$f":"Tabel86[[#This Row],[Total N2O direkte, kg]]+Tabel86[[#This Row],[Total N2O indirekte, kg ]]","v":0}]
["Suckling cattle >600 kg","Andet kvæg","Ammekøer, 1 årsko over 600 kg","Deep litter, long eating space, solid floor","Dybstrøelse, lang ædeplads med fast gulv","Gylle",{"$f":"IFERROR(HLOOKUP(Tabel86[[#This Row],[Staldsystem]],Indtastning!$B$8:$P$21,14,FALSE),0)","v":0},24.4,0,5.0000000000000001E-3,{"$f":"Tabel86[[#This Row],[Total N excretion (kg pr year)]]*Tabel86[[#This Row],[Emissionsfaktor (kgN2O-N pr kg Nex) ]]","v":0},{"$f":"Tabel86[[#This Row],[Total N2O-N]]*44/28","v":0},7.5790225283022858E-2,{"$f":"Tabel86[[#This Row],[Total N excretion (kg pr year)]]*Tabel86[[#This Row],[FracGasMS]]","v":0},0.01,{"$f":"Tabel86[[#This Row],[Total N fra fordampning]]*Tabel86[[#This Row],[Emissionsfaktor (EF4)]]","v":0},{"$f":"Tabel86[[#This Row],[Total N2O-N2 kg]]*44/28","v":0},{"$f":"Tabel86[[#This Row],[Total N2O direkte, kg]]+Tabel86[[#This Row],[Total N2O indirekte, kg ]]","v":0}]
["Suckling cattle >600 kg","Andet kvæg","Ammekøer, 1 årsko over 600 kg","Deep litter, solid floor","Dybstrøelse + kort ædeplads med fast gulv","Dybstrøelse",{"$f":"IFERROR(HLOOKUP(Tabel86[[#This Row],[Staldsystem]],Indtastning!$B$8:$P$21,14,FALSE),0)","v":0},71.400000000000006,0,0.01,{"$f":"Tabel86[[#This Row],[Total N excretion (kg pr year)]]*Tabel86[[#This Row],[Emissionsfaktor (kgN2O-N pr kg Nex) ]]","v":0},{"$f":"Tabel86[[#This Row],[Total N2O-N]]*44/28","v":0},7.5790225283022858E-2,{"$f":"Tabel86[[#This Row],[Total N excretion (kg pr year)]]*Tabel86[[#This Row],[FracGasMS]]","v":0},0.01,{"$f":"Tabel86[[#This Row],[Total N fra fordampning]]*Tabel86[[#This Row],[Emissionsfaktor (EF4)]]","v":0},{"$f":"Tabel86[[#This Row],[Total N2O-N2 kg]]*44/28","v":0},{"$f":"Tabel86[[#This Row],[Total N2O direkte, kg]]+Tabel86[[#This Row],[Total N2O indirekte, kg ]]","v":0}]
["Suckling cattle >600 kg","Andet kvæg","Ammekøer, 1 årsko over 600 kg","Deep litter, slatted floor","Dybstrøelse, lang ædeplads med spalter (kanal, linespil)","Dybstrøelse",{"$f":"IFERROR(HLOOKUP(Tabel86[[#This Row],[Staldsystem]],Indtastning!$B$8:$P$21,14,FALSE),0)","v":0},44.18,0,0.01,{"$f":"Tabel86[[#This Row],[Total N excretion (kg pr year)]]*Tabel86[[#This Row],[Emissionsfaktor (kgN2O-N pr kg Nex) ]]","v":0},{"$f":"Tabel86[[#This Row],[Total N2O-N]]*44/28","v":0},7.5790225283022858E-2,{"$f":"Tabel86[[#This Row],[Total N excretion (kg pr year)]]*Tabel86[[#This Row],[FracGasMS]]","v":0},0.01,{"$f":"Tabel86[[#This Row],[Total N fra fordampning]]*Tabel86[[#This Row],[Emissionsfaktor (EF4)]]","v":0},{"$f":"Tabel86[[#This Row],[Total N2O-N2 kg]]*44/28","v":0},{"$f":"Tabel86[[#This Row],[Total N2O direkte, kg]]+Tabel86[[#This Row],[Total N2O indirekte, kg ]]","v":0}]
["Suckling cattle >600 kg","Andet kvæg","Ammekøer, 1 årsko over 600 kg","Deep litter, slatted floor","Dybstrøelse, lang ædeplads med spalter (kanal, linespil)","Gylle",{"$f":"IFERROR(HLOOKUP(Tabel86[[#This Row],[Staldsystem]],Indtastning!$B$8:$P$21,14,FALSE),0)","v":0},25.95,0,5.0000000000000001E-3,{"$f":"Tabel86[[#This Row],[Total N excretion (kg pr year)]]*Tabel86[[#This Row],[Emissionsfaktor (kgN2O-N pr kg Nex) ]]","v":0},{"$f":"Tabel86[[#This Row],[Total N2O-N]]*44/28","v":0},7.5790225283022858E-2,{"$f":"Tabel86[[#This Row],[Total N excretion (kg pr year)]]*Tabel86[[#This Row],[FracGasMS]]","v":0},0.01,{"$f":"Tabel86[[#This Row],[Total N fra fordampning]]*Tabel86[[#This Row],[Emissionsfaktor (EF4)]]","v":0},{"$f":"Tabel86[[#This Row],[Total N2O-N2 kg]]*44/28","v":0},{"$f":"Tabel86[[#This Row],[Total N2O direkte, kg]]+Tabel86[[#This Row],[Total N2O indirekte, kg ]]","v":0}]
["Suckling cattle >600 kg","Andet kvæg","Ammekøer, 1 årsko over 600 kg","Deep litter, slatted floor, scrape","Dybstrøelse, lang ædeplads med spalter (kanal, bagskyl eller ringkanal)","Dybstrøelse",{"$f":"IFERROR(HLOOKUP(Tabel86[[#This Row],[Staldsystem]],Indtastning!$B$8:$P$21,14,FALSE),0)","v":0},44.18,0,0.01,{"$f":"Tabel86[[#This Row],[Total N excretion (kg pr year)]]*Tabel86[[#This Row],[Emissionsfaktor (kgN2O-N pr kg Nex) ]]","v":0},{"$f":"Tabel86[[#This Row],[Total N2O-N]]*44/28","v":0},7.5790225283022858E-2,{"$f":"Tabel86[[#This Row],[Total N excretion (kg pr year)]]*Tabel86[[#This Row],[FracGasMS]]","v":0},0.01,{"$f":"Tabel86[[#This Row],[Total N fra fordampning]]*Tabel86[[#This Row],[Emissionsfaktor (EF4)]]","v":0},{"$f":"Tabel86[[#This Row],[Total N2O-N2 kg]]*44/28","v":0},{"$f":"Tabel86[[#This Row],[Total N2O direkte, kg]]+Tabel86[[#This Row],[Total N2O indirekte, kg ]]","v":0}]
["Suckling cattle >600 kg","Andet kvæg","Ammekøer, 1 årsko over 600 kg","Deep litter, slatted floor, scrape","Dybstrøelse, lang ædeplads med spalter (kanal, bagskyl eller ringkanal)","Gylle",{"$f":"IFERROR(HLOOKUP(Tabel86[[#This Row],[Staldsystem]],Indtastning!$B$8:$P$21,14,FALSE),0)","v":0},25.18,0,5.0000000000000001E-3,{"$f":"Tabel86[[#This Row],[Total N excretion (kg pr year)]]*Tabel86[[#This Row],[Emissionsfaktor (kgN2O-N pr kg Nex) ]]","v":0},{"$f":"Tabel86[[#This Row],[Total N2O-N]]*44/28","v":0},7.5790225283022858E-2,{"$f":"Tabel86[[#This Row],[Total N excretion (kg pr year)]]*Tabel86[[#This Row],[FracGasMS]]","v":0},0.01,{"$f":"Tabel86[[#This Row],[Total N fra fordampning]]*Tabel86[[#This Row],[Emissionsfaktor (EF4)]]","v":0},{"$f":"Tabel86[[#This Row],[Total N2O-N2 kg]]*44/28","v":0},{"$f":"Tabel86[[#This Row],[Total N2O direkte, kg]]+Tabel86[[#This Row],[Total N2O indirekte, kg ]]","v":0}]
["Sows, gastation period","Svin","1 årsso med 30 grise til 7,0 kg","Deep litter + solid floor","Løsgående, dybstrøelse + fast gulv","Dybstrøelse",{"$f":"IFERROR(HLOOKUP(Tabel86[[#This Row],[Staldsystem]],Indtastning!$A$28:$S$32,2,FALSE),0)","v":0},4.72,0,7.0000000000000007E-2,{"$f":"Tabel86[[#This Row],[Total N excretion (kg pr year)]]*Tabel86[[#This Row],[Emissionsfaktor (kgN2O-N pr kg Nex) ]]","v":0},{"$f":"Tabel86[[#This Row],[Total N2O-N]]*44/28","v":0},0.1674732172242441,{"$f":"Tabel86[[#This Row],[Total N excretion (kg pr year)]]*Tabel86[[#This Row],[FracGasMS]]","v":0},0.01,{"$f":"Tabel86[[#This Row],[Total N fra fordampning]]*Tabel86[[#This Row],[Emissionsfaktor (EF4)]]","v":0},{"$f":"Tabel86[[#This Row],[Total N2O-N2 kg]]*44/28","v":0},{"$f":"Tabel86[[#This Row],[Total N2O direkte, kg]]+Tabel86[[#This Row],[Total N2O indirekte, kg ]]","v":0}]
["Sows, gastation period","Svin","1 årsso med 30 grise til 7,0 kg","Deep litter + solid floor","Løsgående, dybstrøelse + fast gulv","Gylle",{"$f":"IFERROR(HLOOKUP(Tabel86[[#This Row],[Staldsystem]],Indtastning!$A$28:$S$32,2,FALSE),0)","v":0},9.83,0,5.0000000000000001E-3,{"$f":"Tabel86[[#This Row],[Total N excretion (kg pr year)]]*Tabel86[[#This Row],[Emissionsfaktor (kgN2O-N pr kg Nex) ]]","v":0},{"$f":"Tabel86[[#This Row],[Total N2O-N]]*44/28","v":0},0.1674732172242441,{"$f":"Tabel86[[#This Row],[Total N excretion (kg pr year)]]*Tabel86[[#This Row],[FracGasMS]]","v":0},0.01,{"$f":"Tabel86[[#This Row],[Total N fra fordampning]]*Tabel86[[#This Row],[Emissionsfaktor (EF4)]]","v":0},{"$f":"Tabel86[[#This Row],[Total N2O-N2 kg]]*44/28","v":0},{"$f":"Tabel86[[#This Row],[Total N2O direkte, kg]]+Tabel86[[#This Row],[Total N2O indirekte, kg ]]","v":0}]
["Sows, gastation period","Svin","1 årsso med 30 grise til 7,0 kg","Deep litter + slatted floor","Løsgående, dybstrøelse + spaltegulv","Dybstrøelse",{"$f":"IFERROR(HLOOKUP(Tabel86[[#This Row],[Staldsystem]],Indtastning!$A$28:$S$32,2,FALSE),0)","v":0},4.72,0,7.0000000000000007E-2,{"$f":"Tabel86[[#This Row],[Total N excretion (kg pr year)]]*Tabel86[[#This Row],[Emissionsfaktor (kgN2O-N pr kg Nex) ]]","v":0},{"$f":"Tabel86[[#This Row],[Total N2O-N]]*44/28","v":0},0.1674732172242441,{"$f":"Tabel86[[#This Row],[Total N excretion (kg pr year)]]*Tabel86[[#This Row],[FracGasMS]]","v":0},0.01,{"$f":"Tabel86[[#This Row],[Total N fra fordampning]]*Tabel86[[#This Row],[Emissionsfaktor (EF4)]]","v":0},{"$f":"Tabel86[[#This Row],[Total N2O-N2 kg]]*44/28","v":0},{"$f":"Tabel86[[#This Row],[Total N2O direkte, kg]]+Tabel86[[#This Row],[Total N2O indirekte, kg ]]","v":0}]
["Sows, gastation period","Svin","1 årsso med 30 grise til 7,0 kg","Deep litter + slatted floor","Løsgående, dybstrøelse + spaltegulv","Gylle",{"$f":"IFERROR(HLOOKUP(Tabel86[[#This Row],[Staldsystem]],Indtastning!$A$28:$S$32,2,FALSE),0)","v":0},10.1,0,5.0000000000000001E-3,{"$f":"Tabel86[[#This Row],[Total N excretion (kg pr year)]]*Tabel86[[#This Row],[Emissionsfaktor (kgN2O-N pr kg Nex) ]]","v":0},{"$f":"Tabel86[[#This Row],[Total N2O-N]]*44/28","v":0},0.1674732172242441,{"$f":"Tabel86[[#This Row],[Total N excretion (kg pr year)]]*Tabel86[[#This Row],[FracGasMS]]","v":0},0.01,{"$f":"Tabel86[[#This Row],[Total N fra fordampning]]*Tabel86[[#This Row],[Emissionsfaktor (EF4)]]","v":0},{"$f":"Tabel86[[#This Row],[Total N2O-N2 kg]]*44/28","v":0},{"$f":"Tabel86[[#This Row],[Total N2O direkte, kg]]+Tabel86[[#This Row],[Total N2O indirekte, kg ]]","v":0}]
["Sows, gastation period","Svin","1 årsso med 30 grise til 7,0 kg","Deep litter, sows","Løsgående, dybstrøelse","Dybstrøelse",{"$f":"IFERROR(HLOOKUP(Tabel86[[#This Row],[Staldsystem]],Indtastning!$A$28:$S$32,2,FALSE),0)","v":0},13.8,0,7.0000000000000007E-2,{"$f":"Tabel86[[#This Row],[Total N excretion (kg pr year)]]*Tabel86[[#This Row],[Emissionsfaktor (kgN2O-N pr kg Nex) ]]","v":0},{"$f":"Tabel86[[#This Row],[Total N2O-N]]*44/28","v":0},0.1674732172242441,{"$f":"Tabel86[[#This Row],[Total N excretion (kg pr year)]]*Tabel86[[#This Row],[FracGasMS]]","v":0},0.01,{"$f":"Tabel86[[#This Row],[Total N fra fordampning]]*Tabel86[[#This Row],[Emissionsfaktor (EF4)]]","v":0},{"$f":"Tabel86[[#This Row],[Total N2O-N2 kg]]*44/28","v":0},{"$f":"Tabel86[[#This Row],[Total N2O direkte, kg]]+Tabel86[[#This Row],[Total N2O indirekte, kg ]]","v":0}]
["Sows, gastation period","Svin","1 årsso med 30 grise til 7,0 kg","Individual housing, partly slatted floor","Individuel opstaldning, delvis spaltegulv","Gylle",{"$f":"IFERROR(HLOOKUP(Tabel86[[#This Row],[Staldsystem]],Indtastning!$A$28:$S$32,2,FALSE),0)","v":0},15.4,0,5.0000000000000001E-3,{"$f":"Tabel86[[#This Row],[Total N excretion (kg pr year)]]*Tabel86[[#This Row],[Emissionsfaktor (kgN2O-N pr kg Nex) ]]","v":0},{"$f":"Tabel86[[#This Row],[Total N2O-N]]*44/28","v":0},0.1674732172242441,{"$f":"Tabel86[[#This Row],[Total N excretion (kg pr year)]]*Tabel86[[#This Row],[FracGasMS]]","v":0},0.01,{"$f":"Tabel86[[#This Row],[Total N fra fordampning]]*Tabel86[[#This Row],[Emissionsfaktor (EF4)]]","v":0},{"$f":"Tabel86[[#This Row],[Total N2O-N2 kg]]*44/28","v":0},{"$f":"Tabel86[[#This Row],[Total N2O direkte, kg]]+Tabel86[[#This Row],[Total N2O indirekte, kg ]]","v":0}]
["Sows, gastation period","Svin","1 årsso med 30 grise til 7,0 kg","Individual housing, fully slatted floor","Individuel opstaldning, fuldspaltegulv","Gylle",{"$f":"IFERROR(HLOOKUP(Tabel86[[#This Row],[Staldsystem]],Indtastning!$A$28:$S$32,2,FALSE),0)","v":0},14.7,0,5.0000000000000001E-3,{"$f":"Tabel86[[#This Row],[Total N excretion (kg pr year)]]*Tabel86[[#This Row],[Emissionsfaktor (kgN2O-N pr kg Nex) ]]","v":0},{"$f":"Tabel86[[#This Row],[Total N2O-N]]*44/28","v":0},0.1674732172242441,{"$f":"Tabel86[[#This Row],[Total N excretion (kg pr year)]]*Tabel86[[#This Row],[FracGasMS]]","v":0},0.01,{"$f":"Tabel86[[#This Row],[Total N fra fordampning]]*Tabel86[[#This Row],[Emissionsfaktor (EF4)]]","v":0},{"$f":"Tabel86[[#This Row],[Total N2O-N2 kg]]*44/28","v":0},{"$f":"Tabel86[[#This Row],[Total N2O direkte, kg]]+Tabel86[[#This Row],[Total N2O indirekte, kg ]]","v":0}]
["Sows, gastation period","Svin","1 årsso med 30 grise til 7,0 kg","Individual housing, solid floor","Individuel opstaldning, fast gulv","Staldgødning",{"$f":"IFERROR(HLOOKUP(Tabel86[[#This Row],[Staldsystem]],Indtastning!$A$28:$S$32,2,FALSE),0)","v":0},4.47,0,5.0000000000000001E-3,{"$f":"Tabel86[[#This Row],[Total N excretion (kg pr year)]]*Tabel86[[#This Row],[Emissionsfaktor (kgN2O-N pr kg Nex) ]]","v":0},{"$f":"Tabel86[[#This Row],[Total N2O-N]]*44/28","v":0},0.1674732172242441,{"$f":"Tabel86[[#This Row],[Total N excretion (kg pr year)]]*Tabel86[[#This Row],[FracGasMS]]","v":0},0.01,{"$f":"Tabel86[[#This Row],[Total N fra fordampning]]*Tabel86[[#This Row],[Emissionsfaktor (EF4)]]","v":0},{"$f":"Tabel86[[#This Row],[Total N2O-N2 kg]]*44/28","v":0},{"$f":"Tabel86[[#This Row],[Total N2O direkte, kg]]+Tabel86[[#This Row],[Total N2O indirekte, kg ]]","v":0}]
["Sows, gastation period","Svin","1 årsso med 30 grise til 7,0 kg","Individual housing, solid floor","Individuel opstaldning, fast gulv","Ajle (liquid manure/urin)",{"$f":"IFERROR(HLOOKUP(Tabel86[[#This Row],[Staldsystem]],Indtastning!$A$28:$S$32,2,FALSE),0)","v":0},7.8,0,5.0000000000000001E-3,{"$f":"Tabel86[[#This Row],[Total N excretion (kg pr year)]]*Tabel86[[#This Row],[Emissionsfaktor (kgN2O-N pr kg Nex) ]]","v":0},{"$f":"Tabel86[[#This Row],[Total N2O-N]]*44/28","v":0},0.1674732172242441,{"$f":"Tabel86[[#This Row],[Total N excretion (kg pr year)]]*Tabel86[[#This Row],[FracGasMS]]","v":0},0.01,{"$f":"Tabel86[[#This Row],[Total N fra fordampning]]*Tabel86[[#This Row],[Emissionsfaktor (EF4)]]","v":0},{"$f":"Tabel86[[#This Row],[Total N2O-N2 kg]]*44/28","v":0},{"$f":"Tabel86[[#This Row],[Total N2O direkte, kg]]+Tabel86[[#This Row],[Total N2O indirekte, kg ]]","v":0}]
["Sows, gastation period","Svin","1 årsso med 30 grise til 7,0 kg","Loose housing, partly slatted floor","Løsgående, delvis spaltegulv","Gylle",{"$f":"IFERROR(HLOOKUP(Tabel86[[#This Row],[Staldsystem]],Indtastning!$A$28:$S$32,2,FALSE),0)","v":0},15.2,0,5.0000000000000001E-3,{"$f":"Tabel86[[#This Row],[Total N excretion (kg pr year)]]*Tabel86[[#This Row],[Emissionsfaktor (kgN2O-N pr kg Nex) ]]","v":0},{"$f":"Tabel86[[#This Row],[Total N2O-N]]*44/28","v":0},0.1674732172242441,{"$f":"Tabel86[[#This Row],[Total N excretion (kg pr year)]]*Tabel86[[#This Row],[FracGasMS]]","v":0},0.01,{"$f":"Tabel86[[#This Row],[Total N fra fordampning]]*Tabel86[[#This Row],[Emissionsfaktor (EF4)]]","v":0},{"$f":"Tabel86[[#This Row],[Total N2O-N2 kg]]*44/28","v":0},{"$f":"Tabel86[[#This Row],[Total N2O direkte, kg]]+Tabel86[[#This Row],[Total N2O indirekte, kg ]]","v":0}]
["Sows, farrow period","Svin","Bidrag fra farestald","Individual housing, partly slatted floor","Kassestier, delvis spaltegulv","Gylle",{"$f":"IFERROR(HLOOKUP(Tabel86[[#This Row],[Staldsystem]],Indtastning!$A$28:$S$32,3,FALSE),0)","v":0},6.61,0,5.0000000000000001E-3,{"$f":"Tabel86[[#This Row],[Total N excretion (kg pr year)]]*Tabel86[[#This Row],[Emissionsfaktor (kgN2O-N pr kg Nex) ]]","v":0},{"$f":"Tabel86[[#This Row],[Total N2O-N]]*44/28","v":0},0.1674732172242441,{"$f":"Tabel86[[#This Row],[Total N excretion (kg pr year)]]*Tabel86[[#This Row],[FracGasMS]]","v":0},0.01,{"$f":"Tabel86[[#This Row],[Total N fra fordampning]]*Tabel86[[#This Row],[Emissionsfaktor (EF4)]]","v":0},{"$f":"Tabel86[[#This Row],[Total N2O-N2 kg]]*44/28","v":0},{"$f":"Tabel86[[#This Row],[Total N2O direkte, kg]]+Tabel86[[#This Row],[Total N2O indirekte, kg ]]","v":0}]
["Sows, farrow period","Svin","Bidrag fra farestald","Individual housing, fully slatted floor","Kassestier, fuldspaltegulv","Gylle",{"$f":"IFERROR(HLOOKUP(Tabel86[[#This Row],[Staldsystem]],Indtastning!$A$28:$S$32,3,FALSE),0)","v":0},5.91,0,5.0000000000000001E-3,{"$f":"Tabel86[[#This Row],[Total N excretion (kg pr year)]]*Tabel86[[#This Row],[Emissionsfaktor (kgN2O-N pr kg Nex) ]]","v":0},{"$f":"Tabel86[[#This Row],[Total N2O-N]]*44/28","v":0},0.1674732172242441,{"$f":"Tabel86[[#This Row],[Total N excretion (kg pr year)]]*Tabel86[[#This Row],[FracGasMS]]","v":0},0.01,{"$f":"Tabel86[[#This Row],[Total N fra fordampning]]*Tabel86[[#This Row],[Emissionsfaktor (EF4)]]","v":0},{"$f":"Tabel86[[#This Row],[Total N2O-N2 kg]]*44/28","v":0},{"$f":"Tabel86[[#This Row],[Total N2O direkte, kg]]+Tabel86[[#This Row],[Total N2O indirekte, kg ]]","v":0}]
["Weaners","Svin","1 smågris (7-31 kg)","Fully slatted floor","Fuldspaltegulv","Gylle",{"$f":"IFERROR(HLOOKUP(Tabel86[[#This Row],[Staldsystem]],Indtastning!$A$28:$S$32,4,FALSE),0)","v":0},0.4,0,5.0000000000000001E-3,{"$f":"Tabel86[[#This Row],[Total N excretion (kg pr year)]]*Tabel86[[#This Row],[Emissionsfaktor (kgN2O-N pr kg Nex) ]]","v":0},{"$f":"Tabel86[[#This Row],[Total N2O-N]]*44/28","v":0},0.1674732172242441,{"$f":"Tabel86[[#This Row],[Total N excretion (kg pr year)]]*Tabel86[[#This Row],[FracGasMS]]","v":0},0.01,{"$f":"Tabel86[[#This Row],[Total N fra fordampning]]*Tabel86[[#This Row],[Emissionsfaktor (EF4)]]","v":0},{"$f":"Tabel86[[#This Row],[Total N2O-N2 kg]]*44/28","v":0},{"$f":"Tabel86[[#This Row],[Total N2O direkte, kg]]+Tabel86[[#This Row],[Total N2O indirekte, kg ]]","v":0}]
["Weaners","Svin","1 smågris (7-31 kg)","Partly slatted floor","To klimastald, delvis spaltegulv","Gylle",{"$f":"IFERROR(HLOOKUP(Tabel86[[#This Row],[Staldsystem]],Indtastning!$A$28:$S$32,4,FALSE),0)","v":0},0.44,0,5.0000000000000001E-3,{"$f":"Tabel86[[#This Row],[Total N excretion (kg pr year)]]*Tabel86[[#This Row],[Emissionsfaktor (kgN2O-N pr kg Nex) ]]","v":0},{"$f":"Tabel86[[#This Row],[Total N2O-N]]*44/28","v":0},0.1674732172242441,{"$f":"Tabel86[[#This Row],[Total N excretion (kg pr year)]]*Tabel86[[#This Row],[FracGasMS]]","v":0},0.01,{"$f":"Tabel86[[#This Row],[Total N fra fordampning]]*Tabel86[[#This Row],[Emissionsfaktor (EF4)]]","v":0},{"$f":"Tabel86[[#This Row],[Total N2O-N2 kg]]*44/28","v":0},{"$f":"Tabel86[[#This Row],[Total N2O direkte, kg]]+Tabel86[[#This Row],[Total N2O indirekte, kg ]]","v":0}]
["Weaners","Svin","1 smågris (7-31 kg)","Solid floor","Fast gulv","Staldgødning",{"$f":"IFERROR(HLOOKUP(Tabel86[[#This Row],[Staldsystem]],Indtastning!$A$28:$S$32,4,FALSE),0)","v":0},0.16,0,5.0000000000000001E-3,{"$f":"Tabel86[[#This Row],[Total N excretion (kg pr year)]]*Tabel86[[#This Row],[Emissionsfaktor (kgN2O-N pr kg Nex) ]]","v":0},{"$f":"Tabel86[[#This Row],[Total N2O-N]]*44/28","v":0},0.1674732172242441,{"$f":"Tabel86[[#This Row],[Total N excretion (kg pr year)]]*Tabel86[[#This Row],[FracGasMS]]","v":0},0.01,{"$f":"Tabel86[[#This Row],[Total N fra fordampning]]*Tabel86[[#This Row],[Emissionsfaktor (EF4)]]","v":0},{"$f":"Tabel86[[#This Row],[Total N2O-N2 kg]]*44/28","v":0},{"$f":"Tabel86[[#This Row],[Total N2O direkte, kg]]+Tabel86[[#This Row],[Total N2O indirekte, kg ]]","v":0}]
["Weaners","Svin","1 smågris (7-31 kg)","solid floor","Fast gulv","Ajle (liquid manure/urin)",{"$f":"IFERROR(HLOOKUP(Tabel86[[#This Row],[Staldsystem]],Indtastning!$A$28:$S$32,4,FALSE),0)","v":0},0.12,0,5.0000000000000001E-3,{"$f":"Tabel86[[#This Row],[Total N excretion (kg pr year)]]*Tabel86[[#This Row],[Emissionsfaktor (kgN2O-N pr kg Nex) ]]","v":0},{"$f":"Tabel86[[#This Row],[Total N2O-N]]*44/28","v":0},0.1674732172242441,{"$f":"Tabel86[[#This Row],[Total N excretion (kg pr year)]]*Tabel86[[#This Row],[FracGasMS]]","v":0},0.01,{"$f":"Tabel86[[#This Row],[Total N fra fordampning]]*Tabel86[[#This Row],[Emissionsfaktor (EF4)]]","v":0},{"$f":"Tabel86[[#This Row],[Total N2O-N2 kg]]*44/28","v":0},{"$f":"Tabel86[[#This Row],[Total N2O direkte, kg]]+Tabel86[[#This Row],[Total N2O indirekte, kg ]]","v":0}]
["Weaners","Svin","1 smågris (7-31 kg)","Deep litter (to-climate housings)","Dybstrøelse","Dybstrøelse",{"$f":"IFERROR(HLOOKUP(Tabel86[[#This Row],[Staldsystem]],Indtastning!$A$28:$S$32,4,FALSE),0)","v":0},0.3,0,7.0000000000000007E-2,{"$f":"Tabel86[[#This Row],[Total N excretion (kg pr year)]]*Tabel86[[#This Row],[Emissionsfaktor (kgN2O-N pr kg Nex) ]]","v":0},{"$f":"Tabel86[[#This Row],[Total N2O-N]]*44/28","v":0},0.1674732172242441,{"$f":"Tabel86[[#This Row],[Total N excretion (kg pr year)]]*Tabel86[[#This Row],[FracGasMS]]","v":0},0.01,{"$f":"Tabel86[[#This Row],[Total N fra fordampning]]*Tabel86[[#This Row],[Emissionsfaktor (EF4)]]","v":0},{"$f":"Tabel86[[#This Row],[Total N2O-N2 kg]]*44/28","v":0},{"$f":"Tabel86[[#This Row],[Total N2O direkte, kg]]+Tabel86[[#This Row],[Total N2O indirekte, kg ]]","v":0}]
["Weaners","Svin","1 smågris (7-31 kg)","Partly slatted and drained floor","Drænet gulv + spalter (50/50)","Gylle",{"$f":"IFERROR(HLOOKUP(Tabel86[[#This Row],[Staldsystem]],Indtastning!$A$28:$S$32,4,FALSE),0)","v":0},0.41,0,5.0000000000000001E-3,{"$f":"Tabel86[[#This Row],[Total N excretion (kg pr year)]]*Tabel86[[#This Row],[Emissionsfaktor (kgN2O-N pr kg Nex) ]]","v":0},{"$f":"Tabel86[[#This Row],[Total N2O-N]]*44/28","v":0},0.1674732172242441,{"$f":"Tabel86[[#This Row],[Total N excretion (kg pr year)]]*Tabel86[[#This Row],[FracGasMS]]","v":0},0.01,{"$f":"Tabel86[[#This Row],[Total N fra fordampning]]*Tabel86[[#This Row],[Emissionsfaktor (EF4)]]","v":0},{"$f":"Tabel86[[#This Row],[Total N2O-N2 kg]]*44/28","v":0},{"$f":"Tabel86[[#This Row],[Total N2O direkte, kg]]+Tabel86[[#This Row],[Total N2O indirekte, kg ]]","v":0}]
["Fattening pigs","Svin","Slagtesvin (31 kg >)","Fully slatted floor","Fuldspaltegulv","Gylle",{"$f":"IFERROR(HLOOKUP(Tabel86[[#This Row],[Staldsystem]],Indtastning!$A$28:$S$32,5,FALSE),0)","v":0},2.4300000000000002,0,5.0000000000000001E-3,{"$f":"Tabel86[[#This Row],[Total N excretion (kg pr year)]]*Tabel86[[#This Row],[Emissionsfaktor (kgN2O-N pr kg Nex) ]]","v":0},{"$f":"Tabel86[[#This Row],[Total N2O-N]]*44/28","v":0},0.1674732172242441,{"$f":"Tabel86[[#This Row],[Total N excretion (kg pr year)]]*Tabel86[[#This Row],[FracGasMS]]","v":0},0.01,{"$f":"Tabel86[[#This Row],[Total N fra fordampning]]*Tabel86[[#This Row],[Emissionsfaktor (EF4)]]","v":0},{"$f":"Tabel86[[#This Row],[Total N2O-N2 kg]]*44/28","v":0},{"$f":"Tabel86[[#This Row],[Total N2O direkte, kg]]+Tabel86[[#This Row],[Total N2O indirekte, kg ]]","v":0}]
["Fattening pigs","Svin","Slagtesvin (31 kg >)","Solid floor","Fast gulv","Ajle (liquid manure/urin)",{"$f":"IFERROR(HLOOKUP(Tabel86[[#This Row],[Staldsystem]],Indtastning!$A$28:$S$32,5,FALSE),0)","v":0},0.96099999999999997,0,5.0000000000000001E-3,{"$f":"Tabel86[[#This Row],[Total N excretion (kg pr year)]]*Tabel86[[#This Row],[Emissionsfaktor (kgN2O-N pr kg Nex) ]]","v":0},{"$f":"Tabel86[[#This Row],[Total N2O-N]]*44/28","v":0},0.1674732172242441,{"$f":"Tabel86[[#This Row],[Total N excretion (kg pr year)]]*Tabel86[[#This Row],[FracGasMS]]","v":0},0.01,{"$f":"Tabel86[[#This Row],[Total N fra fordampning]]*Tabel86[[#This Row],[Emissionsfaktor (EF4)]]","v":0},{"$f":"Tabel86[[#This Row],[Total N2O-N2 kg]]*44/28","v":0},{"$f":"Tabel86[[#This Row],[Total N2O direkte, kg]]+Tabel86[[#This Row],[Total N2O indirekte, kg ]]","v":0}]
["Fattening pigs","Svin","Slagtesvin (31 kg >)","Solid floor","Fast gulv","Staldgødning",{"$f":"IFERROR(HLOOKUP(Tabel86[[#This Row],[Staldsystem]],Indtastning!$A$28:$S$32,5,FALSE),0)","v":0},0.94799999999999995,0,5.0000000000000001E-3,{"$f":"Tabel86[[#This Row],[Total N excretion (kg pr year)]]*Tabel86[[#This Row],[Emissionsfaktor (kgN2O-N pr kg Nex) ]]","v":0},{"$f":"Tabel86[[#This Row],[Total N2O-N]]*44/28","v":0},0.1674732172242441,{"$f":"Tabel86[[#This Row],[Total N excretion (kg pr year)]]*Tabel86[[#This Row],[FracGasMS]]","v":0},0.01,{"$f":"Tabel86[[#This Row],[Total N fra fordampning]]*Tabel86[[#This Row],[Emissionsfaktor (EF4)]]","v":0},{"$f":"Tabel86[[#This Row],[Total N2O-N2 kg]]*44/28","v":0},{"$f":"Tabel86[[#This Row],[Total N2O direkte, kg]]+Tabel86[[#This Row],[Total N2O indirekte, kg ]]","v":0}]
["Fattening pigs","Svin","Slagtesvin (31 kg >)","Deep litter, fattening pigs","Dybstrøelse","Dybstrøelse",{"$f":"IFERROR(HLOOKUP(Tabel86[[#This Row],[Staldsystem]],Indtastning!$A$28:$S$32,5,FALSE),0)","v":0},1.97,0,7.0000000000000007E-2,{"$f":"Tabel86[[#This Row],[Total N excretion (kg pr year)]]*Tabel86[[#This Row],[Emissionsfaktor (kgN2O-N pr kg Nex) ]]","v":0},{"$f":"Tabel86[[#This Row],[Total N2O-N]]*44/28","v":0},0.1674732172242441,{"$f":"Tabel86[[#This Row],[Total N excretion (kg pr year)]]*Tabel86[[#This Row],[FracGasMS]]","v":0},0.01,{"$f":"Tabel86[[#This Row],[Total N fra fordampning]]*Tabel86[[#This Row],[Emissionsfaktor (EF4)]]","v":0},{"$f":"Tabel86[[#This Row],[Total N2O-N2 kg]]*44/28","v":0},{"$f":"Tabel86[[#This Row],[Total N2O direkte, kg]]+Tabel86[[#This Row],[Total N2O indirekte, kg ]]","v":0}]
["Fattening pigs","Svin","Slagtesvin (31 kg >)","Partly slatted floor and partly deep litter","Dybstrøelse, opdelt lejeareal","Dybstrøelse",{"$f":"IFERROR(HLOOKUP(Tabel86[[#This Row],[Staldsystem]],Indtastning!$A$28:$S$32,5,FALSE),0)","v":0},0.98499999999999999,0,7.0000000000000007E-2,{"$f":"Tabel86[[#This Row],[Total N excretion (kg pr year)]]*Tabel86[[#This Row],[Emissionsfaktor (kgN2O-N pr kg Nex) ]]","v":0},{"$f":"Tabel86[[#This Row],[Total N2O-N]]*44/28","v":0},0.1674732172242441,{"$f":"Tabel86[[#This Row],[Total N excretion (kg pr year)]]*Tabel86[[#This Row],[FracGasMS]]","v":0},0.01,{"$f":"Tabel86[[#This Row],[Total N fra fordampning]]*Tabel86[[#This Row],[Emissionsfaktor (EF4)]]","v":0},{"$f":"Tabel86[[#This Row],[Total N2O-N2 kg]]*44/28","v":0},{"$f":"Tabel86[[#This Row],[Total N2O direkte, kg]]+Tabel86[[#This Row],[Total N2O indirekte, kg ]]","v":0}]
["Fattening pigs","Svin","Slagtesvin (31 kg >)","Partly slatted floor and partly deep litter","Dybstrøelse, opdelt lejeareal","Gylle",{"$f":"IFERROR(HLOOKUP(Tabel86[[#This Row],[Staldsystem]],Indtastning!$A$28:$S$32,5,FALSE),0)","v":0},1.2709999999999999,0,5.0000000000000001E-3,{"$f":"Tabel86[[#This Row],[Total N excretion (kg pr year)]]*Tabel86[[#This Row],[Emissionsfaktor (kgN2O-N pr kg Nex) ]]","v":0},{"$f":"Tabel86[[#This Row],[Total N2O-N]]*44/28","v":0},0.1674732172242441,{"$f":"Tabel86[[#This Row],[Total N excretion (kg pr year)]]*Tabel86[[#This Row],[FracGasMS]]","v":0},0.01,{"$f":"Tabel86[[#This Row],[Total N fra fordampning]]*Tabel86[[#This Row],[Emissionsfaktor (EF4)]]","v":0},{"$f":"Tabel86[[#This Row],[Total N2O-N2 kg]]*44/28","v":0},{"$f":"Tabel86[[#This Row],[Total N2O direkte, kg]]+Tabel86[[#This Row],[Total N2O indirekte, kg ]]","v":0}]
["Fattening pigs","Svin","Slagtesvin (31 kg >)","Partly slatted and drained floor","Drænet gulv + spalter (33/67)","Gylle",{"$f":"IFERROR(HLOOKUP(Tabel86[[#This Row],[Staldsystem]],Indtastning!$A$28:$S$32,5,FALSE),0)","v":0},2.4900000000000002,0,5.0000000000000001E-3,{"$f":"Tabel86[[#This Row],[Total N excretion (kg pr year)]]*Tabel86[[#This Row],[Emissionsfaktor (kgN2O-N pr kg Nex) ]]","v":0},{"$f":"Tabel86[[#This Row],[Total N2O-N]]*44/28","v":0},0.1674732172242441,{"$f":"Tabel86[[#This Row],[Total N excretion (kg pr year)]]*Tabel86[[#This Row],[FracGasMS]]","v":0},0.01,{"$f":"Tabel86[[#This Row],[Total N fra fordampning]]*Tabel86[[#This Row],[Emissionsfaktor (EF4)]]","v":0},{"$f":"Tabel86[[#This Row],[Total N2O-N2 kg]]*44/28","v":0},{"$f":"Tabel86[[#This Row],[Total N2O direkte, kg]]+Tabel86[[#This Row],[Total N2O indirekte, kg ]]","v":0}]
["Fattening pigs","Svin","Slagtesvin (31 kg >)","Biogas","Biogas",null,{"$f":"IFERROR(HLOOKUP(Tabel86[[#This Row],[Staldsystem]],Indtastning!$A$28:$S$32,5,FALSE),0)","v":0},2.4300000000000002,{"$f":"G163*H163","v":0},5.0000000000000001E-3,{"$f":"Tabel86[[#This Row],[Total N excretion (kg pr year)]]*Tabel86[[#This Row],[Emissionsfaktor (kgN2O-N pr kg Nex) ]]","v":0},{"$f":"Tabel86[[#This Row],[Total N2O-N]]*44/28","v":0},0.1674732172242441,{"$f":"Tabel86[[#This Row],[Total N excretion (kg pr year)]]*Tabel86[[#This Row],[FracGasMS]]","v":0},0.01,{"$f":"Tabel86[[#This Row],[Total N fra fordampning]]*Tabel86[[#This Row],[Emissionsfaktor (EF4)]]","v":0},{"$f":"Tabel86[[#This Row],[Total N2O-N2 kg]]*44/28","v":0},{"$f":"Tabel86[[#This Row],[Total N2O direkte, kg]]+Tabel86[[#This Row],[Total N2O indirekte, kg ]]","v":0}]
["Hens","Andet","Høns","Free-range hens","Friland, konsumæg","Staldgødning",{"$f":"IFERROR(HLOOKUP(Tabel86[[#This Row],[Staldsystem]],Indtastning!$B$39:$O$42,2,FALSE),0)","v":0},{"$f":"25.44/100","v":0.25440000000000002},0,1E-3,{"$f":"Tabel86[[#This Row],[Total N excretion (kg pr year)]]*Tabel86[[#This Row],[Emissionsfaktor (kgN2O-N pr kg Nex) ]]","v":0},{"$f":"Tabel86[[#This Row],[Total N2O-N]]*44/28","v":0},0.41337774098143881,{"$f":"Tabel86[[#This Row],[Total N excretion (kg pr year)]]*Tabel86[[#This Row],[FracGasMS]]","v":0},0.01,{"$f":"Tabel86[[#This Row],[Total N fra fordampning]]*Tabel86[[#This Row],[Emissionsfaktor (EF4)]]","v":0},{"$f":"Tabel86[[#This Row],[Total N2O-N2 kg]]*44/28","v":0},{"$f":"Tabel86[[#This Row],[Total N2O direkte, kg]]+Tabel86[[#This Row],[Total N2O indirekte, kg ]]","v":0}]
["Hens","Andet","Høns","Free-range hens","Friland, konsumæg","Dybstrøelse",{"$f":"IFERROR(HLOOKUP(Tabel86[[#This Row],[Staldsystem]],Indtastning!$B$39:$O$42,2,FALSE),0)","v":0},{"$f":"16.1/100","v":0.161},0,1E-3,{"$f":"Tabel86[[#This Row],[Total N excretion (kg pr year)]]*Tabel86[[#This Row],[Emissionsfaktor (kgN2O-N pr kg Nex) ]]","v":0},{"$f":"Tabel86[[#This Row],[Total N2O-N]]*44/28","v":0},0.41337774098143881,{"$f":"Tabel86[[#This Row],[Total N excretion (kg pr year)]]*Tabel86[[#This Row],[FracGasMS]]","v":0},0.01,{"$f":"Tabel86[[#This Row],[Total N fra fordampning]]*Tabel86[[#This Row],[Emissionsfaktor (EF4)]]","v":0},{"$f":"Tabel86[[#This Row],[Total N2O-N2 kg]]*44/28","v":0},{"$f":"Tabel86[[#This Row],[Total N2O direkte, kg]]+Tabel86[[#This Row],[Total N2O indirekte, kg ]]","v":0}]
["Hens","Andet","Høns","Free-range hens","Friland, konsumæg","Udeareal",{"$f":"IFERROR(HLOOKUP(Tabel86[[#This Row],[Staldsystem]],Indtastning!$B$39:$O$42,2,FALSE),0)","v":0},{"$f":"8.31/100","v":8.3100000000000007E-2},0,1E-3,{"$f":"Tabel86[[#This Row],[Total N excretion (kg pr year)]]*Tabel86[[#This Row],[Emissionsfaktor (kgN2O-N pr kg Nex) ]]","v":0},{"$f":"Tabel86[[#This Row],[Total N2O-N]]*44/28","v":0},0.41337774098143881,{"$f":"Tabel86[[#This Row],[Total N excretion (kg pr year)]]*Tabel86[[#This Row],[FracGasMS]]","v":0},0.01,{"$f":"Tabel86[[#This Row],[Total N fra fordampning]]*Tabel86[[#This Row],[Emissionsfaktor (EF4)]]","v":0},{"$f":"Tabel86[[#This Row],[Total N2O-N2 kg]]*44/28","v":0},{"$f":"Tabel86[[#This Row],[Total N2O direkte, kg]]+Tabel86[[#This Row],[Total N2O indirekte, kg ]]","v":0}]
["Hens","Andet","Høns","Organic hens","Økologiske, konsumæg","Staldgødning",{"$f":"IFERROR(HLOOKUP(Tabel86[[#This Row],[Staldsystem]],Indtastning!$B$39:$O$42,2,FALSE),0)","v":0},{"$f":"26.6/100","v":0.26600000000000001},0,1E-3,{"$f":"Tabel86[[#This Row],[Total N excretion (kg pr year)]]*Tabel86[[#This Row],[Emissionsfaktor (kgN2O-N pr kg Nex) ]]","v":0},{"$f":"Tabel86[[#This Row],[Total N2O-N]]*44/28","v":0},0.41337774098143881,{"$f":"Tabel86[[#This Row],[Total N excretion (kg pr year)]]*Tabel86[[#This Row],[FracGasMS]]","v":0},0.01,{"$f":"Tabel86[[#This Row],[Total N fra fordampning]]*Tabel86[[#This Row],[Emissionsfaktor (EF4)]]","v":0},{"$f":"Tabel86[[#This Row],[Total N2O-N2 kg]]*44/28","v":0},{"$f":"Tabel86[[#This Row],[Total N2O direkte, kg]]+Tabel86[[#This Row],[Total N2O indirekte, kg ]]","v":0}]
["Hens","Andet","Høns","Organic hens","Økologiske, konsumæg","Dybstrøelse",{"$f":"IFERROR(HLOOKUP(Tabel86[[#This Row],[Staldsystem]],Indtastning!$B$39:$O$42,2,FALSE),0)","v":0},{"$f":"16.95/100","v":0.16949999999999998},0,1E-3,{"$f":"Tabel86[[#This Row],[Total N excretion (kg pr year)]]*Tabel86[[#This Row],[Emissionsfaktor (kgN2O-N pr kg Nex) ]]","v":0},{"$f":"Tabel86[[#This Row],[Total N2O-N]]*44/28","v":0},0.41337774098143881,{"$f":"Tabel86[[#This Row],[Total N excretion (kg pr year)]]*Tabel86[[#This Row],[FracGasMS]]","v":0},0.01,{"$f":"Tabel86[[#This Row],[Total N fra fordampning]]*Tabel86[[#This Row],[Emissionsfaktor (EF4)]]","v":0},{"$f":"Tabel86[[#This Row],[Total N2O-N2 kg]]*44/28","v":0},{"$f":"Tabel86[[#This Row],[Total N2O direkte, kg]]+Tabel86[[#This Row],[Total N2O indirekte, kg ]]","v":0}]
["Hens","Andet","Høns","Organic hens","Økologiske, konsumæg","Udeareal",{"$f":"IFERROR(HLOOKUP(Tabel86[[#This Row],[Staldsystem]],Indtastning!$B$39:$O$42,2,FALSE),0)","v":0},{"$f":"8.69/100","v":8.6899999999999991E-2},0,1E-3,{"$f":"Tabel86[[#This Row],[Total N excretion (kg pr year)]]*Tabel86[[#This Row],[Emissionsfaktor (kgN2O-N pr kg Nex) ]]","v":0},{"$f":"Tabel86[[#This Row],[Total N2O-N]]*44/28","v":0},0.41337774098143881,{"$f":"Tabel86[[#This Row],[Total N excretion (kg pr year)]]*Tabel86[[#This Row],[FracGasMS]]","v":0},0.01,{"$f":"Tabel86[[#This Row],[Total N fra fordampning]]*Tabel86[[#This Row],[Emissionsfaktor (EF4)]]","v":0},{"$f":"Tabel86[[#This Row],[Total N2O-N2 kg]]*44/28","v":0},{"$f":"Tabel86[[#This Row],[Total N2O direkte, kg]]+Tabel86[[#This Row],[Total N2O indirekte, kg ]]","v":0}]
["Hens","Andet","Høns","Barn hens","Skrabehøner, konsumæg","Staldgødning",{"$f":"IFERROR(HLOOKUP(Tabel86[[#This Row],[Staldsystem]],Indtastning!$B$39:$O$42,2,FALSE),0)","v":0},{"$f":"17.66/100","v":0.17660000000000001},0,1E-3,{"$f":"Tabel86[[#This Row],[Total N excretion (kg pr year)]]*Tabel86[[#This Row],[Emissionsfaktor (kgN2O-N pr kg Nex) ]]","v":0},{"$f":"Tabel86[[#This Row],[Total N2O-N]]*44/28","v":0},0.41337774098143881,{"$f":"Tabel86[[#This Row],[Total N excretion (kg pr year)]]*Tabel86[[#This Row],[FracGasMS]]","v":0},0.01,{"$f":"Tabel86[[#This Row],[Total N fra fordampning]]*Tabel86[[#This Row],[Emissionsfaktor (EF4)]]","v":0},{"$f":"Tabel86[[#This Row],[Total N2O-N2 kg]]*44/28","v":0},{"$f":"Tabel86[[#This Row],[Total N2O direkte, kg]]+Tabel86[[#This Row],[Total N2O indirekte, kg ]]","v":0}]
["Hens","Andet","Høns","Barn hens","Skrabehøner, konsumæg","Udeareal",{"$f":"IFERROR(HLOOKUP(Tabel86[[#This Row],[Staldsystem]],Indtastning!$B$39:$O$42,2,FALSE),0)","v":0},{"$f":"28.38/100","v":0.2838},0,1E-3,{"$f":"Tabel86[[#This Row],[Total N excretion (kg pr year)]]*Tabel86[[#This Row],[Emissionsfaktor (kgN2O-N pr kg Nex) ]]","v":0},{"$f":"Tabel86[[#This Row],[Total N2O-N]]*44/28","v":0},0.41337774098143881,{"$f":"Tabel86[[#This Row],[Total N excretion (kg pr year)]]*Tabel86[[#This Row],[FracGasMS]]","v":0},0.01,{"$f":"Tabel86[[#This Row],[Total N fra fordampning]]*Tabel86[[#This Row],[Emissionsfaktor (EF4)]]","v":0},{"$f":"Tabel86[[#This Row],[Total N2O-N2 kg]]*44/28","v":0},{"$f":"Tabel86[[#This Row],[Total N2O direkte, kg]]+Tabel86[[#This Row],[Total N2O indirekte, kg ]]","v":0}]
["Hens","Andet","Høns","Battery hens, manure shed","Burhøns, konsumæg, bånd, staldgødning","Staldgødning",{"$f":"IFERROR(HLOOKUP(Tabel86[[#This Row],[Staldsystem]],Indtastning!$B$39:$O$42,2,FALSE),0)","v":0},{"$f":"53.7/100","v":0.53700000000000003},0,1E-3,{"$f":"Tabel86[[#This Row],[Total N excretion (kg pr year)]]*Tabel86[[#This Row],[Emissionsfaktor (kgN2O-N pr kg Nex) ]]","v":0},{"$f":"Tabel86[[#This Row],[Total N2O-N]]*44/28","v":0},0.41337774098143881,{"$f":"Tabel86[[#This Row],[Total N excretion (kg pr year)]]*Tabel86[[#This Row],[FracGasMS]]","v":0},0.01,{"$f":"Tabel86[[#This Row],[Total N fra fordampning]]*Tabel86[[#This Row],[Emissionsfaktor (EF4)]]","v":0},{"$f":"Tabel86[[#This Row],[Total N2O-N2 kg]]*44/28","v":0},{"$f":"Tabel86[[#This Row],[Total N2O direkte, kg]]+Tabel86[[#This Row],[Total N2O indirekte, kg ]]","v":0}]
["Hens","Andet","Høns","Battery hens, manure tank","Burhøns, konsumæg, bånd, gylle","Gylle",{"$f":"IFERROR(HLOOKUP(Tabel86[[#This Row],[Staldsystem]],Indtastning!$B$39:$O$42,2,FALSE),0)","v":0},{"$f":"61.92/100","v":0.61919999999999997},0,1E-3,{"$f":"Tabel86[[#This Row],[Total N excretion (kg pr year)]]*Tabel86[[#This Row],[Emissionsfaktor (kgN2O-N pr kg Nex) ]]","v":0},{"$f":"Tabel86[[#This Row],[Total N2O-N]]*44/28","v":0},0.41337774098143881,{"$f":"Tabel86[[#This Row],[Total N excretion (kg pr year)]]*Tabel86[[#This Row],[FracGasMS]]","v":0},0.01,{"$f":"Tabel86[[#This Row],[Total N fra fordampning]]*Tabel86[[#This Row],[Emissionsfaktor (EF4)]]","v":0},{"$f":"Tabel86[[#This Row],[Total N2O-N2 kg]]*44/28","v":0},{"$f":"Tabel86[[#This Row],[Total N2O direkte, kg]]+Tabel86[[#This Row],[Total N2O indirekte, kg ]]","v":0}]
["Hens","Andet","Høns","Battery hens, manure cellar","Burhøns, konsumæg, gødningskælder","Staldgødning",{"$f":"IFERROR(HLOOKUP(Tabel86[[#This Row],[Staldsystem]],Indtastning!$B$39:$O$42,2,FALSE),0)","v":0},{"$f":"52.51/100","v":0.52510000000000001},0,1E-3,{"$f":"Tabel86[[#This Row],[Total N excretion (kg pr year)]]*Tabel86[[#This Row],[Emissionsfaktor (kgN2O-N pr kg Nex) ]]","v":0},{"$f":"Tabel86[[#This Row],[Total N2O-N]]*44/28","v":0},0.41337774098143881,{"$f":"Tabel86[[#This Row],[Total N excretion (kg pr year)]]*Tabel86[[#This Row],[FracGasMS]]","v":0},0.01,{"$f":"Tabel86[[#This Row],[Total N fra fordampning]]*Tabel86[[#This Row],[Emissionsfaktor (EF4)]]","v":0},{"$f":"Tabel86[[#This Row],[Total N2O-N2 kg]]*44/28","v":0},{"$f":"Tabel86[[#This Row],[Total N2O direkte, kg]]+Tabel86[[#This Row],[Total N2O indirekte, kg ]]","v":0}]
["Pullet","Andet","Hønniker","Pullet, consumption, net","Hønniker, konsum, gulvdrift, 112 dage","Dybstrøelse",{"$f":"IFERROR(HLOOKUP(Tabel86[[#This Row],[Staldsystem]],Indtastning!$B$39:$R$42,3,FALSE),0)","v":0},{"$f":"5.68/100","v":5.6799999999999996E-2},0,0.01,{"$f":"Tabel86[[#This Row],[Total N excretion (kg pr year)]]*Tabel86[[#This Row],[Emissionsfaktor (kgN2O-N pr kg Nex) ]]","v":0},{"$f":"Tabel86[[#This Row],[Total N2O-N]]*44/28","v":0},0.41337774098143881,{"$f":"Tabel86[[#This Row],[Total N excretion (kg pr year)]]*Tabel86[[#This Row],[FracGasMS]]","v":0},0.01,{"$f":"Tabel86[[#This Row],[Total N fra fordampning]]*Tabel86[[#This Row],[Emissionsfaktor (EF4)]]","v":0},{"$f":"Tabel86[[#This Row],[Total N2O-N2 kg]]*44/28","v":0},{"$f":"Tabel86[[#This Row],[Total N2O direkte, kg]]+Tabel86[[#This Row],[Total N2O indirekte, kg ]]","v":0}]
["Pullet","Andet","Hønniker","Pullet, consumption, floor","Hønniker, konsum, netdrift, 112 dage","Staldgødning",{"$f":"IFERROR(HLOOKUP(Tabel86[[#This Row],[Staldsystem]],Indtastning!$B$39:$R$42,3,FALSE),0)","v":0},{"$f":"5.68/100","v":5.6799999999999996E-2},0,0.01,{"$f":"Tabel86[[#This Row],[Total N excretion (kg pr year)]]*Tabel86[[#This Row],[Emissionsfaktor (kgN2O-N pr kg Nex) ]]","v":0},{"$f":"Tabel86[[#This Row],[Total N2O-N]]*44/28","v":0},0.41337774098143881,{"$f":"Tabel86[[#This Row],[Total N excretion (kg pr year)]]*Tabel86[[#This Row],[FracGasMS]]","v":0},0.01,{"$f":"Tabel86[[#This Row],[Total N fra fordampning]]*Tabel86[[#This Row],[Emissionsfaktor (EF4)]]","v":0},{"$f":"Tabel86[[#This Row],[Total N2O-N2 kg]]*44/28","v":0},{"$f":"Tabel86[[#This Row],[Total N2O direkte, kg]]+Tabel86[[#This Row],[Total N2O indirekte, kg ]]","v":0}]
["Pullet","Andet","Hønniker","Pullet, brood egg, floor","Hønniker, rugeæg, HPR, gulvdrift, 119 dage","Dybstrøelse",{"$f":"IFERROR(HLOOKUP(Tabel86[[#This Row],[Staldsystem]],Indtastning!$B$39:$R$42,3,FALSE),0)","v":0},{"$f":"5.68/100","v":5.6799999999999996E-2},0,0.01,{"$f":"Tabel86[[#This Row],[Total N excretion (kg pr year)]]*Tabel86[[#This Row],[Emissionsfaktor (kgN2O-N pr kg Nex) ]]","v":0},{"$f":"Tabel86[[#This Row],[Total N2O-N]]*44/28","v":0},0.41337774098143881,{"$f":"Tabel86[[#This Row],[Total N excretion (kg pr year)]]*Tabel86[[#This Row],[FracGasMS]]","v":0},0.01,{"$f":"Tabel86[[#This Row],[Total N fra fordampning]]*Tabel86[[#This Row],[Emissionsfaktor (EF4)]]","v":0},{"$f":"Tabel86[[#This Row],[Total N2O-N2 kg]]*44/28","v":0},{"$f":"Tabel86[[#This Row],[Total N2O direkte, kg]]+Tabel86[[#This Row],[Total N2O indirekte, kg ]]","v":0}]
["Broilers","Andet","Slagtekyllinger, 1000 stk.","Broilers, (conv. 30 days)","Slagtekyllinger (25 dyr/m2), produktionstid 30 dage","Dybstrøelse",{"$f":"IFERROR(HLOOKUP(Tabel86[[#This Row],[Staldsystem]],Indtastning!$B$39:$O$42,4,FALSE),0)","v":0},{"$f":"25.25/1000","v":2.5250000000000002E-2},0,1E-3,{"$f":"Tabel86[[#This Row],[Total N excretion (kg pr year)]]*Tabel86[[#This Row],[Emissionsfaktor (kgN2O-N pr kg Nex) ]]","v":0},{"$f":"Tabel86[[#This Row],[Total N2O-N]]*44/28","v":0},1.6026527968569269,{"$f":"Tabel86[[#This Row],[Total N excretion (kg pr year)]]*Tabel86[[#This Row],[FracGasMS]]","v":0},0.01,{"$f":"Tabel86[[#This Row],[Total N fra fordampning]]*Tabel86[[#This Row],[Emissionsfaktor (EF4)]]","v":0},{"$f":"Tabel86[[#This Row],[Total N2O-N2 kg]]*44/28","v":0},{"$f":"Tabel86[[#This Row],[Total N2O direkte, kg]]+Tabel86[[#This Row],[Total N2O indirekte, kg ]]","v":0}]
["Broilers","Andet","Slagtekyllinger, 1000 stk.","Broilers, (conv. 32 days)","Slagtekyllinger (25 dyr/m2), produktionstid 32 dage","Dybstrøelse",{"$f":"IFERROR(HLOOKUP(Tabel86[[#This Row],[Staldsystem]],Indtastning!$B$39:$O$42,4,FALSE),0)","v":0},{"$f":"28.93/1000","v":2.8930000000000001E-2},0,1E-3,{"$f":"Tabel86[[#This Row],[Total N excretion (kg pr year)]]*Tabel86[[#This Row],[Emissionsfaktor (kgN2O-N pr kg Nex) ]]","v":0},{"$f":"Tabel86[[#This Row],[Total N2O-N]]*44/28","v":0},1.6026527968569269,{"$f":"Tabel86[[#This Row],[Total N excretion (kg pr year)]]*Tabel86[[#This Row],[FracGasMS]]","v":0},0.01,{"$f":"Tabel86[[#This Row],[Total N fra fordampning]]*Tabel86[[#This Row],[Emissionsfaktor (EF4)]]","v":0},{"$f":"Tabel86[[#This Row],[Total N2O-N2 kg]]*44/28","v":0},{"$f":"Tabel86[[#This Row],[Total N2O direkte, kg]]+Tabel86[[#This Row],[Total N2O indirekte, kg ]]","v":0}]
["Broilers","Andet","Slagtekyllinger, 1000 stk.","Broilers, (conv. 35 days)","Slagtekyllinger (25 dyr/m2), produktionstid 35 dage","Dybstrøelse",{"$f":"IFERROR(HLOOKUP(Tabel86[[#This Row],[Staldsystem]],Indtastning!$B$39:$O$42,4,FALSE),0)","v":0},{"$f":"36.3/1000","v":3.6299999999999999E-2},0,1E-3,{"$f":"Tabel86[[#This Row],[Total N excretion (kg pr year)]]*Tabel86[[#This Row],[Emissionsfaktor (kgN2O-N pr kg Nex) ]]","v":0},{"$f":"Tabel86[[#This Row],[Total N2O-N]]*44/28","v":0},1.6026527968569269,{"$f":"Tabel86[[#This Row],[Total N excretion (kg pr year)]]*Tabel86[[#This Row],[FracGasMS]]","v":0},0.01,{"$f":"Tabel86[[#This Row],[Total N fra fordampning]]*Tabel86[[#This Row],[Emissionsfaktor (EF4)]]","v":0},{"$f":"Tabel86[[#This Row],[Total N2O-N2 kg]]*44/28","v":0},{"$f":"Tabel86[[#This Row],[Total N2O direkte, kg]]+Tabel86[[#This Row],[Total N2O indirekte, kg ]]","v":0}]
["Broilers","Andet","Slagtekyllinger, 1000 stk.","Broilers, (conv. 40 days)","Slagtekyllinger (25 dyr/m2), produktionstid 40 dage","Dybstrøelse",{"$f":"IFERROR(HLOOKUP(Tabel86[[#This Row],[Staldsystem]],Indtastning!$B$39:$O$42,4,FALSE),0)","v":0},{"$f":"50.41/1000","v":5.0409999999999996E-2},0,1E-3,{"$f":"Tabel86[[#This Row],[Total N excretion (kg pr year)]]*Tabel86[[#This Row],[Emissionsfaktor (kgN2O-N pr kg Nex) ]]","v":0},{"$f":"Tabel86[[#This Row],[Total N2O-N]]*44/28","v":0},1.6026527968569269,{"$f":"Tabel86[[#This Row],[Total N excretion (kg pr year)]]*Tabel86[[#This Row],[FracGasMS]]","v":0},0.01,{"$f":"Tabel86[[#This Row],[Total N fra fordampning]]*Tabel86[[#This Row],[Emissionsfaktor (EF4)]]","v":0},{"$f":"Tabel86[[#This Row],[Total N2O-N2 kg]]*44/28","v":0},{"$f":"Tabel86[[#This Row],[Total N2O direkte, kg]]+Tabel86[[#This Row],[Total N2O indirekte, kg ]]","v":0}]
["Broilers","Andet","Slagtekyllinger, 1000 stk.","Broilers, barn (56 days)","Skrabekyllinger (10 dyr/m2), produktionstid 56 dage","Dybstrøelse",{"$f":"IFERROR(HLOOKUP(Tabel86[[#This Row],[Staldsystem]],Indtastning!$B$39:$O$42,4,FALSE),0)","v":0},{"$f":"49.01/1000","v":4.9009999999999998E-2},0,1E-3,{"$f":"Tabel86[[#This Row],[Total N excretion (kg pr year)]]*Tabel86[[#This Row],[Emissionsfaktor (kgN2O-N pr kg Nex) ]]","v":0},{"$f":"Tabel86[[#This Row],[Total N2O-N]]*44/28","v":0},1.6026527968569269,{"$f":"Tabel86[[#This Row],[Total N excretion (kg pr year)]]*Tabel86[[#This Row],[FracGasMS]]","v":0},0.01,{"$f":"Tabel86[[#This Row],[Total N fra fordampning]]*Tabel86[[#This Row],[Emissionsfaktor (EF4)]]","v":0},{"$f":"Tabel86[[#This Row],[Total N2O-N2 kg]]*44/28","v":0},{"$f":"Tabel86[[#This Row],[Total N2O direkte, kg]]+Tabel86[[#This Row],[Total N2O indirekte, kg ]]","v":0}]
["Broilers","Andet","Slagtekyllinger, 1000 stk.","Organic broilers (81 days)","Økologiske slagtekyllinger","Udeareal",{"$f":"IFERROR(HLOOKUP(Tabel86[[#This Row],[Staldsystem]],Indtastning!$B$39:$O$42,4,FALSE),0)","v":0},{"$f":"10.54/1000","v":1.0539999999999999E-2},0,1E-3,{"$f":"Tabel86[[#This Row],[Total N excretion (kg pr year)]]*Tabel86[[#This Row],[Emissionsfaktor (kgN2O-N pr kg Nex) ]]","v":0},{"$f":"Tabel86[[#This Row],[Total N2O-N]]*44/28","v":0},1.6026527968569269,{"$f":"Tabel86[[#This Row],[Total N excretion (kg pr year)]]*Tabel86[[#This Row],[FracGasMS]]","v":0},0.01,{"$f":"Tabel86[[#This Row],[Total N fra fordampning]]*Tabel86[[#This Row],[Emissionsfaktor (EF4)]]","v":0},{"$f":"Tabel86[[#This Row],[Total N2O-N2 kg]]*44/28","v":0},{"$f":"Tabel86[[#This Row],[Total N2O direkte, kg]]+Tabel86[[#This Row],[Total N2O indirekte, kg ]]","v":0}]
["Broilers","Andet","Slagtekyllinger, 1000 stk.","Organic broilers (81 days)","Økologiske slagtekyllinger","Dybstrøelse",{"$f":"IFERROR(HLOOKUP(Tabel86[[#This Row],[Staldsystem]],Indtastning!$B$39:$O$42,4,FALSE),0)","v":0},{"$f":"73.64/1000","v":7.3639999999999997E-2},0,1E-3,{"$f":"Tabel86[[#This Row],[Total N excretion (kg pr year)]]*Tabel86[[#This Row],[Emissionsfaktor (kgN2O-N pr kg Nex) ]]","v":0},{"$f":"Tabel86[[#This Row],[Total N2O-N]]*44/28","v":0},1.6026527968569269,{"$f":"Tabel86[[#This Row],[Total N excretion (kg pr year)]]*Tabel86[[#This Row],[FracGasMS]]","v":0},0.01,{"$f":"Tabel86[[#This Row],[Total N fra fordampning]]*Tabel86[[#This Row],[Emissionsfaktor (EF4)]]","v":0},{"$f":"Tabel86[[#This Row],[Total N2O-N2 kg]]*44/28","v":0},{"$f":"Tabel86[[#This Row],[Total N2O direkte, kg]]+Tabel86[[#This Row],[Total N2O indirekte, kg ]]","v":0}]
["Mink","Andet","Mink","Slurry system","Bure, fast gødning i gødningsrende","Gylle",{"$f":"IFERROR(HLOOKUP(Tabel86[[#This Row],[Staldsystem]],Indtastning!$A$60:$G$67,8,FALSE),0)","v":0},2.82,0,5.0000000000000001E-3,{"$f":"Tabel86[[#This Row],[Total N excretion (kg pr year)]]*Tabel86[[#This Row],[Emissionsfaktor (kgN2O-N pr kg Nex) ]]","v":0},{"$f":"Tabel86[[#This Row],[Total N2O-N]]*44/28","v":0},0.52391625355042792,{"$f":"Tabel86[[#This Row],[Total N excretion (kg pr year)]]*Tabel86[[#This Row],[FracGasMS]]","v":0},0.01,{"$f":"Tabel86[[#This Row],[Total N fra fordampning]]*Tabel86[[#This Row],[Emissionsfaktor (EF4)]]","v":0},{"$f":"Tabel86[[#This Row],[Total N2O-N2 kg]]*44/28","v":0},{"$f":"Tabel86[[#This Row],[Total N2O direkte, kg]]+Tabel86[[#This Row],[Total N2O indirekte, kg ]]","v":0}]
["Mink","Andet","Mink","Solid manure and urine","bure gødningsrende, ugentlig tømning","Dybstrøelse",{"$f":"IFERROR(HLOOKUP(Tabel86[[#This Row],[Staldsystem]],Indtastning!$A$60:$G$67,8,FALSE),0)","v":0},0.56999999999999995,0,0.01,{"$f":"Tabel86[[#This Row],[Total N excretion (kg pr year)]]*Tabel86[[#This Row],[Emissionsfaktor (kgN2O-N pr kg Nex) ]]","v":0},{"$f":"Tabel86[[#This Row],[Total N2O-N]]*44/28","v":0},0.52391625355042792,{"$f":"Tabel86[[#This Row],[Total N excretion (kg pr year)]]*Tabel86[[#This Row],[FracGasMS]]","v":0},0.01,{"$f":"Tabel86[[#This Row],[Total N fra fordampning]]*Tabel86[[#This Row],[Emissionsfaktor (EF4)]]","v":0},{"$f":"Tabel86[[#This Row],[Total N2O-N2 kg]]*44/28","v":0},{"$f":"Tabel86[[#This Row],[Total N2O direkte, kg]]+Tabel86[[#This Row],[Total N2O indirekte, kg ]]","v":0}]
["Mink","Andet","Mink","Solid manure and urine","bure gødningsrende, ugentlig tømning","Gylle",{"$f":"IFERROR(HLOOKUP(Tabel86[[#This Row],[Staldsystem]],Indtastning!$A$60:$G$67,8,FALSE),0)","v":0},3.39,0,5.0000000000000001E-3,{"$f":"Tabel86[[#This Row],[Total N excretion (kg pr year)]]*Tabel86[[#This Row],[Emissionsfaktor (kgN2O-N pr kg Nex) ]]","v":0},{"$f":"Tabel86[[#This Row],[Total N2O-N]]*44/28","v":0},0.52391625355042792,{"$f":"Tabel86[[#This Row],[Total N excretion (kg pr year)]]*Tabel86[[#This Row],[FracGasMS]]","v":0},0.01,{"$f":"Tabel86[[#This Row],[Total N fra fordampning]]*Tabel86[[#This Row],[Emissionsfaktor (EF4)]]","v":0},{"$f":"Tabel86[[#This Row],[Total N2O-N2 kg]]*44/28","v":0},{"$f":"Tabel86[[#This Row],[Total N2O direkte, kg]]+Tabel86[[#This Row],[Total N2O indirekte, kg ]]","v":0}]
["Horse <300 kg","Andet","Heste <300 kg","Deep litter","Dybstrøelse","Dybstrøelse",{"$f":"IFERROR(HLOOKUP(Tabel86[[#This Row],[Staldsystem]],Indtastning!$A$60:$G$67,2,FALSE),0)","v":0},21.06,0,0.01,{"$f":"Tabel86[[#This Row],[Total N excretion (kg pr year)]]*Tabel86[[#This Row],[Emissionsfaktor (kgN2O-N pr kg Nex) ]]","v":0},{"$f":"Tabel86[[#This Row],[Total N2O-N]]*44/28","v":0},9.4987678008705043E-2,{"$f":"Tabel86[[#This Row],[Total N excretion (kg pr year)]]*Tabel86[[#This Row],[FracGasMS]]","v":0},0.01,{"$f":"Tabel86[[#This Row],[Total N fra fordampning]]*Tabel86[[#This Row],[Emissionsfaktor (EF4)]]","v":0},{"$f":"Tabel86[[#This Row],[Total N2O-N2 kg]]*44/28","v":0},{"$f":"Tabel86[[#This Row],[Total N2O direkte, kg]]+Tabel86[[#This Row],[Total N2O indirekte, kg ]]","v":0}]
["Horse 300 - <500 kg","Andet","Heste 300 kg, <500 kg","Deep litter","Dybstrøelse","Dybstrøelse",{"$f":"IFERROR(HLOOKUP(Tabel86[[#This Row],[Staldsystem]],Indtastning!$A$60:$G$67,3,FALSE),0)","v":0},34.85,0,0.01,{"$f":"Tabel86[[#This Row],[Total N excretion (kg pr year)]]*Tabel86[[#This Row],[Emissionsfaktor (kgN2O-N pr kg Nex) ]]","v":0},{"$f":"Tabel86[[#This Row],[Total N2O-N]]*44/28","v":0},9.4987678008705043E-2,{"$f":"Tabel86[[#This Row],[Total N excretion (kg pr year)]]*Tabel86[[#This Row],[FracGasMS]]","v":0},0.01,{"$f":"Tabel86[[#This Row],[Total N fra fordampning]]*Tabel86[[#This Row],[Emissionsfaktor (EF4)]]","v":0},{"$f":"Tabel86[[#This Row],[Total N2O-N2 kg]]*44/28","v":0},{"$f":"Tabel86[[#This Row],[Total N2O direkte, kg]]+Tabel86[[#This Row],[Total N2O indirekte, kg ]]","v":0}]
["Horse 500 - <700 kg","Andet","Heste 500 kg, <700 kg","Deep litter","Dybstrøelse","Dybstrøelse",{"$f":"IFERROR(HLOOKUP(Tabel86[[#This Row],[Staldsystem]],Indtastning!$A$60:$G$67,4,FALSE),0)","v":0},43.72,0,0.01,{"$f":"Tabel86[[#This Row],[Total N excretion (kg pr year)]]*Tabel86[[#This Row],[Emissionsfaktor (kgN2O-N pr kg Nex) ]]","v":0},{"$f":"Tabel86[[#This Row],[Total N2O-N]]*44/28","v":0},9.4987678008705043E-2,{"$f":"Tabel86[[#This Row],[Total N excretion (kg pr year)]]*Tabel86[[#This Row],[FracGasMS]]","v":0},0.01,{"$f":"Tabel86[[#This Row],[Total N fra fordampning]]*Tabel86[[#This Row],[Emissionsfaktor (EF4)]]","v":0},{"$f":"Tabel86[[#This Row],[Total N2O-N2 kg]]*44/28","v":0},{"$f":"Tabel86[[#This Row],[Total N2O direkte, kg]]+Tabel86[[#This Row],[Total N2O indirekte, kg ]]","v":0}]
["Horse >700 kg","Andet","Heste 700+ kg ","Deep litter","Dybstrøelse","Dybstrøelse",{"$f":"IFERROR(HLOOKUP(Tabel86[[#This Row],[Staldsystem]],Indtastning!$A$60:$G$67,5,FALSE),0)","v":0},53.34,0,0.01,{"$f":"Tabel86[[#This Row],[Total N excretion (kg pr year)]]*Tabel86[[#This Row],[Emissionsfaktor (kgN2O-N pr kg Nex) ]]","v":0},{"$f":"Tabel86[[#This Row],[Total N2O-N]]*44/28","v":0},9.4987678008705043E-2,{"$f":"Tabel86[[#This Row],[Total N excretion (kg pr year)]]*Tabel86[[#This Row],[FracGasMS]]","v":0},0.01,{"$f":"Tabel86[[#This Row],[Total N fra fordampning]]*Tabel86[[#This Row],[Emissionsfaktor (EF4)]]","v":0},{"$f":"Tabel86[[#This Row],[Total N2O-N2 kg]]*44/28","v":0},{"$f":"Tabel86[[#This Row],[Total N2O direkte, kg]]+Tabel86[[#This Row],[Total N2O indirekte, kg ]]","v":0}]
["Sheep","Andet","Får","Deep litter","Får","Dybstrøelse",{"$f":"Indtastning!B50","v":0},14.57,0,0.01,{"$f":"Tabel86[[#This Row],[Total N excretion (kg pr year)]]*Tabel86[[#This Row],[Emissionsfaktor (kgN2O-N pr kg Nex) ]]","v":0},{"$f":"Tabel86[[#This Row],[Total N2O-N]]*44/28","v":0},2.2545190053807684E-2,{"$f":"Tabel86[[#This Row],[Total N excretion (kg pr year)]]*Tabel86[[#This Row],[FracGasMS]]","v":0},0.01,{"$f":"Tabel86[[#This Row],[Total N fra fordampning]]*Tabel86[[#This Row],[Emissionsfaktor (EF4)]]","v":0},{"$f":"Tabel86[[#This Row],[Total N2O-N2 kg]]*44/28","v":0},{"$f":"Tabel86[[#This Row],[Total N2O direkte, kg]]+Tabel86[[#This Row],[Total N2O indirekte, kg ]]","v":0}]
["Mohair goat","Andet","Mohairgeder","Deep litter","Mohairgeder","Dybstrøelse",{"$f":"VLOOKUP(Tabel86[[#This Row],[Dyr]],Indtastning!$A$51:$B$53,2,FALSE)","v":0},15.7,0,0.01,{"$f":"Tabel86[[#This Row],[Total N excretion (kg pr year)]]*Tabel86[[#This Row],[Emissionsfaktor (kgN2O-N pr kg Nex) ]]","v":0},{"$f":"Tabel86[[#This Row],[Total N2O-N]]*44/28","v":0},2.2545190053807684E-2,{"$f":"Tabel86[[#This Row],[Total N excretion (kg pr year)]]*Tabel86[[#This Row],[FracGasMS]]","v":0},0.01,{"$f":"Tabel86[[#This Row],[Total N fra fordampning]]*Tabel86[[#This Row],[Emissionsfaktor (EF4)]]","v":0},{"$f":"Tabel86[[#This Row],[Total N2O-N2 kg]]*44/28","v":0},{"$f":"Tabel86[[#This Row],[Total N2O direkte, kg]]+Tabel86[[#This Row],[Total N2O indirekte, kg ]]","v":0}]
["Meat goat","Andet","Kødgeder","Deep litter","Kødgeder","Dybstrøelse",{"$f":"VLOOKUP(Tabel86[[#This Row],[Dyr]],Indtastning!$A$51:$B$53,2,FALSE)","v":0},14.13,0,0.01,{"$f":"Tabel86[[#This Row],[Total N excretion (kg pr year)]]*Tabel86[[#This Row],[Emissionsfaktor (kgN2O-N pr kg Nex) ]]","v":0},{"$f":"Tabel86[[#This Row],[Total N2O-N]]*44/28","v":0},2.2545190053807684E-2,{"$f":"Tabel86[[#This Row],[Total N excretion (kg pr year)]]*Tabel86[[#This Row],[FracGasMS]]","v":0},0.01,{"$f":"Tabel86[[#This Row],[Total N fra fordampning]]*Tabel86[[#This Row],[Emissionsfaktor (EF4)]]","v":0},{"$f":"Tabel86[[#This Row],[Total N2O-N2 kg]]*44/28","v":0},{"$f":"Tabel86[[#This Row],[Total N2O direkte, kg]]+Tabel86[[#This Row],[Total N2O indirekte, kg ]]","v":0}]
["Milk goat","Andet","Malkegeder","Deep litter","Malkegeder","Dybstrøelse",{"$f":"VLOOKUP(Tabel86[[#This Row],[Dyr]],Indtastning!$A$51:$B$53,2,FALSE)","v":0},14.62,0,0.01,{"$f":"Tabel86[[#This Row],[Total N excretion (kg pr year)]]*Tabel86[[#This Row],[Emissionsfaktor (kgN2O-N pr kg Nex) ]]","v":0},{"$f":"Tabel86[[#This Row],[Total N2O-N]]*44/28","v":0},2.2545190053807684E-2,{"$f":"Tabel86[[#This Row],[Total N excretion (kg pr year)]]*Tabel86[[#This Row],[FracGasMS]]","v":0},0.01,{"$f":"Tabel86[[#This Row],[Total N fra fordampning]]*Tabel86[[#This Row],[Emissionsfaktor (EF4)]]","v":0},{"$f":"Tabel86[[#This Row],[Total N2O-N2 kg]]*44/28","v":0},{"$f":"Tabel86[[#This Row],[Total N2O direkte, kg]]+Tabel86[[#This Row],[Total N2O indirekte, kg ]]","v":0}]
[]
[]
[null,null,"Kilde",null,null,null,null,"Poulsen (2015) Normtal",null,"NIR Tabel 5.12",null,null,null,null,"NIR: 393"]
[]
[]
[]
[]
[]
[]
[]
[]
[]
[]
[]
[]
[]
[]
[]
[]
[]
[]
[]
["Kg lattergas","Andet kvæg","Malkekvæg","Svin","Andet","Hovedtotal"]
["Ajle (liquid manure/urin)",{"$f":"SUMIFS(Tabel86[Totale udledninger],Tabel86[Dyrekategori],$B$218,Tabel86[Gødningstype],A219)","v":0},{"$f":"SUMIFS(Tabel86[Totale udledninger],Tabel86[Dyrekategori],C$218,Tabel86[Gødningstype],A219)","v":0},{"$f":"SUMIFS(Tabel86[Totale udledninger],Tabel86[Dyrekategori],D$218,Tabel86[Gødningstype],A219)","v":0},{"$f":"SUMIFS(Tabel86[Totale udledninger],Tabel86[Dyrekategori],$E218,Tabel86[Gødningstype],A219)","v":0},{"$f":"+SUM(B219:E219)","v":0}]
["Gylle",{"$f":"SUMIFS(Tabel86[Totale udledninger],Tabel86[Dyrekategori],$B$218,Tabel86[Gødningstype],A220)","v":0},{"$f":"SUMIFS(Tabel86[Totale udledninger],Tabel86[Dyrekategori],C$218,Tabel86[Gødningstype],A220)","v":0},{"$f":"SUMIFS(Tabel86[Totale udledninger],Tabel86[Dyrekategori],D$218,Tabel86[Gødningstype],A220)","v":0},{"$f":"SUMIFS(Tabel86[Totale udledninger],Tabel86[Dyrekategori],$E$218,Tabel86[Gødningstype],A220)","v":0},{"$f":"+SUM(B220:E220)","v":0}]
["Staldgødning",{"$f":"SUMIFS(Tabel86[Totale udledninger],Tabel86[Dyrekategori],$B$218,Tabel86[Gødningstype],A221)","v":0},{"$f":"SUMIFS(Tabel86[Totale udledninger],Tabel86[Dyrekategori],C$218,Tabel86[Gødningstype],A221)","v":0},{"$f":"SUMIFS(Tabel86[Totale udledninger],Tabel86[Dyrekategori],D$218,Tabel86[Gødningstype],A221)","v":0},{"$f":"SUMIFS(Tabel86[Totale udledninger],Tabel86[Dyrekategori],$E$218,Tabel86[Gødningstype],A221)","v":0},0]
["Udeareal",{"$f":"SUMIFS(Tabel86[Totale udledninger],Tabel86[Dyrekategori],$B$218,Tabel86[Gødningstype],A222)","v":0},{"$f":"SUMIFS(Tabel86[Totale udledninger],Tabel86[Dyrekategori],C$218,Tabel86[Gødningstype],A222)","v":0},{"$f":"SUMIFS(Tabel86[Totale udledninger],Tabel86[Dyrekategori],D$218,Tabel86[Gødningstype],A222)","v":0},{"$f":"SUMIFS(Tabel86[Totale udledninger],Tabel86[Dyrekategori],$E$218,Tabel86[Gødningstype],A222)","v":0},0]
["Dybstrøelse",{"$f":"SUMIFS(Tabel86[Totale udledninger],Tabel86[Dyrekategori],$B$218,Tabel86[Gødningstype],A223)","v":0},{"$f":"SUMIFS(Tabel86[Totale udledninger],Tabel86[Dyrekategori],C$218,Tabel86[Gødningstype],A223)","v":0},{"$f":"SUMIFS(Tabel86[Totale udledninger],Tabel86[Dyrekategori],D$218,Tabel86[Gødningstype],A223)","v":0},{"$f":"SUMIFS(Tabel86[Totale udledninger],Tabel86[Dyrekategori],$E$218,Tabel86[Gødningstype],A223)","v":0},0]
["Total",{"$f":"SUM(B219:B223)","v":0},{"$f":"SUM(C219:C223)","v":0},{"$f":"SUM(D219:D223)","v":0},{"$f":"SUMIFS(Tabel86[Totale udledninger],Tabel86[Dyrekategori],$E$218,Tabel86[Gødningstype],A224)","v":0},{"$f":"SUM(F219:F223)","v":0}]

{"sheet":"N20 Jord","index":5,"n_rows":90,"n_cols":19,"rows_kept":90,"cut":false,"hidden":false,"merged":[[20,1,20,5],[20,7,20,12],[20,14,20,15],[48,2,48,3]]}
[]
[null,"kg N pr år","kg N2O-N/kg N","N2O (kt)"]
["Direkte N2O emissioner",null,null,{"$f":"D4+D5+D9+D10+D11+D12","v":0}]
["1.   Handelsgødning",{"$f":"Indtastning!B92","v":0},0.01,{"$f":"B4*C4/1000/1000*44/28","v":0}]
["2.   Organisk gødning",{"$f":"B6+B7+B8","v":0},0.01,{"$f":"B5*C5/1000/1000*44/28","v":0}]
["      a. Husdyrgødning",{"$f":"Indtastning!B93","v":0},0.01,0]
["      b. Slam",{"$f":"Indtastning!B94","v":0},0.01,0]
["      c. Andet organisk gødning",{"$f":"Indtastning!B95","v":0},0.01,0]
["3.   Gødning fra græssende dyr",{"$f":"E71","v":0},1.8025659038470001E-2,{"$f":"B9*C9/1000/1000*44/28","v":0}]
["4.   Afgrøderester",{"$f":"S44","v":0},0.01,{"$f":"B10*C10/1000/1000*44/28","v":0}]
["5.  Mineralisering",{"$f":"E51","v":0},9.9999999953400004E-3,{"$f":"B11*C11/1000/1000*44/28","v":0}]
["6.   Organiske jorde (kg N20-N)",{"$f":"D59","v":0},null,{"$f":"B12/1000/1000*44/28","v":0}]
["b. Indirekte N2O emissioner",null,null,{"$f":"D14+D15","v":0}]
["1.   Fordampning (Atmospheric deposition)",{"$f":"D81","v":0},0.01,{"$f":"B14*C14/1000/1000*(44/28)","v":0}]
["2.   Nitrogenudvaskning",{"$f":"D88","v":0},4.6601277924300001E-3,{"$f":"B15*C15/1000/1000*44/28","v":0}]
[]
[]
[]
[]
[]
["Kg N fra Afgrøderester","Normtal til høstet tørstof",null,null,null,null,"Dyrket areal","Normtal for over-jorden afgrøderester",null,null,null,null,null,"Over-jorden afgrøderester","Normtal for under-jorden afgrøder",null,"Under-jorden afgrøderester",null,"Total kg N"]
[]
[]
["Typen af afgrøde","Høst resultat, Danmark (kg)","Samlet dyrket areal i Danmark (ha) ","Høstresultat pr ha (kg)","Tørstofindhold i pct.","Tørstof høstet pr ha (kg)","Dyrket areal på bedriften (ha)","Ompløjningsrate","Hældning","Skæring","AGDM(T)","RAG","NAG","Total kvælstof i over-jorden afgrøderester Kg N","RBG-BIO","NBG","Total kvælstof i under-jorden afgrøderester Kg N","Halm bjærget (kg)","N i afgrøderester fra afgrøden T"]
["Vinterhvede",5082600000,651530,{"$f":"(Tabel1[[#This Row],[Høst resultat, Danmark (kg)]])/Tabel1[[#This Row],[Samlet dyrket areal i Danmark (ha) ]]","v":7801.0222092612776},0.85,{"$f":"Tabel1[[#This Row],[Høstresultat pr ha (kg)]]*Tabel1[[#This Row],[Tørstofindhold i pct.]]","v":6630.8688778720862},{"$f":"Indtastning!B99","v":0},1,1.61,0.4,{"$f":"(Tabel1[[#This Row],[Tørstof høstet pr ha (kg)]]*Tabel1[[#This Row],[Hældning]]+Tabel1[[#This Row],[Skæring]])*Tabel1[[#This Row],[Ompløjningsrate]]","v":10676.098893374059},{"$f":"Tabel1[[#This Row],[AGDM(T)]]/F25","v":1.6100603239194391},6.0000000000000001E-3,{"$f":"Tabel1[[#This Row],[Tørstof høstet pr ha (kg)]]*Tabel1[[#This Row],[Dyrket areal på bedriften (ha)]]*Tabel1[[#This Row],[RAG]]*Tabel1[[#This Row],[NAG]]","v":0},0.23,8.9999999999999993E-3,{"$f":"Tabel1[[#This Row],[Dyrket areal på bedriften (ha)]]*Tabel1[[#This Row],[Tørstof høstet pr ha (kg)]]*Tabel1[[#This Row],[RBG-BIO]]*Tabel1[[#This Row],[NBG]]*Tabel1[[#This Row],[Ompløjningsrate]]","v":0},null,{"$f":"Tabel1[[#This Row],[Total kvælstof i over-jorden afgrøderester Kg N]]+Tabel1[[#This Row],[Total kvælstof i under-jorden afgrøderester Kg N]]","v":0}]
["Vårhvede",70700000,16910,{"$f":"(Tabel1[[#This Row],[Høst resultat, Danmark (kg)]])/Tabel1[[#This Row],[Samlet dyrket areal i Danmark (ha) ]]","v":4180.958013010053},0.85,{"$f":"Tabel1[[#This Row],[Høstresultat pr ha (kg)]]*Tabel1[[#This Row],[Tørstofindhold i pct.]]","v":3553.8143110585452},{"$f":"Indtastning!B100","v":0},1,1.29,0.75,{"$f":"(Tabel1[[#This Row],[Tørstof høstet pr ha (kg)]]*Tabel1[[#This Row],[Hældning]]+Tabel1[[#This Row],[Skæring]])*Tabel1[[#This Row],[Ompløjningsrate]]","v":4585.170461265523},{"$f":"Tabel1[[#This Row],[AGDM(T)]]/F26","v":1.2902110408519842},6.0000000000000001E-3,{"$f":"Tabel1[[#This Row],[Tørstof høstet pr ha (kg)]]*Tabel1[[#This Row],[Dyrket areal på bedriften (ha)]]*Tabel1[[#This Row],[RAG]]*Tabel1[[#This Row],[NAG]]","v":0},0.28000000000000003,8.9999999999999993E-3,{"$f":"Tabel1[[#This Row],[Dyrket areal på bedriften (ha)]]*Tabel1[[#This Row],[Tørstof høstet pr ha (kg)]]*Tabel1[[#This Row],[RBG-BIO]]*Tabel1[[#This Row],[NBG]]*Tabel1[[#This Row],[Ompløjningsrate]]","v":0},null,{"$f":"Tabel1[[#This Row],[Total kvælstof i over-jorden afgrøderester Kg N]]+Tabel1[[#This Row],[Total kvælstof i under-jorden afgrøderester Kg N]]","v":0}]
["Rug",677800000,104093,{"$f":"(Tabel1[[#This Row],[Høst resultat, Danmark (kg)]])/Tabel1[[#This Row],[Samlet dyrket areal i Danmark (ha) ]]","v":6511.484922136935},0.85,{"$f":"Tabel1[[#This Row],[Høstresultat pr ha (kg)]]*Tabel1[[#This Row],[Tørstofindhold i pct.]]","v":5534.762183816395},{"$f":"Indtastning!B101","v":0},1,1.0900000000000001,0.88,{"$f":"(Tabel1[[#This Row],[Tørstof høstet pr ha (kg)]]*Tabel1[[#This Row],[Hældning]]+Tabel1[[#This Row],[Skæring]])*Tabel1[[#This Row],[Ompløjningsrate]]","v":6033.7707803598714},{"$f":"Tabel1[[#This Row],[AGDM(T)]]/F27","v":1.0901589950879143},5.0000000000000001E-3,{"$f":"Tabel1[[#This Row],[Tørstof høstet pr ha (kg)]]*Tabel1[[#This Row],[Dyrket areal på bedriften (ha)]]*Tabel1[[#This Row],[RAG]]*Tabel1[[#This Row],[NAG]]","v":0},0.22,1.0999999999999999E-2,{"$f":"Tabel1[[#This Row],[Dyrket areal på bedriften (ha)]]*Tabel1[[#This Row],[Tørstof høstet pr ha (kg)]]*Tabel1[[#This Row],[RBG-BIO]]*Tabel1[[#This Row],[NBG]]*Tabel1[[#This Row],[Ompløjningsrate]]","v":0},null,{"$f":"Tabel1[[#This Row],[Total kvælstof i over-jorden afgrøderester Kg N]]+Tabel1[[#This Row],[Total kvælstof i under-jorden afgrøderester Kg N]]","v":0}]
["Vinterbyg",789900000,145209,{"$f":"(Tabel1[[#This Row],[Høst resultat, Danmark (kg)]])/Tabel1[[#This Row],[Samlet dyrket areal i Danmark (ha) ]]","v":5439.7454703220874},0.85,{"$f":"Tabel1[[#This Row],[Høstresultat pr ha (kg)]]*Tabel1[[#This Row],[Tørstofindhold i pct.]]","v":4623.7836497737744},{"$f":"Indtastning!B102","v":0},1,0.98,0.59,{"$f":"(Tabel1[[#This Row],[Tørstof høstet pr ha (kg)]]*Tabel1[[#This Row],[Hældning]]+Tabel1[[#This Row],[Skæring]])*Tabel1[[#This Row],[Ompløjningsrate]]","v":4531.8979767782994},{"$f":"Tabel1[[#This Row],[AGDM(T)]]/F28","v":0.9801276011259803},7.0000000000000001E-3,{"$f":"Tabel1[[#This Row],[Tørstof høstet pr ha (kg)]]*Tabel1[[#This Row],[Dyrket areal på bedriften (ha)]]*Tabel1[[#This Row],[RAG]]*Tabel1[[#This Row],[NAG]]","v":0},0.22,1.4E-2,{"$f":"Tabel1[[#This Row],[Dyrket areal på bedriften (ha)]]*Tabel1[[#This Row],[Tørstof høstet pr ha (kg)]]*Tabel1[[#This Row],[RBG-BIO]]*Tabel1[[#This Row],[NBG]]*Tabel1[[#This Row],[Ompløjningsrate]]","v":0},null,{"$f":"Tabel1[[#This Row],[Total kvælstof i over-jorden afgrøderester Kg N]]+Tabel1[[#This Row],[Total kvælstof i under-jorden afgrøderester Kg N]]","v":0}]
["Vårbyg",2757700000,490533,{"$f":"(Tabel1[[#This Row],[Høst resultat, Danmark (kg)]])/Tabel1[[#This Row],[Samlet dyrket areal i Danmark (ha) ]]","v":5621.843994185916},0.85,{"$f":"Tabel1[[#This Row],[Høstresultat pr ha (kg)]]*Tabel1[[#This Row],[Tørstofindhold i pct.]]","v":4778.5673950580285},{"$f":"Indtastning!B103","v":0},1,0.98,0.59,{"$f":"(Tabel1[[#This Row],[Tørstof høstet pr ha (kg)]]*Tabel1[[#This Row],[Hældning]]+Tabel1[[#This Row],[Skæring]])*Tabel1[[#This Row],[Ompløjningsrate]]","v":4683.5860471568676},{"$f":"Tabel1[[#This Row],[AGDM(T)]]/F29","v":0.98012346796669847},7.0000000000000001E-3,{"$f":"Tabel1[[#This Row],[Tørstof høstet pr ha (kg)]]*Tabel1[[#This Row],[Dyrket areal på bedriften (ha)]]*Tabel1[[#This Row],[RAG]]*Tabel1[[#This Row],[NAG]]","v":0},0.22,1.4E-2,{"$f":"Tabel1[[#This Row],[Dyrket areal på bedriften (ha)]]*Tabel1[[#This Row],[Tørstof høstet pr ha (kg)]]*Tabel1[[#This Row],[RBG-BIO]]*Tabel1[[#This Row],[NBG]]*Tabel1[[#This Row],[Ompløjningsrate]]","v":0},null,{"$f":"Tabel1[[#This Row],[Total kvælstof i over-jorden afgrøderester Kg N]]+Tabel1[[#This Row],[Total kvælstof i under-jorden afgrøderester Kg N]]","v":0}]
["Havre",216900000,34830,{"$f":"(Tabel1[[#This Row],[Høst resultat, Danmark (kg)]])/Tabel1[[#This Row],[Samlet dyrket areal i Danmark (ha) ]]","v":6227.3901808785531},0.85,{"$f":"Tabel1[[#This Row],[Høstresultat pr ha (kg)]]*Tabel1[[#This Row],[Tørstofindhold i pct.]]","v":5293.2816537467697},{"$f":"Indtastning!B104","v":0},1,0.91,0.89,{"$f":"(Tabel1[[#This Row],[Tørstof høstet pr ha (kg)]]*Tabel1[[#This Row],[Hældning]]+Tabel1[[#This Row],[Skæring]])*Tabel1[[#This Row],[Ompløjningsrate]]","v":4817.7763049095611},{"$f":"Tabel1[[#This Row],[AGDM(T)]]/F30","v":0.91016813766170379},7.0000000000000001E-3,{"$f":"Tabel1[[#This Row],[Tørstof høstet pr ha (kg)]]*Tabel1[[#This Row],[Dyrket areal på bedriften (ha)]]*Tabel1[[#This Row],[RAG]]*Tabel1[[#This Row],[NAG]]","v":0},0.25,8.0000000000000002E-3,{"$f":"Tabel1[[#This Row],[Dyrket areal på bedriften (ha)]]*Tabel1[[#This Row],[Tørstof høstet pr ha (kg)]]*Tabel1[[#This Row],[RBG-BIO]]*Tabel1[[#This Row],[NBG]]*Tabel1[[#This Row],[Ompløjningsrate]]","v":0},null,{"$f":"Tabel1[[#This Row],[Total kvælstof i over-jorden afgrøderester Kg N]]+Tabel1[[#This Row],[Total kvælstof i under-jorden afgrøderester Kg N]]","v":0}]
["Triticale og andet korn til modenhed",168800000,31667,{"$f":"(Tabel1[[#This Row],[Høst resultat, Danmark (kg)]])/Tabel1[[#This Row],[Samlet dyrket areal i Danmark (ha) ]]","v":5330.470205576783},0.85,{"$f":"Tabel1[[#This Row],[Høstresultat pr ha (kg)]]*Tabel1[[#This Row],[Tørstofindhold i pct.]]","v":4530.8996747402653},{"$f":"Indtastning!B105","v":0},1,1.0900000000000001,0.88,{"$f":"(Tabel1[[#This Row],[Tørstof høstet pr ha (kg)]]*Tabel1[[#This Row],[Hældning]]+Tabel1[[#This Row],[Skæring]])*Tabel1[[#This Row],[Ompløjningsrate]]","v":4939.5606454668896},{"$f":"Tabel1[[#This Row],[AGDM(T)]]/F31","v":1.0901942219124618},5.0000000000000001E-3,{"$f":"Tabel1[[#This Row],[Tørstof høstet pr ha (kg)]]*Tabel1[[#This Row],[Dyrket areal på bedriften (ha)]]*Tabel1[[#This Row],[RAG]]*Tabel1[[#This Row],[NAG]]","v":0},0.22,1.0999999999999999E-2,{"$f":"Tabel1[[#This Row],[Dyrket areal på bedriften (ha)]]*Tabel1[[#This Row],[Tørstof høstet pr ha (kg)]]*Tabel1[[#This Row],[RBG-BIO]]*Tabel1[[#This Row],[NBG]]*Tabel1[[#This Row],[Ompløjningsrate]]","v":0},null,{"$f":"Tabel1[[#This Row],[Total kvælstof i over-jorden afgrøderester Kg N]]+Tabel1[[#This Row],[Total kvælstof i under-jorden afgrøderester Kg N]]","v":0}]
["Majs til opfodring",7568700000,183370,{"$f":"(Tabel1[[#This Row],[Høst resultat, Danmark (kg)]])/Tabel1[[#This Row],[Samlet dyrket areal i Danmark (ha) ]]","v":41275.563069204341},0.33,{"$f":"Tabel1[[#This Row],[Høstresultat pr ha (kg)]]*Tabel1[[#This Row],[Tørstofindhold i pct.]]","v":13620.935812837433},{"$f":"Indtastning!B106","v":0},1,1.03,0.61,{"$f":"(Tabel1[[#This Row],[Tørstof høstet pr ha (kg)]]*Tabel1[[#This Row],[Hældning]]+Tabel1[[#This Row],[Skæring]])*Tabel1[[#This Row],[Ompløjningsrate]]","v":14030.173887222558},{"$f":"Tabel1[[#This Row],[AGDM(T)]]/F32","v":1.0300447840007751},6.0000000000000001E-3,{"$f":"Tabel1[[#This Row],[Tørstof høstet pr ha (kg)]]*Tabel1[[#This Row],[Dyrket areal på bedriften (ha)]]*Tabel1[[#This Row],[RAG]]*Tabel1[[#This Row],[NAG]]","v":0},0.22,7.0000000000000001E-3,{"$f":"Tabel1[[#This Row],[Dyrket areal på bedriften (ha)]]*Tabel1[[#This Row],[Tørstof høstet pr ha (kg)]]*Tabel1[[#This Row],[RBG-BIO]]*Tabel1[[#This Row],[NBG]]*Tabel1[[#This Row],[Ompløjningsrate]]","v":0},null,{"$f":"Tabel1[[#This Row],[Total kvælstof i over-jorden afgrøderester Kg N]]+Tabel1[[#This Row],[Total kvælstof i under-jorden afgrøderester Kg N]]","v":0}]
["Kartofler",1796000000,42617,{"$f":"(Tabel1[[#This Row],[Høst resultat, Danmark (kg)]])/Tabel1[[#This Row],[Samlet dyrket areal i Danmark (ha) ]]","v":42142.806861111763},0.24,{"$f":"Tabel1[[#This Row],[Høstresultat pr ha (kg)]]*Tabel1[[#This Row],[Tørstofindhold i pct.]]","v":10114.273646666823},{"$f":"Indtastning!B107","v":0},1,0.1,1.06,{"$f":"(Tabel1[[#This Row],[Tørstof høstet pr ha (kg)]]*Tabel1[[#This Row],[Hældning]]+Tabel1[[#This Row],[Skæring]])*Tabel1[[#This Row],[Ompløjningsrate]]","v":1012.4873646666823},{"$f":"Tabel1[[#This Row],[AGDM(T)]]/F33","v":0.10010480238492947},1.9E-2,{"$f":"Tabel1[[#This Row],[Tørstof høstet pr ha (kg)]]*Tabel1[[#This Row],[Dyrket areal på bedriften (ha)]]*Tabel1[[#This Row],[RAG]]*Tabel1[[#This Row],[NAG]]","v":0},0.2,1.4E-2,{"$f":"Tabel1[[#This Row],[Dyrket areal på bedriften (ha)]]*Tabel1[[#This Row],[Tørstof høstet pr ha (kg)]]*Tabel1[[#This Row],[RBG-BIO]]*Tabel1[[#This Row],[NBG]]*Tabel1[[#This Row],[Ompløjningsrate]]","v":0},null,{"$f":"Tabel1[[#This Row],[Total kvælstof i over-jorden afgrøderester Kg N]]+Tabel1[[#This Row],[Total kvælstof i under-jorden afgrøderester Kg N]]","v":0}]
["Lucerne",232500000,3814,{"$f":"(Tabel1[[#This Row],[Høst resultat, Danmark (kg)]])/Tabel1[[#This Row],[Samlet dyrket areal i Danmark (ha) ]]","v":60959.622443628738},0.21,{"$f":"Tabel1[[#This Row],[Høstresultat pr ha (kg)]]*Tabel1[[#This Row],[Tørstofindhold i pct.]]","v":12801.520713162034},{"$f":"Indtastning!B108","v":0},{"$f":"1/3","v":0.33333333333333331},0.28999999999999998,0,{"$f":"(Tabel1[[#This Row],[Tørstof høstet pr ha (kg)]]*Tabel1[[#This Row],[Hældning]]+Tabel1[[#This Row],[Skæring]])*Tabel1[[#This Row],[Ompløjningsrate]]","v":1237.4803356056632},{"$f":"Tabel1[[#This Row],[AGDM(T)]]/F34","v":9.6666666666666665E-2},2.7E-2,{"$f":"Tabel1[[#This Row],[Tørstof høstet pr ha (kg)]]*Tabel1[[#This Row],[Dyrket areal på bedriften (ha)]]*Tabel1[[#This Row],[RAG]]*Tabel1[[#This Row],[NAG]]","v":0},0.4,1.9E-2,{"$f":"Tabel1[[#This Row],[Dyrket areal på bedriften (ha)]]*Tabel1[[#This Row],[Tørstof høstet pr ha (kg)]]*Tabel1[[#This Row],[RBG-BIO]]*Tabel1[[#This Row],[NBG]]*Tabel1[[#This Row],[Ompløjningsrate]]","v":0},null,{"$f":"Tabel1[[#This Row],[Total kvælstof i over-jorden afgrøderester Kg N]]+Tabel1[[#This Row],[Total kvælstof i under-jorden afgrøderester Kg N]]","v":0}]
["Bælgsæd til modenhed",33200000.000000004,8793,{"$f":"(Tabel1[[#This Row],[Høst resultat, Danmark (kg)]])/Tabel1[[#This Row],[Samlet dyrket areal i Danmark (ha) ]]","v":3775.7306948709206},0.85199999999999998,{"$f":"Tabel1[[#This Row],[Høstresultat pr ha (kg)]]*Tabel1[[#This Row],[Tørstofindhold i pct.]]","v":3216.9225520300242},{"$f":"Indtastning!B109","v":0},1,1.1299999999999999,0.85,{"$f":"(Tabel1[[#This Row],[Tørstof høstet pr ha (kg)]]*Tabel1[[#This Row],[Hældning]]+Tabel1[[#This Row],[Skæring]])*Tabel1[[#This Row],[Ompløjningsrate]]","v":3635.972483793927},{"$f":"Tabel1[[#This Row],[AGDM(T)]]/F35","v":1.1302642276853894},8.0000000000000002E-3,{"$f":"Tabel1[[#This Row],[Tørstof høstet pr ha (kg)]]*Tabel1[[#This Row],[Dyrket areal på bedriften (ha)]]*Tabel1[[#This Row],[RAG]]*Tabel1[[#This Row],[NAG]]","v":0},0.19,8.0000000000000002E-3,{"$f":"Tabel1[[#This Row],[Dyrket areal på bedriften (ha)]]*Tabel1[[#This Row],[Tørstof høstet pr ha (kg)]]*Tabel1[[#This Row],[RBG-BIO]]*Tabel1[[#This Row],[NBG]]*Tabel1[[#This Row],[Ompløjningsrate]]","v":0},null,{"$f":"Tabel1[[#This Row],[Total kvælstof i over-jorden afgrøderester Kg N]]+Tabel1[[#This Row],[Total kvælstof i under-jorden afgrøderester Kg N]]","v":0}]
["Sukkerroer til fabrik + Foderroer",2545700000,42567,{"$f":"(Tabel1[[#This Row],[Høst resultat, Danmark (kg)]])/Tabel1[[#This Row],[Samlet dyrket areal i Danmark (ha) ]]","v":59804.543425658376},0.16800000000000001,{"$f":"Tabel1[[#This Row],[Høstresultat pr ha (kg)]]*Tabel1[[#This Row],[Tørstofindhold i pct.]]","v":10047.163295510607},{"$f":"Indtastning!B110","v":0},1,0.1,1.06,{"$f":"(Tabel1[[#This Row],[Tørstof høstet pr ha (kg)]]*Tabel1[[#This Row],[Hældning]]+Tabel1[[#This Row],[Skæring]])*Tabel1[[#This Row],[Ompløjningsrate]]","v":1005.7763295510607},{"$f":"Tabel1[[#This Row],[AGDM(T)]]/F36","v":0.10010550241583847},1.9E-2,{"$f":"Tabel1[[#This Row],[Tørstof høstet pr ha (kg)]]*Tabel1[[#This Row],[Dyrket areal på bedriften (ha)]]*Tabel1[[#This Row],[RAG]]*Tabel1[[#This Row],[NAG]]","v":0},0.2,1.4E-2,{"$f":"Tabel1[[#This Row],[Dyrket areal på bedriften (ha)]]*Tabel1[[#This Row],[Tørstof høstet pr ha (kg)]]*Tabel1[[#This Row],[RBG-BIO]]*Tabel1[[#This Row],[NBG]]*Tabel1[[#This Row],[Ompløjningsrate]]","v":0},null,{"$f":"Tabel1[[#This Row],[Total kvælstof i over-jorden afgrøderester Kg N]]+Tabel1[[#This Row],[Total kvælstof i under-jorden afgrøderester Kg N]]","v":0}]
["Korn og bælgsæd til ensilering (helsæd)",1162200000,61100,{"$f":"(Tabel1[[#This Row],[Høst resultat, Danmark (kg)]])/Tabel1[[#This Row],[Samlet dyrket areal i Danmark (ha) ]]","v":19021.276595744679},0.27,{"$f":"Tabel1[[#This Row],[Høstresultat pr ha (kg)]]*Tabel1[[#This Row],[Tørstofindhold i pct.]]","v":5135.744680851064},{"$f":"Indtastning!B111","v":0},1,{"$f":"I29","v":0.98},0.59,{"$f":"(Tabel1[[#This Row],[Tørstof høstet pr ha (kg)]]*Tabel1[[#This Row],[Hældning]]+Tabel1[[#This Row],[Skæring]])*Tabel1[[#This Row],[Ompløjningsrate]]","v":5033.6197872340426},{"$f":"Tabel1[[#This Row],[AGDM(T)]]/F37","v":0.98011488110033973},{"$f":"M29","v":7.0000000000000001E-3},{"$f":"Tabel1[[#This Row],[Tørstof høstet pr ha (kg)]]*Tabel1[[#This Row],[Dyrket areal på bedriften (ha)]]*Tabel1[[#This Row],[RAG]]*Tabel1[[#This Row],[NAG]]","v":0},{"$f":"O29","v":0.22},{"$f":"P29","v":1.4E-2},{"$f":"Tabel1[[#This Row],[Dyrket areal på bedriften (ha)]]*Tabel1[[#This Row],[Tørstof høstet pr ha (kg)]]*Tabel1[[#This Row],[RBG-BIO]]*Tabel1[[#This Row],[NBG]]*Tabel1[[#This Row],[Ompløjningsrate]]","v":0},null,{"$f":"Tabel1[[#This Row],[Total kvælstof i over-jorden afgrøderester Kg N]]+Tabel1[[#This Row],[Total kvælstof i under-jorden afgrøderester Kg N]]","v":0}]
["Græs- og kløvermark i omdriften + Frø til udsæd",14040084100,390361,{"$f":"(Tabel1[[#This Row],[Høst resultat, Danmark (kg)]])/Tabel1[[#This Row],[Samlet dyrket areal i Danmark (ha) ]]","v":35966.923181362894},0.27,{"$f":"Tabel1[[#This Row],[Høstresultat pr ha (kg)]]*Tabel1[[#This Row],[Tørstofindhold i pct.]]","v":9711.069258967982},{"$f":"Indtastning!B112","v":0},{"$f":"1/2","v":0.5},0.3,0,{"$f":"(Tabel1[[#This Row],[Tørstof høstet pr ha (kg)]]*Tabel1[[#This Row],[Hældning]]+Tabel1[[#This Row],[Skæring]])*Tabel1[[#This Row],[Ompløjningsrate]]","v":1456.6603888451973},{"$f":"Tabel1[[#This Row],[AGDM(T)]]/F38","v":0.15},2.5000000000000001E-2,{"$f":"Tabel1[[#This Row],[Tørstof høstet pr ha (kg)]]*Tabel1[[#This Row],[Dyrket areal på bedriften (ha)]]*Tabel1[[#This Row],[RAG]]*Tabel1[[#This Row],[NAG]]","v":0},0.8,1.6E-2,{"$f":"Tabel1[[#This Row],[Dyrket areal på bedriften (ha)]]*Tabel1[[#This Row],[Tørstof høstet pr ha (kg)]]*Tabel1[[#This Row],[RBG-BIO]]*Tabel1[[#This Row],[NBG]]*Tabel1[[#This Row],[Ompløjningsrate]]","v":0},null,{"$f":"Tabel1[[#This Row],[Total kvælstof i over-jorden afgrøderester Kg N]]+Tabel1[[#This Row],[Total kvælstof i under-jorden afgrøderester Kg N]]","v":0}]
["Græsarealer uden for omdriften",3158300000,192617,{"$f":"(Tabel1[[#This Row],[Høst resultat, Danmark (kg)]])/Tabel1[[#This Row],[Samlet dyrket areal i Danmark (ha) ]]","v":16396.787407134365},0.27,{"$f":"Tabel1[[#This Row],[Høstresultat pr ha (kg)]]*Tabel1[[#This Row],[Tørstofindhold i pct.]]","v":4427.132599926279},{"$f":"Indtastning!B113","v":0},{"$f":"1/99999","v":1.000010000100001E-5},0.3,0,{"$f":"(Tabel1[[#This Row],[Tørstof høstet pr ha (kg)]]*Tabel1[[#This Row],[Hældning]]+Tabel1[[#This Row],[Skæring]])*Tabel1[[#This Row],[Ompløjningsrate]]","v":1.3281530615084986E-2},{"$f":"Tabel1[[#This Row],[AGDM(T)]]/F39","v":3.0000300003000026E-6},2.5000000000000001E-2,{"$f":"Tabel1[[#This Row],[Tørstof høstet pr ha (kg)]]*Tabel1[[#This Row],[Dyrket areal på bedriften (ha)]]*Tabel1[[#This Row],[RAG]]*Tabel1[[#This Row],[NAG]]","v":0},0.8,1.6E-2,{"$f":"Tabel1[[#This Row],[Dyrket areal på bedriften (ha)]]*Tabel1[[#This Row],[Tørstof høstet pr ha (kg)]]*Tabel1[[#This Row],[RBG-BIO]]*Tabel1[[#This Row],[NBG]]*Tabel1[[#This Row],[Ompløjningsrate]]","v":0},null,{"$f":"Tabel1[[#This Row],[Total kvælstof i over-jorden afgrøderester Kg N]]+Tabel1[[#This Row],[Total kvælstof i under-jorden afgrøderester Kg N]]","v":0}]
["Raps i alt + Hør + Anden industrifrø",708900000,166592,{"$f":"(Tabel1[[#This Row],[Høst resultat, Danmark (kg)]])/Tabel1[[#This Row],[Samlet dyrket areal i Danmark (ha) ]]","v":4255.3063772570113},0.92500000000000004,{"$f":"Tabel1[[#This Row],[Høstresultat pr ha (kg)]]*Tabel1[[#This Row],[Tørstofindhold i pct.]]","v":3936.1583989627356},{"$f":"Indtastning!B114","v":0},1,{"$f":"I25","v":1.61},0.4,{"$f":"(Tabel1[[#This Row],[Tørstof høstet pr ha (kg)]]*Tabel1[[#This Row],[Hældning]]+Tabel1[[#This Row],[Skæring]])*Tabel1[[#This Row],[Ompløjningsrate]]","v":6337.6150223300046},{"$f":"Tabel1[[#This Row],[AGDM(T)]]/F40","v":1.6101016219266242},{"$f":"M25","v":6.0000000000000001E-3},{"$f":"Tabel1[[#This Row],[Tørstof høstet pr ha (kg)]]*Tabel1[[#This Row],[Dyrket areal på bedriften (ha)]]*Tabel1[[#This Row],[RAG]]*Tabel1[[#This Row],[NAG]]","v":0},{"$f":"O25","v":0.23},{"$f":"P25","v":8.9999999999999993E-3},{"$f":"Tabel1[[#This Row],[Dyrket areal på bedriften (ha)]]*Tabel1[[#This Row],[Tørstof høstet pr ha (kg)]]*Tabel1[[#This Row],[RBG-BIO]]*Tabel1[[#This Row],[NBG]]*Tabel1[[#This Row],[Ompløjningsrate]]","v":0},null,{"$f":"Tabel1[[#This Row],[Total kvælstof i over-jorden afgrøderester Kg N]]+Tabel1[[#This Row],[Total kvælstof i under-jorden afgrøderester Kg N]]","v":0}]
[]
["Total N i afgrøderester",null,null,null,null,null,null,null,null,null,null,null,null,null,null,null,null,null,{"$f":"SUM(S25:S40)","v":0}]
["N-indhold i høstet strå",null,null,null,null,null,null,null,null,null,null,null,null,null,null,null,null,{"$f":"Indtastning!B118*1000","v":0},{"$f":"Tabel1[[#This Row],[Halm bjærget (kg)]]*85%*3.3%/6.25","v":0}]
["Netto N-indhold i afgrøderester",null,null,null,null,null,null,null,null,null,null,null,null,null,null,null,null,null,{"$f":"S42-S43","v":0}]
[]
["Kilder","Danmarks Statistik HST6","Danmarks Statistik AFG1",null,"SEGES fodermiddeltabel",null,null,"DCE","IPCC tabel 11.2","IPCC tabel 11.2",null,null,"IPCC tabel 11.2",null,"IPCC tabel 11.2","IPCC tabel 11.2"]
[]
[]
["Kg N fra mineralisering","Dyrket areal","Emissionsfaktor",null,"Total kg N"]
["Jordbundstype","Areal JB-nr. 11 (Humus) (ha)","Total mængde N til udregning af EF","Kg N pr ha","Total kg N"]
["Humus jorde",{"$f":"Indtastning!B132","v":0},25355877.73,{"$f":"C51/41000","v":618.43604219512201},{"$f":"IFERROR(B51*D51,0)","v":0}]
[]
[]
["Kg N2O-N fra organiske jorde",null,null,"Total kg N20-N"]
["Græs eller afgrøder","Ha","Emissionsfaktor (kg N20-N pr ha)","Total kg N"]
["Afgrøder på organiske jorde",{"$f":"Indtastning!B134","v":0},13,{"$f":"B56*C56","v":0}]
["Græsningsområder (organiske jorde)",{"$f":"Indtastning!B135","v":0},8.1999999999999993,{"$f":"B57*C57","v":0}]
[]
["Total N",null,null,{"$f":"D56+D57","v":0}]
["Kilde",null,"NIR: 399"]
[]
[]
["Kg N fra græssende dyr",null,null,null,"Total kg N"]
["Dyretype","Antal dyr","Kg N pr dyr pr år","Dage på græs","Kg N"]
["Malkekvæg",{"$f":"SUM(Indtastning!B9:P10)","v":0},146.4,18,{"$f":"B65*C65*D65/365","v":0}]
["Kvier > 1/2 år",{"$f":"SUM(Indtastning!B13:P14)","v":0},50.4,131.85454545454544,{"$f":"B66*C66*D66/365","v":0}]
["Diekalve",{"$f":"SUM(Indtastning!B19:P21)","v":0},72.400000000000006,224,0]
["Får",{"$f":"SUM(Indtastning!B50)","v":0},6.64,265,0]
["Geder",{"$f":"SUM(Indtastning!B51:B53)","v":0},16.600000000000001,265,0]
["Heste",{"$f":"SUM(Indtastning!B61:B64)","v":0},39.56,182.5,0]
["Total",null,null,null,{"$f":"SUM(E65:E70)","v":0}]
[]
["Kilde",null,"NIR tabel 5.13","NIR Annex 3D-9"]
[]
[]
["Fordampning (Atmospheric deposition)",null,null,"Total kg N"]
["Type af gødning","Kg N pr år","Andel der fordamper","Total kg N pr år"]
["Uorganisk gødning N Kg pr år",{"$f":"B4","v":0},4.3505294639339998E-2,{"$f":"B78*C78","v":0}]
["Organisk gødning +Gødning fra græssende dyr N kg pr år",{"$f":"B5+B9","v":0},8.2735825414760003E-2,{"$f":"B79*C79","v":0}]
["Afgrøderester N kg pr år",{"$f":"B10","v":0},3.0226327198308901E-2,0]
["Total",null,null,{"$f":"SUM(D78:D80)","v":0}]
[]
[null,null,"NIR Tabel 5.15 og 5.25"]
[]
[]
["Kg N fra nitrogenudvaskning",null,null,"Total kg N"]
[null,"Total N input til jorden","Andel der udvaskses (FracLeach)","N udvaskning"]
["Alle jordbundstyper",{"$f":"SUM(B4,B5,B9,B10,B11)","v":0},0.27645361716889999,{"$f":"IFERROR(B88*C88,0)","v":0}]
[]
["Kilde",null,"CRF Table3.D"]

{"sheet":"CO2 Brændsler","index":6,"n_rows":11,"n_cols":16,"rows_kept":11,"cut":false,"hidden":false,"merged":[[0,0,0,1],[0,8,0,14],[1,5,1,7],[1,9,1,11],[1,12,1,14],[0,4,0,7]]}
["Karakteristika",null,"Input",null,"Normtal",null,null,null,"Udregninger",null,null,null,null,null,null,"Totale udledninger"]
["Brændselstype","Anlægstype","Brændstofforbrug (mængde)","Enhed","Omregningsfaktor til TJ","Emissionsfaktor (kg/TJ)",null,null,"Brændstofforbrug (TJ)","Samlede udledninger (ton)",null,null,"Samlede udledninger (ton CO2e)",null,null,"Total CO2e"]
[null,null,null,null,null,"CO2","CH4","N2O",null,"CO2","CH4","N2O","CO2","CH4","N2O"]
["Flydende brændsler","Stationære anlæg",{"$f":"Indtastning!B77","v":0},"Liter",3.5899999999999998E-5,{"$f":"76.3953608167865*1000","v":76395.360816786502},1.65248117468404,0.28794144321898002,{"$f":"C4*E4","v":0},{"$f":"$I4*F4/1000","v":0},0,0,{"$f":"J4","v":0},{"$f":"K4*GWP!$B$2","v":0},{"$f":"L4*GWP!$B$3","v":0},{"$f":"SUM(M4:O4)","v":0}]
["Faste brændsler","Stationære anlæg",{"$f":"Indtastning!B78","v":0},"Ton",2.5000000000000001E-2,{"$f":"94.6*1000","v":94600},10,1.5,{"$f":"C5*E5","v":0},0,0,0,{"$f":"J5","v":0},{"$f":"K5*GWP!$B$2","v":0},{"$f":"L5*GWP!$B$3","v":0},{"$f":"SUM(M5:O5)","v":0}]
["Naturgas","Stationære anlæg",{"$f":"Indtastning!B79","v":0},"m3",3.9900000000000001E-5,{"$f":"56.9499999999999*1000","v":56949.999999999905},107.57196986489284,0.90674952636744,{"$f":"C6*E6","v":0},0,0,0,{"$f":"J6","v":0},{"$f":"K6*GWP!$B$2","v":0},{"$f":"L6*GWP!$B$3","v":0},0]
["Benzin","Mobile anlæg",{"$f":"Indtastning!B83","v":0},"Liter",3.3000000000000003E-5,{"$f":"72.9999999999999*1000","v":72999.999999999898},160.21775726555296,1.5174986907691199,{"$f":"C7*E7","v":0},0,0,0,{"$f":"J7","v":0},{"$f":"K7*GWP!$B$2","v":0},{"$f":"L7*GWP!$B$3","v":0},{"$f":"SUM(M7:O7)","v":0}]
["Diesel","Mobile anlæg",{"$f":"Indtastning!B84","v":0},"Liter",3.5899999999999998E-5,{"$f":"73.9999999999995*1000","v":73999.999999999505},1.0708526565987899,3.2031487957284299,{"$f":"C8*E8","v":0},0,0,0,{"$f":"J8","v":0},{"$f":"K8*GWP!$B$2","v":0},{"$f":"L8*GWP!$B$3","v":0},{"$f":"SUM(M8:O8)","v":0}]
[]
[]
["Kilde",null,null,null,"Energistyrelsens Energistatistikken 2015","CRF Table1.A(a)s4","CRF Table1.A(a)s4","CRF Table1.A(a)s4"]

{"sheet":"Reduktionstiltag","index":7,"n_rows":16,"n_cols":10,"rows_kept":16,"cut":false,"hidden":false,"merged":[[0,0,0,1]]}
["Reduktionstiltag",null,"Input data",null,"Metan","Lattergas","CO2","Total reduktion",null,"Kilde"]
["Udledningskilde","Tiltag","Input data","Enhed","Reduktion p.a., i pct","Reduktion p.a., per enhed. i ton CO2e","Reduktion p.a., per enhed i ton CO2e"]
["CH4 og N2O Gødning","Forsuret, svinegylle",{"$f":"IF(Indtastning!B142=\"ja\",SUM('CH4 Gødning'!X135,'CH4 Gødning'!X137,'CH4 Gødning'!X140,'CH4 Gødning'!X141,'CH4 Gødning'!X145,'CH4 Gødning'!X146,'CH4 Gødning'!X147,'CH4 Gødning'!X148,'CH4 Gødning'!X149,'CH4 Gødning'!X153,'CH4 Gødning'!X154,'CH4 Gødning'!X158,'CH4 Gødning'!X160)*GWP!$B$2/1000,0)","v":0},"ton CO2e ",0.6,null,null,{"$f":"E3*C3","v":0},null,"Olesen, Jørgen E.; Jørgensen, Uffe; Hermansen, John E.; Petersen, Søren O.; Eriksen, Jørgen; Søegaard, Karen; Vinther, Finn P.; Elsgaard, Lars; Lund, Peter; Nørgaard, Jan V.; Møller, Henrik B.: Effekter af tiltag til reduktion af landbrugets udledninger af drivhusgasser. DCA Rapport nr. 27. August 2013."]
["CH4 og N2O Gødning","Forsuret, kvæggylle",{"$f":"IF(Indtastning!B143=\"ja\",SUM('CH4 Gødning'!X5:X9,'CH4 Gødning'!X11,'CH4 Gødning'!X13,'CH4 Gødning'!X15,'CH4 Gødning'!X20:X24,'CH4 Gødning'!X26,'CH4 Gødning'!X28,'CH4 Gødning'!X30,'CH4 Gødning'!X34,'CH4 Gødning'!X37:X41,'CH4 Gødning'!X43,'CH4 Gødning'!X46,'CH4 Gødning'!X48,'CH4 Gødning'!X52,'CH4 Gødning'!X55:X59,'CH4 Gødning'!X61,'CH4 Gødning'!X64,'CH4 Gødning'!X66,'CH4 Gødning'!X70,'CH4 Gødning'!X73:X77,'CH4 Gødning'!X79,'CH4 Gødning'!X82,'CH4 Gødning'!X84,'CH4 Gødning'!X88,'CH4 Gødning'!X91:X95,'CH4 Gødning'!X97,'CH4 Gødning'!X100,'CH4 Gødning'!X102,'CH4 Gødning'!X106,'CH4 Gødning'!X109,'CH4 Gødning'!X111,'CH4 Gødning'!X115,'CH4 Gødning'!X117,'CH4 Gødning'!X120,'CH4 Gødning'!X122,'CH4 Gødning'!X126,'CH4 Gødning'!X128,'CH4 Gødning'!X131,'CH4 Gødning'!X133)*GWP!$B$2/1000,0)","v":0},"ton CO2e ",0.6,null,null,{"$f":"E4*C4","v":0},null,"Olesen, Jørgen E.; Jørgensen, Uffe; Hermansen, John E.; Petersen, Søren O.; Eriksen, Jørgen; Søegaard, Karen; Vinther, Finn P.; Elsgaard, Lars; Lund, Peter; Nørgaard, Jan V.; Møller, Henrik B.: Effekter af tiltag til reduktion af landbrugets udledninger af drivhusgasser. DCA Rapport nr. 27. August 2013."]
["CH4 og N2O Gødning","Biogas, svinegylle",{"$f":"IF(Indtastning!B144=\"ja\",SUM('CH4 Gødning'!X135,'CH4 Gødning'!X137,'CH4 Gødning'!X140,'CH4 Gødning'!X141,'CH4 Gødning'!X145,'CH4 Gødning'!X146,'CH4 Gødning'!X147,'CH4 Gødning'!X148,'CH4 Gødning'!X149,'CH4 Gødning'!X153,'CH4 Gødning'!X154,'CH4 Gødning'!X158,'CH4 Gødning'!X160)*GWP!$B$2/1000,0)","v":0},"ton CO2e ",0.25,null,null,{"$f":"E5*C5","v":0},null,"Mikkelsen, Mette Hjorth; Albrektsen, Rikke; Gyldenkærne, Steen: Biogasproduktions konsekvenser for drivhusgasudledning i landbruget. DCE Rapport nr. 197, 2016."]
["CH4 og N2O Gødning","Biogas, kvæggylle",{"$f":"IF(Indtastning!B145=\"ja\",SUM('CH4 Gødning'!X5:X9,'CH4 Gødning'!X11,'CH4 Gødning'!X13,'CH4 Gødning'!X15,'CH4 Gødning'!X20:X24,'CH4 Gødning'!X26,'CH4 Gødning'!X28,'CH4 Gødning'!X30,'CH4 Gødning'!X34,'CH4 Gødning'!X37:X41,'CH4 Gødning'!X43,'CH4 Gødning'!X46,'CH4 Gødning'!X48,'CH4 Gødning'!X52,'CH4 Gødning'!X55:X59,'CH4 Gødning'!X61,'CH4 Gødning'!X64,'CH4 Gødning'!X66,'CH4 Gødning'!X70,'CH4 Gødning'!X73:X77,'CH4 Gødning'!X79,'CH4 Gødning'!X82,'CH4 Gødning'!X84,'CH4 Gødning'!X88,'CH4 Gødning'!X91:X95,'CH4 Gødning'!X97,'CH4 Gødning'!X100,'CH4 Gødning'!X102,'CH4 Gødning'!X106,'CH4 Gødning'!X109,'CH4 Gødning'!X111,'CH4 Gødning'!X115,'CH4 Gødning'!X117,'CH4 Gødning'!X120,'CH4 Gødning'!X122,'CH4 Gødning'!X126,'CH4 Gødning'!X128,'CH4 Gødning'!X131,'CH4 Gødning'!X133)*GWP!$B$2/1000,0)","v":0},"ton CO2e ",0.25,null,null,{"$f":"C6*E6","v":0},null,"Mikkelsen, Mette Hjorth; Albrektsen, Rikke; Gyldenkærne, Steen: Biogasproduktions konsekvenser for drivhusgasudledning i landbruget. DCE Rapport nr. 197, 2016."]
["N2O Jord","Dyrkning af energipil, sandjord",{"$f":"Indtastning!B152","v":0},"ha.",null,0.247,null,{"$f":"C7*F7+C7*G7","v":0},null,"Olesen, Jørgen E.; Jørgensen, Uffe; Hermansen, John E.; Petersen, Søren O.; Eriksen, Jørgen; Søegaard, Karen; Vinther, Finn P.; Elsgaard, Lars; Lund, Peter; Nørgaard, Jan V.; Møller, Henrik B.: Effekter af tiltag til reduktion af landbrugets udledninger af drivhusgasser. DCA Rapport nr. 27. August 2013."]
["N2O Jord","Dyrkning af energipil, lerjord",{"$f":"Indtastning!B153","v":0},"ha.",null,0.185,null,{"$f":"C8*F8+C8*G8","v":0},null,"Olesen, Jørgen E.; Jørgensen, Uffe; Hermansen, John E.; Petersen, Søren O.; Eriksen, Jørgen; Søegaard, Karen; Vinther, Finn P.; Elsgaard, Lars; Lund, Peter; Nørgaard, Jan V.; Møller, Henrik B.: Effekter af tiltag til reduktion af landbrugets udledninger af drivhusgasser. DCA Rapport nr. 27. August 2013."]
["N2O Jord","Dyrkning af energipil, organogenjord",{"$f":"Indtastning!B154","v":0},"ha.",null,0.247,null,{"$f":"C9*F9+C9*G9","v":0},null,"Olesen, Jørgen E.; Jørgensen, Uffe; Hermansen, John E.; Petersen, Søren O.; Eriksen, Jørgen; Søegaard, Karen; Vinther, Finn P.; Elsgaard, Lars; Lund, Peter; Nørgaard, Jan V.; Møller, Henrik B.: Effekter af tiltag til reduktion af landbrugets udledninger af drivhusgasser. DCA Rapport nr. 27. August 2013."]
["N2O Jord","Nitrifikationshæmmere, handelsgødning",{"$f":"IF(Indtastning!B149=\"ja\",Indtastning!B92,0)/1000","v":0},"ton handelsgødning",null,1.78,null,{"$f":"C10*F10","v":0},null,"Olesen, Jørgen E.; Jørgensen, Uffe; Hermansen, John E.; Petersen, Søren O.; Eriksen, Jørgen; Søegaard, Karen; Vinther, Finn P.; Elsgaard, Lars; Lund, Peter; Nørgaard, Jan V.; Møller, Henrik B.: Effekter af tiltag til reduktion af landbrugets udledninger af drivhusgasser. DCA Rapport nr. 27. August 2013."]
["Arealanvendelse (kulstofbindende tiltag)","Dyrkning af energipil",{"$f":"SUM(Indtastning!B152:B154)","v":0},"ha.",null,null,1.57,{"$f":"C11*G11","v":0},null,"Olesen, Jørgen E.; Jørgensen, Uffe; Hermansen, John E.; Petersen, Søren O.; Eriksen, Jørgen; Søegaard, Karen; Vinther, Finn P.; Elsgaard, Lars; Lund, Peter; Nørgaard, Jan V.; Møller, Henrik B.: Effekter af tiltag til reduktion af landbrugets udledninger af drivhusgasser. DCA Rapport nr. 27. August 2013."]
["Arealanvendelse (kulstofbindende tiltag)","Efterafgrøder på sandjord",{"$f":"Indtastning!B155","v":0},"ha.",null,null,0.73299999999999998,{"$f":"C12*G12+C12*F12","v":0},null,"Olesen, Jørgen E.; Jørgensen, Uffe; Hermansen, John E.; Petersen, Søren O.; Eriksen, Jørgen; Søegaard, Karen; Vinther, Finn P.; Elsgaard, Lars; Lund, Peter; Nørgaard, Jan V.; Møller, Henrik B.: Effekter af tiltag til reduktion af landbrugets udledninger af drivhusgasser. DCA Rapport nr. 27. August 2013."]
["Arealanvendelse (kulstofbindende tiltag)","Efterafgrøder på lerjord",{"$f":"Indtastning!B156","v":0},"ha.",null,null,0.73299999999999998,{"$f":"C13*G13+C13*F13","v":0},null,"Olesen, Jørgen E.; Jørgensen, Uffe; Hermansen, John E.; Petersen, Søren O.; Eriksen, Jørgen; Søegaard, Karen; Vinther, Finn P.; Elsgaard, Lars; Lund, Peter; Nørgaard, Jan V.; Møller, Henrik B.: Effekter af tiltag til reduktion af landbrugets udledninger af drivhusgasser. DCA Rapport nr. 27. August 2013."]
["Arealanvendelse (kulstofbindende tiltag)","Mellemafgrøder på sandjord",{"$f":"Indtastning!B157","v":0},"ha.",null,null,0.73299999999999998,{"$f":"C14*G14+C14*F14","v":0},null,"Olesen, Jørgen E.; Jørgensen, Uffe; Hermansen, John E.; Petersen, Søren O.; Eriksen, Jørgen; Søegaard, Karen; Vinther, Finn P.; Elsgaard, Lars; Lund, Peter; Nørgaard, Jan V.; Møller, Henrik B.: Effekter af tiltag til reduktion af landbrugets udledninger af drivhusgasser. DCA Rapport nr. 27. August 2013."]
["Arealanvendelse (kulstofbindende tiltag)","Mellemafgrøder på lerjord",{"$f":"Indtastning!B158","v":0},"ha.",null,null,0.73299999999999998,{"$f":"C15*G15+C15*F15","v":0},null,"Olesen, Jørgen E.; Jørgensen, Uffe; Hermansen, John E.; Petersen, Søren O.; Eriksen, Jørgen; Søegaard, Karen; Vinther, Finn P.; Elsgaard, Lars; Lund, Peter; Nørgaard, Jan V.; Møller, Henrik B.: Effekter af tiltag til reduktion af landbrugets udledninger af drivhusgasser. DCA Rapport nr. 27. August 2013."]
["Arealanvendelse (kulstofbindende tiltag)","Vedvarende græsarealer",{"$f":"Indtastning!B151","v":0},"ha.",null,null,1.833,{"$f":"C16*G16","v":0},null,"Olesen, Jørgen E.; Jørgensen, Uffe; Hermansen, John E.; Petersen, Søren O.; Eriksen, Jørgen; Søegaard, Karen; Vinther, Finn P.; Elsgaard, Lars; Lund, Peter; Nørgaard, Jan V.; Møller, Henrik B.: Effekter af tiltag til reduktion af landbrugets udledninger af drivhusgasser. DCA Rapport nr. 27. August 2013."]

{"sheet":"Bedriften Danmark","index":8,"n_rows":158,"n_cols":19,"rows_kept":158,"cut":false,"hidden":false,"merged":[[58,1,58,4],[75,2,75,4],[6,1,6,12],[37,1,37,17],[26,1,26,17]]}
["Indtastningsark"]
[]
[]
[]
[]
["Kvæg"]
["Dyretype","Staldtype"]
["Antal producerede dyr i året","Bindestald med grebning","Bindestald med riste","Sengestald med fast gulv","Sengestald, fast drænet gulv med skraber og ajleafløb","Sengestald med spalter (kanal, linespil)","Sengestald med spalter (kanal, bagskyl eller ringkanal)","Dybstrøelse (hele arealet)","Dybstrøelse, lang ædeplads med fast gulv","Dybstrøelse, lang ædeplads med spalter (kanal, linespil)","Dybstrøelse, lang ædeplads med spalter (kanal, bagskyl eller ringkanal)","Dybstrøelse + kort ædeplads med fast gulv","Spaltegulvbokse",null,null,null,null,null,"Biogas"]
["Malkekvæg, tung race",15753.668000000001,24193.132999999994,84394.65,22505,206434,120965.66499999999,16878.929999999997,3375.7859999999996,7314.2030000000004,5063.6789999999992,null,null,null,null,null,null,null,55752.000145511163]
["Malkekvæg, jersey"]
["Småkalv, 0-6 mdr., tung race",null,null,null,null,null,null,159487.052,null,null,null,5955.9480000000003]
["Småkalv, 0-6 mdr., jersey"]
["Kvier og stude, 6-27 mdr., tung race",16444.758000000002,6478.2380000000012,37872.776000000005,8471.5420000000013,110628.37200000002,42357.710000000006,107638.41600000003,7474.89,8471.5420000000013,12956.476000000002,3986.6080000000002,135544.67200000002]
["Kvier og stude, 6-27 mdr., jersey"]
["Tyrekalv, 0-6 mdr., tung race",null,null,null,null,null,null,109491.18599999999,null,null,null,3502.8139999999999]
["Tyrekalv, 0-6 mdr., jersey"]
["Ungtyre, 6 mdr. til slagtning (440 kg), tung race",2184.6419999999998,606.84499999999991,364.10700000000003,1335.059,7403.509,4976.1290000000008,70879.495999999985,1335.059,1456.4280000000001,2063.2730000000001,3641.07,25123.382999999998]
["Ungtyre, 6 mdr. til slagtning (440 kg), jersey"]
["Ammekvæg (<400 kg)",250.971,171.83599999999998,null,null,null,null,1655.0519999999999,24.870999999999999,38.437000000000005,56.525000000000006,63.308000000000007]
["Ammekvæg( 400-600 kg)",2452.6559999999999,1679.296,null,null,null,null,16174.271999999999,243.05599999999998,375.63200000000006,552.4,618.68799999999999]
["Ammekvæg (>600 kg)",8704.0650000000005,5959.54,null,null,null,null,57399.78,862.56499999999983,1333.0550000000001,1960.375,2195.6200000000003]
[]
[]
[]
[]
["Svin"]
["Dyretype","Staldtype"]
["Antal producerede dyr i året","Løsgående, dybstrøelse + fast gulv","Løsgående, dybstrøelse + spaltegulv","Løsgående, dybstrøelse","Løsgående, delvis spaltegulv","Individuel opstaldning, delvis spaltegulv","Individuel opstaldning, fuldspaltegulv","Individuel opstaldning, fast gulv","Kassestier, delvis spaltegulv","Kassestier, fuldspaltegulv","Fuldspaltegulv","To klimastald, delvis spaltegulv","Fast gulv","Dybstrøelse","Dybstrøelse, opdelt lejeareal","Drænet gulv + spalter (50/50)","Drænet gulv + spalter (33/67)","Søer på friland","Biogas"]
["Søer",10316.67,80470.025999999983,19601.672999999999,219745.07099999997,615905.19899999991,83565.027000000002,2063.3339999999998]
["Søer, bidrag fra fareperiode",null,null,null,null,null,null,null,838745.27099999983,192921.72899999996]
["Smågrise (7-31 kg)",null,null,null,null,null,null,null,null,null,4516928.18,22676200.254999999,91559.354999999996,518836.34500000003,null,2716260.8650000002]
["Slagtesvin (31 kg >)",null,null,null,null,null,null,null,null,null,10954321.320000002,null,158758.28000000003,257982.20500000002,119068.70999999999,null,8354654.4850000013,null,2282150.2749999999]
[]
[]
[]
[]
["Fjerkræ"]
["Dyretype","Staldtype"]
["Antal producerede dyr i året","Friland, konsumæg","Økologiske, konsumæg","Skrabehøner, konsumæg","Burhøns, konsumæg, bånd, staldgødning","Burhøns, konsumæg, bånd, gylle","Burhøns, konsumæg, gødningskælder","HPR høner (rugeæg), gulvdrift","Slagtekyllinger (25 dyr/m2), produktionstid 30 dage","Slagtekyllinger (25 dyr/m2), produktionstid 32 dage","Slagtekyllinger (25 dyr/m2), produktionstid 35 dage","Slagtekyllinger (25 dyr/m2), produktionstid 40 dage","Slagtekyllinger (25 dyr/m2), produktionstid 45 dage","Skrabekyllinger (10 dyr/m2), produktionstid 56 dage","Økologiske slagtekyllinger","Hønniker, konsum, gulvdrift, 112 dage","Hønniker, konsum, netdrift, 112 dage","Hønniker, rugeæg, HPR, gulvdrift, 119 dage"]
["Høns",237141.73770491799,948566.95081967197,1027614.1967213114,2253795.0751475408,148687.86954098364,206076.17006557377]
["Hønniker",null,null,null,null,null,null,null,null,null,null,null,null,null,null,167850.1,321204.05500000005,273900.84499999997]
["Slagtekyllinger",null,null,null,null,null,null,null,135492.55499999999,2796073.6349999998,9016413.6599999983,283302.61499999999,0,24635.01,61587.525000000001]
[]
[]
[]
[]
["Får og geder"]
["Dyretype","Staldtype"]
["Antal producerede dyr i året","Dybstrøelse"]
["Får",219883]
["Malkegeder",3096.34]
["Mohairgeder",357.27]
["Kødgeder",8455.39]
[]
[]
[]
[]
["Andre dyr"]
["Dyretype","Staldtype"]
["Antal producerede dyr i året","Dybstrøelse","Græs","Bure, fast gødning i gødningsrende","Bure gødningsrende, ugentlig tømning"]
["Heste <300 kg",{"$f":"150000/4","v":37500}]
["Heste 300 - <500 kg",51000]
["Heste 500 - <700 kg",57000]
["Heste >700 kg ",4500]
["Dådyr",null,7362]
["Fasaner",null,1062500]
["Mink",null,null,3228649.2899999996,86185.710000000021]
[]
[]
[]
[]
[]
["Brændstofforbrug"]
[]
["Brændstofforbrug i stationære anlæg"]
["Brændselstype","Brændstofforbrug"]
["Flydende brændsler (l)",2108879.0739329639]
["Faste brændsler (ton)",41628.392]
["Naturgas (m3)",45473357.13318947]
[]
["Brændstofforbrug i mobile anlæg"]
["Brændselstype","Brændstofforbrug"]
["Benzin (l)",15801730.645454574]
["Diesel (l)",431135628.94853485]
[]
[]
[]
[]
[]
["Gødningsforbrug"]
["Gødningstype","Gødningsforbrug Kg N"]
["Handelsgødning",187000000]
["Husdyrgødning udlagt på marken",208500802.89115801]
["Slam",{"$f":"2554000","v":2554000}]
["Andet organisk gødning",{"$f":"4342000","v":4342000}]
[]
["Afgrøder"]
["Type afgrøde","Areal i ha"]
["Vinterhvede",651530]
["Vårhvede",16910]
["Rug",104093]
["Vinterbyg",145209]
["Vårbyg",490533]
["Havre",34830]
["Triticale og andet korn til modenhed",31667]
["Majs til opfodring",183370]
["Kartofler",42617]
["Lucerne",3814]
["Bælgsæd til modenhed",8793]
["Sukkerroer til fabrik + Foderroer",42567]
["Korn og bælgsæd til ensilering (helsæd)",61100]
["Græs- og kløvermark i omdriften + Frø til udsæd",390361]
["Græsarealer uden for omdriften",192617]
["Raps i alt + Hør + Anden industrifrø",166592]
["Samlet",{"$f":"SUM(B99:B114)","v":2566603}]
[]
["Halm"]
["Halm bjærget",3010500]
[]
["Jordbunden"]
["Jordtype","Areal dyrket i ha"]
["JB-nr. 1"]
["JB-nr. 2"]
["JB-nr. 3"]
["JB-nr. 4"]
["JB-nr. 5"]
["JB-nr. 6"]
["JB-nr. 7"]
["JB-nr. 8"]
["JB-nr. 9"]
["JB-nr. 10"]
["JB-nr. 11",41000]
["JB-nr. 12"]
["Tørvejord dyrket med afgrøde",43881]
["Tørvejord dyrket med græs",21418]
[]
[]
["Reduktionstiltag"]
[]
["På gården"]
["Tiltag","Ja/nej"]
["Forsuret, svinegylle"]
["Forsuret, kvæggylle"]
["Biogas, svinegylle"]
["Biogas, kvæggylle"]
[]
["På marken"]
["Tiltag","Ja/nej"]
["Nitrifikationshæmmere"]
["Tiltag","Areal i ha."]
["Vedvarende græs"]
["Dyrkning af energipil, sandjord"]
["Dyrkning af energipil, lerjord"]
["Dyrkning af energipil, tørvejord"]
["Efterafgrøder på sandjord"]
["Efterafgrøder på lerjord"]
["Mellemafgrøder på sandjord"]
["Mellemafgrøder på lerjord"]

{"sheet":"GWP","index":9,"n_rows":3,"n_cols":3,"rows_kept":3,"cut":false,"hidden":false,"merged":[]}
["Drivhusgas","Global warming potential (omregningsfaktor til CO2e)","Kilde"]
["Metan",25,"IPCC https://www.ipcc.ch/publications_and_data/ar4/wg1/en/ch2s2-10-2.html"]
["Lattergas",298,"IPCC https://www.ipcc.ch/publications_and_data/ar4/wg1/en/ch2s2-10-2.html"]